{"text_format":"3","workbook":"xlsx","n_sheets":1,"sheets":["Date lancements clients"],"not_rendered":{"macros":1,"external_links":1,"defined_names":4},"read":"whole","date_system":"1900"}

{"sheet":"Date lancements clients","index":0,"n_rows":359,"n_cols":17,"rows_kept":359}
["Clients","Date commande","Date lancement","Age (sem)","Nb jour avt mep","1ere formation / facturation","Date de MEP prévisionnelle","En cours déploiement","MEP prév.","Code couleur","Pays","Equipe","Produit","Suivi","pour calc","pour calc2","TEST DATE"]
[1,"2020-06-12","2020-06-16",{"$f":"IF(C2>TODAY(),\"0\",IF(F2=\"-\",INT(DATEDIF(C2,TODAY(),\"d\")/7),INT(DATEDIF(C2,F2,\"d\")/7)))","v":2},"-","2020-07-01",{"$f":"IF(OR(TAB_MEP[[#This Row],[Nb jour avt mep]]=\"-\",TAB_MEP[[#This Row],[Date lancement]]=\"-\"),\"pas de date\",TAB_MEP[[#This Row],[Date lancement]]+TAB_MEP[[#This Row],[Nb jour avt mep]])","v":"pas de date"},{"$f":"IF(OR(TAB_MEP[[#This Row],[1ere formation / facturation]]=\"-\",TAB_MEP[[#This Row],[1ere formation / facturation]]>=TODAY()),1,0)","v":0},{"$nulls":3},"SC","CF",0,{"$f":"IF(AND(AND(TAB_MEP[[#This Row],[1ere formation / facturation]]<>\"-\",TAB_MEP[[#This Row],[Date de MEP prévisionnelle]]<TAB_MEP[[#This Row],[1ere formation / facturation]],TAB_MEP[[#This Row],[Date de MEP prévisionnelle]]<>\"pas de date\")),1,0)","v":0},{"$f":"IF(AND(TAB_MEP[[#This Row],[1ere formation / facturation]]=\"-\",TAB_MEP[[#This Row],[Date de MEP prévisionnelle]]<TODAY()),1,0)","v":0},{"$f":"IF(TAB_MEP[[#This Row],[1ere formation / facturation]]<>\"-\",TAB_MEP[[#This Row],[1ere formation / facturation]],\"\")","v":"2020-07-01"}]
[2,"2022-07-28","2022-09-07",11,"-","2022-11-24",{"$f":"IF(OR(TAB_MEP[[#This Row],[Nb jour avt mep]]=\"-\",TAB_MEP[[#This Row],[Date lancement]]=\"-\"),\"pas de date\",TAB_MEP[[#This Row],[Date lancement]]+TAB_MEP[[#This Row],[Nb jour avt mep]])","v":"pas de date"},{"$f":"IF(OR(TAB_MEP[[#This Row],[1ere formation / facturation]]=\"-\",TAB_MEP[[#This Row],[1ere formation / facturation]]>=TODAY()),1,0)","v":0},null,null,"FR","SC","CF",0,{"$f":"IF(AND(AND(TAB_MEP[[#This Row],[1ere formation / facturation]]<>\"-\",TAB_MEP[[#This Row],[Date de MEP prévisionnelle]]<TAB_MEP[[#This Row],[1ere formation / facturation]],TAB_MEP[[#This Row],[Date de MEP prévisionnelle]]<>\"pas de date\")),1,0)","v":0},{"$f":"IF(AND(TAB_MEP[[#This Row],[1ere formation / facturation]]=\"-\",TAB_MEP[[#This Row],[Date de MEP prévisionnelle]]<TODAY()),1,0)","v":0},{"$f":"IF(TAB_MEP[[#This Row],[1ere formation / facturation]]<>\"-\",TAB_MEP[[#This Row],[1ere formation / facturation]],\"\")","v":"2022-11-24"}]
[3,"2021-02-05","2021-02-05",7,"-","2021-03-30",{"$f":"IF(OR(TAB_MEP[[#This Row],[Nb jour avt mep]]=\"-\",TAB_MEP[[#This Row],[Date lancement]]=\"-\"),\"pas de date\",TAB_MEP[[#This Row],[Date lancement]]+TAB_MEP[[#This Row],[Nb jour avt mep]])","v":"pas de date"},{"$f":"IF(OR(TAB_MEP[[#This Row],[1ere formation / facturation]]=\"-\",TAB_MEP[[#This Row],[1ere formation / facturation]]>=TODAY()),1,0)","v":0},{"$nulls":3},"Part","CF",0,{"$f":"IF(AND(AND(TAB_MEP[[#This Row],[1ere formation / facturation]]<>\"-\",TAB_MEP[[#This Row],[Date de MEP prévisionnelle]]<TAB_MEP[[#This Row],[1ere formation / facturation]],TAB_MEP[[#This Row],[Date de MEP prévisionnelle]]<>\"pas de date\")),1,0)","v":0},{"$f":"IF(AND(TAB_MEP[[#This Row],[1ere formation / facturation]]=\"-\",TAB_MEP[[#This Row],[Date de MEP prévisionnelle]]<TODAY()),1,0)","v":0},{"$f":"IF(TAB_MEP[[#This Row],[1ere formation / facturation]]<>\"-\",TAB_MEP[[#This Row],[1ere formation / facturation]],\"\")","v":"2021-03-30"}]
[4,"2021-07-27","2021-09-09",6,"-","2021-10-21",{"$f":"IF(OR(TAB_MEP[[#This Row],[Nb jour avt mep]]=\"-\",TAB_MEP[[#This Row],[Date lancement]]=\"-\"),\"pas de date\",TAB_MEP[[#This Row],[Date lancement]]+TAB_MEP[[#This Row],[Nb jour avt mep]])","v":"pas de date"},{"$f":"IF(OR(TAB_MEP[[#This Row],[1ere formation / facturation]]=\"-\",TAB_MEP[[#This Row],[1ere formation / facturation]]>=TODAY()),1,0)","v":0},{"$nulls":3},"SC","CF",0,{"$f":"IF(AND(AND(TAB_MEP[[#This Row],[1ere formation / facturation]]<>\"-\",TAB_MEP[[#This Row],[Date de MEP prévisionnelle]]<TAB_MEP[[#This Row],[1ere formation / facturation]],TAB_MEP[[#This Row],[Date de MEP prévisionnelle]]<>\"pas de date\")),1,0)","v":0},{"$f":"IF(AND(TAB_MEP[[#This Row],[1ere formation / facturation]]=\"-\",TAB_MEP[[#This Row],[Date de MEP prévisionnelle]]<TODAY()),1,0)","v":0},{"$f":"IF(TAB_MEP[[#This Row],[1ere formation / facturation]]<>\"-\",TAB_MEP[[#This Row],[1ere formation / facturation]],\"\")","v":"2021-10-21"}]
[5,"2022-10-17","2022-11-09",9,"-","2023-01-17",{"$f":"IF(OR(TAB_MEP[[#This Row],[Nb jour avt mep]]=\"-\",TAB_MEP[[#This Row],[Date lancement]]=\"-\"),\"pas de date\",TAB_MEP[[#This Row],[Date lancement]]+TAB_MEP[[#This Row],[Nb jour avt mep]])","v":"pas de date"},{"$f":"IF(OR(TAB_MEP[[#This Row],[1ere formation / facturation]]=\"-\",TAB_MEP[[#This Row],[1ere formation / facturation]]>=TODAY()),1,0)","v":0},null,null,"FR","SC","CF",0,{"$f":"IF(AND(AND(TAB_MEP[[#This Row],[1ere formation / facturation]]<>\"-\",TAB_MEP[[#This Row],[Date de MEP prévisionnelle]]<TAB_MEP[[#This Row],[1ere formation / facturation]],TAB_MEP[[#This Row],[Date de MEP prévisionnelle]]<>\"pas de date\")),1,0)","v":0},{"$f":"IF(AND(TAB_MEP[[#This Row],[1ere formation / facturation]]=\"-\",TAB_MEP[[#This Row],[Date de MEP prévisionnelle]]<TODAY()),1,0)","v":0},{"$f":"IF(TAB_MEP[[#This Row],[1ere formation / facturation]]<>\"-\",TAB_MEP[[#This Row],[1ere formation / facturation]],\"\")","v":"2023-01-17"}]
[6,"2022-05-02","2022-06-17",19,"-","2022-10-28",{"$f":"IF(OR(TAB_MEP[[#This Row],[Nb jour avt mep]]=\"-\",TAB_MEP[[#This Row],[Date lancement]]=\"-\"),\"pas de date\",TAB_MEP[[#This Row],[Date lancement]]+TAB_MEP[[#This Row],[Nb jour avt mep]])","v":"pas de date"},{"$f":"IF(OR(TAB_MEP[[#This Row],[1ere formation / facturation]]=\"-\",TAB_MEP[[#This Row],[1ere formation / facturation]]>=TODAY()),1,0)","v":0},null,null,"FR","SC","CF",0,{"$f":"IF(AND(AND(TAB_MEP[[#This Row],[1ere formation / facturation]]<>\"-\",TAB_MEP[[#This Row],[Date de MEP prévisionnelle]]<TAB_MEP[[#This Row],[1ere formation / facturation]],TAB_MEP[[#This Row],[Date de MEP prévisionnelle]]<>\"pas de date\")),1,0)","v":0},{"$f":"IF(AND(TAB_MEP[[#This Row],[1ere formation / facturation]]=\"-\",TAB_MEP[[#This Row],[Date de MEP prévisionnelle]]<TODAY()),1,0)","v":0},{"$f":"IF(TAB_MEP[[#This Row],[1ere formation / facturation]]<>\"-\",TAB_MEP[[#This Row],[1ere formation / facturation]],\"\")","v":"2022-10-28"}]
[7,"2020-05-07","2020-04-03",27,"-","2020-10-15",{"$f":"IF(OR(TAB_MEP[[#This Row],[Nb jour avt mep]]=\"-\",TAB_MEP[[#This Row],[Date lancement]]=\"-\"),\"pas de date\",TAB_MEP[[#This Row],[Date lancement]]+TAB_MEP[[#This Row],[Nb jour avt mep]])","v":"pas de date"},{"$f":"IF(OR(TAB_MEP[[#This Row],[1ere formation / facturation]]=\"-\",TAB_MEP[[#This Row],[1ere formation / facturation]]>=TODAY()),1,0)","v":0},{"$nulls":3},"SC","CF",0,{"$f":"IF(AND(AND(TAB_MEP[[#This Row],[1ere formation / facturation]]<>\"-\",TAB_MEP[[#This Row],[Date de MEP prévisionnelle]]<TAB_MEP[[#This Row],[1ere formation / facturation]],TAB_MEP[[#This Row],[Date de MEP prévisionnelle]]<>\"pas de date\")),1,0)","v":0},{"$f":"IF(AND(TAB_MEP[[#This Row],[1ere formation / facturation]]=\"-\",TAB_MEP[[#This Row],[Date de MEP prévisionnelle]]<TODAY()),1,0)","v":0},{"$f":"IF(TAB_MEP[[#This Row],[1ere formation / facturation]]<>\"-\",TAB_MEP[[#This Row],[1ere formation / facturation]],\"\")","v":"2020-10-15"}]
[8,"2021-09-09","2021-04-29",{"$f":"IF(C9>TODAY(),\"0\",IF(F9=\"-\",INT(DATEDIF(C9,TODAY(),\"d\")/7),INT(DATEDIF(C9,F9,\"d\")/7)))","v":129},100,"-",{"$f":"IF(OR(TAB_MEP[[#This Row],[Nb jour avt mep]]=\"-\",TAB_MEP[[#This Row],[Date lancement]]=\"-\"),\"pas de date\",TAB_MEP[[#This Row],[Date lancement]]+TAB_MEP[[#This Row],[Nb jour avt mep]])","v":"2021-08-07"},{"$f":"IF(OR(TAB_MEP[[#This Row],[1ere formation / facturation]]=\"-\",TAB_MEP[[#This Row],[1ere formation / facturation]]>=TODAY()),1,0)","v":1},null,null,"CH","Inter","CF",1,{"$f":"IF(AND(AND(TAB_MEP[[#This Row],[1ere formation / facturation]]<>\"-\",TAB_MEP[[#This Row],[Date de MEP prévisionnelle]]<TAB_MEP[[#This Row],[1ere formation / facturation]],TAB_MEP[[#This Row],[Date de MEP prévisionnelle]]<>\"pas de date\")),1,0)","v":0},{"$f":"IF(AND(TAB_MEP[[#This Row],[1ere formation / facturation]]=\"-\",TAB_MEP[[#This Row],[Date de MEP prévisionnelle]]<TODAY()),1,0)","v":1},{"$f":"IF(TAB_MEP[[#This Row],[1ere formation / facturation]]<>\"-\",TAB_MEP[[#This Row],[1ere formation / facturation]],\"\")","v":""}]
[9,"2023-06-14","2023-06-26",9,"-","2023-08-28",{"$f":"IF(OR(TAB_MEP[[#This Row],[Nb jour avt mep]]=\"-\",TAB_MEP[[#This Row],[Date lancement]]=\"-\"),\"pas de date\",TAB_MEP[[#This Row],[Date lancement]]+TAB_MEP[[#This Row],[Nb jour avt mep]])","v":"pas de date"},{"$f":"IF(OR(TAB_MEP[[#This Row],[1ere formation / facturation]]=\"-\",TAB_MEP[[#This Row],[1ere formation / facturation]]>=TODAY()),1,0)","v":0},null,null,"FR","SC","CF",1,{"$f":"IF(AND(AND(TAB_MEP[[#This Row],[1ere formation / facturation]]<>\"-\",TAB_MEP[[#This Row],[Date de MEP prévisionnelle]]<TAB_MEP[[#This Row],[1ere formation / facturation]],TAB_MEP[[#This Row],[Date de MEP prévisionnelle]]<>\"pas de date\")),1,0)","v":0},{"$f":"IF(AND(TAB_MEP[[#This Row],[1ere formation / facturation]]=\"-\",TAB_MEP[[#This Row],[Date de MEP prévisionnelle]]<TODAY()),1,0)","v":0},{"$f":"IF(TAB_MEP[[#This Row],[1ere formation / facturation]]<>\"-\",TAB_MEP[[#This Row],[1ere formation / facturation]],\"\")","v":"2023-08-28"}]
[10,"2021-03-22","2021-03-30",11,"-","2021-06-16",{"$f":"IF(OR(TAB_MEP[[#This Row],[Nb jour avt mep]]=\"-\",TAB_MEP[[#This Row],[Date lancement]]=\"-\"),\"pas de date\",TAB_MEP[[#This Row],[Date lancement]]+TAB_MEP[[#This Row],[Nb jour avt mep]])","v":"pas de date"},{"$f":"IF(OR(TAB_MEP[[#This Row],[1ere formation / facturation]]=\"-\",TAB_MEP[[#This Row],[1ere formation / facturation]]>=TODAY()),1,0)","v":0},{"$nulls":3},"SC","CF",0,{"$f":"IF(AND(AND(TAB_MEP[[#This Row],[1ere formation / facturation]]<>\"-\",TAB_MEP[[#This Row],[Date de MEP prévisionnelle]]<TAB_MEP[[#This Row],[1ere formation / facturation]],TAB_MEP[[#This Row],[Date de MEP prévisionnelle]]<>\"pas de date\")),1,0)","v":0},{"$f":"IF(AND(TAB_MEP[[#This Row],[1ere formation / facturation]]=\"-\",TAB_MEP[[#This Row],[Date de MEP prévisionnelle]]<TODAY()),1,0)","v":0},{"$f":"IF(TAB_MEP[[#This Row],[1ere formation / facturation]]<>\"-\",TAB_MEP[[#This Row],[1ere formation / facturation]],\"\")","v":"2021-06-16"}]
[11,"2020-02-24","2020-03-11",2,"-","2020-03-30",{"$f":"IF(OR(TAB_MEP[[#This Row],[Nb jour avt mep]]=\"-\",TAB_MEP[[#This Row],[Date lancement]]=\"-\"),\"pas de date\",TAB_MEP[[#This Row],[Date lancement]]+TAB_MEP[[#This Row],[Nb jour avt mep]])","v":"pas de date"},{"$f":"IF(OR(TAB_MEP[[#This Row],[1ere formation / facturation]]=\"-\",TAB_MEP[[#This Row],[1ere formation / facturation]]>=TODAY()),1,0)","v":0},{"$nulls":3},"Part","CF",0,{"$f":"IF(AND(AND(TAB_MEP[[#This Row],[1ere formation / facturation]]<>\"-\",TAB_MEP[[#This Row],[Date de MEP prévisionnelle]]<TAB_MEP[[#This Row],[1ere formation / facturation]],TAB_MEP[[#This Row],[Date de MEP prévisionnelle]]<>\"pas de date\")),1,0)","v":0},{"$f":"IF(AND(TAB_MEP[[#This Row],[1ere formation / facturation]]=\"-\",TAB_MEP[[#This Row],[Date de MEP prévisionnelle]]<TODAY()),1,0)","v":0},{"$f":"IF(TAB_MEP[[#This Row],[1ere formation / facturation]]<>\"-\",TAB_MEP[[#This Row],[1ere formation / facturation]],\"\")","v":"2020-03-30"}]
[12,"2023-01-24","2023-03-03",16,100,"2023-06-26",{"$f":"IF(OR(TAB_MEP[[#This Row],[Nb jour avt mep]]=\"-\",TAB_MEP[[#This Row],[Date lancement]]=\"-\"),\"pas de date\",TAB_MEP[[#This Row],[Date lancement]]+TAB_MEP[[#This Row],[Nb jour avt mep]])","v":"2023-06-11"},{"$f":"IF(OR(TAB_MEP[[#This Row],[1ere formation / facturation]]=\"-\",TAB_MEP[[#This Row],[1ere formation / facturation]]>=TODAY()),1,0)","v":0},null,null,"FR","SC","CF",0,{"$f":"IF(AND(AND(TAB_MEP[[#This Row],[1ere formation / facturation]]<>\"-\",TAB_MEP[[#This Row],[Date de MEP prévisionnelle]]<TAB_MEP[[#This Row],[1ere formation / facturation]],TAB_MEP[[#This Row],[Date de MEP prévisionnelle]]<>\"pas de date\")),1,0)","v":1},{"$f":"IF(AND(TAB_MEP[[#This Row],[1ere formation / facturation]]=\"-\",TAB_MEP[[#This Row],[Date de MEP prévisionnelle]]<TODAY()),1,0)","v":0},{"$f":"IF(TAB_MEP[[#This Row],[1ere formation / facturation]]<>\"-\",TAB_MEP[[#This Row],[1ere formation / facturation]],\"\")","v":"2023-06-26"}]
[13,"2022-12-20","2023-02-22",19,70,"2023-07-10",{"$f":"IF(OR(TAB_MEP[[#This Row],[Nb jour avt mep]]=\"-\",TAB_MEP[[#This Row],[Date lancement]]=\"-\"),\"pas de date\",TAB_MEP[[#This Row],[Date lancement]]+TAB_MEP[[#This Row],[Nb jour avt mep]])","v":"2023-05-03"},{"$f":"IF(OR(TAB_MEP[[#This Row],[1ere formation / facturation]]=\"-\",TAB_MEP[[#This Row],[1ere formation / facturation]]>=TODAY()),1,0)","v":0},null,null,"FR","SC","CF",1,{"$f":"IF(AND(AND(TAB_MEP[[#This Row],[1ere formation / facturation]]<>\"-\",TAB_MEP[[#This Row],[Date de MEP prévisionnelle]]<TAB_MEP[[#This Row],[1ere formation / facturation]],TAB_MEP[[#This Row],[Date de MEP prévisionnelle]]<>\"pas de date\")),1,0)","v":1},{"$f":"IF(AND(TAB_MEP[[#This Row],[1ere formation / facturation]]=\"-\",TAB_MEP[[#This Row],[Date de MEP prévisionnelle]]<TODAY()),1,0)","v":0},{"$f":"IF(TAB_MEP[[#This Row],[1ere formation / facturation]]<>\"-\",TAB_MEP[[#This Row],[1ere formation / facturation]],\"\")","v":"2023-07-10"}]
[14,"2023-06-29","2023-07-13",6,56,"2023-08-24",{"$f":"IF(OR(TAB_MEP[[#This Row],[Nb jour avt mep]]=\"-\",TAB_MEP[[#This Row],[Date lancement]]=\"-\"),\"pas de date\",TAB_MEP[[#This Row],[Date lancement]]+TAB_MEP[[#This Row],[Nb jour avt mep]])","v":"2023-09-07"},{"$f":"IF(OR(TAB_MEP[[#This Row],[1ere formation / facturation]]=\"-\",TAB_MEP[[#This Row],[1ere formation / facturation]]>=TODAY()),1,0)","v":0},null,null,"FR","SC","CF",1,{"$f":"IF(AND(AND(TAB_MEP[[#This Row],[1ere formation / facturation]]<>\"-\",TAB_MEP[[#This Row],[Date de MEP prévisionnelle]]<TAB_MEP[[#This Row],[1ere formation / facturation]],TAB_MEP[[#This Row],[Date de MEP prévisionnelle]]<>\"pas de date\")),1,0)","v":0},{"$f":"IF(AND(TAB_MEP[[#This Row],[1ere formation / facturation]]=\"-\",TAB_MEP[[#This Row],[Date de MEP prévisionnelle]]<TODAY()),1,0)","v":0},{"$f":"IF(TAB_MEP[[#This Row],[1ere formation / facturation]]<>\"-\",TAB_MEP[[#This Row],[1ere formation / facturation]],\"\")","v":"2023-08-24"}]
[15,"2022-01-26","2022-01-26",5,"-","2022-03-03",{"$f":"IF(OR(TAB_MEP[[#This Row],[Nb jour avt mep]]=\"-\",TAB_MEP[[#This Row],[Date lancement]]=\"-\"),\"pas de date\",TAB_MEP[[#This Row],[Date lancement]]+TAB_MEP[[#This Row],[Nb jour avt mep]])","v":"pas de date"},{"$f":"IF(OR(TAB_MEP[[#This Row],[1ere formation / facturation]]=\"-\",TAB_MEP[[#This Row],[1ere formation / facturation]]>=TODAY()),1,0)","v":0},{"$nulls":3},"Part","CF",0,{"$f":"IF(AND(AND(TAB_MEP[[#This Row],[1ere formation / facturation]]<>\"-\",TAB_MEP[[#This Row],[Date de MEP prévisionnelle]]<TAB_MEP[[#This Row],[1ere formation / facturation]],TAB_MEP[[#This Row],[Date de MEP prévisionnelle]]<>\"pas de date\")),1,0)","v":0},{"$f":"IF(AND(TAB_MEP[[#This Row],[1ere formation / facturation]]=\"-\",TAB_MEP[[#This Row],[Date de MEP prévisionnelle]]<TODAY()),1,0)","v":0},{"$f":"IF(TAB_MEP[[#This Row],[1ere formation / facturation]]<>\"-\",TAB_MEP[[#This Row],[1ere formation / facturation]],\"\")","v":"2022-03-03"}]
[16,"2021-02-03","2021-02-24",5,"-","2021-04-02",{"$f":"IF(OR(TAB_MEP[[#This Row],[Nb jour avt mep]]=\"-\",TAB_MEP[[#This Row],[Date lancement]]=\"-\"),\"pas de date\",TAB_MEP[[#This Row],[Date lancement]]+TAB_MEP[[#This Row],[Nb jour avt mep]])","v":"pas de date"},{"$f":"IF(OR(TAB_MEP[[#This Row],[1ere formation / facturation]]=\"-\",TAB_MEP[[#This Row],[1ere formation / facturation]]>=TODAY()),1,0)","v":0},{"$nulls":3},"SC","CF",0,{"$f":"IF(AND(AND(TAB_MEP[[#This Row],[1ere formation / facturation]]<>\"-\",TAB_MEP[[#This Row],[Date de MEP prévisionnelle]]<TAB_MEP[[#This Row],[1ere formation / facturation]],TAB_MEP[[#This Row],[Date de MEP prévisionnelle]]<>\"pas de date\")),1,0)","v":0},{"$f":"IF(AND(TAB_MEP[[#This Row],[1ere formation / facturation]]=\"-\",TAB_MEP[[#This Row],[Date de MEP prévisionnelle]]<TODAY()),1,0)","v":0},{"$f":"IF(TAB_MEP[[#This Row],[1ere formation / facturation]]<>\"-\",TAB_MEP[[#This Row],[1ere formation / facturation]],\"\")","v":"2021-04-02"}]
[17,"2019-12-05","2020-03-03",41,"-","2020-12-17",{"$f":"IF(OR(TAB_MEP[[#This Row],[Nb jour avt mep]]=\"-\",TAB_MEP[[#This Row],[Date lancement]]=\"-\"),\"pas de date\",TAB_MEP[[#This Row],[Date lancement]]+TAB_MEP[[#This Row],[Nb jour avt mep]])","v":"pas de date"},{"$f":"IF(OR(TAB_MEP[[#This Row],[1ere formation / facturation]]=\"-\",TAB_MEP[[#This Row],[1ere formation / facturation]]>=TODAY()),1,0)","v":0},{"$nulls":3},"SC","CF",0,{"$f":"IF(AND(AND(TAB_MEP[[#This Row],[1ere formation / facturation]]<>\"-\",TAB_MEP[[#This Row],[Date de MEP prévisionnelle]]<TAB_MEP[[#This Row],[1ere formation / facturation]],TAB_MEP[[#This Row],[Date de MEP prévisionnelle]]<>\"pas de date\")),1,0)","v":0},{"$f":"IF(AND(TAB_MEP[[#This Row],[1ere formation / facturation]]=\"-\",TAB_MEP[[#This Row],[Date de MEP prévisionnelle]]<TODAY()),1,0)","v":0},{"$f":"IF(TAB_MEP[[#This Row],[1ere formation / facturation]]<>\"-\",TAB_MEP[[#This Row],[1ere formation / facturation]],\"\")","v":"2020-12-17"}]
[18,"2022-01-19","2022-02-04",3,"-","2022-03-03",{"$f":"IF(OR(TAB_MEP[[#This Row],[Nb jour avt mep]]=\"-\",TAB_MEP[[#This Row],[Date lancement]]=\"-\"),\"pas de date\",TAB_MEP[[#This Row],[Date lancement]]+TAB_MEP[[#This Row],[Nb jour avt mep]])","v":"pas de date"},{"$f":"IF(OR(TAB_MEP[[#This Row],[1ere formation / facturation]]=\"-\",TAB_MEP[[#This Row],[1ere formation / facturation]]>=TODAY()),1,0)","v":0},{"$nulls":3},"SC","CF",0,{"$f":"IF(AND(AND(TAB_MEP[[#This Row],[1ere formation / facturation]]<>\"-\",TAB_MEP[[#This Row],[Date de MEP prévisionnelle]]<TAB_MEP[[#This Row],[1ere formation / facturation]],TAB_MEP[[#This Row],[Date de MEP prévisionnelle]]<>\"pas de date\")),1,0)","v":0},{"$f":"IF(AND(TAB_MEP[[#This Row],[1ere formation / facturation]]=\"-\",TAB_MEP[[#This Row],[Date de MEP prévisionnelle]]<TODAY()),1,0)","v":0},{"$f":"IF(TAB_MEP[[#This Row],[1ere formation / facturation]]<>\"-\",TAB_MEP[[#This Row],[1ere formation / facturation]],\"\")","v":"2022-03-03"}]
[19,"2021-07-07","2021-07-22",11,"-","2021-10-11",{"$f":"IF(OR(TAB_MEP[[#This Row],[Nb jour avt mep]]=\"-\",TAB_MEP[[#This Row],[Date lancement]]=\"-\"),\"pas de date\",TAB_MEP[[#This Row],[Date lancement]]+TAB_MEP[[#This Row],[Nb jour avt mep]])","v":"pas de date"},{"$f":"IF(OR(TAB_MEP[[#This Row],[1ere formation / facturation]]=\"-\",TAB_MEP[[#This Row],[1ere formation / facturation]]>=TODAY()),1,0)","v":0},{"$nulls":3},"SC","CF",0,{"$f":"IF(AND(AND(TAB_MEP[[#This Row],[1ere formation / facturation]]<>\"-\",TAB_MEP[[#This Row],[Date de MEP prévisionnelle]]<TAB_MEP[[#This Row],[1ere formation / facturation]],TAB_MEP[[#This Row],[Date de MEP prévisionnelle]]<>\"pas de date\")),1,0)","v":0},{"$f":"IF(AND(TAB_MEP[[#This Row],[1ere formation / facturation]]=\"-\",TAB_MEP[[#This Row],[Date de MEP prévisionnelle]]<TODAY()),1,0)","v":0},{"$f":"IF(TAB_MEP[[#This Row],[1ere formation / facturation]]<>\"-\",TAB_MEP[[#This Row],[1ere formation / facturation]],\"\")","v":"2021-10-11"}]
[20,"2019-11-07","2019-11-07",11,"-","2020-01-28",{"$f":"IF(OR(TAB_MEP[[#This Row],[Nb jour avt mep]]=\"-\",TAB_MEP[[#This Row],[Date lancement]]=\"-\"),\"pas de date\",TAB_MEP[[#This Row],[Date lancement]]+TAB_MEP[[#This Row],[Nb jour avt mep]])","v":"pas de date"},{"$f":"IF(OR(TAB_MEP[[#This Row],[1ere formation / facturation]]=\"-\",TAB_MEP[[#This Row],[1ere formation / facturation]]>=TODAY()),1,0)","v":0},{"$nulls":3},"SC","CF",0,{"$f":"IF(AND(AND(TAB_MEP[[#This Row],[1ere formation / facturation]]<>\"-\",TAB_MEP[[#This Row],[Date de MEP prévisionnelle]]<TAB_MEP[[#This Row],[1ere formation / facturation]],TAB_MEP[[#This Row],[Date de MEP prévisionnelle]]<>\"pas de date\")),1,0)","v":0},{"$f":"IF(AND(TAB_MEP[[#This Row],[1ere formation / facturation]]=\"-\",TAB_MEP[[#This Row],[Date de MEP prévisionnelle]]<TODAY()),1,0)","v":0},{"$f":"IF(TAB_MEP[[#This Row],[1ere formation / facturation]]<>\"-\",TAB_MEP[[#This Row],[1ere formation / facturation]],\"\")","v":"2020-01-28"}]
[21,"2022-03-23","2022-04-12",28,"-","2022-10-27",{"$f":"IF(OR(TAB_MEP[[#This Row],[Nb jour avt mep]]=\"-\",TAB_MEP[[#This Row],[Date lancement]]=\"-\"),\"pas de date\",TAB_MEP[[#This Row],[Date lancement]]+TAB_MEP[[#This Row],[Nb jour avt mep]])","v":"pas de date"},{"$f":"IF(OR(TAB_MEP[[#This Row],[1ere formation / facturation]]=\"-\",TAB_MEP[[#This Row],[1ere formation / facturation]]>=TODAY()),1,0)","v":0},null,null,"FR","SC","CF",0,{"$f":"IF(AND(AND(TAB_MEP[[#This Row],[1ere formation / facturation]]<>\"-\",TAB_MEP[[#This Row],[Date de MEP prévisionnelle]]<TAB_MEP[[#This Row],[1ere formation / facturation]],TAB_MEP[[#This Row],[Date de MEP prévisionnelle]]<>\"pas de date\")),1,0)","v":0},{"$f":"IF(AND(TAB_MEP[[#This Row],[1ere formation / facturation]]=\"-\",TAB_MEP[[#This Row],[Date de MEP prévisionnelle]]<TODAY()),1,0)","v":0},{"$f":"IF(TAB_MEP[[#This Row],[1ere formation / facturation]]<>\"-\",TAB_MEP[[#This Row],[1ere formation / facturation]],\"\")","v":"2022-10-27"}]
[22,"2021-11-29","2021-12-15",9,"-","2022-02-21",{"$f":"IF(OR(TAB_MEP[[#This Row],[Nb jour avt mep]]=\"-\",TAB_MEP[[#This Row],[Date lancement]]=\"-\"),\"pas de date\",TAB_MEP[[#This Row],[Date lancement]]+TAB_MEP[[#This Row],[Nb jour avt mep]])","v":"pas de date"},{"$f":"IF(OR(TAB_MEP[[#This Row],[1ere formation / facturation]]=\"-\",TAB_MEP[[#This Row],[1ere formation / facturation]]>=TODAY()),1,0)","v":0},{"$nulls":3},"SC","CF",0,{"$f":"IF(AND(AND(TAB_MEP[[#This Row],[1ere formation / facturation]]<>\"-\",TAB_MEP[[#This Row],[Date de MEP prévisionnelle]]<TAB_MEP[[#This Row],[1ere formation / facturation]],TAB_MEP[[#This Row],[Date de MEP prévisionnelle]]<>\"pas de date\")),1,0)","v":0},{"$f":"IF(AND(TAB_MEP[[#This Row],[1ere formation / facturation]]=\"-\",TAB_MEP[[#This Row],[Date de MEP prévisionnelle]]<TODAY()),1,0)","v":0},{"$f":"IF(TAB_MEP[[#This Row],[1ere formation / facturation]]<>\"-\",TAB_MEP[[#This Row],[1ere formation / facturation]],\"\")","v":"2022-02-21"}]
[23,"2021-12-21","2021-12-21",7,"-","2022-02-09",{"$f":"IF(OR(TAB_MEP[[#This Row],[Nb jour avt mep]]=\"-\",TAB_MEP[[#This Row],[Date lancement]]=\"-\"),\"pas de date\",TAB_MEP[[#This Row],[Date lancement]]+TAB_MEP[[#This Row],[Nb jour avt mep]])","v":"pas de date"},{"$f":"IF(OR(TAB_MEP[[#This Row],[1ere formation / facturation]]=\"-\",TAB_MEP[[#This Row],[1ere formation / facturation]]>=TODAY()),1,0)","v":0},{"$nulls":3},"SC","CF",0,{"$f":"IF(AND(AND(TAB_MEP[[#This Row],[1ere formation / facturation]]<>\"-\",TAB_MEP[[#This Row],[Date de MEP prévisionnelle]]<TAB_MEP[[#This Row],[1ere formation / facturation]],TAB_MEP[[#This Row],[Date de MEP prévisionnelle]]<>\"pas de date\")),1,0)","v":0},{"$f":"IF(AND(TAB_MEP[[#This Row],[1ere formation / facturation]]=\"-\",TAB_MEP[[#This Row],[Date de MEP prévisionnelle]]<TODAY()),1,0)","v":0},{"$f":"IF(TAB_MEP[[#This Row],[1ere formation / facturation]]<>\"-\",TAB_MEP[[#This Row],[1ere formation / facturation]],\"\")","v":"2022-02-09"}]
[24,"2020-11-10","2020-11-10",1,"-","2020-11-18",{"$f":"IF(OR(TAB_MEP[[#This Row],[Nb jour avt mep]]=\"-\",TAB_MEP[[#This Row],[Date lancement]]=\"-\"),\"pas de date\",TAB_MEP[[#This Row],[Date lancement]]+TAB_MEP[[#This Row],[Nb jour avt mep]])","v":"pas de date"},{"$f":"IF(OR(TAB_MEP[[#This Row],[1ere formation / facturation]]=\"-\",TAB_MEP[[#This Row],[1ere formation / facturation]]>=TODAY()),1,0)","v":0},{"$nulls":3},"Part","CF",0,{"$f":"IF(AND(AND(TAB_MEP[[#This Row],[1ere formation / facturation]]<>\"-\",TAB_MEP[[#This Row],[Date de MEP prévisionnelle]]<TAB_MEP[[#This Row],[1ere formation / facturation]],TAB_MEP[[#This Row],[Date de MEP prévisionnelle]]<>\"pas de date\")),1,0)","v":0},{"$f":"IF(AND(TAB_MEP[[#This Row],[1ere formation / facturation]]=\"-\",TAB_MEP[[#This Row],[Date de MEP prévisionnelle]]<TODAY()),1,0)","v":0},{"$f":"IF(TAB_MEP[[#This Row],[1ere formation / facturation]]<>\"-\",TAB_MEP[[#This Row],[1ere formation / facturation]],\"\")","v":"2020-11-18"}]
[25,"2022-05-30","2022-06-09",14,"-","2022-09-15",{"$f":"IF(OR(TAB_MEP[[#This Row],[Nb jour avt mep]]=\"-\",TAB_MEP[[#This Row],[Date lancement]]=\"-\"),\"pas de date\",TAB_MEP[[#This Row],[Date lancement]]+TAB_MEP[[#This Row],[Nb jour avt mep]])","v":"pas de date"},{"$f":"IF(OR(TAB_MEP[[#This Row],[1ere formation / facturation]]=\"-\",TAB_MEP[[#This Row],[1ere formation / facturation]]>=TODAY()),1,0)","v":0},null,null,"FR","SC","CF",0,{"$f":"IF(AND(AND(TAB_MEP[[#This Row],[1ere formation / facturation]]<>\"-\",TAB_MEP[[#This Row],[Date de MEP prévisionnelle]]<TAB_MEP[[#This Row],[1ere formation / facturation]],TAB_MEP[[#This Row],[Date de MEP prévisionnelle]]<>\"pas de date\")),1,0)","v":0},{"$f":"IF(AND(TAB_MEP[[#This Row],[1ere formation / facturation]]=\"-\",TAB_MEP[[#This Row],[Date de MEP prévisionnelle]]<TODAY()),1,0)","v":0},{"$f":"IF(TAB_MEP[[#This Row],[1ere formation / facturation]]<>\"-\",TAB_MEP[[#This Row],[1ere formation / facturation]],\"\")","v":"2022-09-15"}]
[26,"2023-01-06","2023-01-31",6,"-","2023-03-16",{"$f":"IF(OR(TAB_MEP[[#This Row],[Nb jour avt mep]]=\"-\",TAB_MEP[[#This Row],[Date lancement]]=\"-\"),\"pas de date\",TAB_MEP[[#This Row],[Date lancement]]+TAB_MEP[[#This Row],[Nb jour avt mep]])","v":"pas de date"},{"$f":"IF(OR(TAB_MEP[[#This Row],[1ere formation / facturation]]=\"-\",TAB_MEP[[#This Row],[1ere formation / facturation]]>=TODAY()),1,0)","v":0},null,null,"FR","SC","CF",0,{"$f":"IF(AND(AND(TAB_MEP[[#This Row],[1ere formation / facturation]]<>\"-\",TAB_MEP[[#This Row],[Date de MEP prévisionnelle]]<TAB_MEP[[#This Row],[1ere formation / facturation]],TAB_MEP[[#This Row],[Date de MEP prévisionnelle]]<>\"pas de date\")),1,0)","v":0},{"$f":"IF(AND(TAB_MEP[[#This Row],[1ere formation / facturation]]=\"-\",TAB_MEP[[#This Row],[Date de MEP prévisionnelle]]<TODAY()),1,0)","v":0},{"$f":"IF(TAB_MEP[[#This Row],[1ere formation / facturation]]<>\"-\",TAB_MEP[[#This Row],[1ere formation / facturation]],\"\")","v":"2023-03-16"}]
[27,"2021-09-14","2021-10-04",18,"-","2022-02-07",{"$f":"IF(OR(TAB_MEP[[#This Row],[Nb jour avt mep]]=\"-\",TAB_MEP[[#This Row],[Date lancement]]=\"-\"),\"pas de date\",TAB_MEP[[#This Row],[Date lancement]]+TAB_MEP[[#This Row],[Nb jour avt mep]])","v":"pas de date"},{"$f":"IF(OR(TAB_MEP[[#This Row],[1ere formation / facturation]]=\"-\",TAB_MEP[[#This Row],[1ere formation / facturation]]>=TODAY()),1,0)","v":0},{"$nulls":3},"SC","CF",0,{"$f":"IF(AND(AND(TAB_MEP[[#This Row],[1ere formation / facturation]]<>\"-\",TAB_MEP[[#This Row],[Date de MEP prévisionnelle]]<TAB_MEP[[#This Row],[1ere formation / facturation]],TAB_MEP[[#This Row],[Date de MEP prévisionnelle]]<>\"pas de date\")),1,0)","v":0},{"$f":"IF(AND(TAB_MEP[[#This Row],[1ere formation / facturation]]=\"-\",TAB_MEP[[#This Row],[Date de MEP prévisionnelle]]<TODAY()),1,0)","v":0},{"$f":"IF(TAB_MEP[[#This Row],[1ere formation / facturation]]<>\"-\",TAB_MEP[[#This Row],[1ere formation / facturation]],\"\")","v":"2022-02-07"}]
[28,"2021-08-26","2021-09-15",31,"-","2022-04-25",{"$f":"IF(OR(TAB_MEP[[#This Row],[Nb jour avt mep]]=\"-\",TAB_MEP[[#This Row],[Date lancement]]=\"-\"),\"pas de date\",TAB_MEP[[#This Row],[Date lancement]]+TAB_MEP[[#This Row],[Nb jour avt mep]])","v":"pas de date"},{"$f":"IF(OR(TAB_MEP[[#This Row],[1ere formation / facturation]]=\"-\",TAB_MEP[[#This Row],[1ere formation / facturation]]>=TODAY()),1,0)","v":0},{"$nulls":3},"SC","CF",0,{"$f":"IF(AND(AND(TAB_MEP[[#This Row],[1ere formation / facturation]]<>\"-\",TAB_MEP[[#This Row],[Date de MEP prévisionnelle]]<TAB_MEP[[#This Row],[1ere formation / facturation]],TAB_MEP[[#This Row],[Date de MEP prévisionnelle]]<>\"pas de date\")),1,0)","v":0},{"$f":"IF(AND(TAB_MEP[[#This Row],[1ere formation / facturation]]=\"-\",TAB_MEP[[#This Row],[Date de MEP prévisionnelle]]<TODAY()),1,0)","v":0},{"$f":"IF(TAB_MEP[[#This Row],[1ere formation / facturation]]<>\"-\",TAB_MEP[[#This Row],[1ere formation / facturation]],\"\")","v":"2022-04-25"}]
[29,"2023-06-23","2023-07-11",8,80,"2023-09-11",{"$f":"IF(OR(TAB_MEP[[#This Row],[Nb jour avt mep]]=\"-\",TAB_MEP[[#This Row],[Date lancement]]=\"-\"),\"pas de date\",TAB_MEP[[#This Row],[Date lancement]]+TAB_MEP[[#This Row],[Nb jour avt mep]])","v":"2023-09-29"},{"$f":"IF(OR(TAB_MEP[[#This Row],[1ere formation / facturation]]=\"-\",TAB_MEP[[#This Row],[1ere formation / facturation]]>=TODAY()),1,0)","v":0},"Septembre",null,"FR","SC","CF",1,{"$f":"IF(AND(AND(TAB_MEP[[#This Row],[1ere formation / facturation]]<>\"-\",TAB_MEP[[#This Row],[Date de MEP prévisionnelle]]<TAB_MEP[[#This Row],[1ere formation / facturation]],TAB_MEP[[#This Row],[Date de MEP prévisionnelle]]<>\"pas de date\")),1,0)","v":0},{"$f":"IF(AND(TAB_MEP[[#This Row],[1ere formation / facturation]]=\"-\",TAB_MEP[[#This Row],[Date de MEP prévisionnelle]]<TODAY()),1,0)","v":0},{"$f":"IF(TAB_MEP[[#This Row],[1ere formation / facturation]]<>\"-\",TAB_MEP[[#This Row],[1ere formation / facturation]],\"\")","v":"2023-09-11"}]
[30,"2021-05-24","2021-05-25",6,"-","2021-07-06",{"$f":"IF(OR(TAB_MEP[[#This Row],[Nb jour avt mep]]=\"-\",TAB_MEP[[#This Row],[Date lancement]]=\"-\"),\"pas de date\",TAB_MEP[[#This Row],[Date lancement]]+TAB_MEP[[#This Row],[Nb jour avt mep]])","v":"pas de date"},{"$f":"IF(OR(TAB_MEP[[#This Row],[1ere formation / facturation]]=\"-\",TAB_MEP[[#This Row],[1ere formation / facturation]]>=TODAY()),1,0)","v":0},{"$nulls":3},"SC","CF",0,{"$f":"IF(AND(AND(TAB_MEP[[#This Row],[1ere formation / facturation]]<>\"-\",TAB_MEP[[#This Row],[Date de MEP prévisionnelle]]<TAB_MEP[[#This Row],[1ere formation / facturation]],TAB_MEP[[#This Row],[Date de MEP prévisionnelle]]<>\"pas de date\")),1,0)","v":0},{"$f":"IF(AND(TAB_MEP[[#This Row],[1ere formation / facturation]]=\"-\",TAB_MEP[[#This Row],[Date de MEP prévisionnelle]]<TODAY()),1,0)","v":0},{"$f":"IF(TAB_MEP[[#This Row],[1ere formation / facturation]]<>\"-\",TAB_MEP[[#This Row],[1ere formation / facturation]],\"\")","v":"2021-07-06"}]
[31,"2022-12-06","2022-12-06",13,"-","2023-03-13",{"$f":"IF(OR(TAB_MEP[[#This Row],[Nb jour avt mep]]=\"-\",TAB_MEP[[#This Row],[Date lancement]]=\"-\"),\"pas de date\",TAB_MEP[[#This Row],[Date lancement]]+TAB_MEP[[#This Row],[Nb jour avt mep]])","v":"pas de date"},{"$f":"IF(OR(TAB_MEP[[#This Row],[1ere formation / facturation]]=\"-\",TAB_MEP[[#This Row],[1ere formation / facturation]]>=TODAY()),1,0)","v":0},null,null,"FR","Part","CF",0,{"$f":"IF(AND(AND(TAB_MEP[[#This Row],[1ere formation / facturation]]<>\"-\",TAB_MEP[[#This Row],[Date de MEP prévisionnelle]]<TAB_MEP[[#This Row],[1ere formation / facturation]],TAB_MEP[[#This Row],[Date de MEP prévisionnelle]]<>\"pas de date\")),1,0)","v":0},{"$f":"IF(AND(TAB_MEP[[#This Row],[1ere formation / facturation]]=\"-\",TAB_MEP[[#This Row],[Date de MEP prévisionnelle]]<TODAY()),1,0)","v":0},{"$f":"IF(TAB_MEP[[#This Row],[1ere formation / facturation]]<>\"-\",TAB_MEP[[#This Row],[1ere formation / facturation]],\"\")","v":"2023-03-13"}]
[32,"2021-10-05","2021-10-15",8,"-","2021-12-10",{"$f":"IF(OR(TAB_MEP[[#This Row],[Nb jour avt mep]]=\"-\",TAB_MEP[[#This Row],[Date lancement]]=\"-\"),\"pas de date\",TAB_MEP[[#This Row],[Date lancement]]+TAB_MEP[[#This Row],[Nb jour avt mep]])","v":"pas de date"},{"$f":"IF(OR(TAB_MEP[[#This Row],[1ere formation / facturation]]=\"-\",TAB_MEP[[#This Row],[1ere formation / facturation]]>=TODAY()),1,0)","v":0},{"$nulls":3},"SC","CF",0,{"$f":"IF(AND(AND(TAB_MEP[[#This Row],[1ere formation / facturation]]<>\"-\",TAB_MEP[[#This Row],[Date de MEP prévisionnelle]]<TAB_MEP[[#This Row],[1ere formation / facturation]],TAB_MEP[[#This Row],[Date de MEP prévisionnelle]]<>\"pas de date\")),1,0)","v":0},{"$f":"IF(AND(TAB_MEP[[#This Row],[1ere formation / facturation]]=\"-\",TAB_MEP[[#This Row],[Date de MEP prévisionnelle]]<TODAY()),1,0)","v":0},{"$f":"IF(TAB_MEP[[#This Row],[1ere formation / facturation]]<>\"-\",TAB_MEP[[#This Row],[1ere formation / facturation]],\"\")","v":"2021-12-10"}]
[33,"2022-12-13","2023-01-10",10,"-","2023-03-27",{"$f":"IF(OR(TAB_MEP[[#This Row],[Nb jour avt mep]]=\"-\",TAB_MEP[[#This Row],[Date lancement]]=\"-\"),\"pas de date\",TAB_MEP[[#This Row],[Date lancement]]+TAB_MEP[[#This Row],[Nb jour avt mep]])","v":"pas de date"},{"$f":"IF(OR(TAB_MEP[[#This Row],[1ere formation / facturation]]=\"-\",TAB_MEP[[#This Row],[1ere formation / facturation]]>=TODAY()),1,0)","v":0},null,null,"FR","SC","CF",0,{"$f":"IF(AND(AND(TAB_MEP[[#This Row],[1ere formation / facturation]]<>\"-\",TAB_MEP[[#This Row],[Date de MEP prévisionnelle]]<TAB_MEP[[#This Row],[1ere formation / facturation]],TAB_MEP[[#This Row],[Date de MEP prévisionnelle]]<>\"pas de date\")),1,0)","v":0},{"$f":"IF(AND(TAB_MEP[[#This Row],[1ere formation / facturation]]=\"-\",TAB_MEP[[#This Row],[Date de MEP prévisionnelle]]<TODAY()),1,0)","v":0},{"$f":"IF(TAB_MEP[[#This Row],[1ere formation / facturation]]<>\"-\",TAB_MEP[[#This Row],[1ere formation / facturation]],\"\")","v":"2023-03-27"}]
[34,"2022-03-08","2022-03-08",3,"-","2022-03-30",{"$f":"IF(OR(TAB_MEP[[#This Row],[Nb jour avt mep]]=\"-\",TAB_MEP[[#This Row],[Date lancement]]=\"-\"),\"pas de date\",TAB_MEP[[#This Row],[Date lancement]]+TAB_MEP[[#This Row],[Nb jour avt mep]])","v":"pas de date"},{"$f":"IF(OR(TAB_MEP[[#This Row],[1ere formation / facturation]]=\"-\",TAB_MEP[[#This Row],[1ere formation / facturation]]>=TODAY()),1,0)","v":0},{"$nulls":3},"Part","CF",0,{"$f":"IF(AND(AND(TAB_MEP[[#This Row],[1ere formation / facturation]]<>\"-\",TAB_MEP[[#This Row],[Date de MEP prévisionnelle]]<TAB_MEP[[#This Row],[1ere formation / facturation]],TAB_MEP[[#This Row],[Date de MEP prévisionnelle]]<>\"pas de date\")),1,0)","v":0},{"$f":"IF(AND(TAB_MEP[[#This Row],[1ere formation / facturation]]=\"-\",TAB_MEP[[#This Row],[Date de MEP prévisionnelle]]<TODAY()),1,0)","v":0},{"$f":"IF(TAB_MEP[[#This Row],[1ere formation / facturation]]<>\"-\",TAB_MEP[[#This Row],[1ere formation / facturation]],\"\")","v":"2022-03-30"}]
[35,"2022-02-15","2022-02-23",7,"-","2022-04-15",{"$f":"IF(OR(TAB_MEP[[#This Row],[Nb jour avt mep]]=\"-\",TAB_MEP[[#This Row],[Date lancement]]=\"-\"),\"pas de date\",TAB_MEP[[#This Row],[Date lancement]]+TAB_MEP[[#This Row],[Nb jour avt mep]])","v":"pas de date"},{"$f":"IF(OR(TAB_MEP[[#This Row],[1ere formation / facturation]]=\"-\",TAB_MEP[[#This Row],[1ere formation / facturation]]>=TODAY()),1,0)","v":0},{"$nulls":3},"SC","CF",0,{"$f":"IF(AND(AND(TAB_MEP[[#This Row],[1ere formation / facturation]]<>\"-\",TAB_MEP[[#This Row],[Date de MEP prévisionnelle]]<TAB_MEP[[#This Row],[1ere formation / facturation]],TAB_MEP[[#This Row],[Date de MEP prévisionnelle]]<>\"pas de date\")),1,0)","v":0},{"$f":"IF(AND(TAB_MEP[[#This Row],[1ere formation / facturation]]=\"-\",TAB_MEP[[#This Row],[Date de MEP prévisionnelle]]<TODAY()),1,0)","v":0},{"$f":"IF(TAB_MEP[[#This Row],[1ere formation / facturation]]<>\"-\",TAB_MEP[[#This Row],[1ere formation / facturation]],\"\")","v":"2022-04-15"}]
[36,"2019-11-06","2019-11-28",17,"-","2020-03-30",{"$f":"IF(OR(TAB_MEP[[#This Row],[Nb jour avt mep]]=\"-\",TAB_MEP[[#This Row],[Date lancement]]=\"-\"),\"pas de date\",TAB_MEP[[#This Row],[Date lancement]]+TAB_MEP[[#This Row],[Nb jour avt mep]])","v":"pas de date"},{"$f":"IF(OR(TAB_MEP[[#This Row],[1ere formation / facturation]]=\"-\",TAB_MEP[[#This Row],[1ere formation / facturation]]>=TODAY()),1,0)","v":0},{"$nulls":3},"Part","CF",0,{"$f":"IF(AND(AND(TAB_MEP[[#This Row],[1ere formation / facturation]]<>\"-\",TAB_MEP[[#This Row],[Date de MEP prévisionnelle]]<TAB_MEP[[#This Row],[1ere formation / facturation]],TAB_MEP[[#This Row],[Date de MEP prévisionnelle]]<>\"pas de date\")),1,0)","v":0},{"$f":"IF(AND(TAB_MEP[[#This Row],[1ere formation / facturation]]=\"-\",TAB_MEP[[#This Row],[Date de MEP prévisionnelle]]<TODAY()),1,0)","v":0},{"$f":"IF(TAB_MEP[[#This Row],[1ere formation / facturation]]<>\"-\",TAB_MEP[[#This Row],[1ere formation / facturation]],\"\")","v":"2020-03-30"}]
[37,"2022-09-29","2022-10-11",19,"-","2023-02-23",{"$f":"IF(OR(TAB_MEP[[#This Row],[Nb jour avt mep]]=\"-\",TAB_MEP[[#This Row],[Date lancement]]=\"-\"),\"pas de date\",TAB_MEP[[#This Row],[Date lancement]]+TAB_MEP[[#This Row],[Nb jour avt mep]])","v":"pas de date"},{"$f":"IF(OR(TAB_MEP[[#This Row],[1ere formation / facturation]]=\"-\",TAB_MEP[[#This Row],[1ere formation / facturation]]>=TODAY()),1,0)","v":0},null,null,"FR","SC","CF",0,{"$f":"IF(AND(AND(TAB_MEP[[#This Row],[1ere formation / facturation]]<>\"-\",TAB_MEP[[#This Row],[Date de MEP prévisionnelle]]<TAB_MEP[[#This Row],[1ere formation / facturation]],TAB_MEP[[#This Row],[Date de MEP prévisionnelle]]<>\"pas de date\")),1,0)","v":0},{"$f":"IF(AND(TAB_MEP[[#This Row],[1ere formation / facturation]]=\"-\",TAB_MEP[[#This Row],[Date de MEP prévisionnelle]]<TODAY()),1,0)","v":0},{"$f":"IF(TAB_MEP[[#This Row],[1ere formation / facturation]]<>\"-\",TAB_MEP[[#This Row],[1ere formation / facturation]],\"\")","v":"2023-02-23"}]
[38,"2023-05-26","2023-05-26",7,60,"2023-07-15",{"$f":"IF(OR(TAB_MEP[[#This Row],[Nb jour avt mep]]=\"-\",TAB_MEP[[#This Row],[Date lancement]]=\"-\"),\"pas de date\",TAB_MEP[[#This Row],[Date lancement]]+TAB_MEP[[#This Row],[Nb jour avt mep]])","v":"2023-07-25"},{"$f":"IF(OR(TAB_MEP[[#This Row],[1ere formation / facturation]]=\"-\",TAB_MEP[[#This Row],[1ere formation / facturation]]>=TODAY()),1,0)","v":0},null,null,"FR","Part","CF",0,{"$f":"IF(AND(AND(TAB_MEP[[#This Row],[1ere formation / facturation]]<>\"-\",TAB_MEP[[#This Row],[Date de MEP prévisionnelle]]<TAB_MEP[[#This Row],[1ere formation / facturation]],TAB_MEP[[#This Row],[Date de MEP prévisionnelle]]<>\"pas de date\")),1,0)","v":0},{"$f":"IF(AND(TAB_MEP[[#This Row],[1ere formation / facturation]]=\"-\",TAB_MEP[[#This Row],[Date de MEP prévisionnelle]]<TODAY()),1,0)","v":0},{"$f":"IF(TAB_MEP[[#This Row],[1ere formation / facturation]]<>\"-\",TAB_MEP[[#This Row],[1ere formation / facturation]],\"\")","v":"2023-07-15"}]
[39,"2021-05-19","2021-06-03",22,"-","2021-11-10",{"$f":"IF(OR(TAB_MEP[[#This Row],[Nb jour avt mep]]=\"-\",TAB_MEP[[#This Row],[Date lancement]]=\"-\"),\"pas de date\",TAB_MEP[[#This Row],[Date lancement]]+TAB_MEP[[#This Row],[Nb jour avt mep]])","v":"pas de date"},{"$f":"IF(OR(TAB_MEP[[#This Row],[1ere formation / facturation]]=\"-\",TAB_MEP[[#This Row],[1ere formation / facturation]]>=TODAY()),1,0)","v":0},{"$nulls":3},"SC","CF",0,{"$f":"IF(AND(AND(TAB_MEP[[#This Row],[1ere formation / facturation]]<>\"-\",TAB_MEP[[#This Row],[Date de MEP prévisionnelle]]<TAB_MEP[[#This Row],[1ere formation / facturation]],TAB_MEP[[#This Row],[Date de MEP prévisionnelle]]<>\"pas de date\")),1,0)","v":0},{"$f":"IF(AND(TAB_MEP[[#This Row],[1ere formation / facturation]]=\"-\",TAB_MEP[[#This Row],[Date de MEP prévisionnelle]]<TODAY()),1,0)","v":0},{"$f":"IF(TAB_MEP[[#This Row],[1ere formation / facturation]]<>\"-\",TAB_MEP[[#This Row],[1ere formation / facturation]],\"\")","v":"2021-11-10"}]
[40,"2023-01-15","2023-02-03",15,70,"2023-05-23",{"$f":"IF(OR(TAB_MEP[[#This Row],[Nb jour avt mep]]=\"-\",TAB_MEP[[#This Row],[Date lancement]]=\"-\"),\"pas de date\",TAB_MEP[[#This Row],[Date lancement]]+TAB_MEP[[#This Row],[Nb jour avt mep]])","v":"2023-04-14"},{"$f":"IF(OR(TAB_MEP[[#This Row],[1ere formation / facturation]]=\"-\",TAB_MEP[[#This Row],[1ere formation / facturation]]>=TODAY()),1,0)","v":0},null,null,"FR","SC","CF",0,{"$f":"IF(AND(AND(TAB_MEP[[#This Row],[1ere formation / facturation]]<>\"-\",TAB_MEP[[#This Row],[Date de MEP prévisionnelle]]<TAB_MEP[[#This Row],[1ere formation / facturation]],TAB_MEP[[#This Row],[Date de MEP prévisionnelle]]<>\"pas de date\")),1,0)","v":1},{"$f":"IF(AND(TAB_MEP[[#This Row],[1ere formation / facturation]]=\"-\",TAB_MEP[[#This Row],[Date de MEP prévisionnelle]]<TODAY()),1,0)","v":0},{"$f":"IF(TAB_MEP[[#This Row],[1ere formation / facturation]]<>\"-\",TAB_MEP[[#This Row],[1ere formation / facturation]],\"\")","v":"2023-05-23"}]
[41,"2019-07-16","2019-09-12",41,"-","2020-07-01",{"$f":"IF(OR(TAB_MEP[[#This Row],[Nb jour avt mep]]=\"-\",TAB_MEP[[#This Row],[Date lancement]]=\"-\"),\"pas de date\",TAB_MEP[[#This Row],[Date lancement]]+TAB_MEP[[#This Row],[Nb jour avt mep]])","v":"pas de date"},{"$f":"IF(OR(TAB_MEP[[#This Row],[1ere formation / facturation]]=\"-\",TAB_MEP[[#This Row],[1ere formation / facturation]]>=TODAY()),1,0)","v":0},{"$nulls":3},"SC","CF",0,{"$f":"IF(AND(AND(TAB_MEP[[#This Row],[1ere formation / facturation]]<>\"-\",TAB_MEP[[#This Row],[Date de MEP prévisionnelle]]<TAB_MEP[[#This Row],[1ere formation / facturation]],TAB_MEP[[#This Row],[Date de MEP prévisionnelle]]<>\"pas de date\")),1,0)","v":0},{"$f":"IF(AND(TAB_MEP[[#This Row],[1ere formation / facturation]]=\"-\",TAB_MEP[[#This Row],[Date de MEP prévisionnelle]]<TODAY()),1,0)","v":0},{"$f":"IF(TAB_MEP[[#This Row],[1ere formation / facturation]]<>\"-\",TAB_MEP[[#This Row],[1ere formation / facturation]],\"\")","v":"2020-07-01"}]
[42,"2022-12-05","2023-01-05",8,"-","2023-03-06",{"$f":"IF(OR(TAB_MEP[[#This Row],[Nb jour avt mep]]=\"-\",TAB_MEP[[#This Row],[Date lancement]]=\"-\"),\"pas de date\",TAB_MEP[[#This Row],[Date lancement]]+TAB_MEP[[#This Row],[Nb jour avt mep]])","v":"pas de date"},{"$f":"IF(OR(TAB_MEP[[#This Row],[1ere formation / facturation]]=\"-\",TAB_MEP[[#This Row],[1ere formation / facturation]]>=TODAY()),1,0)","v":0},null,null,"FR","SC","CF",0,{"$f":"IF(AND(AND(TAB_MEP[[#This Row],[1ere formation / facturation]]<>\"-\",TAB_MEP[[#This Row],[Date de MEP prévisionnelle]]<TAB_MEP[[#This Row],[1ere formation / facturation]],TAB_MEP[[#This Row],[Date de MEP prévisionnelle]]<>\"pas de date\")),1,0)","v":0},{"$f":"IF(AND(TAB_MEP[[#This Row],[1ere formation / facturation]]=\"-\",TAB_MEP[[#This Row],[Date de MEP prévisionnelle]]<TODAY()),1,0)","v":0},{"$f":"IF(TAB_MEP[[#This Row],[1ere formation / facturation]]<>\"-\",TAB_MEP[[#This Row],[1ere formation / facturation]],\"\")","v":"2023-03-06"}]
[43,"2021-10-26","2021-11-10",102,"-","-",{"$f":"IF(OR(TAB_MEP[[#This Row],[Nb jour avt mep]]=\"-\",TAB_MEP[[#This Row],[Date lancement]]=\"-\"),\"pas de date\",TAB_MEP[[#This Row],[Date lancement]]+TAB_MEP[[#This Row],[Nb jour avt mep]])","v":"pas de date"},{"$f":"IF(OR(TAB_MEP[[#This Row],[1ere formation / facturation]]=\"-\",TAB_MEP[[#This Row],[1ere formation / facturation]]>=TODAY()),1,0)","v":1},null,null,"Multi","Inter","CF",1,{"$f":"IF(AND(AND(TAB_MEP[[#This Row],[1ere formation / facturation]]<>\"-\",TAB_MEP[[#This Row],[Date de MEP prévisionnelle]]<TAB_MEP[[#This Row],[1ere formation / facturation]],TAB_MEP[[#This Row],[Date de MEP prévisionnelle]]<>\"pas de date\")),1,0)","v":0},{"$f":"IF(AND(TAB_MEP[[#This Row],[1ere formation / facturation]]=\"-\",TAB_MEP[[#This Row],[Date de MEP prévisionnelle]]<TODAY()),1,0)","v":0},{"$f":"IF(TAB_MEP[[#This Row],[1ere formation / facturation]]<>\"-\",TAB_MEP[[#This Row],[1ere formation / facturation]],\"\")","v":""}]
[44,"2022-03-18","2022-04-04",13,"-","2022-07-05",{"$f":"IF(OR(TAB_MEP[[#This Row],[Nb jour avt mep]]=\"-\",TAB_MEP[[#This Row],[Date lancement]]=\"-\"),\"pas de date\",TAB_MEP[[#This Row],[Date lancement]]+TAB_MEP[[#This Row],[Nb jour avt mep]])","v":"pas de date"},{"$f":"IF(OR(TAB_MEP[[#This Row],[1ere formation / facturation]]=\"-\",TAB_MEP[[#This Row],[1ere formation / facturation]]>=TODAY()),1,0)","v":0},null,null,"FR","SC","CF",0,{"$f":"IF(AND(AND(TAB_MEP[[#This Row],[1ere formation / facturation]]<>\"-\",TAB_MEP[[#This Row],[Date de MEP prévisionnelle]]<TAB_MEP[[#This Row],[1ere formation / facturation]],TAB_MEP[[#This Row],[Date de MEP prévisionnelle]]<>\"pas de date\")),1,0)","v":0},{"$f":"IF(AND(TAB_MEP[[#This Row],[1ere formation / facturation]]=\"-\",TAB_MEP[[#This Row],[Date de MEP prévisionnelle]]<TODAY()),1,0)","v":0},{"$f":"IF(TAB_MEP[[#This Row],[1ere formation / facturation]]<>\"-\",TAB_MEP[[#This Row],[1ere formation / facturation]],\"\")","v":"2022-07-05"}]
[45,"2021-04-06","2021-04-23",18,"-","2021-08-31",{"$f":"IF(OR(TAB_MEP[[#This Row],[Nb jour avt mep]]=\"-\",TAB_MEP[[#This Row],[Date lancement]]=\"-\"),\"pas de date\",TAB_MEP[[#This Row],[Date lancement]]+TAB_MEP[[#This Row],[Nb jour avt mep]])","v":"pas de date"},{"$f":"IF(OR(TAB_MEP[[#This Row],[1ere formation / facturation]]=\"-\",TAB_MEP[[#This Row],[1ere formation / facturation]]>=TODAY()),1,0)","v":0},{"$nulls":3},"SC","CF",0,{"$f":"IF(AND(AND(TAB_MEP[[#This Row],[1ere formation / facturation]]<>\"-\",TAB_MEP[[#This Row],[Date de MEP prévisionnelle]]<TAB_MEP[[#This Row],[1ere formation / facturation]],TAB_MEP[[#This Row],[Date de MEP prévisionnelle]]<>\"pas de date\")),1,0)","v":0},{"$f":"IF(AND(TAB_MEP[[#This Row],[1ere formation / facturation]]=\"-\",TAB_MEP[[#This Row],[Date de MEP prévisionnelle]]<TODAY()),1,0)","v":0},{"$f":"IF(TAB_MEP[[#This Row],[1ere formation / facturation]]<>\"-\",TAB_MEP[[#This Row],[1ere formation / facturation]],\"\")","v":"2021-08-31"}]
[46,"2019-02-01","2021-06-01",44,"-","2022-04-06",{"$f":"IF(OR(TAB_MEP[[#This Row],[Nb jour avt mep]]=\"-\",TAB_MEP[[#This Row],[Date lancement]]=\"-\"),\"pas de date\",TAB_MEP[[#This Row],[Date lancement]]+TAB_MEP[[#This Row],[Nb jour avt mep]])","v":"pas de date"},{"$f":"IF(OR(TAB_MEP[[#This Row],[1ere formation / facturation]]=\"-\",TAB_MEP[[#This Row],[1ere formation / facturation]]>=TODAY()),1,0)","v":0},{"$nulls":3},"GC","CF",0,{"$f":"IF(AND(AND(TAB_MEP[[#This Row],[1ere formation / facturation]]<>\"-\",TAB_MEP[[#This Row],[Date de MEP prévisionnelle]]<TAB_MEP[[#This Row],[1ere formation / facturation]],TAB_MEP[[#This Row],[Date de MEP prévisionnelle]]<>\"pas de date\")),1,0)","v":0},{"$f":"IF(AND(TAB_MEP[[#This Row],[1ere formation / facturation]]=\"-\",TAB_MEP[[#This Row],[Date de MEP prévisionnelle]]<TODAY()),1,0)","v":0},{"$f":"IF(TAB_MEP[[#This Row],[1ere formation / facturation]]<>\"-\",TAB_MEP[[#This Row],[1ere formation / facturation]],\"\")","v":"2022-04-06"}]
[47,"2023-06-23","2023-06-23",0,30,"2023-06-29",{"$f":"IF(OR(TAB_MEP[[#This Row],[Nb jour avt mep]]=\"-\",TAB_MEP[[#This Row],[Date lancement]]=\"-\"),\"pas de date\",TAB_MEP[[#This Row],[Date lancement]]+TAB_MEP[[#This Row],[Nb jour avt mep]])","v":"2023-07-23"},{"$f":"IF(OR(TAB_MEP[[#This Row],[1ere formation / facturation]]=\"-\",TAB_MEP[[#This Row],[1ere formation / facturation]]>=TODAY()),1,0)","v":0},"Juin",null,"FR","Part","CF",0,{"$f":"IF(AND(AND(TAB_MEP[[#This Row],[1ere formation / facturation]]<>\"-\",TAB_MEP[[#This Row],[Date de MEP prévisionnelle]]<TAB_MEP[[#This Row],[1ere formation / facturation]],TAB_MEP[[#This Row],[Date de MEP prévisionnelle]]<>\"pas de date\")),1,0)","v":0},{"$f":"IF(AND(TAB_MEP[[#This Row],[1ere formation / facturation]]=\"-\",TAB_MEP[[#This Row],[Date de MEP prévisionnelle]]<TODAY()),1,0)","v":0},{"$f":"IF(TAB_MEP[[#This Row],[1ere formation / facturation]]<>\"-\",TAB_MEP[[#This Row],[1ere formation / facturation]],\"\")","v":"2023-06-29"}]
[48,"2023-02-03","2023-02-03",8,"-","2023-04-03",{"$f":"IF(OR(TAB_MEP[[#This Row],[Nb jour avt mep]]=\"-\",TAB_MEP[[#This Row],[Date lancement]]=\"-\"),\"pas de date\",TAB_MEP[[#This Row],[Date lancement]]+TAB_MEP[[#This Row],[Nb jour avt mep]])","v":"pas de date"},{"$f":"IF(OR(TAB_MEP[[#This Row],[1ere formation / facturation]]=\"-\",TAB_MEP[[#This Row],[1ere formation / facturation]]>=TODAY()),1,0)","v":0},"Avril",null,"FR","Part","CF",0,{"$f":"IF(AND(AND(TAB_MEP[[#This Row],[1ere formation / facturation]]<>\"-\",TAB_MEP[[#This Row],[Date de MEP prévisionnelle]]<TAB_MEP[[#This Row],[1ere formation / facturation]],TAB_MEP[[#This Row],[Date de MEP prévisionnelle]]<>\"pas de date\")),1,0)","v":0},{"$f":"IF(AND(TAB_MEP[[#This Row],[1ere formation / facturation]]=\"-\",TAB_MEP[[#This Row],[Date de MEP prévisionnelle]]<TODAY()),1,0)","v":0},{"$f":"IF(TAB_MEP[[#This Row],[1ere formation / facturation]]<>\"-\",TAB_MEP[[#This Row],[1ere formation / facturation]],\"\")","v":"2023-04-03"}]
[49,"2022-01-31","2022-02-07",17,"-","2022-06-09",{"$f":"IF(OR(TAB_MEP[[#This Row],[Nb jour avt mep]]=\"-\",TAB_MEP[[#This Row],[Date lancement]]=\"-\"),\"pas de date\",TAB_MEP[[#This Row],[Date lancement]]+TAB_MEP[[#This Row],[Nb jour avt mep]])","v":"pas de date"},{"$f":"IF(OR(TAB_MEP[[#This Row],[1ere formation / facturation]]=\"-\",TAB_MEP[[#This Row],[1ere formation / facturation]]>=TODAY()),1,0)","v":0},null,null,"FR","SC","CF",0,{"$f":"IF(AND(AND(TAB_MEP[[#This Row],[1ere formation / facturation]]<>\"-\",TAB_MEP[[#This Row],[Date de MEP prévisionnelle]]<TAB_MEP[[#This Row],[1ere formation / facturation]],TAB_MEP[[#This Row],[Date de MEP prévisionnelle]]<>\"pas de date\")),1,0)","v":0},{"$f":"IF(AND(TAB_MEP[[#This Row],[1ere formation / facturation]]=\"-\",TAB_MEP[[#This Row],[Date de MEP prévisionnelle]]<TODAY()),1,0)","v":0},{"$f":"IF(TAB_MEP[[#This Row],[1ere formation / facturation]]<>\"-\",TAB_MEP[[#This Row],[1ere formation / facturation]],\"\")","v":"2022-06-09"}]
[50,"2022-09-13","2022-09-13",8,"-","2022-11-08",{"$f":"IF(OR(TAB_MEP[[#This Row],[Nb jour avt mep]]=\"-\",TAB_MEP[[#This Row],[Date lancement]]=\"-\"),\"pas de date\",TAB_MEP[[#This Row],[Date lancement]]+TAB_MEP[[#This Row],[Nb jour avt mep]])","v":"pas de date"},{"$f":"IF(OR(TAB_MEP[[#This Row],[1ere formation / facturation]]=\"-\",TAB_MEP[[#This Row],[1ere formation / facturation]]>=TODAY()),1,0)","v":0},null,null,"FR","Part","CF",0,{"$f":"IF(AND(AND(TAB_MEP[[#This Row],[1ere formation / facturation]]<>\"-\",TAB_MEP[[#This Row],[Date de MEP prévisionnelle]]<TAB_MEP[[#This Row],[1ere formation / facturation]],TAB_MEP[[#This Row],[Date de MEP prévisionnelle]]<>\"pas de date\")),1,0)","v":0},{"$f":"IF(AND(TAB_MEP[[#This Row],[1ere formation / facturation]]=\"-\",TAB_MEP[[#This Row],[Date de MEP prévisionnelle]]<TODAY()),1,0)","v":0},{"$f":"IF(TAB_MEP[[#This Row],[1ere formation / facturation]]<>\"-\",TAB_MEP[[#This Row],[1ere formation / facturation]],\"\")","v":"2022-11-08"}]
[51,"2021-06-21","2021-07-09",9,"-","2021-09-13",{"$f":"IF(OR(TAB_MEP[[#This Row],[Nb jour avt mep]]=\"-\",TAB_MEP[[#This Row],[Date lancement]]=\"-\"),\"pas de date\",TAB_MEP[[#This Row],[Date lancement]]+TAB_MEP[[#This Row],[Nb jour avt mep]])","v":"pas de date"},{"$f":"IF(OR(TAB_MEP[[#This Row],[1ere formation / facturation]]=\"-\",TAB_MEP[[#This Row],[1ere formation / facturation]]>=TODAY()),1,0)","v":0},{"$nulls":3},"SC","CF",0,{"$f":"IF(AND(AND(TAB_MEP[[#This Row],[1ere formation / facturation]]<>\"-\",TAB_MEP[[#This Row],[Date de MEP prévisionnelle]]<TAB_MEP[[#This Row],[1ere formation / facturation]],TAB_MEP[[#This Row],[Date de MEP prévisionnelle]]<>\"pas de date\")),1,0)","v":0},{"$f":"IF(AND(TAB_MEP[[#This Row],[1ere formation / facturation]]=\"-\",TAB_MEP[[#This Row],[Date de MEP prévisionnelle]]<TODAY()),1,0)","v":0},{"$f":"IF(TAB_MEP[[#This Row],[1ere formation / facturation]]<>\"-\",TAB_MEP[[#This Row],[1ere formation / facturation]],\"\")","v":"2021-09-13"}]
[52,"2021-03-25","2021-03-25",7,"-","2021-05-18",{"$f":"IF(OR(TAB_MEP[[#This Row],[Nb jour avt mep]]=\"-\",TAB_MEP[[#This Row],[Date lancement]]=\"-\"),\"pas de date\",TAB_MEP[[#This Row],[Date lancement]]+TAB_MEP[[#This Row],[Nb jour avt mep]])","v":"pas de date"},{"$f":"IF(OR(TAB_MEP[[#This Row],[1ere formation / facturation]]=\"-\",TAB_MEP[[#This Row],[1ere formation / facturation]]>=TODAY()),1,0)","v":0},{"$nulls":3},"Part","CF",0,{"$f":"IF(AND(AND(TAB_MEP[[#This Row],[1ere formation / facturation]]<>\"-\",TAB_MEP[[#This Row],[Date de MEP prévisionnelle]]<TAB_MEP[[#This Row],[1ere formation / facturation]],TAB_MEP[[#This Row],[Date de MEP prévisionnelle]]<>\"pas de date\")),1,0)","v":0},{"$f":"IF(AND(TAB_MEP[[#This Row],[1ere formation / facturation]]=\"-\",TAB_MEP[[#This Row],[Date de MEP prévisionnelle]]<TODAY()),1,0)","v":0},{"$f":"IF(TAB_MEP[[#This Row],[1ere formation / facturation]]<>\"-\",TAB_MEP[[#This Row],[1ere formation / facturation]],\"\")","v":"2021-05-18"}]
[53,"2022-10-13","2022-11-09",8,"-","2023-01-04",{"$f":"IF(OR(TAB_MEP[[#This Row],[Nb jour avt mep]]=\"-\",TAB_MEP[[#This Row],[Date lancement]]=\"-\"),\"pas de date\",TAB_MEP[[#This Row],[Date lancement]]+TAB_MEP[[#This Row],[Nb jour avt mep]])","v":"pas de date"},{"$f":"IF(OR(TAB_MEP[[#This Row],[1ere formation / facturation]]=\"-\",TAB_MEP[[#This Row],[1ere formation / facturation]]>=TODAY()),1,0)","v":0},null,null,"FR","SC","CF",0,{"$f":"IF(AND(AND(TAB_MEP[[#This Row],[1ere formation / facturation]]<>\"-\",TAB_MEP[[#This Row],[Date de MEP prévisionnelle]]<TAB_MEP[[#This Row],[1ere formation / facturation]],TAB_MEP[[#This Row],[Date de MEP prévisionnelle]]<>\"pas de date\")),1,0)","v":0},{"$f":"IF(AND(TAB_MEP[[#This Row],[1ere formation / facturation]]=\"-\",TAB_MEP[[#This Row],[Date de MEP prévisionnelle]]<TODAY()),1,0)","v":0},{"$f":"IF(TAB_MEP[[#This Row],[1ere formation / facturation]]<>\"-\",TAB_MEP[[#This Row],[1ere formation / facturation]],\"\")","v":"2023-01-04"}]
[54,"2022-08-30","2022-09-28",56,390,"-",{"$f":"IF(OR(TAB_MEP[[#This Row],[Nb jour avt mep]]=\"-\",TAB_MEP[[#This Row],[Date lancement]]=\"-\"),\"pas de date\",TAB_MEP[[#This Row],[Date lancement]]+TAB_MEP[[#This Row],[Nb jour avt mep]])","v":"2023-10-23"},{"$f":"IF(OR(TAB_MEP[[#This Row],[1ere formation / facturation]]=\"-\",TAB_MEP[[#This Row],[1ere formation / facturation]]>=TODAY()),1,0)","v":1},null,null,"FR","GC","CF",1,{"$f":"IF(AND(AND(TAB_MEP[[#This Row],[1ere formation / facturation]]<>\"-\",TAB_MEP[[#This Row],[Date de MEP prévisionnelle]]<TAB_MEP[[#This Row],[1ere formation / facturation]],TAB_MEP[[#This Row],[Date de MEP prévisionnelle]]<>\"pas de date\")),1,0)","v":0},{"$f":"IF(AND(TAB_MEP[[#This Row],[1ere formation / facturation]]=\"-\",TAB_MEP[[#This Row],[Date de MEP prévisionnelle]]<TODAY()),1,0)","v":1},{"$f":"IF(TAB_MEP[[#This Row],[1ere formation / facturation]]<>\"-\",TAB_MEP[[#This Row],[1ere formation / facturation]],\"\")","v":""}]
[55,"2023-04-19","2023-04-19",1,30,"2023-04-28",{"$f":"IF(OR(TAB_MEP[[#This Row],[Nb jour avt mep]]=\"-\",TAB_MEP[[#This Row],[Date lancement]]=\"-\"),\"pas de date\",TAB_MEP[[#This Row],[Date lancement]]+TAB_MEP[[#This Row],[Nb jour avt mep]])","v":"2023-05-19"},{"$f":"IF(OR(TAB_MEP[[#This Row],[1ere formation / facturation]]=\"-\",TAB_MEP[[#This Row],[1ere formation / facturation]]>=TODAY()),1,0)","v":0},"Avril",null,"FR","Part","CF",0,{"$f":"IF(AND(AND(TAB_MEP[[#This Row],[1ere formation / facturation]]<>\"-\",TAB_MEP[[#This Row],[Date de MEP prévisionnelle]]<TAB_MEP[[#This Row],[1ere formation / facturation]],TAB_MEP[[#This Row],[Date de MEP prévisionnelle]]<>\"pas de date\")),1,0)","v":0},{"$f":"IF(AND(TAB_MEP[[#This Row],[1ere formation / facturation]]=\"-\",TAB_MEP[[#This Row],[Date de MEP prévisionnelle]]<TODAY()),1,0)","v":0},{"$f":"IF(TAB_MEP[[#This Row],[1ere formation / facturation]]<>\"-\",TAB_MEP[[#This Row],[1ere formation / facturation]],\"\")","v":"2023-04-28"}]
[56,"2020-07-15","2020-07-27",8,"-","2020-09-25",{"$f":"IF(OR(TAB_MEP[[#This Row],[Nb jour avt mep]]=\"-\",TAB_MEP[[#This Row],[Date lancement]]=\"-\"),\"pas de date\",TAB_MEP[[#This Row],[Date lancement]]+TAB_MEP[[#This Row],[Nb jour avt mep]])","v":"pas de date"},{"$f":"IF(OR(TAB_MEP[[#This Row],[1ere formation / facturation]]=\"-\",TAB_MEP[[#This Row],[1ere formation / facturation]]>=TODAY()),1,0)","v":0},{"$nulls":3},"SC","CF",0,{"$f":"IF(AND(AND(TAB_MEP[[#This Row],[1ere formation / facturation]]<>\"-\",TAB_MEP[[#This Row],[Date de MEP prévisionnelle]]<TAB_MEP[[#This Row],[1ere formation / facturation]],TAB_MEP[[#This Row],[Date de MEP prévisionnelle]]<>\"pas de date\")),1,0)","v":0},{"$f":"IF(AND(TAB_MEP[[#This Row],[1ere formation / facturation]]=\"-\",TAB_MEP[[#This Row],[Date de MEP prévisionnelle]]<TODAY()),1,0)","v":0},{"$f":"IF(TAB_MEP[[#This Row],[1ere formation / facturation]]<>\"-\",TAB_MEP[[#This Row],[1ere formation / facturation]],\"\")","v":"2020-09-25"}]
[57,"2023-01-12","2023-01-25",39,70,"-",{"$f":"IF(OR(TAB_MEP[[#This Row],[Nb jour avt mep]]=\"-\",TAB_MEP[[#This Row],[Date lancement]]=\"-\"),\"pas de date\",TAB_MEP[[#This Row],[Date lancement]]+TAB_MEP[[#This Row],[Nb jour avt mep]])","v":"2023-04-05"},{"$f":"IF(OR(TAB_MEP[[#This Row],[1ere formation / facturation]]=\"-\",TAB_MEP[[#This Row],[1ere formation / facturation]]>=TODAY()),1,0)","v":1},"Novembre",null,"FR","SC","CF",1,{"$f":"IF(AND(AND(TAB_MEP[[#This Row],[1ere formation / facturation]]<>\"-\",TAB_MEP[[#This Row],[Date de MEP prévisionnelle]]<TAB_MEP[[#This Row],[1ere formation / facturation]],TAB_MEP[[#This Row],[Date de MEP prévisionnelle]]<>\"pas de date\")),1,0)","v":0},{"$f":"IF(AND(TAB_MEP[[#This Row],[1ere formation / facturation]]=\"-\",TAB_MEP[[#This Row],[Date de MEP prévisionnelle]]<TODAY()),1,0)","v":1},{"$f":"IF(TAB_MEP[[#This Row],[1ere formation / facturation]]<>\"-\",TAB_MEP[[#This Row],[1ere formation / facturation]],\"\")","v":""}]
[58,"2021-05-31","2021-06-02",18,"-","2021-10-06",{"$f":"IF(OR(TAB_MEP[[#This Row],[Nb jour avt mep]]=\"-\",TAB_MEP[[#This Row],[Date lancement]]=\"-\"),\"pas de date\",TAB_MEP[[#This Row],[Date lancement]]+TAB_MEP[[#This Row],[Nb jour avt mep]])","v":"pas de date"},{"$f":"IF(OR(TAB_MEP[[#This Row],[1ere formation / facturation]]=\"-\",TAB_MEP[[#This Row],[1ere formation / facturation]]>=TODAY()),1,0)","v":0},{"$nulls":3},"SC","CF",0,{"$f":"IF(AND(AND(TAB_MEP[[#This Row],[1ere formation / facturation]]<>\"-\",TAB_MEP[[#This Row],[Date de MEP prévisionnelle]]<TAB_MEP[[#This Row],[1ere formation / facturation]],TAB_MEP[[#This Row],[Date de MEP prévisionnelle]]<>\"pas de date\")),1,0)","v":0},{"$f":"IF(AND(TAB_MEP[[#This Row],[1ere formation / facturation]]=\"-\",TAB_MEP[[#This Row],[Date de MEP prévisionnelle]]<TODAY()),1,0)","v":0},{"$f":"IF(TAB_MEP[[#This Row],[1ere formation / facturation]]<>\"-\",TAB_MEP[[#This Row],[1ere formation / facturation]],\"\")","v":"2021-10-06"}]
[59,"2023-03-01","2023-03-27",33,124,"2023-11-15",{"$f":"IF(OR(TAB_MEP[[#This Row],[Nb jour avt mep]]=\"-\",TAB_MEP[[#This Row],[Date lancement]]=\"-\"),\"pas de date\",TAB_MEP[[#This Row],[Date lancement]]+TAB_MEP[[#This Row],[Nb jour avt mep]])","v":"2023-07-29"},{"$f":"IF(OR(TAB_MEP[[#This Row],[1ere formation / facturation]]=\"-\",TAB_MEP[[#This Row],[1ere formation / facturation]]>=TODAY()),1,0)","v":1},"Novembre",null,"FR","SC","CF",1,{"$f":"IF(AND(AND(TAB_MEP[[#This Row],[1ere formation / facturation]]<>\"-\",TAB_MEP[[#This Row],[Date de MEP prévisionnelle]]<TAB_MEP[[#This Row],[1ere formation / facturation]],TAB_MEP[[#This Row],[Date de MEP prévisionnelle]]<>\"pas de date\")),1,0)","v":1},{"$f":"IF(AND(TAB_MEP[[#This Row],[1ere formation / facturation]]=\"-\",TAB_MEP[[#This Row],[Date de MEP prévisionnelle]]<TODAY()),1,0)","v":0},{"$f":"IF(TAB_MEP[[#This Row],[1ere formation / facturation]]<>\"-\",TAB_MEP[[#This Row],[1ere formation / facturation]],\"\")","v":"2023-11-15"}]
[60,"2022-02-22","2022-02-22",3,"-","2022-03-15",{"$f":"IF(OR(TAB_MEP[[#This Row],[Nb jour avt mep]]=\"-\",TAB_MEP[[#This Row],[Date lancement]]=\"-\"),\"pas de date\",TAB_MEP[[#This Row],[Date lancement]]+TAB_MEP[[#This Row],[Nb jour avt mep]])","v":"pas de date"},{"$f":"IF(OR(TAB_MEP[[#This Row],[1ere formation / facturation]]=\"-\",TAB_MEP[[#This Row],[1ere formation / facturation]]>=TODAY()),1,0)","v":0},{"$nulls":3},"Inter","CF",0,{"$f":"IF(AND(AND(TAB_MEP[[#This Row],[1ere formation / facturation]]<>\"-\",TAB_MEP[[#This Row],[Date de MEP prévisionnelle]]<TAB_MEP[[#This Row],[1ere formation / facturation]],TAB_MEP[[#This Row],[Date de MEP prévisionnelle]]<>\"pas de date\")),1,0)","v":0},{"$f":"IF(AND(TAB_MEP[[#This Row],[1ere formation / facturation]]=\"-\",TAB_MEP[[#This Row],[Date de MEP prévisionnelle]]<TODAY()),1,0)","v":0},{"$f":"IF(TAB_MEP[[#This Row],[1ere formation / facturation]]<>\"-\",TAB_MEP[[#This Row],[1ere formation / facturation]],\"\")","v":"2022-03-15"}]
[61,"2023-03-01","2023-03-27",33,124,"2023-11-15",{"$f":"IF(OR(TAB_MEP[[#This Row],[Nb jour avt mep]]=\"-\",TAB_MEP[[#This Row],[Date lancement]]=\"-\"),\"pas de date\",TAB_MEP[[#This Row],[Date lancement]]+TAB_MEP[[#This Row],[Nb jour avt mep]])","v":"2023-07-29"},{"$f":"IF(OR(TAB_MEP[[#This Row],[1ere formation / facturation]]=\"-\",TAB_MEP[[#This Row],[1ere formation / facturation]]>=TODAY()),1,0)","v":1},"Novembre",null,"FR","SC","TF",1,{"$f":"IF(AND(AND(TAB_MEP[[#This Row],[1ere formation / facturation]]<>\"-\",TAB_MEP[[#This Row],[Date de MEP prévisionnelle]]<TAB_MEP[[#This Row],[1ere formation / facturation]],TAB_MEP[[#This Row],[Date de MEP prévisionnelle]]<>\"pas de date\")),1,0)","v":1},{"$f":"IF(AND(TAB_MEP[[#This Row],[1ere formation / facturation]]=\"-\",TAB_MEP[[#This Row],[Date de MEP prévisionnelle]]<TODAY()),1,0)","v":0},{"$f":"IF(TAB_MEP[[#This Row],[1ere formation / facturation]]<>\"-\",TAB_MEP[[#This Row],[1ere formation / facturation]],\"\")","v":"2023-11-15"}]
[62,"2020-08-31","2020-07-15",11,"-","2020-10-01",{"$f":"IF(OR(TAB_MEP[[#This Row],[Nb jour avt mep]]=\"-\",TAB_MEP[[#This Row],[Date lancement]]=\"-\"),\"pas de date\",TAB_MEP[[#This Row],[Date lancement]]+TAB_MEP[[#This Row],[Nb jour avt mep]])","v":"pas de date"},{"$f":"IF(OR(TAB_MEP[[#This Row],[1ere formation / facturation]]=\"-\",TAB_MEP[[#This Row],[1ere formation / facturation]]>=TODAY()),1,0)","v":0},{"$nulls":3},"GC","CF",0,{"$f":"IF(AND(AND(TAB_MEP[[#This Row],[1ere formation / facturation]]<>\"-\",TAB_MEP[[#This Row],[Date de MEP prévisionnelle]]<TAB_MEP[[#This Row],[1ere formation / facturation]],TAB_MEP[[#This Row],[Date de MEP prévisionnelle]]<>\"pas de date\")),1,0)","v":0},{"$f":"IF(AND(TAB_MEP[[#This Row],[1ere formation / facturation]]=\"-\",TAB_MEP[[#This Row],[Date de MEP prévisionnelle]]<TODAY()),1,0)","v":0},{"$f":"IF(TAB_MEP[[#This Row],[1ere formation / facturation]]<>\"-\",TAB_MEP[[#This Row],[1ere formation / facturation]],\"\")","v":"2020-10-01"}]
[63,"2021-12-01","2021-12-02",5,"-","2022-01-10",{"$f":"IF(OR(TAB_MEP[[#This Row],[Nb jour avt mep]]=\"-\",TAB_MEP[[#This Row],[Date lancement]]=\"-\"),\"pas de date\",TAB_MEP[[#This Row],[Date lancement]]+TAB_MEP[[#This Row],[Nb jour avt mep]])","v":"pas de date"},{"$f":"IF(OR(TAB_MEP[[#This Row],[1ere formation / facturation]]=\"-\",TAB_MEP[[#This Row],[1ere formation / facturation]]>=TODAY()),1,0)","v":0},{"$nulls":3},"Part","CF",0,{"$f":"IF(AND(AND(TAB_MEP[[#This Row],[1ere formation / facturation]]<>\"-\",TAB_MEP[[#This Row],[Date de MEP prévisionnelle]]<TAB_MEP[[#This Row],[1ere formation / facturation]],TAB_MEP[[#This Row],[Date de MEP prévisionnelle]]<>\"pas de date\")),1,0)","v":0},{"$f":"IF(AND(TAB_MEP[[#This Row],[1ere formation / facturation]]=\"-\",TAB_MEP[[#This Row],[Date de MEP prévisionnelle]]<TODAY()),1,0)","v":0},{"$f":"IF(TAB_MEP[[#This Row],[1ere formation / facturation]]<>\"-\",TAB_MEP[[#This Row],[1ere formation / facturation]],\"\")","v":"2022-01-10"}]
[64,"2023-06-20","2023-08-15",6,"-","2023-09-26",{"$f":"IF(OR(TAB_MEP[[#This Row],[Nb jour avt mep]]=\"-\",TAB_MEP[[#This Row],[Date lancement]]=\"-\"),\"pas de date\",TAB_MEP[[#This Row],[Date lancement]]+TAB_MEP[[#This Row],[Nb jour avt mep]])","v":"pas de date"},{"$f":"IF(OR(TAB_MEP[[#This Row],[1ere formation / facturation]]=\"-\",TAB_MEP[[#This Row],[1ere formation / facturation]]>=TODAY()),1,0)","v":0},"Septembre",null,"FR","SC","CF",1,{"$f":"IF(AND(AND(TAB_MEP[[#This Row],[1ere formation / facturation]]<>\"-\",TAB_MEP[[#This Row],[Date de MEP prévisionnelle]]<TAB_MEP[[#This Row],[1ere formation / facturation]],TAB_MEP[[#This Row],[Date de MEP prévisionnelle]]<>\"pas de date\")),1,0)","v":0},{"$f":"IF(AND(TAB_MEP[[#This Row],[1ere formation / facturation]]=\"-\",TAB_MEP[[#This Row],[Date de MEP prévisionnelle]]<TODAY()),1,0)","v":0},{"$f":"IF(TAB_MEP[[#This Row],[1ere formation / facturation]]<>\"-\",TAB_MEP[[#This Row],[1ere formation / facturation]],\"\")","v":"2023-09-26"}]
[65,"2023-03-28","2023-04-04",29,56,"-",{"$f":"IF(OR(TAB_MEP[[#This Row],[Nb jour avt mep]]=\"-\",TAB_MEP[[#This Row],[Date lancement]]=\"-\"),\"pas de date\",TAB_MEP[[#This Row],[Date lancement]]+TAB_MEP[[#This Row],[Nb jour avt mep]])","v":"2023-05-30"},{"$f":"IF(OR(TAB_MEP[[#This Row],[1ere formation / facturation]]=\"-\",TAB_MEP[[#This Row],[1ere formation / facturation]]>=TODAY()),1,0)","v":1},"Octobre ?",null,"FR","SC","CF",1,{"$f":"IF(AND(AND(TAB_MEP[[#This Row],[1ere formation / facturation]]<>\"-\",TAB_MEP[[#This Row],[Date de MEP prévisionnelle]]<TAB_MEP[[#This Row],[1ere formation / facturation]],TAB_MEP[[#This Row],[Date de MEP prévisionnelle]]<>\"pas de date\")),1,0)","v":0},{"$f":"IF(AND(TAB_MEP[[#This Row],[1ere formation / facturation]]=\"-\",TAB_MEP[[#This Row],[Date de MEP prévisionnelle]]<TODAY()),1,0)","v":1},{"$f":"IF(TAB_MEP[[#This Row],[1ere formation / facturation]]<>\"-\",TAB_MEP[[#This Row],[1ere formation / facturation]],\"\")","v":""}]
[66,"2023-01-03","2023-02-02",25,80,"2023-07-28",{"$f":"IF(OR(TAB_MEP[[#This Row],[Nb jour avt mep]]=\"-\",TAB_MEP[[#This Row],[Date lancement]]=\"-\"),\"pas de date\",TAB_MEP[[#This Row],[Date lancement]]+TAB_MEP[[#This Row],[Nb jour avt mep]])","v":"2023-04-23"},{"$f":"IF(OR(TAB_MEP[[#This Row],[1ere formation / facturation]]=\"-\",TAB_MEP[[#This Row],[1ere formation / facturation]]>=TODAY()),1,0)","v":0},null,null,"CH","Inter","CF",1,{"$f":"IF(AND(AND(TAB_MEP[[#This Row],[1ere formation / facturation]]<>\"-\",TAB_MEP[[#This Row],[Date de MEP prévisionnelle]]<TAB_MEP[[#This Row],[1ere formation / facturation]],TAB_MEP[[#This Row],[Date de MEP prévisionnelle]]<>\"pas de date\")),1,0)","v":1},{"$f":"IF(AND(TAB_MEP[[#This Row],[1ere formation / facturation]]=\"-\",TAB_MEP[[#This Row],[Date de MEP prévisionnelle]]<TODAY()),1,0)","v":0},{"$f":"IF(TAB_MEP[[#This Row],[1ere formation / facturation]]<>\"-\",TAB_MEP[[#This Row],[1ere formation / facturation]],\"\")","v":"2023-07-28"}]
[67,"2022-01-13","2022-01-13",6,"-","2022-03-02",{"$f":"IF(OR(TAB_MEP[[#This Row],[Nb jour avt mep]]=\"-\",TAB_MEP[[#This Row],[Date lancement]]=\"-\"),\"pas de date\",TAB_MEP[[#This Row],[Date lancement]]+TAB_MEP[[#This Row],[Nb jour avt mep]])","v":"pas de date"},{"$f":"IF(OR(TAB_MEP[[#This Row],[1ere formation / facturation]]=\"-\",TAB_MEP[[#This Row],[1ere formation / facturation]]>=TODAY()),1,0)","v":0},{"$nulls":3},"Part","CF",0,{"$f":"IF(AND(AND(TAB_MEP[[#This Row],[1ere formation / facturation]]<>\"-\",TAB_MEP[[#This Row],[Date de MEP prévisionnelle]]<TAB_MEP[[#This Row],[1ere formation / facturation]],TAB_MEP[[#This Row],[Date de MEP prévisionnelle]]<>\"pas de date\")),1,0)","v":0},{"$f":"IF(AND(TAB_MEP[[#This Row],[1ere formation / facturation]]=\"-\",TAB_MEP[[#This Row],[Date de MEP prévisionnelle]]<TODAY()),1,0)","v":0},{"$f":"IF(TAB_MEP[[#This Row],[1ere formation / facturation]]<>\"-\",TAB_MEP[[#This Row],[1ere formation / facturation]],\"\")","v":"2022-03-02"}]
[68,"2022-01-27","2022-01-27",9,"-","2022-04-01",{"$f":"IF(OR(TAB_MEP[[#This Row],[Nb jour avt mep]]=\"-\",TAB_MEP[[#This Row],[Date lancement]]=\"-\"),\"pas de date\",TAB_MEP[[#This Row],[Date lancement]]+TAB_MEP[[#This Row],[Nb jour avt mep]])","v":"pas de date"},{"$f":"IF(OR(TAB_MEP[[#This Row],[1ere formation / facturation]]=\"-\",TAB_MEP[[#This Row],[1ere formation / facturation]]>=TODAY()),1,0)","v":0},{"$nulls":3},"Part","CF",0,{"$f":"IF(AND(AND(TAB_MEP[[#This Row],[1ere formation / facturation]]<>\"-\",TAB_MEP[[#This Row],[Date de MEP prévisionnelle]]<TAB_MEP[[#This Row],[1ere formation / facturation]],TAB_MEP[[#This Row],[Date de MEP prévisionnelle]]<>\"pas de date\")),1,0)","v":0},{"$f":"IF(AND(TAB_MEP[[#This Row],[1ere formation / facturation]]=\"-\",TAB_MEP[[#This Row],[Date de MEP prévisionnelle]]<TODAY()),1,0)","v":0},{"$f":"IF(TAB_MEP[[#This Row],[1ere formation / facturation]]<>\"-\",TAB_MEP[[#This Row],[1ere formation / facturation]],\"\")","v":"2022-04-01"}]
[69,"2021-03-03","2021-03-18",12,"-","2021-06-10",{"$f":"IF(OR(TAB_MEP[[#This Row],[Nb jour avt mep]]=\"-\",TAB_MEP[[#This Row],[Date lancement]]=\"-\"),\"pas de date\",TAB_MEP[[#This Row],[Date lancement]]+TAB_MEP[[#This Row],[Nb jour avt mep]])","v":"pas de date"},{"$f":"IF(OR(TAB_MEP[[#This Row],[1ere formation / facturation]]=\"-\",TAB_MEP[[#This Row],[1ere formation / facturation]]>=TODAY()),1,0)","v":0},{"$nulls":3},"SC","CF",0,{"$f":"IF(AND(AND(TAB_MEP[[#This Row],[1ere formation / facturation]]<>\"-\",TAB_MEP[[#This Row],[Date de MEP prévisionnelle]]<TAB_MEP[[#This Row],[1ere formation / facturation]],TAB_MEP[[#This Row],[Date de MEP prévisionnelle]]<>\"pas de date\")),1,0)","v":0},{"$f":"IF(AND(TAB_MEP[[#This Row],[1ere formation / facturation]]=\"-\",TAB_MEP[[#This Row],[Date de MEP prévisionnelle]]<TODAY()),1,0)","v":0},{"$f":"IF(TAB_MEP[[#This Row],[1ere formation / facturation]]<>\"-\",TAB_MEP[[#This Row],[1ere formation / facturation]],\"\")","v":"2021-06-10"}]
[70,"2023-04-28","2023-04-28",6,"-","2023-06-10",{"$f":"IF(OR(TAB_MEP[[#This Row],[Nb jour avt mep]]=\"-\",TAB_MEP[[#This Row],[Date lancement]]=\"-\"),\"pas de date\",TAB_MEP[[#This Row],[Date lancement]]+TAB_MEP[[#This Row],[Nb jour avt mep]])","v":"pas de date"},{"$f":"IF(OR(TAB_MEP[[#This Row],[1ere formation / facturation]]=\"-\",TAB_MEP[[#This Row],[1ere formation / facturation]]>=TODAY()),1,0)","v":0},null,null,"ES,PO","SC","CF",0,{"$f":"IF(AND(AND(TAB_MEP[[#This Row],[1ere formation / facturation]]<>\"-\",TAB_MEP[[#This Row],[Date de MEP prévisionnelle]]<TAB_MEP[[#This Row],[1ere formation / facturation]],TAB_MEP[[#This Row],[Date de MEP prévisionnelle]]<>\"pas de date\")),1,0)","v":0},{"$f":"IF(AND(TAB_MEP[[#This Row],[1ere formation / facturation]]=\"-\",TAB_MEP[[#This Row],[Date de MEP prévisionnelle]]<TODAY()),1,0)","v":0},{"$f":"IF(TAB_MEP[[#This Row],[1ere formation / facturation]]<>\"-\",TAB_MEP[[#This Row],[1ere formation / facturation]],\"\")","v":"2023-06-10"}]
[71,"2022-09-25","2022-10-15",18,"-","2023-02-21",{"$f":"IF(OR(TAB_MEP[[#This Row],[Nb jour avt mep]]=\"-\",TAB_MEP[[#This Row],[Date lancement]]=\"-\"),\"pas de date\",TAB_MEP[[#This Row],[Date lancement]]+TAB_MEP[[#This Row],[Nb jour avt mep]])","v":"pas de date"},{"$f":"IF(OR(TAB_MEP[[#This Row],[1ere formation / facturation]]=\"-\",TAB_MEP[[#This Row],[1ere formation / facturation]]>=TODAY()),1,0)","v":0},null,null,"FR","SC","CF",0,{"$f":"IF(AND(AND(TAB_MEP[[#This Row],[1ere formation / facturation]]<>\"-\",TAB_MEP[[#This Row],[Date de MEP prévisionnelle]]<TAB_MEP[[#This Row],[1ere formation / facturation]],TAB_MEP[[#This Row],[Date de MEP prévisionnelle]]<>\"pas de date\")),1,0)","v":0},{"$f":"IF(AND(TAB_MEP[[#This Row],[1ere formation / facturation]]=\"-\",TAB_MEP[[#This Row],[Date de MEP prévisionnelle]]<TODAY()),1,0)","v":0},{"$f":"IF(TAB_MEP[[#This Row],[1ere formation / facturation]]<>\"-\",TAB_MEP[[#This Row],[1ere formation / facturation]],\"\")","v":"2023-02-21"}]
[72,"2020-10-29","2020-10-29",{"$f":"IF(C73>TODAY(),\"0\",IF(F73=\"-\",INT(DATEDIF(C73,TODAY(),\"d\")/7),INT(DATEDIF(C73,F73,\"d\")/7)))","v":2},"-","2020-11-17",{"$f":"IF(OR(TAB_MEP[[#This Row],[Nb jour avt mep]]=\"-\",TAB_MEP[[#This Row],[Date lancement]]=\"-\"),\"pas de date\",TAB_MEP[[#This Row],[Date lancement]]+TAB_MEP[[#This Row],[Nb jour avt mep]])","v":"pas de date"},{"$f":"IF(OR(TAB_MEP[[#This Row],[1ere formation / facturation]]=\"-\",TAB_MEP[[#This Row],[1ere formation / facturation]]>=TODAY()),1,0)","v":0},{"$nulls":3},"Part","CF",0,{"$f":"IF(AND(AND(TAB_MEP[[#This Row],[1ere formation / facturation]]<>\"-\",TAB_MEP[[#This Row],[Date de MEP prévisionnelle]]<TAB_MEP[[#This Row],[1ere formation / facturation]],TAB_MEP[[#This Row],[Date de MEP prévisionnelle]]<>\"pas de date\")),1,0)","v":0},{"$f":"IF(AND(TAB_MEP[[#This Row],[1ere formation / facturation]]=\"-\",TAB_MEP[[#This Row],[Date de MEP prévisionnelle]]<TODAY()),1,0)","v":0},{"$f":"IF(TAB_MEP[[#This Row],[1ere formation / facturation]]<>\"-\",TAB_MEP[[#This Row],[1ere formation / facturation]],\"\")","v":"2020-11-17"}]
[73,"2023-06-16","2023-07-12",11,80,"2023-10-03",{"$f":"IF(OR(TAB_MEP[[#This Row],[Nb jour avt mep]]=\"-\",TAB_MEP[[#This Row],[Date lancement]]=\"-\"),\"pas de date\",TAB_MEP[[#This Row],[Date lancement]]+TAB_MEP[[#This Row],[Nb jour avt mep]])","v":"2023-09-30"},{"$f":"IF(OR(TAB_MEP[[#This Row],[1ere formation / facturation]]=\"-\",TAB_MEP[[#This Row],[1ere formation / facturation]]>=TODAY()),1,0)","v":0},"Octobre",null,"FR","GC","CF",1,{"$f":"IF(AND(AND(TAB_MEP[[#This Row],[1ere formation / facturation]]<>\"-\",TAB_MEP[[#This Row],[Date de MEP prévisionnelle]]<TAB_MEP[[#This Row],[1ere formation / facturation]],TAB_MEP[[#This Row],[Date de MEP prévisionnelle]]<>\"pas de date\")),1,0)","v":1},{"$f":"IF(AND(TAB_MEP[[#This Row],[1ere formation / facturation]]=\"-\",TAB_MEP[[#This Row],[Date de MEP prévisionnelle]]<TODAY()),1,0)","v":0},{"$f":"IF(TAB_MEP[[#This Row],[1ere formation / facturation]]<>\"-\",TAB_MEP[[#This Row],[1ere formation / facturation]],\"\")","v":"2023-10-03"}]
[74,"2021-02-12","2021-02-24",17,"-","2021-06-28",{"$f":"IF(OR(TAB_MEP[[#This Row],[Nb jour avt mep]]=\"-\",TAB_MEP[[#This Row],[Date lancement]]=\"-\"),\"pas de date\",TAB_MEP[[#This Row],[Date lancement]]+TAB_MEP[[#This Row],[Nb jour avt mep]])","v":"pas de date"},{"$f":"IF(OR(TAB_MEP[[#This Row],[1ere formation / facturation]]=\"-\",TAB_MEP[[#This Row],[1ere formation / facturation]]>=TODAY()),1,0)","v":0},{"$nulls":3},"SC","CF",0,{"$f":"IF(AND(AND(TAB_MEP[[#This Row],[1ere formation / facturation]]<>\"-\",TAB_MEP[[#This Row],[Date de MEP prévisionnelle]]<TAB_MEP[[#This Row],[1ere formation / facturation]],TAB_MEP[[#This Row],[Date de MEP prévisionnelle]]<>\"pas de date\")),1,0)","v":0},{"$f":"IF(AND(TAB_MEP[[#This Row],[1ere formation / facturation]]=\"-\",TAB_MEP[[#This Row],[Date de MEP prévisionnelle]]<TODAY()),1,0)","v":0},{"$f":"IF(TAB_MEP[[#This Row],[1ere formation / facturation]]<>\"-\",TAB_MEP[[#This Row],[1ere formation / facturation]],\"\")","v":"2021-06-28"}]
[75,"2023-03-10","2023-03-30",9,60,"2023-06-01",{"$f":"IF(OR(TAB_MEP[[#This Row],[Nb jour avt mep]]=\"-\",TAB_MEP[[#This Row],[Date lancement]]=\"-\"),\"pas de date\",TAB_MEP[[#This Row],[Date lancement]]+TAB_MEP[[#This Row],[Nb jour avt mep]])","v":"2023-05-29"},{"$f":"IF(OR(TAB_MEP[[#This Row],[1ere formation / facturation]]=\"-\",TAB_MEP[[#This Row],[1ere formation / facturation]]>=TODAY()),1,0)","v":0},null,null,"FR","SC","CF",1,{"$f":"IF(AND(AND(TAB_MEP[[#This Row],[1ere formation / facturation]]<>\"-\",TAB_MEP[[#This Row],[Date de MEP prévisionnelle]]<TAB_MEP[[#This Row],[1ere formation / facturation]],TAB_MEP[[#This Row],[Date de MEP prévisionnelle]]<>\"pas de date\")),1,0)","v":1},{"$f":"IF(AND(TAB_MEP[[#This Row],[1ere formation / facturation]]=\"-\",TAB_MEP[[#This Row],[Date de MEP prévisionnelle]]<TODAY()),1,0)","v":0},{"$f":"IF(TAB_MEP[[#This Row],[1ere formation / facturation]]<>\"-\",TAB_MEP[[#This Row],[1ere formation / facturation]],\"\")","v":"2023-06-01"}]
[76,"2021-09-22","2021-09-23",8,"-","2021-11-19",{"$f":"IF(OR(TAB_MEP[[#This Row],[Nb jour avt mep]]=\"-\",TAB_MEP[[#This Row],[Date lancement]]=\"-\"),\"pas de date\",TAB_MEP[[#This Row],[Date lancement]]+TAB_MEP[[#This Row],[Nb jour avt mep]])","v":"pas de date"},{"$f":"IF(OR(TAB_MEP[[#This Row],[1ere formation / facturation]]=\"-\",TAB_MEP[[#This Row],[1ere formation / facturation]]>=TODAY()),1,0)","v":0},{"$nulls":3},"Part","CF",0,{"$f":"IF(AND(AND(TAB_MEP[[#This Row],[1ere formation / facturation]]<>\"-\",TAB_MEP[[#This Row],[Date de MEP prévisionnelle]]<TAB_MEP[[#This Row],[1ere formation / facturation]],TAB_MEP[[#This Row],[Date de MEP prévisionnelle]]<>\"pas de date\")),1,0)","v":0},{"$f":"IF(AND(TAB_MEP[[#This Row],[1ere formation / facturation]]=\"-\",TAB_MEP[[#This Row],[Date de MEP prévisionnelle]]<TODAY()),1,0)","v":0},{"$f":"IF(TAB_MEP[[#This Row],[1ere formation / facturation]]<>\"-\",TAB_MEP[[#This Row],[1ere formation / facturation]],\"\")","v":"2021-11-19"}]
[77,"2022-05-09","2022-05-13",6,"-","2022-06-30",{"$f":"IF(OR(TAB_MEP[[#This Row],[Nb jour avt mep]]=\"-\",TAB_MEP[[#This Row],[Date lancement]]=\"-\"),\"pas de date\",TAB_MEP[[#This Row],[Date lancement]]+TAB_MEP[[#This Row],[Nb jour avt mep]])","v":"pas de date"},{"$f":"IF(OR(TAB_MEP[[#This Row],[1ere formation / facturation]]=\"-\",TAB_MEP[[#This Row],[1ere formation / facturation]]>=TODAY()),1,0)","v":0},null,null,"FR","SC","CF",0,{"$f":"IF(AND(AND(TAB_MEP[[#This Row],[1ere formation / facturation]]<>\"-\",TAB_MEP[[#This Row],[Date de MEP prévisionnelle]]<TAB_MEP[[#This Row],[1ere formation / facturation]],TAB_MEP[[#This Row],[Date de MEP prévisionnelle]]<>\"pas de date\")),1,0)","v":0},{"$f":"IF(AND(TAB_MEP[[#This Row],[1ere formation / facturation]]=\"-\",TAB_MEP[[#This Row],[Date de MEP prévisionnelle]]<TODAY()),1,0)","v":0},{"$f":"IF(TAB_MEP[[#This Row],[1ere formation / facturation]]<>\"-\",TAB_MEP[[#This Row],[1ere formation / facturation]],\"\")","v":"2022-06-30"}]
[78,"2023-05-05","2023-05-11",26,102,"2023-11-15",{"$f":"IF(OR(TAB_MEP[[#This Row],[Nb jour avt mep]]=\"-\",TAB_MEP[[#This Row],[Date lancement]]=\"-\"),\"pas de date\",TAB_MEP[[#This Row],[Date lancement]]+TAB_MEP[[#This Row],[Nb jour avt mep]])","v":"2023-08-21"},{"$f":"IF(OR(TAB_MEP[[#This Row],[1ere formation / facturation]]=\"-\",TAB_MEP[[#This Row],[1ere formation / facturation]]>=TODAY()),1,0)","v":1},"Novembre",null,"FR","SC","CF",1,{"$f":"IF(AND(AND(TAB_MEP[[#This Row],[1ere formation / facturation]]<>\"-\",TAB_MEP[[#This Row],[Date de MEP prévisionnelle]]<TAB_MEP[[#This Row],[1ere formation / facturation]],TAB_MEP[[#This Row],[Date de MEP prévisionnelle]]<>\"pas de date\")),1,0)","v":1},{"$f":"IF(AND(TAB_MEP[[#This Row],[1ere formation / facturation]]=\"-\",TAB_MEP[[#This Row],[Date de MEP prévisionnelle]]<TODAY()),1,0)","v":0},{"$f":"IF(TAB_MEP[[#This Row],[1ere formation / facturation]]<>\"-\",TAB_MEP[[#This Row],[1ere formation / facturation]],\"\")","v":"2023-11-15"}]
[79,"2022-01-04","2022-01-25",9,"-","2022-03-30",{"$f":"IF(OR(TAB_MEP[[#This Row],[Nb jour avt mep]]=\"-\",TAB_MEP[[#This Row],[Date lancement]]=\"-\"),\"pas de date\",TAB_MEP[[#This Row],[Date lancement]]+TAB_MEP[[#This Row],[Nb jour avt mep]])","v":"pas de date"},{"$f":"IF(OR(TAB_MEP[[#This Row],[1ere formation / facturation]]=\"-\",TAB_MEP[[#This Row],[1ere formation / facturation]]>=TODAY()),1,0)","v":0},{"$nulls":3},"SC","CF",0,{"$f":"IF(AND(AND(TAB_MEP[[#This Row],[1ere formation / facturation]]<>\"-\",TAB_MEP[[#This Row],[Date de MEP prévisionnelle]]<TAB_MEP[[#This Row],[1ere formation / facturation]],TAB_MEP[[#This Row],[Date de MEP prévisionnelle]]<>\"pas de date\")),1,0)","v":0},{"$f":"IF(AND(TAB_MEP[[#This Row],[1ere formation / facturation]]=\"-\",TAB_MEP[[#This Row],[Date de MEP prévisionnelle]]<TODAY()),1,0)","v":0},{"$f":"IF(TAB_MEP[[#This Row],[1ere formation / facturation]]<>\"-\",TAB_MEP[[#This Row],[1ere formation / facturation]],\"\")","v":"2022-03-30"}]
[80,"2020-12-10","2020-12-10",7,"-","2021-02-03",{"$f":"IF(OR(TAB_MEP[[#This Row],[Nb jour avt mep]]=\"-\",TAB_MEP[[#This Row],[Date lancement]]=\"-\"),\"pas de date\",TAB_MEP[[#This Row],[Date lancement]]+TAB_MEP[[#This Row],[Nb jour avt mep]])","v":"pas de date"},{"$f":"IF(OR(TAB_MEP[[#This Row],[1ere formation / facturation]]=\"-\",TAB_MEP[[#This Row],[1ere formation / facturation]]>=TODAY()),1,0)","v":0},{"$nulls":3},"Part","CF",0,{"$f":"IF(AND(AND(TAB_MEP[[#This Row],[1ere formation / facturation]]<>\"-\",TAB_MEP[[#This Row],[Date de MEP prévisionnelle]]<TAB_MEP[[#This Row],[1ere formation / facturation]],TAB_MEP[[#This Row],[Date de MEP prévisionnelle]]<>\"pas de date\")),1,0)","v":0},{"$f":"IF(AND(TAB_MEP[[#This Row],[1ere formation / facturation]]=\"-\",TAB_MEP[[#This Row],[Date de MEP prévisionnelle]]<TODAY()),1,0)","v":0},{"$f":"IF(TAB_MEP[[#This Row],[1ere formation / facturation]]<>\"-\",TAB_MEP[[#This Row],[1ere formation / facturation]],\"\")","v":"2021-02-03"}]
[81,"2020-12-23","2020-12-23",3,"-","2021-01-19",{"$f":"IF(OR(TAB_MEP[[#This Row],[Nb jour avt mep]]=\"-\",TAB_MEP[[#This Row],[Date lancement]]=\"-\"),\"pas de date\",TAB_MEP[[#This Row],[Date lancement]]+TAB_MEP[[#This Row],[Nb jour avt mep]])","v":"pas de date"},{"$f":"IF(OR(TAB_MEP[[#This Row],[1ere formation / facturation]]=\"-\",TAB_MEP[[#This Row],[1ere formation / facturation]]>=TODAY()),1,0)","v":0},{"$nulls":3},"Part","CF",0,{"$f":"IF(AND(AND(TAB_MEP[[#This Row],[1ere formation / facturation]]<>\"-\",TAB_MEP[[#This Row],[Date de MEP prévisionnelle]]<TAB_MEP[[#This Row],[1ere formation / facturation]],TAB_MEP[[#This Row],[Date de MEP prévisionnelle]]<>\"pas de date\")),1,0)","v":0},{"$f":"IF(AND(TAB_MEP[[#This Row],[1ere formation / facturation]]=\"-\",TAB_MEP[[#This Row],[Date de MEP prévisionnelle]]<TODAY()),1,0)","v":0},{"$f":"IF(TAB_MEP[[#This Row],[1ere formation / facturation]]<>\"-\",TAB_MEP[[#This Row],[1ere formation / facturation]],\"\")","v":"2021-01-19"}]
[82,"2019-02-15","2019-02-15",81,"-","2020-09-09",{"$f":"IF(OR(TAB_MEP[[#This Row],[Nb jour avt mep]]=\"-\",TAB_MEP[[#This Row],[Date lancement]]=\"-\"),\"pas de date\",TAB_MEP[[#This Row],[Date lancement]]+TAB_MEP[[#This Row],[Nb jour avt mep]])","v":"pas de date"},{"$f":"IF(OR(TAB_MEP[[#This Row],[1ere formation / facturation]]=\"-\",TAB_MEP[[#This Row],[1ere formation / facturation]]>=TODAY()),1,0)","v":0},{"$nulls":3},"GC","CF",0,{"$f":"IF(AND(AND(TAB_MEP[[#This Row],[1ere formation / facturation]]<>\"-\",TAB_MEP[[#This Row],[Date de MEP prévisionnelle]]<TAB_MEP[[#This Row],[1ere formation / facturation]],TAB_MEP[[#This Row],[Date de MEP prévisionnelle]]<>\"pas de date\")),1,0)","v":0},{"$f":"IF(AND(TAB_MEP[[#This Row],[1ere formation / facturation]]=\"-\",TAB_MEP[[#This Row],[Date de MEP prévisionnelle]]<TODAY()),1,0)","v":0},{"$f":"IF(TAB_MEP[[#This Row],[1ere formation / facturation]]<>\"-\",TAB_MEP[[#This Row],[1ere formation / facturation]],\"\")","v":"2020-09-09"}]
[83,"2023-06-21","2023-07-10",15,56,"-",{"$f":"IF(OR(TAB_MEP[[#This Row],[Nb jour avt mep]]=\"-\",TAB_MEP[[#This Row],[Date lancement]]=\"-\"),\"pas de date\",TAB_MEP[[#This Row],[Date lancement]]+TAB_MEP[[#This Row],[Nb jour avt mep]])","v":"2023-09-04"},{"$f":"IF(OR(TAB_MEP[[#This Row],[1ere formation / facturation]]=\"-\",TAB_MEP[[#This Row],[1ere formation / facturation]]>=TODAY()),1,0)","v":1},"Novembre",null,"FR","SC","CF",1,{"$f":"IF(AND(AND(TAB_MEP[[#This Row],[1ere formation / facturation]]<>\"-\",TAB_MEP[[#This Row],[Date de MEP prévisionnelle]]<TAB_MEP[[#This Row],[1ere formation / facturation]],TAB_MEP[[#This Row],[Date de MEP prévisionnelle]]<>\"pas de date\")),1,0)","v":0},{"$f":"IF(AND(TAB_MEP[[#This Row],[1ere formation / facturation]]=\"-\",TAB_MEP[[#This Row],[Date de MEP prévisionnelle]]<TODAY()),1,0)","v":1},{"$f":"IF(TAB_MEP[[#This Row],[1ere formation / facturation]]<>\"-\",TAB_MEP[[#This Row],[1ere formation / facturation]],\"\")","v":""}]
[84,"2023-07-12","2023-07-12",15,79,"-",{"$f":"IF(OR(TAB_MEP[[#This Row],[Nb jour avt mep]]=\"-\",TAB_MEP[[#This Row],[Date lancement]]=\"-\"),\"pas de date\",TAB_MEP[[#This Row],[Date lancement]]+TAB_MEP[[#This Row],[Nb jour avt mep]])","v":"2023-09-29"},{"$f":"IF(OR(TAB_MEP[[#This Row],[1ere formation / facturation]]=\"-\",TAB_MEP[[#This Row],[1ere formation / facturation]]>=TODAY()),1,0)","v":1},"Novembre",null,"FR","SC","CF",1,{"$f":"IF(AND(AND(TAB_MEP[[#This Row],[1ere formation / facturation]]<>\"-\",TAB_MEP[[#This Row],[Date de MEP prévisionnelle]]<TAB_MEP[[#This Row],[1ere formation / facturation]],TAB_MEP[[#This Row],[Date de MEP prévisionnelle]]<>\"pas de date\")),1,0)","v":0},{"$f":"IF(AND(TAB_MEP[[#This Row],[1ere formation / facturation]]=\"-\",TAB_MEP[[#This Row],[Date de MEP prévisionnelle]]<TODAY()),1,0)","v":1},{"$f":"IF(TAB_MEP[[#This Row],[1ere formation / facturation]]<>\"-\",TAB_MEP[[#This Row],[1ere formation / facturation]],\"\")","v":""}]
[85,"2022-03-18","2022-09-09",11,"-","2022-11-30",{"$f":"IF(OR(TAB_MEP[[#This Row],[Nb jour avt mep]]=\"-\",TAB_MEP[[#This Row],[Date lancement]]=\"-\"),\"pas de date\",TAB_MEP[[#This Row],[Date lancement]]+TAB_MEP[[#This Row],[Nb jour avt mep]])","v":"pas de date"},{"$f":"IF(OR(TAB_MEP[[#This Row],[1ere formation / facturation]]=\"-\",TAB_MEP[[#This Row],[1ere formation / facturation]]>=TODAY()),1,0)","v":0},null,null,"FR","SC","CF",0,{"$f":"IF(AND(AND(TAB_MEP[[#This Row],[1ere formation / facturation]]<>\"-\",TAB_MEP[[#This Row],[Date de MEP prévisionnelle]]<TAB_MEP[[#This Row],[1ere formation / facturation]],TAB_MEP[[#This Row],[Date de MEP prévisionnelle]]<>\"pas de date\")),1,0)","v":0},{"$f":"IF(AND(TAB_MEP[[#This Row],[1ere formation / facturation]]=\"-\",TAB_MEP[[#This Row],[Date de MEP prévisionnelle]]<TODAY()),1,0)","v":0},{"$f":"IF(TAB_MEP[[#This Row],[1ere formation / facturation]]<>\"-\",TAB_MEP[[#This Row],[1ere formation / facturation]],\"\")","v":"2022-11-30"}]
[86,"2022-07-28","2022-08-03",9,"-","2022-10-05",{"$f":"IF(OR(TAB_MEP[[#This Row],[Nb jour avt mep]]=\"-\",TAB_MEP[[#This Row],[Date lancement]]=\"-\"),\"pas de date\",TAB_MEP[[#This Row],[Date lancement]]+TAB_MEP[[#This Row],[Nb jour avt mep]])","v":"pas de date"},{"$f":"IF(OR(TAB_MEP[[#This Row],[1ere formation / facturation]]=\"-\",TAB_MEP[[#This Row],[1ere formation / facturation]]>=TODAY()),1,0)","v":0},null,null,"FR","SC","CF",0,{"$f":"IF(AND(AND(TAB_MEP[[#This Row],[1ere formation / facturation]]<>\"-\",TAB_MEP[[#This Row],[Date de MEP prévisionnelle]]<TAB_MEP[[#This Row],[1ere formation / facturation]],TAB_MEP[[#This Row],[Date de MEP prévisionnelle]]<>\"pas de date\")),1,0)","v":0},{"$f":"IF(AND(TAB_MEP[[#This Row],[1ere formation / facturation]]=\"-\",TAB_MEP[[#This Row],[Date de MEP prévisionnelle]]<TODAY()),1,0)","v":0},{"$f":"IF(TAB_MEP[[#This Row],[1ere formation / facturation]]<>\"-\",TAB_MEP[[#This Row],[1ere formation / facturation]],\"\")","v":"2022-10-05"}]
[87,"2023-07-17","2023-07-25",0,66,"2023-07-31",{"$f":"IF(OR(TAB_MEP[[#This Row],[Nb jour avt mep]]=\"-\",TAB_MEP[[#This Row],[Date lancement]]=\"-\"),\"pas de date\",TAB_MEP[[#This Row],[Date lancement]]+TAB_MEP[[#This Row],[Nb jour avt mep]])","v":"2023-09-29"},{"$f":"IF(OR(TAB_MEP[[#This Row],[1ere formation / facturation]]=\"-\",TAB_MEP[[#This Row],[1ere formation / facturation]]>=TODAY()),1,0)","v":0},null,null,"FR","SC","FF",1,{"$f":"IF(AND(AND(TAB_MEP[[#This Row],[1ere formation / facturation]]<>\"-\",TAB_MEP[[#This Row],[Date de MEP prévisionnelle]]<TAB_MEP[[#This Row],[1ere formation / facturation]],TAB_MEP[[#This Row],[Date de MEP prévisionnelle]]<>\"pas de date\")),1,0)","v":0},{"$f":"IF(AND(TAB_MEP[[#This Row],[1ere formation / facturation]]=\"-\",TAB_MEP[[#This Row],[Date de MEP prévisionnelle]]<TODAY()),1,0)","v":0},{"$f":"IF(TAB_MEP[[#This Row],[1ere formation / facturation]]<>\"-\",TAB_MEP[[#This Row],[1ere formation / facturation]],\"\")","v":"2023-07-31"}]
[88,"2020-07-31","2020-09-10",11,"-","2020-11-27",{"$f":"IF(OR(TAB_MEP[[#This Row],[Nb jour avt mep]]=\"-\",TAB_MEP[[#This Row],[Date lancement]]=\"-\"),\"pas de date\",TAB_MEP[[#This Row],[Date lancement]]+TAB_MEP[[#This Row],[Nb jour avt mep]])","v":"pas de date"},{"$f":"IF(OR(TAB_MEP[[#This Row],[1ere formation / facturation]]=\"-\",TAB_MEP[[#This Row],[1ere formation / facturation]]>=TODAY()),1,0)","v":0},{"$nulls":3},"SC","CF",0,{"$f":"IF(AND(AND(TAB_MEP[[#This Row],[1ere formation / facturation]]<>\"-\",TAB_MEP[[#This Row],[Date de MEP prévisionnelle]]<TAB_MEP[[#This Row],[1ere formation / facturation]],TAB_MEP[[#This Row],[Date de MEP prévisionnelle]]<>\"pas de date\")),1,0)","v":0},{"$f":"IF(AND(TAB_MEP[[#This Row],[1ere formation / facturation]]=\"-\",TAB_MEP[[#This Row],[Date de MEP prévisionnelle]]<TODAY()),1,0)","v":0},{"$f":"IF(TAB_MEP[[#This Row],[1ere formation / facturation]]<>\"-\",TAB_MEP[[#This Row],[1ere formation / facturation]],\"\")","v":"2020-11-27"}]
[89,"2022-09-27","2022-10-10",8,"-","2022-12-08",{"$f":"IF(OR(TAB_MEP[[#This Row],[Nb jour avt mep]]=\"-\",TAB_MEP[[#This Row],[Date lancement]]=\"-\"),\"pas de date\",TAB_MEP[[#This Row],[Date lancement]]+TAB_MEP[[#This Row],[Nb jour avt mep]])","v":"pas de date"},{"$f":"IF(OR(TAB_MEP[[#This Row],[1ere formation / facturation]]=\"-\",TAB_MEP[[#This Row],[1ere formation / facturation]]>=TODAY()),1,0)","v":0},null,null,"FR","SC","CF",0,{"$f":"IF(AND(AND(TAB_MEP[[#This Row],[1ere formation / facturation]]<>\"-\",TAB_MEP[[#This Row],[Date de MEP prévisionnelle]]<TAB_MEP[[#This Row],[1ere formation / facturation]],TAB_MEP[[#This Row],[Date de MEP prévisionnelle]]<>\"pas de date\")),1,0)","v":0},{"$f":"IF(AND(TAB_MEP[[#This Row],[1ere formation / facturation]]=\"-\",TAB_MEP[[#This Row],[Date de MEP prévisionnelle]]<TODAY()),1,0)","v":0},{"$f":"IF(TAB_MEP[[#This Row],[1ere formation / facturation]]<>\"-\",TAB_MEP[[#This Row],[1ere formation / facturation]],\"\")","v":"2022-12-08"}]
[90,"2021-08-26","2021-09-22",16,"-","2022-01-12",{"$f":"IF(OR(TAB_MEP[[#This Row],[Nb jour avt mep]]=\"-\",TAB_MEP[[#This Row],[Date lancement]]=\"-\"),\"pas de date\",TAB_MEP[[#This Row],[Date lancement]]+TAB_MEP[[#This Row],[Nb jour avt mep]])","v":"pas de date"},{"$f":"IF(OR(TAB_MEP[[#This Row],[1ere formation / facturation]]=\"-\",TAB_MEP[[#This Row],[1ere formation / facturation]]>=TODAY()),1,0)","v":0},{"$nulls":3},"SC","CF",0,{"$f":"IF(AND(AND(TAB_MEP[[#This Row],[1ere formation / facturation]]<>\"-\",TAB_MEP[[#This Row],[Date de MEP prévisionnelle]]<TAB_MEP[[#This Row],[1ere formation / facturation]],TAB_MEP[[#This Row],[Date de MEP prévisionnelle]]<>\"pas de date\")),1,0)","v":0},{"$f":"IF(AND(TAB_MEP[[#This Row],[1ere formation / facturation]]=\"-\",TAB_MEP[[#This Row],[Date de MEP prévisionnelle]]<TODAY()),1,0)","v":0},{"$f":"IF(TAB_MEP[[#This Row],[1ere formation / facturation]]<>\"-\",TAB_MEP[[#This Row],[1ere formation / facturation]],\"\")","v":"2022-01-12"}]
[91,"2020-07-28","2020-08-26",8,"-","2020-10-21",{"$f":"IF(OR(TAB_MEP[[#This Row],[Nb jour avt mep]]=\"-\",TAB_MEP[[#This Row],[Date lancement]]=\"-\"),\"pas de date\",TAB_MEP[[#This Row],[Date lancement]]+TAB_MEP[[#This Row],[Nb jour avt mep]])","v":"pas de date"},{"$f":"IF(OR(TAB_MEP[[#This Row],[1ere formation / facturation]]=\"-\",TAB_MEP[[#This Row],[1ere formation / facturation]]>=TODAY()),1,0)","v":0},{"$nulls":3},"SC","CF",0,{"$f":"IF(AND(AND(TAB_MEP[[#This Row],[1ere formation / facturation]]<>\"-\",TAB_MEP[[#This Row],[Date de MEP prévisionnelle]]<TAB_MEP[[#This Row],[1ere formation / facturation]],TAB_MEP[[#This Row],[Date de MEP prévisionnelle]]<>\"pas de date\")),1,0)","v":0},{"$f":"IF(AND(TAB_MEP[[#This Row],[1ere formation / facturation]]=\"-\",TAB_MEP[[#This Row],[Date de MEP prévisionnelle]]<TODAY()),1,0)","v":0},{"$f":"IF(TAB_MEP[[#This Row],[1ere formation / facturation]]<>\"-\",TAB_MEP[[#This Row],[1ere formation / facturation]],\"\")","v":"2020-10-21"}]
[92,"2022-01-24","2022-02-17",36,"-","2022-11-02",{"$f":"IF(OR(TAB_MEP[[#This Row],[Nb jour avt mep]]=\"-\",TAB_MEP[[#This Row],[Date lancement]]=\"-\"),\"pas de date\",TAB_MEP[[#This Row],[Date lancement]]+TAB_MEP[[#This Row],[Nb jour avt mep]])","v":"pas de date"},{"$f":"IF(OR(TAB_MEP[[#This Row],[1ere formation / facturation]]=\"-\",TAB_MEP[[#This Row],[1ere formation / facturation]]>=TODAY()),1,0)","v":0},null,null,"FR","SC","CF",0,{"$f":"IF(AND(AND(TAB_MEP[[#This Row],[1ere formation / facturation]]<>\"-\",TAB_MEP[[#This Row],[Date de MEP prévisionnelle]]<TAB_MEP[[#This Row],[1ere formation / facturation]],TAB_MEP[[#This Row],[Date de MEP prévisionnelle]]<>\"pas de date\")),1,0)","v":0},{"$f":"IF(AND(TAB_MEP[[#This Row],[1ere formation / facturation]]=\"-\",TAB_MEP[[#This Row],[Date de MEP prévisionnelle]]<TODAY()),1,0)","v":0},{"$f":"IF(TAB_MEP[[#This Row],[1ere formation / facturation]]<>\"-\",TAB_MEP[[#This Row],[1ere formation / facturation]],\"\")","v":"2022-11-02"}]
[93,"2019-07-25","2019-07-31",28,"-","2020-02-17",{"$f":"IF(OR(TAB_MEP[[#This Row],[Nb jour avt mep]]=\"-\",TAB_MEP[[#This Row],[Date lancement]]=\"-\"),\"pas de date\",TAB_MEP[[#This Row],[Date lancement]]+TAB_MEP[[#This Row],[Nb jour avt mep]])","v":"pas de date"},{"$f":"IF(OR(TAB_MEP[[#This Row],[1ere formation / facturation]]=\"-\",TAB_MEP[[#This Row],[1ere formation / facturation]]>=TODAY()),1,0)","v":0},{"$nulls":3},"SC","CF",0,{"$f":"IF(AND(AND(TAB_MEP[[#This Row],[1ere formation / facturation]]<>\"-\",TAB_MEP[[#This Row],[Date de MEP prévisionnelle]]<TAB_MEP[[#This Row],[1ere formation / facturation]],TAB_MEP[[#This Row],[Date de MEP prévisionnelle]]<>\"pas de date\")),1,0)","v":0},{"$f":"IF(AND(TAB_MEP[[#This Row],[1ere formation / facturation]]=\"-\",TAB_MEP[[#This Row],[Date de MEP prévisionnelle]]<TODAY()),1,0)","v":0},{"$f":"IF(TAB_MEP[[#This Row],[1ere formation / facturation]]<>\"-\",TAB_MEP[[#This Row],[1ere formation / facturation]],\"\")","v":"2020-02-17"}]
[94,"2022-12-12","2023-12-30","0","-","2023-08-05",{"$f":"IF(OR(TAB_MEP[[#This Row],[Nb jour avt mep]]=\"-\",TAB_MEP[[#This Row],[Date lancement]]=\"-\"),\"pas de date\",TAB_MEP[[#This Row],[Date lancement]]+TAB_MEP[[#This Row],[Nb jour avt mep]])","v":"pas de date"},{"$f":"IF(OR(TAB_MEP[[#This Row],[1ere formation / facturation]]=\"-\",TAB_MEP[[#This Row],[1ere formation / facturation]]>=TODAY()),1,0)","v":0},null,null,"Multi","Inter","CF",1,{"$f":"IF(AND(AND(TAB_MEP[[#This Row],[1ere formation / facturation]]<>\"-\",TAB_MEP[[#This Row],[Date de MEP prévisionnelle]]<TAB_MEP[[#This Row],[1ere formation / facturation]],TAB_MEP[[#This Row],[Date de MEP prévisionnelle]]<>\"pas de date\")),1,0)","v":0},{"$f":"IF(AND(TAB_MEP[[#This Row],[1ere formation / facturation]]=\"-\",TAB_MEP[[#This Row],[Date de MEP prévisionnelle]]<TODAY()),1,0)","v":0},{"$f":"IF(TAB_MEP[[#This Row],[1ere formation / facturation]]<>\"-\",TAB_MEP[[#This Row],[1ere formation / facturation]],\"\")","v":"2023-08-05"}]
[95,"2020-09-25","2020-09-28",9,"-","2020-12-02",{"$f":"IF(OR(TAB_MEP[[#This Row],[Nb jour avt mep]]=\"-\",TAB_MEP[[#This Row],[Date lancement]]=\"-\"),\"pas de date\",TAB_MEP[[#This Row],[Date lancement]]+TAB_MEP[[#This Row],[Nb jour avt mep]])","v":"pas de date"},{"$f":"IF(OR(TAB_MEP[[#This Row],[1ere formation / facturation]]=\"-\",TAB_MEP[[#This Row],[1ere formation / facturation]]>=TODAY()),1,0)","v":0},{"$nulls":3},"SC","CF",0,{"$f":"IF(AND(AND(TAB_MEP[[#This Row],[1ere formation / facturation]]<>\"-\",TAB_MEP[[#This Row],[Date de MEP prévisionnelle]]<TAB_MEP[[#This Row],[1ere formation / facturation]],TAB_MEP[[#This Row],[Date de MEP prévisionnelle]]<>\"pas de date\")),1,0)","v":0},{"$f":"IF(AND(TAB_MEP[[#This Row],[1ere formation / facturation]]=\"-\",TAB_MEP[[#This Row],[Date de MEP prévisionnelle]]<TODAY()),1,0)","v":0},{"$f":"IF(TAB_MEP[[#This Row],[1ere formation / facturation]]<>\"-\",TAB_MEP[[#This Row],[1ere formation / facturation]],\"\")","v":"2020-12-02"}]
[96,"2019-09-20","2019-10-17",49,"-","2020-09-30",{"$f":"IF(OR(TAB_MEP[[#This Row],[Nb jour avt mep]]=\"-\",TAB_MEP[[#This Row],[Date lancement]]=\"-\"),\"pas de date\",TAB_MEP[[#This Row],[Date lancement]]+TAB_MEP[[#This Row],[Nb jour avt mep]])","v":"pas de date"},{"$f":"IF(OR(TAB_MEP[[#This Row],[1ere formation / facturation]]=\"-\",TAB_MEP[[#This Row],[1ere formation / facturation]]>=TODAY()),1,0)","v":0},{"$nulls":3},"SC","CF",0,{"$f":"IF(AND(AND(TAB_MEP[[#This Row],[1ere formation / facturation]]<>\"-\",TAB_MEP[[#This Row],[Date de MEP prévisionnelle]]<TAB_MEP[[#This Row],[1ere formation / facturation]],TAB_MEP[[#This Row],[Date de MEP prévisionnelle]]<>\"pas de date\")),1,0)","v":0},{"$f":"IF(AND(TAB_MEP[[#This Row],[1ere formation / facturation]]=\"-\",TAB_MEP[[#This Row],[Date de MEP prévisionnelle]]<TODAY()),1,0)","v":0},{"$f":"IF(TAB_MEP[[#This Row],[1ere formation / facturation]]<>\"-\",TAB_MEP[[#This Row],[1ere formation / facturation]],\"\")","v":"2020-09-30"}]
[97,"2023-08-29","2023-08-29",5,"-","2023-10-06",{"$f":"IF(OR(TAB_MEP[[#This Row],[Nb jour avt mep]]=\"-\",TAB_MEP[[#This Row],[Date lancement]]=\"-\"),\"pas de date\",TAB_MEP[[#This Row],[Date lancement]]+TAB_MEP[[#This Row],[Nb jour avt mep]])","v":"pas de date"},{"$f":"IF(OR(TAB_MEP[[#This Row],[1ere formation / facturation]]=\"-\",TAB_MEP[[#This Row],[1ere formation / facturation]]>=TODAY()),1,0)","v":0},"Octobre",null,"BE","SC","CF",1,{"$f":"IF(AND(AND(TAB_MEP[[#This Row],[1ere formation / facturation]]<>\"-\",TAB_MEP[[#This Row],[Date de MEP prévisionnelle]]<TAB_MEP[[#This Row],[1ere formation / facturation]],TAB_MEP[[#This Row],[Date de MEP prévisionnelle]]<>\"pas de date\")),1,0)","v":0},{"$f":"IF(AND(TAB_MEP[[#This Row],[1ere formation / facturation]]=\"-\",TAB_MEP[[#This Row],[Date de MEP prévisionnelle]]<TODAY()),1,0)","v":0},{"$f":"IF(TAB_MEP[[#This Row],[1ere formation / facturation]]<>\"-\",TAB_MEP[[#This Row],[1ere formation / facturation]],\"\")","v":"2023-10-06"}]
[98,"2022-01-31","2022-03-09",9,"-","2022-05-11",{"$f":"IF(OR(TAB_MEP[[#This Row],[Nb jour avt mep]]=\"-\",TAB_MEP[[#This Row],[Date lancement]]=\"-\"),\"pas de date\",TAB_MEP[[#This Row],[Date lancement]]+TAB_MEP[[#This Row],[Nb jour avt mep]])","v":"pas de date"},{"$f":"IF(OR(TAB_MEP[[#This Row],[1ere formation / facturation]]=\"-\",TAB_MEP[[#This Row],[1ere formation / facturation]]>=TODAY()),1,0)","v":0},{"$nulls":3},"SC","CF",0,{"$f":"IF(AND(AND(TAB_MEP[[#This Row],[1ere formation / facturation]]<>\"-\",TAB_MEP[[#This Row],[Date de MEP prévisionnelle]]<TAB_MEP[[#This Row],[1ere formation / facturation]],TAB_MEP[[#This Row],[Date de MEP prévisionnelle]]<>\"pas de date\")),1,0)","v":0},{"$f":"IF(AND(TAB_MEP[[#This Row],[1ere formation / facturation]]=\"-\",TAB_MEP[[#This Row],[Date de MEP prévisionnelle]]<TODAY()),1,0)","v":0},{"$f":"IF(TAB_MEP[[#This Row],[1ere formation / facturation]]<>\"-\",TAB_MEP[[#This Row],[1ere formation / facturation]],\"\")","v":"2022-05-11"}]
[99,"2022-07-01","2022-08-24",30,"-","2023-03-22",{"$f":"IF(OR(TAB_MEP[[#This Row],[Nb jour avt mep]]=\"-\",TAB_MEP[[#This Row],[Date lancement]]=\"-\"),\"pas de date\",TAB_MEP[[#This Row],[Date lancement]]+TAB_MEP[[#This Row],[Nb jour avt mep]])","v":"pas de date"},{"$f":"IF(OR(TAB_MEP[[#This Row],[1ere formation / facturation]]=\"-\",TAB_MEP[[#This Row],[1ere formation / facturation]]>=TODAY()),1,0)","v":0},null,null,"FR","Inter","CF",1,{"$f":"IF(AND(AND(TAB_MEP[[#This Row],[1ere formation / facturation]]<>\"-\",TAB_MEP[[#This Row],[Date de MEP prévisionnelle]]<TAB_MEP[[#This Row],[1ere formation / facturation]],TAB_MEP[[#This Row],[Date de MEP prévisionnelle]]<>\"pas de date\")),1,0)","v":0},{"$f":"IF(AND(TAB_MEP[[#This Row],[1ere formation / facturation]]=\"-\",TAB_MEP[[#This Row],[Date de MEP prévisionnelle]]<TODAY()),1,0)","v":0},{"$f":"IF(TAB_MEP[[#This Row],[1ere formation / facturation]]<>\"-\",TAB_MEP[[#This Row],[1ere formation / facturation]],\"\")","v":"2023-03-22"}]
[100,"2023-04-13","2023-06-06",16,56,"2023-09-28",{"$f":"IF(OR(TAB_MEP[[#This Row],[Nb jour avt mep]]=\"-\",TAB_MEP[[#This Row],[Date lancement]]=\"-\"),\"pas de date\",TAB_MEP[[#This Row],[Date lancement]]+TAB_MEP[[#This Row],[Nb jour avt mep]])","v":"2023-08-01"},{"$f":"IF(OR(TAB_MEP[[#This Row],[1ere formation / facturation]]=\"-\",TAB_MEP[[#This Row],[1ere formation / facturation]]>=TODAY()),1,0)","v":0},"Septembre",null,"FR","SC","CF",1,{"$f":"IF(AND(AND(TAB_MEP[[#This Row],[1ere formation / facturation]]<>\"-\",TAB_MEP[[#This Row],[Date de MEP prévisionnelle]]<TAB_MEP[[#This Row],[1ere formation / facturation]],TAB_MEP[[#This Row],[Date de MEP prévisionnelle]]<>\"pas de date\")),1,0)","v":1},{"$f":"IF(AND(TAB_MEP[[#This Row],[1ere formation / facturation]]=\"-\",TAB_MEP[[#This Row],[Date de MEP prévisionnelle]]<TODAY()),1,0)","v":0},{"$f":"IF(TAB_MEP[[#This Row],[1ere formation / facturation]]<>\"-\",TAB_MEP[[#This Row],[1ere formation / facturation]],\"\")","v":"2023-09-28"}]
[101,"2019-07-26","2019-08-06",32,"-","2020-03-17",{"$f":"IF(OR(TAB_MEP[[#This Row],[Nb jour avt mep]]=\"-\",TAB_MEP[[#This Row],[Date lancement]]=\"-\"),\"pas de date\",TAB_MEP[[#This Row],[Date lancement]]+TAB_MEP[[#This Row],[Nb jour avt mep]])","v":"pas de date"},{"$f":"IF(OR(TAB_MEP[[#This Row],[1ere formation / facturation]]=\"-\",TAB_MEP[[#This Row],[1ere formation / facturation]]>=TODAY()),1,0)","v":0},{"$nulls":3},"SC","CF",0,{"$f":"IF(AND(AND(TAB_MEP[[#This Row],[1ere formation / facturation]]<>\"-\",TAB_MEP[[#This Row],[Date de MEP prévisionnelle]]<TAB_MEP[[#This Row],[1ere formation / facturation]],TAB_MEP[[#This Row],[Date de MEP prévisionnelle]]<>\"pas de date\")),1,0)","v":0},{"$f":"IF(AND(TAB_MEP[[#This Row],[1ere formation / facturation]]=\"-\",TAB_MEP[[#This Row],[Date de MEP prévisionnelle]]<TODAY()),1,0)","v":0},{"$f":"IF(TAB_MEP[[#This Row],[1ere formation / facturation]]<>\"-\",TAB_MEP[[#This Row],[1ere formation / facturation]],\"\")","v":"2020-03-17"}]
[102,"2020-10-01","2020-10-12",24,"-","2021-03-31",{"$f":"IF(OR(TAB_MEP[[#This Row],[Nb jour avt mep]]=\"-\",TAB_MEP[[#This Row],[Date lancement]]=\"-\"),\"pas de date\",TAB_MEP[[#This Row],[Date lancement]]+TAB_MEP[[#This Row],[Nb jour avt mep]])","v":"pas de date"},{"$f":"IF(OR(TAB_MEP[[#This Row],[1ere formation / facturation]]=\"-\",TAB_MEP[[#This Row],[1ere formation / facturation]]>=TODAY()),1,0)","v":0},{"$nulls":3},"SC","CF",0,{"$f":"IF(AND(AND(TAB_MEP[[#This Row],[1ere formation / facturation]]<>\"-\",TAB_MEP[[#This Row],[Date de MEP prévisionnelle]]<TAB_MEP[[#This Row],[1ere formation / facturation]],TAB_MEP[[#This Row],[Date de MEP prévisionnelle]]<>\"pas de date\")),1,0)","v":0},{"$f":"IF(AND(TAB_MEP[[#This Row],[1ere formation / facturation]]=\"-\",TAB_MEP[[#This Row],[Date de MEP prévisionnelle]]<TODAY()),1,0)","v":0},{"$f":"IF(TAB_MEP[[#This Row],[1ere formation / facturation]]<>\"-\",TAB_MEP[[#This Row],[1ere formation / facturation]],\"\")","v":"2021-03-31"}]
[103,"2020-07-01","2020-07-09",18,"-","2020-11-17",{"$f":"IF(OR(TAB_MEP[[#This Row],[Nb jour avt mep]]=\"-\",TAB_MEP[[#This Row],[Date lancement]]=\"-\"),\"pas de date\",TAB_MEP[[#This Row],[Date lancement]]+TAB_MEP[[#This Row],[Nb jour avt mep]])","v":"pas de date"},{"$f":"IF(OR(TAB_MEP[[#This Row],[1ere formation / facturation]]=\"-\",TAB_MEP[[#This Row],[1ere formation / facturation]]>=TODAY()),1,0)","v":0},{"$nulls":3},"SC","CF",0,{"$f":"IF(AND(AND(TAB_MEP[[#This Row],[1ere formation / facturation]]<>\"-\",TAB_MEP[[#This Row],[Date de MEP prévisionnelle]]<TAB_MEP[[#This Row],[1ere formation / facturation]],TAB_MEP[[#This Row],[Date de MEP prévisionnelle]]<>\"pas de date\")),1,0)","v":0},{"$f":"IF(AND(TAB_MEP[[#This Row],[1ere formation / facturation]]=\"-\",TAB_MEP[[#This Row],[Date de MEP prévisionnelle]]<TODAY()),1,0)","v":0},{"$f":"IF(TAB_MEP[[#This Row],[1ere formation / facturation]]<>\"-\",TAB_MEP[[#This Row],[1ere formation / facturation]],\"\")","v":"2020-11-17"}]
[104,"2022-12-10","2023-01-10",8,"-","2023-03-10",{"$f":"IF(OR(TAB_MEP[[#This Row],[Nb jour avt mep]]=\"-\",TAB_MEP[[#This Row],[Date lancement]]=\"-\"),\"pas de date\",TAB_MEP[[#This Row],[Date lancement]]+TAB_MEP[[#This Row],[Nb jour avt mep]])","v":"pas de date"},{"$f":"IF(OR(TAB_MEP[[#This Row],[1ere formation / facturation]]=\"-\",TAB_MEP[[#This Row],[1ere formation / facturation]]>=TODAY()),1,0)","v":0},null,null,"FR","SC","CF",0,{"$f":"IF(AND(AND(TAB_MEP[[#This Row],[1ere formation / facturation]]<>\"-\",TAB_MEP[[#This Row],[Date de MEP prévisionnelle]]<TAB_MEP[[#This Row],[1ere formation / facturation]],TAB_MEP[[#This Row],[Date de MEP prévisionnelle]]<>\"pas de date\")),1,0)","v":0},{"$f":"IF(AND(TAB_MEP[[#This Row],[1ere formation / facturation]]=\"-\",TAB_MEP[[#This Row],[Date de MEP prévisionnelle]]<TODAY()),1,0)","v":0},{"$f":"IF(TAB_MEP[[#This Row],[1ere formation / facturation]]<>\"-\",TAB_MEP[[#This Row],[1ere formation / facturation]],\"\")","v":"2023-03-10"}]
[105,"2022-12-05","2023-01-12",15,"-","2023-04-27",{"$f":"IF(OR(TAB_MEP[[#This Row],[Nb jour avt mep]]=\"-\",TAB_MEP[[#This Row],[Date lancement]]=\"-\"),\"pas de date\",TAB_MEP[[#This Row],[Date lancement]]+TAB_MEP[[#This Row],[Nb jour avt mep]])","v":"pas de date"},{"$f":"IF(OR(TAB_MEP[[#This Row],[1ere formation / facturation]]=\"-\",TAB_MEP[[#This Row],[1ere formation / facturation]]>=TODAY()),1,0)","v":0},null,null,"FR","SC","CF",1,{"$f":"IF(AND(AND(TAB_MEP[[#This Row],[1ere formation / facturation]]<>\"-\",TAB_MEP[[#This Row],[Date de MEP prévisionnelle]]<TAB_MEP[[#This Row],[1ere formation / facturation]],TAB_MEP[[#This Row],[Date de MEP prévisionnelle]]<>\"pas de date\")),1,0)","v":0},{"$f":"IF(AND(TAB_MEP[[#This Row],[1ere formation / facturation]]=\"-\",TAB_MEP[[#This Row],[Date de MEP prévisionnelle]]<TODAY()),1,0)","v":0},{"$f":"IF(TAB_MEP[[#This Row],[1ere formation / facturation]]<>\"-\",TAB_MEP[[#This Row],[1ere formation / facturation]],\"\")","v":"2023-04-27"}]
[106,"2023-01-16","2023-02-16",8,"-","2023-04-19",{"$f":"IF(OR(TAB_MEP[[#This Row],[Nb jour avt mep]]=\"-\",TAB_MEP[[#This Row],[Date lancement]]=\"-\"),\"pas de date\",TAB_MEP[[#This Row],[Date lancement]]+TAB_MEP[[#This Row],[Nb jour avt mep]])","v":"pas de date"},{"$f":"IF(OR(TAB_MEP[[#This Row],[1ere formation / facturation]]=\"-\",TAB_MEP[[#This Row],[1ere formation / facturation]]>=TODAY()),1,0)","v":0},null,null,"FR","SC","CF",0,{"$f":"IF(AND(AND(TAB_MEP[[#This Row],[1ere formation / facturation]]<>\"-\",TAB_MEP[[#This Row],[Date de MEP prévisionnelle]]<TAB_MEP[[#This Row],[1ere formation / facturation]],TAB_MEP[[#This Row],[Date de MEP prévisionnelle]]<>\"pas de date\")),1,0)","v":0},{"$f":"IF(AND(TAB_MEP[[#This Row],[1ere formation / facturation]]=\"-\",TAB_MEP[[#This Row],[Date de MEP prévisionnelle]]<TODAY()),1,0)","v":0},{"$f":"IF(TAB_MEP[[#This Row],[1ere formation / facturation]]<>\"-\",TAB_MEP[[#This Row],[1ere formation / facturation]],\"\")","v":"2023-04-19"}]
[107,"2023-07-24","2023-08-09",9,69,"2023-10-11",{"$f":"IF(OR(TAB_MEP[[#This Row],[Nb jour avt mep]]=\"-\",TAB_MEP[[#This Row],[Date lancement]]=\"-\"),\"pas de date\",TAB_MEP[[#This Row],[Date lancement]]+TAB_MEP[[#This Row],[Nb jour avt mep]])","v":"2023-10-17"},{"$f":"IF(OR(TAB_MEP[[#This Row],[1ere formation / facturation]]=\"-\",TAB_MEP[[#This Row],[1ere formation / facturation]]>=TODAY()),1,0)","v":0},"Octobre",null,"FR","GC","CF",1,{"$f":"IF(AND(AND(TAB_MEP[[#This Row],[1ere formation / facturation]]<>\"-\",TAB_MEP[[#This Row],[Date de MEP prévisionnelle]]<TAB_MEP[[#This Row],[1ere formation / facturation]],TAB_MEP[[#This Row],[Date de MEP prévisionnelle]]<>\"pas de date\")),1,0)","v":0},{"$f":"IF(AND(TAB_MEP[[#This Row],[1ere formation / facturation]]=\"-\",TAB_MEP[[#This Row],[Date de MEP prévisionnelle]]<TODAY()),1,0)","v":0},{"$f":"IF(TAB_MEP[[#This Row],[1ere formation / facturation]]<>\"-\",TAB_MEP[[#This Row],[1ere formation / facturation]],\"\")","v":"2023-10-11"}]
[108,"2021-03-29","2021-04-30",8,"-","2021-06-25",{"$f":"IF(OR(TAB_MEP[[#This Row],[Nb jour avt mep]]=\"-\",TAB_MEP[[#This Row],[Date lancement]]=\"-\"),\"pas de date\",TAB_MEP[[#This Row],[Date lancement]]+TAB_MEP[[#This Row],[Nb jour avt mep]])","v":"pas de date"},{"$f":"IF(OR(TAB_MEP[[#This Row],[1ere formation / facturation]]=\"-\",TAB_MEP[[#This Row],[1ere formation / facturation]]>=TODAY()),1,0)","v":0},{"$nulls":3},"SC","CF",0,{"$f":"IF(AND(AND(TAB_MEP[[#This Row],[1ere formation / facturation]]<>\"-\",TAB_MEP[[#This Row],[Date de MEP prévisionnelle]]<TAB_MEP[[#This Row],[1ere formation / facturation]],TAB_MEP[[#This Row],[Date de MEP prévisionnelle]]<>\"pas de date\")),1,0)","v":0},{"$f":"IF(AND(TAB_MEP[[#This Row],[1ere formation / facturation]]=\"-\",TAB_MEP[[#This Row],[Date de MEP prévisionnelle]]<TODAY()),1,0)","v":0},{"$f":"IF(TAB_MEP[[#This Row],[1ere formation / facturation]]<>\"-\",TAB_MEP[[#This Row],[1ere formation / facturation]],\"\")","v":"2021-06-25"}]
[109,"2022-12-10","2023-01-16",10,"-","2023-03-30",{"$f":"IF(OR(TAB_MEP[[#This Row],[Nb jour avt mep]]=\"-\",TAB_MEP[[#This Row],[Date lancement]]=\"-\"),\"pas de date\",TAB_MEP[[#This Row],[Date lancement]]+TAB_MEP[[#This Row],[Nb jour avt mep]])","v":"pas de date"},{"$f":"IF(OR(TAB_MEP[[#This Row],[1ere formation / facturation]]=\"-\",TAB_MEP[[#This Row],[1ere formation / facturation]]>=TODAY()),1,0)","v":0},null,null,"FR","SC","CF",0,{"$f":"IF(AND(AND(TAB_MEP[[#This Row],[1ere formation / facturation]]<>\"-\",TAB_MEP[[#This Row],[Date de MEP prévisionnelle]]<TAB_MEP[[#This Row],[1ere formation / facturation]],TAB_MEP[[#This Row],[Date de MEP prévisionnelle]]<>\"pas de date\")),1,0)","v":0},{"$f":"IF(AND(TAB_MEP[[#This Row],[1ere formation / facturation]]=\"-\",TAB_MEP[[#This Row],[Date de MEP prévisionnelle]]<TODAY()),1,0)","v":0},{"$f":"IF(TAB_MEP[[#This Row],[1ere formation / facturation]]<>\"-\",TAB_MEP[[#This Row],[1ere formation / facturation]],\"\")","v":"2023-03-30"}]
[110,"2021-04-02","2021-04-15",6,"-","2021-06-01",{"$f":"IF(OR(TAB_MEP[[#This Row],[Nb jour avt mep]]=\"-\",TAB_MEP[[#This Row],[Date lancement]]=\"-\"),\"pas de date\",TAB_MEP[[#This Row],[Date lancement]]+TAB_MEP[[#This Row],[Nb jour avt mep]])","v":"pas de date"},{"$f":"IF(OR(TAB_MEP[[#This Row],[1ere formation / facturation]]=\"-\",TAB_MEP[[#This Row],[1ere formation / facturation]]>=TODAY()),1,0)","v":0},{"$nulls":3},"SC","CF",0,{"$f":"IF(AND(AND(TAB_MEP[[#This Row],[1ere formation / facturation]]<>\"-\",TAB_MEP[[#This Row],[Date de MEP prévisionnelle]]<TAB_MEP[[#This Row],[1ere formation / facturation]],TAB_MEP[[#This Row],[Date de MEP prévisionnelle]]<>\"pas de date\")),1,0)","v":0},{"$f":"IF(AND(TAB_MEP[[#This Row],[1ere formation / facturation]]=\"-\",TAB_MEP[[#This Row],[Date de MEP prévisionnelle]]<TODAY()),1,0)","v":0},{"$f":"IF(TAB_MEP[[#This Row],[1ere formation / facturation]]<>\"-\",TAB_MEP[[#This Row],[1ere formation / facturation]],\"\")","v":"2021-06-01"}]
[111,"2023-08-11","2023-09-04",3,120,"2023-09-30",{"$f":"IF(OR(TAB_MEP[[#This Row],[Nb jour avt mep]]=\"-\",TAB_MEP[[#This Row],[Date lancement]]=\"-\"),\"pas de date\",TAB_MEP[[#This Row],[Date lancement]]+TAB_MEP[[#This Row],[Nb jour avt mep]])","v":"2024-01-02"},{"$f":"IF(OR(TAB_MEP[[#This Row],[1ere formation / facturation]]=\"-\",TAB_MEP[[#This Row],[1ere formation / facturation]]>=TODAY()),1,0)","v":0},"Septembre",null,"FR","SC","CF",1,{"$f":"IF(AND(AND(TAB_MEP[[#This Row],[1ere formation / facturation]]<>\"-\",TAB_MEP[[#This Row],[Date de MEP prévisionnelle]]<TAB_MEP[[#This Row],[1ere formation / facturation]],TAB_MEP[[#This Row],[Date de MEP prévisionnelle]]<>\"pas de date\")),1,0)","v":0},{"$f":"IF(AND(TAB_MEP[[#This Row],[1ere formation / facturation]]=\"-\",TAB_MEP[[#This Row],[Date de MEP prévisionnelle]]<TODAY()),1,0)","v":0},{"$f":"IF(TAB_MEP[[#This Row],[1ere formation / facturation]]<>\"-\",TAB_MEP[[#This Row],[1ere formation / facturation]],\"\")","v":"2023-09-30"}]
[112,"2020-08-07","2020-08-18",1,"-","2020-08-31",{"$f":"IF(OR(TAB_MEP[[#This Row],[Nb jour avt mep]]=\"-\",TAB_MEP[[#This Row],[Date lancement]]=\"-\"),\"pas de date\",TAB_MEP[[#This Row],[Date lancement]]+TAB_MEP[[#This Row],[Nb jour avt mep]])","v":"pas de date"},{"$f":"IF(OR(TAB_MEP[[#This Row],[1ere formation / facturation]]=\"-\",TAB_MEP[[#This Row],[1ere formation / facturation]]>=TODAY()),1,0)","v":0},{"$nulls":3},"Part","CF",0,{"$f":"IF(AND(AND(TAB_MEP[[#This Row],[1ere formation / facturation]]<>\"-\",TAB_MEP[[#This Row],[Date de MEP prévisionnelle]]<TAB_MEP[[#This Row],[1ere formation / facturation]],TAB_MEP[[#This Row],[Date de MEP prévisionnelle]]<>\"pas de date\")),1,0)","v":0},{"$f":"IF(AND(TAB_MEP[[#This Row],[1ere formation / facturation]]=\"-\",TAB_MEP[[#This Row],[Date de MEP prévisionnelle]]<TODAY()),1,0)","v":0},{"$f":"IF(TAB_MEP[[#This Row],[1ere formation / facturation]]<>\"-\",TAB_MEP[[#This Row],[1ere formation / facturation]],\"\")","v":"2020-08-31"}]
[113,"2022-09-13","2023-04-21",9,70,"2023-06-28",{"$f":"IF(OR(TAB_MEP[[#This Row],[Nb jour avt mep]]=\"-\",TAB_MEP[[#This Row],[Date lancement]]=\"-\"),\"pas de date\",TAB_MEP[[#This Row],[Date lancement]]+TAB_MEP[[#This Row],[Nb jour avt mep]])","v":"2023-06-30"},{"$f":"IF(OR(TAB_MEP[[#This Row],[1ere formation / facturation]]=\"-\",TAB_MEP[[#This Row],[1ere formation / facturation]]>=TODAY()),1,0)","v":0},null,null,"FR","SC","CF",0,{"$f":"IF(AND(AND(TAB_MEP[[#This Row],[1ere formation / facturation]]<>\"-\",TAB_MEP[[#This Row],[Date de MEP prévisionnelle]]<TAB_MEP[[#This Row],[1ere formation / facturation]],TAB_MEP[[#This Row],[Date de MEP prévisionnelle]]<>\"pas de date\")),1,0)","v":0},{"$f":"IF(AND(TAB_MEP[[#This Row],[1ere formation / facturation]]=\"-\",TAB_MEP[[#This Row],[Date de MEP prévisionnelle]]<TODAY()),1,0)","v":0},{"$f":"IF(TAB_MEP[[#This Row],[1ere formation / facturation]]<>\"-\",TAB_MEP[[#This Row],[1ere formation / facturation]],\"\")","v":"2023-06-28"}]
[114,"2022-07-13","2022-07-27",10,"-","2022-10-10",{"$f":"IF(OR(TAB_MEP[[#This Row],[Nb jour avt mep]]=\"-\",TAB_MEP[[#This Row],[Date lancement]]=\"-\"),\"pas de date\",TAB_MEP[[#This Row],[Date lancement]]+TAB_MEP[[#This Row],[Nb jour avt mep]])","v":"pas de date"},{"$f":"IF(OR(TAB_MEP[[#This Row],[1ere formation / facturation]]=\"-\",TAB_MEP[[#This Row],[1ere formation / facturation]]>=TODAY()),1,0)","v":0},null,null,"FR","SC","CF",0,{"$f":"IF(AND(AND(TAB_MEP[[#This Row],[1ere formation / facturation]]<>\"-\",TAB_MEP[[#This Row],[Date de MEP prévisionnelle]]<TAB_MEP[[#This Row],[1ere formation / facturation]],TAB_MEP[[#This Row],[Date de MEP prévisionnelle]]<>\"pas de date\")),1,0)","v":0},{"$f":"IF(AND(TAB_MEP[[#This Row],[1ere formation / facturation]]=\"-\",TAB_MEP[[#This Row],[Date de MEP prévisionnelle]]<TODAY()),1,0)","v":0},{"$f":"IF(TAB_MEP[[#This Row],[1ere formation / facturation]]<>\"-\",TAB_MEP[[#This Row],[1ere formation / facturation]],\"\")","v":"2022-10-10"}]
[115,"2022-11-03","2022-11-15",3,"-","2022-12-08",{"$f":"IF(OR(TAB_MEP[[#This Row],[Nb jour avt mep]]=\"-\",TAB_MEP[[#This Row],[Date lancement]]=\"-\"),\"pas de date\",TAB_MEP[[#This Row],[Date lancement]]+TAB_MEP[[#This Row],[Nb jour avt mep]])","v":"pas de date"},{"$f":"IF(OR(TAB_MEP[[#This Row],[1ere formation / facturation]]=\"-\",TAB_MEP[[#This Row],[1ere formation / facturation]]>=TODAY()),1,0)","v":0},null,null,"FR","SC","CF",0,{"$f":"IF(AND(AND(TAB_MEP[[#This Row],[1ere formation / facturation]]<>\"-\",TAB_MEP[[#This Row],[Date de MEP prévisionnelle]]<TAB_MEP[[#This Row],[1ere formation / facturation]],TAB_MEP[[#This Row],[Date de MEP prévisionnelle]]<>\"pas de date\")),1,0)","v":0},{"$f":"IF(AND(TAB_MEP[[#This Row],[1ere formation / facturation]]=\"-\",TAB_MEP[[#This Row],[Date de MEP prévisionnelle]]<TODAY()),1,0)","v":0},{"$f":"IF(TAB_MEP[[#This Row],[1ere formation / facturation]]<>\"-\",TAB_MEP[[#This Row],[1ere formation / facturation]],\"\")","v":"2022-12-08"}]
[116,"2021-07-22","2021-09-09",38,"-","2022-06-07",{"$f":"IF(OR(TAB_MEP[[#This Row],[Nb jour avt mep]]=\"-\",TAB_MEP[[#This Row],[Date lancement]]=\"-\"),\"pas de date\",TAB_MEP[[#This Row],[Date lancement]]+TAB_MEP[[#This Row],[Nb jour avt mep]])","v":"pas de date"},{"$f":"IF(OR(TAB_MEP[[#This Row],[1ere formation / facturation]]=\"-\",TAB_MEP[[#This Row],[1ere formation / facturation]]>=TODAY()),1,0)","v":0},null,null,"FR","GC","CF",1,{"$f":"IF(AND(AND(TAB_MEP[[#This Row],[1ere formation / facturation]]<>\"-\",TAB_MEP[[#This Row],[Date de MEP prévisionnelle]]<TAB_MEP[[#This Row],[1ere formation / facturation]],TAB_MEP[[#This Row],[Date de MEP prévisionnelle]]<>\"pas de date\")),1,0)","v":0},{"$f":"IF(AND(TAB_MEP[[#This Row],[1ere formation / facturation]]=\"-\",TAB_MEP[[#This Row],[Date de MEP prévisionnelle]]<TODAY()),1,0)","v":0},{"$f":"IF(TAB_MEP[[#This Row],[1ere formation / facturation]]<>\"-\",TAB_MEP[[#This Row],[1ere formation / facturation]],\"\")","v":"2022-06-07"}]
[117,"2022-12-05","2023-01-25",17,60,"2023-05-24",{"$f":"IF(OR(TAB_MEP[[#This Row],[Nb jour avt mep]]=\"-\",TAB_MEP[[#This Row],[Date lancement]]=\"-\"),\"pas de date\",TAB_MEP[[#This Row],[Date lancement]]+TAB_MEP[[#This Row],[Nb jour avt mep]])","v":"2023-03-26"},{"$f":"IF(OR(TAB_MEP[[#This Row],[1ere formation / facturation]]=\"-\",TAB_MEP[[#This Row],[1ere formation / facturation]]>=TODAY()),1,0)","v":0},null,null,"FR","SC","CF",0,{"$f":"IF(AND(AND(TAB_MEP[[#This Row],[1ere formation / facturation]]<>\"-\",TAB_MEP[[#This Row],[Date de MEP prévisionnelle]]<TAB_MEP[[#This Row],[1ere formation / facturation]],TAB_MEP[[#This Row],[Date de MEP prévisionnelle]]<>\"pas de date\")),1,0)","v":1},{"$f":"IF(AND(TAB_MEP[[#This Row],[1ere formation / facturation]]=\"-\",TAB_MEP[[#This Row],[Date de MEP prévisionnelle]]<TODAY()),1,0)","v":0},{"$f":"IF(TAB_MEP[[#This Row],[1ere formation / facturation]]<>\"-\",TAB_MEP[[#This Row],[1ere formation / facturation]],\"\")","v":"2023-05-24"}]
[118,"2019-11-27","2019-11-06",47,"-","2020-10-05",{"$f":"IF(OR(TAB_MEP[[#This Row],[Nb jour avt mep]]=\"-\",TAB_MEP[[#This Row],[Date lancement]]=\"-\"),\"pas de date\",TAB_MEP[[#This Row],[Date lancement]]+TAB_MEP[[#This Row],[Nb jour avt mep]])","v":"pas de date"},{"$f":"IF(OR(TAB_MEP[[#This Row],[1ere formation / facturation]]=\"-\",TAB_MEP[[#This Row],[1ere formation / facturation]]>=TODAY()),1,0)","v":0},{"$nulls":3},"SC","CF",0,{"$f":"IF(AND(AND(TAB_MEP[[#This Row],[1ere formation / facturation]]<>\"-\",TAB_MEP[[#This Row],[Date de MEP prévisionnelle]]<TAB_MEP[[#This Row],[1ere formation / facturation]],TAB_MEP[[#This Row],[Date de MEP prévisionnelle]]<>\"pas de date\")),1,0)","v":0},{"$f":"IF(AND(TAB_MEP[[#This Row],[1ere formation / facturation]]=\"-\",TAB_MEP[[#This Row],[Date de MEP prévisionnelle]]<TODAY()),1,0)","v":0},{"$f":"IF(TAB_MEP[[#This Row],[1ere formation / facturation]]<>\"-\",TAB_MEP[[#This Row],[1ere formation / facturation]],\"\")","v":"2020-10-05"}]
[119,"2023-02-09","2023-03-08",12,46,"2023-06-01",{"$f":"IF(OR(TAB_MEP[[#This Row],[Nb jour avt mep]]=\"-\",TAB_MEP[[#This Row],[Date lancement]]=\"-\"),\"pas de date\",TAB_MEP[[#This Row],[Date lancement]]+TAB_MEP[[#This Row],[Nb jour avt mep]])","v":"2023-04-23"},{"$f":"IF(OR(TAB_MEP[[#This Row],[1ere formation / facturation]]=\"-\",TAB_MEP[[#This Row],[1ere formation / facturation]]>=TODAY()),1,0)","v":0},null,null,"BE","Inter","CF",1,{"$f":"IF(AND(AND(TAB_MEP[[#This Row],[1ere formation / facturation]]<>\"-\",TAB_MEP[[#This Row],[Date de MEP prévisionnelle]]<TAB_MEP[[#This Row],[1ere formation / facturation]],TAB_MEP[[#This Row],[Date de MEP prévisionnelle]]<>\"pas de date\")),1,0)","v":1},{"$f":"IF(AND(TAB_MEP[[#This Row],[1ere formation / facturation]]=\"-\",TAB_MEP[[#This Row],[Date de MEP prévisionnelle]]<TODAY()),1,0)","v":0},{"$f":"IF(TAB_MEP[[#This Row],[1ere formation / facturation]]<>\"-\",TAB_MEP[[#This Row],[1ere formation / facturation]],\"\")","v":"2023-06-01"}]
[120,"2022-10-31","2022-11-25",15,"-","2023-03-14",{"$f":"IF(OR(TAB_MEP[[#This Row],[Nb jour avt mep]]=\"-\",TAB_MEP[[#This Row],[Date lancement]]=\"-\"),\"pas de date\",TAB_MEP[[#This Row],[Date lancement]]+TAB_MEP[[#This Row],[Nb jour avt mep]])","v":"pas de date"},{"$f":"IF(OR(TAB_MEP[[#This Row],[1ere formation / facturation]]=\"-\",TAB_MEP[[#This Row],[1ere formation / facturation]]>=TODAY()),1,0)","v":0},null,null,"FR","SC","CF",0,{"$f":"IF(AND(AND(TAB_MEP[[#This Row],[1ere formation / facturation]]<>\"-\",TAB_MEP[[#This Row],[Date de MEP prévisionnelle]]<TAB_MEP[[#This Row],[1ere formation / facturation]],TAB_MEP[[#This Row],[Date de MEP prévisionnelle]]<>\"pas de date\")),1,0)","v":0},{"$f":"IF(AND(TAB_MEP[[#This Row],[1ere formation / facturation]]=\"-\",TAB_MEP[[#This Row],[Date de MEP prévisionnelle]]<TODAY()),1,0)","v":0},{"$f":"IF(TAB_MEP[[#This Row],[1ere formation / facturation]]<>\"-\",TAB_MEP[[#This Row],[1ere formation / facturation]],\"\")","v":"2023-03-14"}]
[121,"2022-12-23","2023-02-01",7,"-","2023-03-23",{"$f":"IF(OR(TAB_MEP[[#This Row],[Nb jour avt mep]]=\"-\",TAB_MEP[[#This Row],[Date lancement]]=\"-\"),\"pas de date\",TAB_MEP[[#This Row],[Date lancement]]+TAB_MEP[[#This Row],[Nb jour avt mep]])","v":"pas de date"},{"$f":"IF(OR(TAB_MEP[[#This Row],[1ere formation / facturation]]=\"-\",TAB_MEP[[#This Row],[1ere formation / facturation]]>=TODAY()),1,0)","v":0},null,null,"BE","Inter","CF",0,{"$f":"IF(AND(AND(TAB_MEP[[#This Row],[1ere formation / facturation]]<>\"-\",TAB_MEP[[#This Row],[Date de MEP prévisionnelle]]<TAB_MEP[[#This Row],[1ere formation / facturation]],TAB_MEP[[#This Row],[Date de MEP prévisionnelle]]<>\"pas de date\")),1,0)","v":0},{"$f":"IF(AND(TAB_MEP[[#This Row],[1ere formation / facturation]]=\"-\",TAB_MEP[[#This Row],[Date de MEP prévisionnelle]]<TODAY()),1,0)","v":0},{"$f":"IF(TAB_MEP[[#This Row],[1ere formation / facturation]]<>\"-\",TAB_MEP[[#This Row],[1ere formation / facturation]],\"\")","v":"2023-03-23"}]
[122,"2023-05-17","2023-07-17",10,67,"2023-09-27",{"$f":"IF(OR(TAB_MEP[[#This Row],[Nb jour avt mep]]=\"-\",TAB_MEP[[#This Row],[Date lancement]]=\"-\"),\"pas de date\",TAB_MEP[[#This Row],[Date lancement]]+TAB_MEP[[#This Row],[Nb jour avt mep]])","v":"2023-09-22"},{"$f":"IF(OR(TAB_MEP[[#This Row],[1ere formation / facturation]]=\"-\",TAB_MEP[[#This Row],[1ere formation / facturation]]>=TODAY()),1,0)","v":0},"Septembre",null,"FR","SC","CF",1,{"$f":"IF(AND(AND(TAB_MEP[[#This Row],[1ere formation / facturation]]<>\"-\",TAB_MEP[[#This Row],[Date de MEP prévisionnelle]]<TAB_MEP[[#This Row],[1ere formation / facturation]],TAB_MEP[[#This Row],[Date de MEP prévisionnelle]]<>\"pas de date\")),1,0)","v":1},{"$f":"IF(AND(TAB_MEP[[#This Row],[1ere formation / facturation]]=\"-\",TAB_MEP[[#This Row],[Date de MEP prévisionnelle]]<TODAY()),1,0)","v":0},{"$f":"IF(TAB_MEP[[#This Row],[1ere formation / facturation]]<>\"-\",TAB_MEP[[#This Row],[1ere formation / facturation]],\"\")","v":"2023-09-27"}]
[123,"2021-01-01","2021-01-01",1,"-","2021-01-14",{"$f":"IF(OR(TAB_MEP[[#This Row],[Nb jour avt mep]]=\"-\",TAB_MEP[[#This Row],[Date lancement]]=\"-\"),\"pas de date\",TAB_MEP[[#This Row],[Date lancement]]+TAB_MEP[[#This Row],[Nb jour avt mep]])","v":"pas de date"},{"$f":"IF(OR(TAB_MEP[[#This Row],[1ere formation / facturation]]=\"-\",TAB_MEP[[#This Row],[1ere formation / facturation]]>=TODAY()),1,0)","v":0},{"$nulls":3},"Part","CF",0,{"$f":"IF(AND(AND(TAB_MEP[[#This Row],[1ere formation / facturation]]<>\"-\",TAB_MEP[[#This Row],[Date de MEP prévisionnelle]]<TAB_MEP[[#This Row],[1ere formation / facturation]],TAB_MEP[[#This Row],[Date de MEP prévisionnelle]]<>\"pas de date\")),1,0)","v":0},{"$f":"IF(AND(TAB_MEP[[#This Row],[1ere formation / facturation]]=\"-\",TAB_MEP[[#This Row],[Date de MEP prévisionnelle]]<TODAY()),1,0)","v":0},{"$f":"IF(TAB_MEP[[#This Row],[1ere formation / facturation]]<>\"-\",TAB_MEP[[#This Row],[1ere formation / facturation]],\"\")","v":"2021-01-14"}]
[124,"2023-09-07","2023-09-12",4,"-","2023-10-11",{"$f":"IF(OR(TAB_MEP[[#This Row],[Nb jour avt mep]]=\"-\",TAB_MEP[[#This Row],[Date lancement]]=\"-\"),\"pas de date\",TAB_MEP[[#This Row],[Date lancement]]+TAB_MEP[[#This Row],[Nb jour avt mep]])","v":"pas de date"},{"$f":"IF(OR(TAB_MEP[[#This Row],[1ere formation / facturation]]=\"-\",TAB_MEP[[#This Row],[1ere formation / facturation]]>=TODAY()),1,0)","v":0},"Octobre",null,"BE","SC","CF",1,{"$f":"IF(AND(AND(TAB_MEP[[#This Row],[1ere formation / facturation]]<>\"-\",TAB_MEP[[#This Row],[Date de MEP prévisionnelle]]<TAB_MEP[[#This Row],[1ere formation / facturation]],TAB_MEP[[#This Row],[Date de MEP prévisionnelle]]<>\"pas de date\")),1,0)","v":0},{"$f":"IF(AND(TAB_MEP[[#This Row],[1ere formation / facturation]]=\"-\",TAB_MEP[[#This Row],[Date de MEP prévisionnelle]]<TODAY()),1,0)","v":0},{"$f":"IF(TAB_MEP[[#This Row],[1ere formation / facturation]]<>\"-\",TAB_MEP[[#This Row],[1ere formation / facturation]],\"\")","v":"2023-10-11"}]
[125,"2020-12-01","2020-12-02",2,"-","2020-12-18",{"$f":"IF(OR(TAB_MEP[[#This Row],[Nb jour avt mep]]=\"-\",TAB_MEP[[#This Row],[Date lancement]]=\"-\"),\"pas de date\",TAB_MEP[[#This Row],[Date lancement]]+TAB_MEP[[#This Row],[Nb jour avt mep]])","v":"pas de date"},{"$f":"IF(OR(TAB_MEP[[#This Row],[1ere formation / facturation]]=\"-\",TAB_MEP[[#This Row],[1ere formation / facturation]]>=TODAY()),1,0)","v":0},{"$nulls":3},"SC","CF",0,{"$f":"IF(AND(AND(TAB_MEP[[#This Row],[1ere formation / facturation]]<>\"-\",TAB_MEP[[#This Row],[Date de MEP prévisionnelle]]<TAB_MEP[[#This Row],[1ere formation / facturation]],TAB_MEP[[#This Row],[Date de MEP prévisionnelle]]<>\"pas de date\")),1,0)","v":0},{"$f":"IF(AND(TAB_MEP[[#This Row],[1ere formation / facturation]]=\"-\",TAB_MEP[[#This Row],[Date de MEP prévisionnelle]]<TODAY()),1,0)","v":0},{"$f":"IF(TAB_MEP[[#This Row],[1ere formation / facturation]]<>\"-\",TAB_MEP[[#This Row],[1ere formation / facturation]],\"\")","v":"2020-12-18"}]
[126,"2021-07-06","2021-07-22",26,"-","2022-01-25",{"$f":"IF(OR(TAB_MEP[[#This Row],[Nb jour avt mep]]=\"-\",TAB_MEP[[#This Row],[Date lancement]]=\"-\"),\"pas de date\",TAB_MEP[[#This Row],[Date lancement]]+TAB_MEP[[#This Row],[Nb jour avt mep]])","v":"pas de date"},{"$f":"IF(OR(TAB_MEP[[#This Row],[1ere formation / facturation]]=\"-\",TAB_MEP[[#This Row],[1ere formation / facturation]]>=TODAY()),1,0)","v":0},{"$nulls":3},"SC","CF",0,{"$f":"IF(AND(AND(TAB_MEP[[#This Row],[1ere formation / facturation]]<>\"-\",TAB_MEP[[#This Row],[Date de MEP prévisionnelle]]<TAB_MEP[[#This Row],[1ere formation / facturation]],TAB_MEP[[#This Row],[Date de MEP prévisionnelle]]<>\"pas de date\")),1,0)","v":0},{"$f":"IF(AND(TAB_MEP[[#This Row],[1ere formation / facturation]]=\"-\",TAB_MEP[[#This Row],[Date de MEP prévisionnelle]]<TODAY()),1,0)","v":0},{"$f":"IF(TAB_MEP[[#This Row],[1ere formation / facturation]]<>\"-\",TAB_MEP[[#This Row],[1ere formation / facturation]],\"\")","v":"2022-01-25"}]
[127,"2023-06-14","2023-07-04",14,84,"2023-10-13",{"$f":"IF(OR(TAB_MEP[[#This Row],[Nb jour avt mep]]=\"-\",TAB_MEP[[#This Row],[Date lancement]]=\"-\"),\"pas de date\",TAB_MEP[[#This Row],[Date lancement]]+TAB_MEP[[#This Row],[Nb jour avt mep]])","v":"2023-09-26"},{"$f":"IF(OR(TAB_MEP[[#This Row],[1ere formation / facturation]]=\"-\",TAB_MEP[[#This Row],[1ere formation / facturation]]>=TODAY()),1,0)","v":0},"Octobre",null,"FR","SC","CF",1,{"$f":"IF(AND(AND(TAB_MEP[[#This Row],[1ere formation / facturation]]<>\"-\",TAB_MEP[[#This Row],[Date de MEP prévisionnelle]]<TAB_MEP[[#This Row],[1ere formation / facturation]],TAB_MEP[[#This Row],[Date de MEP prévisionnelle]]<>\"pas de date\")),1,0)","v":1},{"$f":"IF(AND(TAB_MEP[[#This Row],[1ere formation / facturation]]=\"-\",TAB_MEP[[#This Row],[Date de MEP prévisionnelle]]<TODAY()),1,0)","v":0},{"$f":"IF(TAB_MEP[[#This Row],[1ere formation / facturation]]<>\"-\",TAB_MEP[[#This Row],[1ere formation / facturation]],\"\")","v":"2023-10-13"}]
[128,"2020-05-01","2020-09-01",17,"-","2021-01-01",{"$f":"IF(OR(TAB_MEP[[#This Row],[Nb jour avt mep]]=\"-\",TAB_MEP[[#This Row],[Date lancement]]=\"-\"),\"pas de date\",TAB_MEP[[#This Row],[Date lancement]]+TAB_MEP[[#This Row],[Nb jour avt mep]])","v":"pas de date"},{"$f":"IF(OR(TAB_MEP[[#This Row],[1ere formation / facturation]]=\"-\",TAB_MEP[[#This Row],[1ere formation / facturation]]>=TODAY()),1,0)","v":0},null,null,"BE","Inter","CF",0,{"$f":"IF(AND(AND(TAB_MEP[[#This Row],[1ere formation / facturation]]<>\"-\",TAB_MEP[[#This Row],[Date de MEP prévisionnelle]]<TAB_MEP[[#This Row],[1ere formation / facturation]],TAB_MEP[[#This Row],[Date de MEP prévisionnelle]]<>\"pas de date\")),1,0)","v":0},{"$f":"IF(AND(TAB_MEP[[#This Row],[1ere formation / facturation]]=\"-\",TAB_MEP[[#This Row],[Date de MEP prévisionnelle]]<TODAY()),1,0)","v":0},{"$f":"IF(TAB_MEP[[#This Row],[1ere formation / facturation]]<>\"-\",TAB_MEP[[#This Row],[1ere formation / facturation]],\"\")","v":"2021-01-01"}]
[129,"2020-01-20","2020-01-13",11,"-","2020-04-01",{"$f":"IF(OR(TAB_MEP[[#This Row],[Nb jour avt mep]]=\"-\",TAB_MEP[[#This Row],[Date lancement]]=\"-\"),\"pas de date\",TAB_MEP[[#This Row],[Date lancement]]+TAB_MEP[[#This Row],[Nb jour avt mep]])","v":"pas de date"},{"$f":"IF(OR(TAB_MEP[[#This Row],[1ere formation / facturation]]=\"-\",TAB_MEP[[#This Row],[1ere formation / facturation]]>=TODAY()),1,0)","v":0},{"$nulls":3},"SC","CF",0,{"$f":"IF(AND(AND(TAB_MEP[[#This Row],[1ere formation / facturation]]<>\"-\",TAB_MEP[[#This Row],[Date de MEP prévisionnelle]]<TAB_MEP[[#This Row],[1ere formation / facturation]],TAB_MEP[[#This Row],[Date de MEP prévisionnelle]]<>\"pas de date\")),1,0)","v":0},{"$f":"IF(AND(TAB_MEP[[#This Row],[1ere formation / facturation]]=\"-\",TAB_MEP[[#This Row],[Date de MEP prévisionnelle]]<TODAY()),1,0)","v":0},{"$f":"IF(TAB_MEP[[#This Row],[1ere formation / facturation]]<>\"-\",TAB_MEP[[#This Row],[1ere formation / facturation]],\"\")","v":"2020-04-01"}]
[130,"2023-07-12","2023-08-03",6,48,"2023-09-15",{"$f":"IF(OR(TAB_MEP[[#This Row],[Nb jour avt mep]]=\"-\",TAB_MEP[[#This Row],[Date lancement]]=\"-\"),\"pas de date\",TAB_MEP[[#This Row],[Date lancement]]+TAB_MEP[[#This Row],[Nb jour avt mep]])","v":"2023-09-20"},{"$f":"IF(OR(TAB_MEP[[#This Row],[1ere formation / facturation]]=\"-\",TAB_MEP[[#This Row],[1ere formation / facturation]]>=TODAY()),1,0)","v":0},"Septembre",null,"FR","SC","CF",1,{"$f":"IF(AND(AND(TAB_MEP[[#This Row],[1ere formation / facturation]]<>\"-\",TAB_MEP[[#This Row],[Date de MEP prévisionnelle]]<TAB_MEP[[#This Row],[1ere formation / facturation]],TAB_MEP[[#This Row],[Date de MEP prévisionnelle]]<>\"pas de date\")),1,0)","v":0},{"$f":"IF(AND(TAB_MEP[[#This Row],[1ere formation / facturation]]=\"-\",TAB_MEP[[#This Row],[Date de MEP prévisionnelle]]<TODAY()),1,0)","v":0},{"$f":"IF(TAB_MEP[[#This Row],[1ere formation / facturation]]<>\"-\",TAB_MEP[[#This Row],[1ere formation / facturation]],\"\")","v":"2023-09-15"}]
[131,"2023-03-30","2023-04-13",18,80,"2023-08-23",{"$f":"IF(OR(TAB_MEP[[#This Row],[Nb jour avt mep]]=\"-\",TAB_MEP[[#This Row],[Date lancement]]=\"-\"),\"pas de date\",TAB_MEP[[#This Row],[Date lancement]]+TAB_MEP[[#This Row],[Nb jour avt mep]])","v":"2023-07-02"},{"$f":"IF(OR(TAB_MEP[[#This Row],[1ere formation / facturation]]=\"-\",TAB_MEP[[#This Row],[1ere formation / facturation]]>=TODAY()),1,0)","v":0},null,null,"FR","SC","CF",1,{"$f":"IF(AND(AND(TAB_MEP[[#This Row],[1ere formation / facturation]]<>\"-\",TAB_MEP[[#This Row],[Date de MEP prévisionnelle]]<TAB_MEP[[#This Row],[1ere formation / facturation]],TAB_MEP[[#This Row],[Date de MEP prévisionnelle]]<>\"pas de date\")),1,0)","v":1},{"$f":"IF(AND(TAB_MEP[[#This Row],[1ere formation / facturation]]=\"-\",TAB_MEP[[#This Row],[Date de MEP prévisionnelle]]<TODAY()),1,0)","v":0},{"$f":"IF(TAB_MEP[[#This Row],[1ere formation / facturation]]<>\"-\",TAB_MEP[[#This Row],[1ere formation / facturation]],\"\")","v":"2023-08-23"}]
[132,"2021-07-25","2021-06-03",54,"-","2022-06-21",{"$f":"IF(OR(TAB_MEP[[#This Row],[Nb jour avt mep]]=\"-\",TAB_MEP[[#This Row],[Date lancement]]=\"-\"),\"pas de date\",TAB_MEP[[#This Row],[Date lancement]]+TAB_MEP[[#This Row],[Nb jour avt mep]])","v":"pas de date"},{"$f":"IF(OR(TAB_MEP[[#This Row],[1ere formation / facturation]]=\"-\",TAB_MEP[[#This Row],[1ere formation / facturation]]>=TODAY()),1,0)","v":0},null,null,"BE","Inter","CF",0,{"$f":"IF(AND(AND(TAB_MEP[[#This Row],[1ere formation / facturation]]<>\"-\",TAB_MEP[[#This Row],[Date de MEP prévisionnelle]]<TAB_MEP[[#This Row],[1ere formation / facturation]],TAB_MEP[[#This Row],[Date de MEP prévisionnelle]]<>\"pas de date\")),1,0)","v":0},{"$f":"IF(AND(TAB_MEP[[#This Row],[1ere formation / facturation]]=\"-\",TAB_MEP[[#This Row],[Date de MEP prévisionnelle]]<TODAY()),1,0)","v":0},{"$f":"IF(TAB_MEP[[#This Row],[1ere formation / facturation]]<>\"-\",TAB_MEP[[#This Row],[1ere formation / facturation]],\"\")","v":"2022-06-21"}]
[133,"2022-10-20","2022-11-08",12,"-","2023-01-31",{"$f":"IF(OR(TAB_MEP[[#This Row],[Nb jour avt mep]]=\"-\",TAB_MEP[[#This Row],[Date lancement]]=\"-\"),\"pas de date\",TAB_MEP[[#This Row],[Date lancement]]+TAB_MEP[[#This Row],[Nb jour avt mep]])","v":"pas de date"},{"$f":"IF(OR(TAB_MEP[[#This Row],[1ere formation / facturation]]=\"-\",TAB_MEP[[#This Row],[1ere formation / facturation]]>=TODAY()),1,0)","v":0},null,null,"FR","SC","CF",0,{"$f":"IF(AND(AND(TAB_MEP[[#This Row],[1ere formation / facturation]]<>\"-\",TAB_MEP[[#This Row],[Date de MEP prévisionnelle]]<TAB_MEP[[#This Row],[1ere formation / facturation]],TAB_MEP[[#This Row],[Date de MEP prévisionnelle]]<>\"pas de date\")),1,0)","v":0},{"$f":"IF(AND(TAB_MEP[[#This Row],[1ere formation / facturation]]=\"-\",TAB_MEP[[#This Row],[Date de MEP prévisionnelle]]<TODAY()),1,0)","v":0},{"$f":"IF(TAB_MEP[[#This Row],[1ere formation / facturation]]<>\"-\",TAB_MEP[[#This Row],[1ere formation / facturation]],\"\")","v":"2023-01-31"}]
[134,"2021-06-23","2021-07-05",29,"-","2022-01-24",{"$f":"IF(OR(TAB_MEP[[#This Row],[Nb jour avt mep]]=\"-\",TAB_MEP[[#This Row],[Date lancement]]=\"-\"),\"pas de date\",TAB_MEP[[#This Row],[Date lancement]]+TAB_MEP[[#This Row],[Nb jour avt mep]])","v":"pas de date"},{"$f":"IF(OR(TAB_MEP[[#This Row],[1ere formation / facturation]]=\"-\",TAB_MEP[[#This Row],[1ere formation / facturation]]>=TODAY()),1,0)","v":0},{"$nulls":3},"SC","CF",0,{"$f":"IF(AND(AND(TAB_MEP[[#This Row],[1ere formation / facturation]]<>\"-\",TAB_MEP[[#This Row],[Date de MEP prévisionnelle]]<TAB_MEP[[#This Row],[1ere formation / facturation]],TAB_MEP[[#This Row],[Date de MEP prévisionnelle]]<>\"pas de date\")),1,0)","v":0},{"$f":"IF(AND(TAB_MEP[[#This Row],[1ere formation / facturation]]=\"-\",TAB_MEP[[#This Row],[Date de MEP prévisionnelle]]<TODAY()),1,0)","v":0},{"$f":"IF(TAB_MEP[[#This Row],[1ere formation / facturation]]<>\"-\",TAB_MEP[[#This Row],[1ere formation / facturation]],\"\")","v":"2022-01-24"}]
[135,"2023-01-17","2023-03-14",11,110,"2023-05-30",{"$f":"IF(OR(TAB_MEP[[#This Row],[Nb jour avt mep]]=\"-\",TAB_MEP[[#This Row],[Date lancement]]=\"-\"),\"pas de date\",TAB_MEP[[#This Row],[Date lancement]]+TAB_MEP[[#This Row],[Nb jour avt mep]])","v":"2023-07-02"},{"$f":"IF(OR(TAB_MEP[[#This Row],[1ere formation / facturation]]=\"-\",TAB_MEP[[#This Row],[1ere formation / facturation]]>=TODAY()),1,0)","v":0},null,null,"FR","SC","CF",1,{"$f":"IF(AND(AND(TAB_MEP[[#This Row],[1ere formation / facturation]]<>\"-\",TAB_MEP[[#This Row],[Date de MEP prévisionnelle]]<TAB_MEP[[#This Row],[1ere formation / facturation]],TAB_MEP[[#This Row],[Date de MEP prévisionnelle]]<>\"pas de date\")),1,0)","v":0},{"$f":"IF(AND(TAB_MEP[[#This Row],[1ere formation / facturation]]=\"-\",TAB_MEP[[#This Row],[Date de MEP prévisionnelle]]<TODAY()),1,0)","v":0},{"$f":"IF(TAB_MEP[[#This Row],[1ere formation / facturation]]<>\"-\",TAB_MEP[[#This Row],[1ere formation / facturation]],\"\")","v":"2023-05-30"}]
[136,"2023-01-16","2023-01-26",{"$f":"IF(C137>TODAY(),\"0\",IF(F137=\"-\",INT(DATEDIF(C137,TODAY(),\"d\")/7),INT(DATEDIF(C137,F137,\"d\")/7)))","v":3},"-","2023-02-16",{"$f":"IF(OR(TAB_MEP[[#This Row],[Nb jour avt mep]]=\"-\",TAB_MEP[[#This Row],[Date lancement]]=\"-\"),\"pas de date\",TAB_MEP[[#This Row],[Date lancement]]+TAB_MEP[[#This Row],[Nb jour avt mep]])","v":"pas de date"},{"$f":"IF(OR(TAB_MEP[[#This Row],[1ere formation / facturation]]=\"-\",TAB_MEP[[#This Row],[1ere formation / facturation]]>=TODAY()),1,0)","v":0},null,null,"FR","SC","CF",0,{"$f":"IF(AND(AND(TAB_MEP[[#This Row],[1ere formation / facturation]]<>\"-\",TAB_MEP[[#This Row],[Date de MEP prévisionnelle]]<TAB_MEP[[#This Row],[1ere formation / facturation]],TAB_MEP[[#This Row],[Date de MEP prévisionnelle]]<>\"pas de date\")),1,0)","v":0},{"$f":"IF(AND(TAB_MEP[[#This Row],[1ere formation / facturation]]=\"-\",TAB_MEP[[#This Row],[Date de MEP prévisionnelle]]<TODAY()),1,0)","v":0},{"$f":"IF(TAB_MEP[[#This Row],[1ere formation / facturation]]<>\"-\",TAB_MEP[[#This Row],[1ere formation / facturation]],\"\")","v":"2023-02-16"}]
[137,"2022-07-05","2022-07-21",17,"-","2022-11-22",{"$f":"IF(OR(TAB_MEP[[#This Row],[Nb jour avt mep]]=\"-\",TAB_MEP[[#This Row],[Date lancement]]=\"-\"),\"pas de date\",TAB_MEP[[#This Row],[Date lancement]]+TAB_MEP[[#This Row],[Nb jour avt mep]])","v":"pas de date"},{"$f":"IF(OR(TAB_MEP[[#This Row],[1ere formation / facturation]]=\"-\",TAB_MEP[[#This Row],[1ere formation / facturation]]>=TODAY()),1,0)","v":0},null,null,"FR","SC","CF",0,{"$f":"IF(AND(AND(TAB_MEP[[#This Row],[1ere formation / facturation]]<>\"-\",TAB_MEP[[#This Row],[Date de MEP prévisionnelle]]<TAB_MEP[[#This Row],[1ere formation / facturation]],TAB_MEP[[#This Row],[Date de MEP prévisionnelle]]<>\"pas de date\")),1,0)","v":0},{"$f":"IF(AND(TAB_MEP[[#This Row],[1ere formation / facturation]]=\"-\",TAB_MEP[[#This Row],[Date de MEP prévisionnelle]]<TODAY()),1,0)","v":0},{"$f":"IF(TAB_MEP[[#This Row],[1ere formation / facturation]]<>\"-\",TAB_MEP[[#This Row],[1ere formation / facturation]],\"\")","v":"2022-11-22"}]
[138,"2022-04-22","2022-04-22",7,"-","2022-06-13",{"$f":"IF(OR(TAB_MEP[[#This Row],[Nb jour avt mep]]=\"-\",TAB_MEP[[#This Row],[Date lancement]]=\"-\"),\"pas de date\",TAB_MEP[[#This Row],[Date lancement]]+TAB_MEP[[#This Row],[Nb jour avt mep]])","v":"pas de date"},{"$f":"IF(OR(TAB_MEP[[#This Row],[1ere formation / facturation]]=\"-\",TAB_MEP[[#This Row],[1ere formation / facturation]]>=TODAY()),1,0)","v":0},{"$nulls":3},"Part","CF",0,{"$f":"IF(AND(AND(TAB_MEP[[#This Row],[1ere formation / facturation]]<>\"-\",TAB_MEP[[#This Row],[Date de MEP prévisionnelle]]<TAB_MEP[[#This Row],[1ere formation / facturation]],TAB_MEP[[#This Row],[Date de MEP prévisionnelle]]<>\"pas de date\")),1,0)","v":0},{"$f":"IF(AND(TAB_MEP[[#This Row],[1ere formation / facturation]]=\"-\",TAB_MEP[[#This Row],[Date de MEP prévisionnelle]]<TODAY()),1,0)","v":0},{"$f":"IF(TAB_MEP[[#This Row],[1ere formation / facturation]]<>\"-\",TAB_MEP[[#This Row],[1ere formation / facturation]],\"\")","v":"2022-06-13"}]
[139,"2023-04-12","2023-04-28",22,60,"2023-09-29",{"$f":"IF(OR(TAB_MEP[[#This Row],[Nb jour avt mep]]=\"-\",TAB_MEP[[#This Row],[Date lancement]]=\"-\"),\"pas de date\",TAB_MEP[[#This Row],[Date lancement]]+TAB_MEP[[#This Row],[Nb jour avt mep]])","v":"2023-06-27"},{"$f":"IF(OR(TAB_MEP[[#This Row],[1ere formation / facturation]]=\"-\",TAB_MEP[[#This Row],[1ere formation / facturation]]>=TODAY()),1,0)","v":0},"Septembre",null,"FR","SC","CF",1,{"$f":"IF(AND(AND(TAB_MEP[[#This Row],[1ere formation / facturation]]<>\"-\",TAB_MEP[[#This Row],[Date de MEP prévisionnelle]]<TAB_MEP[[#This Row],[1ere formation / facturation]],TAB_MEP[[#This Row],[Date de MEP prévisionnelle]]<>\"pas de date\")),1,0)","v":1},{"$f":"IF(AND(TAB_MEP[[#This Row],[1ere formation / facturation]]=\"-\",TAB_MEP[[#This Row],[Date de MEP prévisionnelle]]<TODAY()),1,0)","v":0},{"$f":"IF(TAB_MEP[[#This Row],[1ere formation / facturation]]<>\"-\",TAB_MEP[[#This Row],[1ere formation / facturation]],\"\")","v":"2023-09-29"}]
[140,"2022-03-09","2022-03-09",13,"-","2022-06-13",{"$f":"IF(OR(TAB_MEP[[#This Row],[Nb jour avt mep]]=\"-\",TAB_MEP[[#This Row],[Date lancement]]=\"-\"),\"pas de date\",TAB_MEP[[#This Row],[Date lancement]]+TAB_MEP[[#This Row],[Nb jour avt mep]])","v":"pas de date"},{"$f":"IF(OR(TAB_MEP[[#This Row],[1ere formation / facturation]]=\"-\",TAB_MEP[[#This Row],[1ere formation / facturation]]>=TODAY()),1,0)","v":0},{"$nulls":3},"Part","Cf",0,{"$f":"IF(AND(AND(TAB_MEP[[#This Row],[1ere formation / facturation]]<>\"-\",TAB_MEP[[#This Row],[Date de MEP prévisionnelle]]<TAB_MEP[[#This Row],[1ere formation / facturation]],TAB_MEP[[#This Row],[Date de MEP prévisionnelle]]<>\"pas de date\")),1,0)","v":0},{"$f":"IF(AND(TAB_MEP[[#This Row],[1ere formation / facturation]]=\"-\",TAB_MEP[[#This Row],[Date de MEP prévisionnelle]]<TODAY()),1,0)","v":0},{"$f":"IF(TAB_MEP[[#This Row],[1ere formation / facturation]]<>\"-\",TAB_MEP[[#This Row],[1ere formation / facturation]],\"\")","v":"2022-06-13"}]
[141,"2022-07-05","2022-07-05",16,"-","2022-10-28",{"$f":"IF(OR(TAB_MEP[[#This Row],[Nb jour avt mep]]=\"-\",TAB_MEP[[#This Row],[Date lancement]]=\"-\"),\"pas de date\",TAB_MEP[[#This Row],[Date lancement]]+TAB_MEP[[#This Row],[Nb jour avt mep]])","v":"pas de date"},{"$f":"IF(OR(TAB_MEP[[#This Row],[1ere formation / facturation]]=\"-\",TAB_MEP[[#This Row],[1ere formation / facturation]]>=TODAY()),1,0)","v":0},null,null,"FR","Part","CF",0,{"$f":"IF(AND(AND(TAB_MEP[[#This Row],[1ere formation / facturation]]<>\"-\",TAB_MEP[[#This Row],[Date de MEP prévisionnelle]]<TAB_MEP[[#This Row],[1ere formation / facturation]],TAB_MEP[[#This Row],[Date de MEP prévisionnelle]]<>\"pas de date\")),1,0)","v":0},{"$f":"IF(AND(TAB_MEP[[#This Row],[1ere formation / facturation]]=\"-\",TAB_MEP[[#This Row],[Date de MEP prévisionnelle]]<TODAY()),1,0)","v":0},{"$f":"IF(TAB_MEP[[#This Row],[1ere formation / facturation]]<>\"-\",TAB_MEP[[#This Row],[1ere formation / facturation]],\"\")","v":"2022-10-28"}]
[142,"2021-09-20","2021-09-20",8,"-","2021-11-16",{"$f":"IF(OR(TAB_MEP[[#This Row],[Nb jour avt mep]]=\"-\",TAB_MEP[[#This Row],[Date lancement]]=\"-\"),\"pas de date\",TAB_MEP[[#This Row],[Date lancement]]+TAB_MEP[[#This Row],[Nb jour avt mep]])","v":"pas de date"},{"$f":"IF(OR(TAB_MEP[[#This Row],[1ere formation / facturation]]=\"-\",TAB_MEP[[#This Row],[1ere formation / facturation]]>=TODAY()),1,0)","v":0},{"$nulls":3},"Part","CF",0,{"$f":"IF(AND(AND(TAB_MEP[[#This Row],[1ere formation / facturation]]<>\"-\",TAB_MEP[[#This Row],[Date de MEP prévisionnelle]]<TAB_MEP[[#This Row],[1ere formation / facturation]],TAB_MEP[[#This Row],[Date de MEP prévisionnelle]]<>\"pas de date\")),1,0)","v":0},{"$f":"IF(AND(TAB_MEP[[#This Row],[1ere formation / facturation]]=\"-\",TAB_MEP[[#This Row],[Date de MEP prévisionnelle]]<TODAY()),1,0)","v":0},{"$f":"IF(TAB_MEP[[#This Row],[1ere formation / facturation]]<>\"-\",TAB_MEP[[#This Row],[1ere formation / facturation]],\"\")","v":"2021-11-16"}]
[143,"2021-06-21","2021-07-02",19,"-","2021-11-17",{"$f":"IF(OR(TAB_MEP[[#This Row],[Nb jour avt mep]]=\"-\",TAB_MEP[[#This Row],[Date lancement]]=\"-\"),\"pas de date\",TAB_MEP[[#This Row],[Date lancement]]+TAB_MEP[[#This Row],[Nb jour avt mep]])","v":"pas de date"},{"$f":"IF(OR(TAB_MEP[[#This Row],[1ere formation / facturation]]=\"-\",TAB_MEP[[#This Row],[1ere formation / facturation]]>=TODAY()),1,0)","v":0},{"$nulls":3},"SC","CF",0,{"$f":"IF(AND(AND(TAB_MEP[[#This Row],[1ere formation / facturation]]<>\"-\",TAB_MEP[[#This Row],[Date de MEP prévisionnelle]]<TAB_MEP[[#This Row],[1ere formation / facturation]],TAB_MEP[[#This Row],[Date de MEP prévisionnelle]]<>\"pas de date\")),1,0)","v":0},{"$f":"IF(AND(TAB_MEP[[#This Row],[1ere formation / facturation]]=\"-\",TAB_MEP[[#This Row],[Date de MEP prévisionnelle]]<TODAY()),1,0)","v":0},{"$f":"IF(TAB_MEP[[#This Row],[1ere formation / facturation]]<>\"-\",TAB_MEP[[#This Row],[1ere formation / facturation]],\"\")","v":"2021-11-17"}]
[144,"2021-02-26","2021-02-26",8,"-","2021-04-29",{"$f":"IF(OR(TAB_MEP[[#This Row],[Nb jour avt mep]]=\"-\",TAB_MEP[[#This Row],[Date lancement]]=\"-\"),\"pas de date\",TAB_MEP[[#This Row],[Date lancement]]+TAB_MEP[[#This Row],[Nb jour avt mep]])","v":"pas de date"},{"$f":"IF(OR(TAB_MEP[[#This Row],[1ere formation / facturation]]=\"-\",TAB_MEP[[#This Row],[1ere formation / facturation]]>=TODAY()),1,0)","v":0},{"$nulls":3},"Part","CF",0,{"$f":"IF(AND(AND(TAB_MEP[[#This Row],[1ere formation / facturation]]<>\"-\",TAB_MEP[[#This Row],[Date de MEP prévisionnelle]]<TAB_MEP[[#This Row],[1ere formation / facturation]],TAB_MEP[[#This Row],[Date de MEP prévisionnelle]]<>\"pas de date\")),1,0)","v":0},{"$f":"IF(AND(TAB_MEP[[#This Row],[1ere formation / facturation]]=\"-\",TAB_MEP[[#This Row],[Date de MEP prévisionnelle]]<TODAY()),1,0)","v":0},{"$f":"IF(TAB_MEP[[#This Row],[1ere formation / facturation]]<>\"-\",TAB_MEP[[#This Row],[1ere formation / facturation]],\"\")","v":"2021-04-29"}]
[145,"2022-07-27","2022-08-04",10,"-","2022-10-13",{"$f":"IF(OR(TAB_MEP[[#This Row],[Nb jour avt mep]]=\"-\",TAB_MEP[[#This Row],[Date lancement]]=\"-\"),\"pas de date\",TAB_MEP[[#This Row],[Date lancement]]+TAB_MEP[[#This Row],[Nb jour avt mep]])","v":"pas de date"},{"$f":"IF(OR(TAB_MEP[[#This Row],[1ere formation / facturation]]=\"-\",TAB_MEP[[#This Row],[1ere formation / facturation]]>=TODAY()),1,0)","v":0},null,null,"FR","SC","CF",0,{"$f":"IF(AND(AND(TAB_MEP[[#This Row],[1ere formation / facturation]]<>\"-\",TAB_MEP[[#This Row],[Date de MEP prévisionnelle]]<TAB_MEP[[#This Row],[1ere formation / facturation]],TAB_MEP[[#This Row],[Date de MEP prévisionnelle]]<>\"pas de date\")),1,0)","v":0},{"$f":"IF(AND(TAB_MEP[[#This Row],[1ere formation / facturation]]=\"-\",TAB_MEP[[#This Row],[Date de MEP prévisionnelle]]<TODAY()),1,0)","v":0},{"$f":"IF(TAB_MEP[[#This Row],[1ere formation / facturation]]<>\"-\",TAB_MEP[[#This Row],[1ere formation / facturation]],\"\")","v":"2022-10-13"}]
[146,"2023-07-20","2023-07-20",13,92,"-",{"$f":"IF(OR(TAB_MEP[[#This Row],[Nb jour avt mep]]=\"-\",TAB_MEP[[#This Row],[Date lancement]]=\"-\"),\"pas de date\",TAB_MEP[[#This Row],[Date lancement]]+TAB_MEP[[#This Row],[Nb jour avt mep]])","v":"2023-10-20"},{"$f":"IF(OR(TAB_MEP[[#This Row],[1ere formation / facturation]]=\"-\",TAB_MEP[[#This Row],[1ere formation / facturation]]>=TODAY()),1,0)","v":1},"Novembre",null,"FR","SC","CF",1,{"$f":"IF(AND(AND(TAB_MEP[[#This Row],[1ere formation / facturation]]<>\"-\",TAB_MEP[[#This Row],[Date de MEP prévisionnelle]]<TAB_MEP[[#This Row],[1ere formation / facturation]],TAB_MEP[[#This Row],[Date de MEP prévisionnelle]]<>\"pas de date\")),1,0)","v":0},{"$f":"IF(AND(TAB_MEP[[#This Row],[1ere formation / facturation]]=\"-\",TAB_MEP[[#This Row],[Date de MEP prévisionnelle]]<TODAY()),1,0)","v":1},{"$f":"IF(TAB_MEP[[#This Row],[1ere formation / facturation]]<>\"-\",TAB_MEP[[#This Row],[1ere formation / facturation]],\"\")","v":""}]
[147,"2021-03-07","2021-03-19",10,"-","2021-06-03",{"$f":"IF(OR(TAB_MEP[[#This Row],[Nb jour avt mep]]=\"-\",TAB_MEP[[#This Row],[Date lancement]]=\"-\"),\"pas de date\",TAB_MEP[[#This Row],[Date lancement]]+TAB_MEP[[#This Row],[Nb jour avt mep]])","v":"pas de date"},{"$f":"IF(OR(TAB_MEP[[#This Row],[1ere formation / facturation]]=\"-\",TAB_MEP[[#This Row],[1ere formation / facturation]]>=TODAY()),1,0)","v":0},{"$nulls":3},"SC","CF",0,{"$f":"IF(AND(AND(TAB_MEP[[#This Row],[1ere formation / facturation]]<>\"-\",TAB_MEP[[#This Row],[Date de MEP prévisionnelle]]<TAB_MEP[[#This Row],[1ere formation / facturation]],TAB_MEP[[#This Row],[Date de MEP prévisionnelle]]<>\"pas de date\")),1,0)","v":0},{"$f":"IF(AND(TAB_MEP[[#This Row],[1ere formation / facturation]]=\"-\",TAB_MEP[[#This Row],[Date de MEP prévisionnelle]]<TODAY()),1,0)","v":0},{"$f":"IF(TAB_MEP[[#This Row],[1ere formation / facturation]]<>\"-\",TAB_MEP[[#This Row],[1ere formation / facturation]],\"\")","v":"2021-06-03"}]
[148,"2021-07-09","2021-09-15",16,"-","2022-01-06",{"$f":"IF(OR(TAB_MEP[[#This Row],[Nb jour avt mep]]=\"-\",TAB_MEP[[#This Row],[Date lancement]]=\"-\"),\"pas de date\",TAB_MEP[[#This Row],[Date lancement]]+TAB_MEP[[#This Row],[Nb jour avt mep]])","v":"pas de date"},{"$f":"IF(OR(TAB_MEP[[#This Row],[1ere formation / facturation]]=\"-\",TAB_MEP[[#This Row],[1ere formation / facturation]]>=TODAY()),1,0)","v":0},{"$nulls":3},"SC","CF",0,{"$f":"IF(AND(AND(TAB_MEP[[#This Row],[1ere formation / facturation]]<>\"-\",TAB_MEP[[#This Row],[Date de MEP prévisionnelle]]<TAB_MEP[[#This Row],[1ere formation / facturation]],TAB_MEP[[#This Row],[Date de MEP prévisionnelle]]<>\"pas de date\")),1,0)","v":0},{"$f":"IF(AND(TAB_MEP[[#This Row],[1ere formation / facturation]]=\"-\",TAB_MEP[[#This Row],[Date de MEP prévisionnelle]]<TODAY()),1,0)","v":0},{"$f":"IF(TAB_MEP[[#This Row],[1ere formation / facturation]]<>\"-\",TAB_MEP[[#This Row],[1ere formation / facturation]],\"\")","v":"2022-01-06"}]
[149,"2023-06-27","2023-06-27",12,"-","2023-09-19",{"$f":"IF(OR(TAB_MEP[[#This Row],[Nb jour avt mep]]=\"-\",TAB_MEP[[#This Row],[Date lancement]]=\"-\"),\"pas de date\",TAB_MEP[[#This Row],[Date lancement]]+TAB_MEP[[#This Row],[Nb jour avt mep]])","v":"pas de date"},{"$f":"IF(OR(TAB_MEP[[#This Row],[1ere formation / facturation]]=\"-\",TAB_MEP[[#This Row],[1ere formation / facturation]]>=TODAY()),1,0)","v":0},"Septembre",null,"FR","Part","CF",1,{"$f":"IF(AND(AND(TAB_MEP[[#This Row],[1ere formation / facturation]]<>\"-\",TAB_MEP[[#This Row],[Date de MEP prévisionnelle]]<TAB_MEP[[#This Row],[1ere formation / facturation]],TAB_MEP[[#This Row],[Date de MEP prévisionnelle]]<>\"pas de date\")),1,0)","v":0},{"$f":"IF(AND(TAB_MEP[[#This Row],[1ere formation / facturation]]=\"-\",TAB_MEP[[#This Row],[Date de MEP prévisionnelle]]<TODAY()),1,0)","v":0},{"$f":"IF(TAB_MEP[[#This Row],[1ere formation / facturation]]<>\"-\",TAB_MEP[[#This Row],[1ere formation / facturation]],\"\")","v":"2023-09-19"}]
[150,"2022-12-11","2023-01-23",15,91,"2023-05-12",{"$f":"IF(OR(TAB_MEP[[#This Row],[Nb jour avt mep]]=\"-\",TAB_MEP[[#This Row],[Date lancement]]=\"-\"),\"pas de date\",TAB_MEP[[#This Row],[Date lancement]]+TAB_MEP[[#This Row],[Nb jour avt mep]])","v":"2023-04-24"},{"$f":"IF(OR(TAB_MEP[[#This Row],[1ere formation / facturation]]=\"-\",TAB_MEP[[#This Row],[1ere formation / facturation]]>=TODAY()),1,0)","v":0},null,null,"FR","SC","CF",0,{"$f":"IF(AND(AND(TAB_MEP[[#This Row],[1ere formation / facturation]]<>\"-\",TAB_MEP[[#This Row],[Date de MEP prévisionnelle]]<TAB_MEP[[#This Row],[1ere formation / facturation]],TAB_MEP[[#This Row],[Date de MEP prévisionnelle]]<>\"pas de date\")),1,0)","v":1},{"$f":"IF(AND(TAB_MEP[[#This Row],[1ere formation / facturation]]=\"-\",TAB_MEP[[#This Row],[Date de MEP prévisionnelle]]<TODAY()),1,0)","v":0},{"$f":"IF(TAB_MEP[[#This Row],[1ere formation / facturation]]<>\"-\",TAB_MEP[[#This Row],[1ere formation / facturation]],\"\")","v":"2023-05-12"}]
[151,"2022-01-07","2022-02-16",12,"-","2022-05-16",{"$f":"IF(OR(TAB_MEP[[#This Row],[Nb jour avt mep]]=\"-\",TAB_MEP[[#This Row],[Date lancement]]=\"-\"),\"pas de date\",TAB_MEP[[#This Row],[Date lancement]]+TAB_MEP[[#This Row],[Nb jour avt mep]])","v":"pas de date"},{"$f":"IF(OR(TAB_MEP[[#This Row],[1ere formation / facturation]]=\"-\",TAB_MEP[[#This Row],[1ere formation / facturation]]>=TODAY()),1,0)","v":0},{"$nulls":3},"SC","CF",0,{"$f":"IF(AND(AND(TAB_MEP[[#This Row],[1ere formation / facturation]]<>\"-\",TAB_MEP[[#This Row],[Date de MEP prévisionnelle]]<TAB_MEP[[#This Row],[1ere formation / facturation]],TAB_MEP[[#This Row],[Date de MEP prévisionnelle]]<>\"pas de date\")),1,0)","v":0},{"$f":"IF(AND(TAB_MEP[[#This Row],[1ere formation / facturation]]=\"-\",TAB_MEP[[#This Row],[Date de MEP prévisionnelle]]<TODAY()),1,0)","v":0},{"$f":"IF(TAB_MEP[[#This Row],[1ere formation / facturation]]<>\"-\",TAB_MEP[[#This Row],[1ere formation / facturation]],\"\")","v":"2022-05-16"}]
[152,"2022-01-19","2022-01-10",9,"-","2022-03-18",{"$f":"IF(OR(TAB_MEP[[#This Row],[Nb jour avt mep]]=\"-\",TAB_MEP[[#This Row],[Date lancement]]=\"-\"),\"pas de date\",TAB_MEP[[#This Row],[Date lancement]]+TAB_MEP[[#This Row],[Nb jour avt mep]])","v":"pas de date"},{"$f":"IF(OR(TAB_MEP[[#This Row],[1ere formation / facturation]]=\"-\",TAB_MEP[[#This Row],[1ere formation / facturation]]>=TODAY()),1,0)","v":0},{"$nulls":3},"SC","CF",0,{"$f":"IF(AND(AND(TAB_MEP[[#This Row],[1ere formation / facturation]]<>\"-\",TAB_MEP[[#This Row],[Date de MEP prévisionnelle]]<TAB_MEP[[#This Row],[1ere formation / facturation]],TAB_MEP[[#This Row],[Date de MEP prévisionnelle]]<>\"pas de date\")),1,0)","v":0},{"$f":"IF(AND(TAB_MEP[[#This Row],[1ere formation / facturation]]=\"-\",TAB_MEP[[#This Row],[Date de MEP prévisionnelle]]<TODAY()),1,0)","v":0},{"$f":"IF(TAB_MEP[[#This Row],[1ere formation / facturation]]<>\"-\",TAB_MEP[[#This Row],[1ere formation / facturation]],\"\")","v":"2022-03-18"}]
[153,"2022-09-25","2022-10-10",9,"-","2022-12-16",{"$f":"IF(OR(TAB_MEP[[#This Row],[Nb jour avt mep]]=\"-\",TAB_MEP[[#This Row],[Date lancement]]=\"-\"),\"pas de date\",TAB_MEP[[#This Row],[Date lancement]]+TAB_MEP[[#This Row],[Nb jour avt mep]])","v":"pas de date"},{"$f":"IF(OR(TAB_MEP[[#This Row],[1ere formation / facturation]]=\"-\",TAB_MEP[[#This Row],[1ere formation / facturation]]>=TODAY()),1,0)","v":0},null,null,"FR","SC","FF",0,{"$f":"IF(AND(AND(TAB_MEP[[#This Row],[1ere formation / facturation]]<>\"-\",TAB_MEP[[#This Row],[Date de MEP prévisionnelle]]<TAB_MEP[[#This Row],[1ere formation / facturation]],TAB_MEP[[#This Row],[Date de MEP prévisionnelle]]<>\"pas de date\")),1,0)","v":0},{"$f":"IF(AND(TAB_MEP[[#This Row],[1ere formation / facturation]]=\"-\",TAB_MEP[[#This Row],[Date de MEP prévisionnelle]]<TODAY()),1,0)","v":0},{"$f":"IF(TAB_MEP[[#This Row],[1ere formation / facturation]]<>\"-\",TAB_MEP[[#This Row],[1ere formation / facturation]],\"\")","v":"2022-12-16"}]
[154,"2022-05-09","2022-05-09",7,"-","2022-06-28",{"$f":"IF(OR(TAB_MEP[[#This Row],[Nb jour avt mep]]=\"-\",TAB_MEP[[#This Row],[Date lancement]]=\"-\"),\"pas de date\",TAB_MEP[[#This Row],[Date lancement]]+TAB_MEP[[#This Row],[Nb jour avt mep]])","v":"pas de date"},{"$f":"IF(OR(TAB_MEP[[#This Row],[1ere formation / facturation]]=\"-\",TAB_MEP[[#This Row],[1ere formation / facturation]]>=TODAY()),1,0)","v":0},{"$nulls":3},"Part","CF",0,{"$f":"IF(AND(AND(TAB_MEP[[#This Row],[1ere formation / facturation]]<>\"-\",TAB_MEP[[#This Row],[Date de MEP prévisionnelle]]<TAB_MEP[[#This Row],[1ere formation / facturation]],TAB_MEP[[#This Row],[Date de MEP prévisionnelle]]<>\"pas de date\")),1,0)","v":0},{"$f":"IF(AND(TAB_MEP[[#This Row],[1ere formation / facturation]]=\"-\",TAB_MEP[[#This Row],[Date de MEP prévisionnelle]]<TODAY()),1,0)","v":0},{"$f":"IF(TAB_MEP[[#This Row],[1ere formation / facturation]]<>\"-\",TAB_MEP[[#This Row],[1ere formation / facturation]],\"\")","v":"2022-06-28"}]
[155,"2021-04-16","2021-05-06",7,"-","2021-06-29",{"$f":"IF(OR(TAB_MEP[[#This Row],[Nb jour avt mep]]=\"-\",TAB_MEP[[#This Row],[Date lancement]]=\"-\"),\"pas de date\",TAB_MEP[[#This Row],[Date lancement]]+TAB_MEP[[#This Row],[Nb jour avt mep]])","v":"pas de date"},{"$f":"IF(OR(TAB_MEP[[#This Row],[1ere formation / facturation]]=\"-\",TAB_MEP[[#This Row],[1ere formation / facturation]]>=TODAY()),1,0)","v":0},{"$nulls":3},"SC","CF",0,{"$f":"IF(AND(AND(TAB_MEP[[#This Row],[1ere formation / facturation]]<>\"-\",TAB_MEP[[#This Row],[Date de MEP prévisionnelle]]<TAB_MEP[[#This Row],[1ere formation / facturation]],TAB_MEP[[#This Row],[Date de MEP prévisionnelle]]<>\"pas de date\")),1,0)","v":0},{"$f":"IF(AND(TAB_MEP[[#This Row],[1ere formation / facturation]]=\"-\",TAB_MEP[[#This Row],[Date de MEP prévisionnelle]]<TODAY()),1,0)","v":0},{"$f":"IF(TAB_MEP[[#This Row],[1ere formation / facturation]]<>\"-\",TAB_MEP[[#This Row],[1ere formation / facturation]],\"\")","v":"2021-06-29"}]
[156,"2023-08-23","2023-09-27",2,91,"2023-10-17",{"$f":"IF(OR(TAB_MEP[[#This Row],[Nb jour avt mep]]=\"-\",TAB_MEP[[#This Row],[Date lancement]]=\"-\"),\"pas de date\",TAB_MEP[[#This Row],[Date lancement]]+TAB_MEP[[#This Row],[Nb jour avt mep]])","v":"2023-12-27"},{"$f":"IF(OR(TAB_MEP[[#This Row],[1ere formation / facturation]]=\"-\",TAB_MEP[[#This Row],[1ere formation / facturation]]>=TODAY()),1,0)","v":0},"Octobre",null,"FR","SC","CF",1,{"$f":"IF(AND(AND(TAB_MEP[[#This Row],[1ere formation / facturation]]<>\"-\",TAB_MEP[[#This Row],[Date de MEP prévisionnelle]]<TAB_MEP[[#This Row],[1ere formation / facturation]],TAB_MEP[[#This Row],[Date de MEP prévisionnelle]]<>\"pas de date\")),1,0)","v":0},{"$f":"IF(AND(TAB_MEP[[#This Row],[1ere formation / facturation]]=\"-\",TAB_MEP[[#This Row],[Date de MEP prévisionnelle]]<TODAY()),1,0)","v":0},{"$f":"IF(TAB_MEP[[#This Row],[1ere formation / facturation]]<>\"-\",TAB_MEP[[#This Row],[1ere formation / facturation]],\"\")","v":"2023-10-17"}]
[157,"2023-06-22","2023-07-10",14,60,"2023-10-18",{"$f":"IF(OR(TAB_MEP[[#This Row],[Nb jour avt mep]]=\"-\",TAB_MEP[[#This Row],[Date lancement]]=\"-\"),\"pas de date\",TAB_MEP[[#This Row],[Date lancement]]+TAB_MEP[[#This Row],[Nb jour avt mep]])","v":"2023-09-08"},{"$f":"IF(OR(TAB_MEP[[#This Row],[1ere formation / facturation]]=\"-\",TAB_MEP[[#This Row],[1ere formation / facturation]]>=TODAY()),1,0)","v":0},"Octobre",null,"FR","SC","CF",1,{"$f":"IF(AND(AND(TAB_MEP[[#This Row],[1ere formation / facturation]]<>\"-\",TAB_MEP[[#This Row],[Date de MEP prévisionnelle]]<TAB_MEP[[#This Row],[1ere formation / facturation]],TAB_MEP[[#This Row],[Date de MEP prévisionnelle]]<>\"pas de date\")),1,0)","v":1},{"$f":"IF(AND(TAB_MEP[[#This Row],[1ere formation / facturation]]=\"-\",TAB_MEP[[#This Row],[Date de MEP prévisionnelle]]<TODAY()),1,0)","v":0},{"$f":"IF(TAB_MEP[[#This Row],[1ere formation / facturation]]<>\"-\",TAB_MEP[[#This Row],[1ere formation / facturation]],\"\")","v":"2023-10-18"}]
[158,"2022-03-25","2022-04-06",25,"-","2022-09-28",{"$f":"IF(OR(TAB_MEP[[#This Row],[Nb jour avt mep]]=\"-\",TAB_MEP[[#This Row],[Date lancement]]=\"-\"),\"pas de date\",TAB_MEP[[#This Row],[Date lancement]]+TAB_MEP[[#This Row],[Nb jour avt mep]])","v":"pas de date"},{"$f":"IF(OR(TAB_MEP[[#This Row],[1ere formation / facturation]]=\"-\",TAB_MEP[[#This Row],[1ere formation / facturation]]>=TODAY()),1,0)","v":0},null,null,"FR","SC","CF",0,{"$f":"IF(AND(AND(TAB_MEP[[#This Row],[1ere formation / facturation]]<>\"-\",TAB_MEP[[#This Row],[Date de MEP prévisionnelle]]<TAB_MEP[[#This Row],[1ere formation / facturation]],TAB_MEP[[#This Row],[Date de MEP prévisionnelle]]<>\"pas de date\")),1,0)","v":0},{"$f":"IF(AND(TAB_MEP[[#This Row],[1ere formation / facturation]]=\"-\",TAB_MEP[[#This Row],[Date de MEP prévisionnelle]]<TODAY()),1,0)","v":0},{"$f":"IF(TAB_MEP[[#This Row],[1ere formation / facturation]]<>\"-\",TAB_MEP[[#This Row],[1ere formation / facturation]],\"\")","v":"2022-09-28"}]
[159,"2023-09-13","2023-09-17",4,72,"2023-10-19",{"$f":"IF(OR(TAB_MEP[[#This Row],[Nb jour avt mep]]=\"-\",TAB_MEP[[#This Row],[Date lancement]]=\"-\"),\"pas de date\",TAB_MEP[[#This Row],[Date lancement]]+TAB_MEP[[#This Row],[Nb jour avt mep]])","v":"2023-11-28"},{"$f":"IF(OR(TAB_MEP[[#This Row],[1ere formation / facturation]]=\"-\",TAB_MEP[[#This Row],[1ere formation / facturation]]>=TODAY()),1,0)","v":0},"Octobre",null,"FR","SC","CF",1,{"$f":"IF(AND(AND(TAB_MEP[[#This Row],[1ere formation / facturation]]<>\"-\",TAB_MEP[[#This Row],[Date de MEP prévisionnelle]]<TAB_MEP[[#This Row],[1ere formation / facturation]],TAB_MEP[[#This Row],[Date de MEP prévisionnelle]]<>\"pas de date\")),1,0)","v":0},{"$f":"IF(AND(TAB_MEP[[#This Row],[1ere formation / facturation]]=\"-\",TAB_MEP[[#This Row],[Date de MEP prévisionnelle]]<TODAY()),1,0)","v":0},{"$f":"IF(TAB_MEP[[#This Row],[1ere formation / facturation]]<>\"-\",TAB_MEP[[#This Row],[1ere formation / facturation]],\"\")","v":"2023-10-19"}]
[160,"2021-03-15","2021-03-22",3,"-","2021-04-16",{"$f":"IF(OR(TAB_MEP[[#This Row],[Nb jour avt mep]]=\"-\",TAB_MEP[[#This Row],[Date lancement]]=\"-\"),\"pas de date\",TAB_MEP[[#This Row],[Date lancement]]+TAB_MEP[[#This Row],[Nb jour avt mep]])","v":"pas de date"},{"$f":"IF(OR(TAB_MEP[[#This Row],[1ere formation / facturation]]=\"-\",TAB_MEP[[#This Row],[1ere formation / facturation]]>=TODAY()),1,0)","v":0},{"$nulls":3},"SC","CF",0,{"$f":"IF(AND(AND(TAB_MEP[[#This Row],[1ere formation / facturation]]<>\"-\",TAB_MEP[[#This Row],[Date de MEP prévisionnelle]]<TAB_MEP[[#This Row],[1ere formation / facturation]],TAB_MEP[[#This Row],[Date de MEP prévisionnelle]]<>\"pas de date\")),1,0)","v":0},{"$f":"IF(AND(TAB_MEP[[#This Row],[1ere formation / facturation]]=\"-\",TAB_MEP[[#This Row],[Date de MEP prévisionnelle]]<TODAY()),1,0)","v":0},{"$f":"IF(TAB_MEP[[#This Row],[1ere formation / facturation]]<>\"-\",TAB_MEP[[#This Row],[1ere formation / facturation]],\"\")","v":"2021-04-16"}]
[161,"2021-06-17","2021-06-28",46,"-","2022-05-20",{"$f":"IF(OR(TAB_MEP[[#This Row],[Nb jour avt mep]]=\"-\",TAB_MEP[[#This Row],[Date lancement]]=\"-\"),\"pas de date\",TAB_MEP[[#This Row],[Date lancement]]+TAB_MEP[[#This Row],[Nb jour avt mep]])","v":"pas de date"},{"$f":"IF(OR(TAB_MEP[[#This Row],[1ere formation / facturation]]=\"-\",TAB_MEP[[#This Row],[1ere formation / facturation]]>=TODAY()),1,0)","v":0},{"$nulls":3},"SC","CF",0,{"$f":"IF(AND(AND(TAB_MEP[[#This Row],[1ere formation / facturation]]<>\"-\",TAB_MEP[[#This Row],[Date de MEP prévisionnelle]]<TAB_MEP[[#This Row],[1ere formation / facturation]],TAB_MEP[[#This Row],[Date de MEP prévisionnelle]]<>\"pas de date\")),1,0)","v":0},{"$f":"IF(AND(TAB_MEP[[#This Row],[1ere formation / facturation]]=\"-\",TAB_MEP[[#This Row],[Date de MEP prévisionnelle]]<TODAY()),1,0)","v":0},{"$f":"IF(TAB_MEP[[#This Row],[1ere formation / facturation]]<>\"-\",TAB_MEP[[#This Row],[1ere formation / facturation]],\"\")","v":"2022-05-20"}]
[162,"2022-07-27","2022-09-08",15,"-","2022-12-23",{"$f":"IF(OR(TAB_MEP[[#This Row],[Nb jour avt mep]]=\"-\",TAB_MEP[[#This Row],[Date lancement]]=\"-\"),\"pas de date\",TAB_MEP[[#This Row],[Date lancement]]+TAB_MEP[[#This Row],[Nb jour avt mep]])","v":"pas de date"},{"$f":"IF(OR(TAB_MEP[[#This Row],[1ere formation / facturation]]=\"-\",TAB_MEP[[#This Row],[1ere formation / facturation]]>=TODAY()),1,0)","v":0},null,null,"FR","SC","CF",0,{"$f":"IF(AND(AND(TAB_MEP[[#This Row],[1ere formation / facturation]]<>\"-\",TAB_MEP[[#This Row],[Date de MEP prévisionnelle]]<TAB_MEP[[#This Row],[1ere formation / facturation]],TAB_MEP[[#This Row],[Date de MEP prévisionnelle]]<>\"pas de date\")),1,0)","v":0},{"$f":"IF(AND(TAB_MEP[[#This Row],[1ere formation / facturation]]=\"-\",TAB_MEP[[#This Row],[Date de MEP prévisionnelle]]<TODAY()),1,0)","v":0},{"$f":"IF(TAB_MEP[[#This Row],[1ere formation / facturation]]<>\"-\",TAB_MEP[[#This Row],[1ere formation / facturation]],\"\")","v":"2022-12-23"}]
[163,"2022-01-03","2022-02-02",18,"-","2022-06-09",{"$f":"IF(OR(TAB_MEP[[#This Row],[Nb jour avt mep]]=\"-\",TAB_MEP[[#This Row],[Date lancement]]=\"-\"),\"pas de date\",TAB_MEP[[#This Row],[Date lancement]]+TAB_MEP[[#This Row],[Nb jour avt mep]])","v":"pas de date"},{"$f":"IF(OR(TAB_MEP[[#This Row],[1ere formation / facturation]]=\"-\",TAB_MEP[[#This Row],[1ere formation / facturation]]>=TODAY()),1,0)","v":0},{"$nulls":3},"SC","CF",0,{"$f":"IF(AND(AND(TAB_MEP[[#This Row],[1ere formation / facturation]]<>\"-\",TAB_MEP[[#This Row],[Date de MEP prévisionnelle]]<TAB_MEP[[#This Row],[1ere formation / facturation]],TAB_MEP[[#This Row],[Date de MEP prévisionnelle]]<>\"pas de date\")),1,0)","v":0},{"$f":"IF(AND(TAB_MEP[[#This Row],[1ere formation / facturation]]=\"-\",TAB_MEP[[#This Row],[Date de MEP prévisionnelle]]<TODAY()),1,0)","v":0},{"$f":"IF(TAB_MEP[[#This Row],[1ere formation / facturation]]<>\"-\",TAB_MEP[[#This Row],[1ere formation / facturation]],\"\")","v":"2022-06-09"}]
[164,"2021-04-07","2021-04-22",14,"-","2021-07-29",{"$f":"IF(OR(TAB_MEP[[#This Row],[Nb jour avt mep]]=\"-\",TAB_MEP[[#This Row],[Date lancement]]=\"-\"),\"pas de date\",TAB_MEP[[#This Row],[Date lancement]]+TAB_MEP[[#This Row],[Nb jour avt mep]])","v":"pas de date"},{"$f":"IF(OR(TAB_MEP[[#This Row],[1ere formation / facturation]]=\"-\",TAB_MEP[[#This Row],[1ere formation / facturation]]>=TODAY()),1,0)","v":0},{"$nulls":3},"SC","CF",0,{"$f":"IF(AND(AND(TAB_MEP[[#This Row],[1ere formation / facturation]]<>\"-\",TAB_MEP[[#This Row],[Date de MEP prévisionnelle]]<TAB_MEP[[#This Row],[1ere formation / facturation]],TAB_MEP[[#This Row],[Date de MEP prévisionnelle]]<>\"pas de date\")),1,0)","v":0},{"$f":"IF(AND(TAB_MEP[[#This Row],[1ere formation / facturation]]=\"-\",TAB_MEP[[#This Row],[Date de MEP prévisionnelle]]<TODAY()),1,0)","v":0},{"$f":"IF(TAB_MEP[[#This Row],[1ere formation / facturation]]<>\"-\",TAB_MEP[[#This Row],[1ere formation / facturation]],\"\")","v":"2021-07-29"}]
[165,"2023-06-20","2023-07-06",10,100,"2023-09-19",{"$f":"IF(OR(TAB_MEP[[#This Row],[Nb jour avt mep]]=\"-\",TAB_MEP[[#This Row],[Date lancement]]=\"-\"),\"pas de date\",TAB_MEP[[#This Row],[Date lancement]]+TAB_MEP[[#This Row],[Nb jour avt mep]])","v":"2023-10-14"},{"$f":"IF(OR(TAB_MEP[[#This Row],[1ere formation / facturation]]=\"-\",TAB_MEP[[#This Row],[1ere formation / facturation]]>=TODAY()),1,0)","v":0},"Septembre",null,"DOM","SC","CF",1,{"$f":"IF(AND(AND(TAB_MEP[[#This Row],[1ere formation / facturation]]<>\"-\",TAB_MEP[[#This Row],[Date de MEP prévisionnelle]]<TAB_MEP[[#This Row],[1ere formation / facturation]],TAB_MEP[[#This Row],[Date de MEP prévisionnelle]]<>\"pas de date\")),1,0)","v":0},{"$f":"IF(AND(TAB_MEP[[#This Row],[1ere formation / facturation]]=\"-\",TAB_MEP[[#This Row],[Date de MEP prévisionnelle]]<TODAY()),1,0)","v":0},{"$f":"IF(TAB_MEP[[#This Row],[1ere formation / facturation]]<>\"-\",TAB_MEP[[#This Row],[1ere formation / facturation]],\"\")","v":"2023-09-19"}]
[166,"2022-03-29","2022-04-07",8,"-","2022-06-07",{"$f":"IF(OR(TAB_MEP[[#This Row],[Nb jour avt mep]]=\"-\",TAB_MEP[[#This Row],[Date lancement]]=\"-\"),\"pas de date\",TAB_MEP[[#This Row],[Date lancement]]+TAB_MEP[[#This Row],[Nb jour avt mep]])","v":"pas de date"},{"$f":"IF(OR(TAB_MEP[[#This Row],[1ere formation / facturation]]=\"-\",TAB_MEP[[#This Row],[1ere formation / facturation]]>=TODAY()),1,0)","v":0},{"$nulls":3},"SC","CF",0,{"$f":"IF(AND(AND(TAB_MEP[[#This Row],[1ere formation / facturation]]<>\"-\",TAB_MEP[[#This Row],[Date de MEP prévisionnelle]]<TAB_MEP[[#This Row],[1ere formation / facturation]],TAB_MEP[[#This Row],[Date de MEP prévisionnelle]]<>\"pas de date\")),1,0)","v":0},{"$f":"IF(AND(TAB_MEP[[#This Row],[1ere formation / facturation]]=\"-\",TAB_MEP[[#This Row],[Date de MEP prévisionnelle]]<TODAY()),1,0)","v":0},{"$f":"IF(TAB_MEP[[#This Row],[1ere formation / facturation]]<>\"-\",TAB_MEP[[#This Row],[1ere formation / facturation]],\"\")","v":"2022-06-07"}]
[167,"2022-04-12","2022-04-05",24,"-","2022-09-21",{"$f":"IF(OR(TAB_MEP[[#This Row],[Nb jour avt mep]]=\"-\",TAB_MEP[[#This Row],[Date lancement]]=\"-\"),\"pas de date\",TAB_MEP[[#This Row],[Date lancement]]+TAB_MEP[[#This Row],[Nb jour avt mep]])","v":"pas de date"},{"$f":"IF(OR(TAB_MEP[[#This Row],[1ere formation / facturation]]=\"-\",TAB_MEP[[#This Row],[1ere formation / facturation]]>=TODAY()),1,0)","v":0},null,null,"FR","SC","CF",0,{"$f":"IF(AND(AND(TAB_MEP[[#This Row],[1ere formation / facturation]]<>\"-\",TAB_MEP[[#This Row],[Date de MEP prévisionnelle]]<TAB_MEP[[#This Row],[1ere formation / facturation]],TAB_MEP[[#This Row],[Date de MEP prévisionnelle]]<>\"pas de date\")),1,0)","v":0},{"$f":"IF(AND(TAB_MEP[[#This Row],[1ere formation / facturation]]=\"-\",TAB_MEP[[#This Row],[Date de MEP prévisionnelle]]<TODAY()),1,0)","v":0},{"$f":"IF(TAB_MEP[[#This Row],[1ere formation / facturation]]<>\"-\",TAB_MEP[[#This Row],[1ere formation / facturation]],\"\")","v":"2022-09-21"}]
[168,"2021-03-24","2021-04-08",11,"-","2021-06-29",{"$f":"IF(OR(TAB_MEP[[#This Row],[Nb jour avt mep]]=\"-\",TAB_MEP[[#This Row],[Date lancement]]=\"-\"),\"pas de date\",TAB_MEP[[#This Row],[Date lancement]]+TAB_MEP[[#This Row],[Nb jour avt mep]])","v":"pas de date"},{"$f":"IF(OR(TAB_MEP[[#This Row],[1ere formation / facturation]]=\"-\",TAB_MEP[[#This Row],[1ere formation / facturation]]>=TODAY()),1,0)","v":0},{"$nulls":3},"SC","CF",0,{"$f":"IF(AND(AND(TAB_MEP[[#This Row],[1ere formation / facturation]]<>\"-\",TAB_MEP[[#This Row],[Date de MEP prévisionnelle]]<TAB_MEP[[#This Row],[1ere formation / facturation]],TAB_MEP[[#This Row],[Date de MEP prévisionnelle]]<>\"pas de date\")),1,0)","v":0},{"$f":"IF(AND(TAB_MEP[[#This Row],[1ere formation / facturation]]=\"-\",TAB_MEP[[#This Row],[Date de MEP prévisionnelle]]<TODAY()),1,0)","v":0},{"$f":"IF(TAB_MEP[[#This Row],[1ere formation / facturation]]<>\"-\",TAB_MEP[[#This Row],[1ere formation / facturation]],\"\")","v":"2021-06-29"}]
[169,"2022-11-15","2022-12-01",30,129,"2023-06-29",{"$f":"IF(OR(TAB_MEP[[#This Row],[Nb jour avt mep]]=\"-\",TAB_MEP[[#This Row],[Date lancement]]=\"-\"),\"pas de date\",TAB_MEP[[#This Row],[Date lancement]]+TAB_MEP[[#This Row],[Nb jour avt mep]])","v":"2023-04-09"},{"$f":"IF(OR(TAB_MEP[[#This Row],[1ere formation / facturation]]=\"-\",TAB_MEP[[#This Row],[1ere formation / facturation]]>=TODAY()),1,0)","v":0},null,null,"FR","SC","CF",1,{"$f":"IF(AND(AND(TAB_MEP[[#This Row],[1ere formation / facturation]]<>\"-\",TAB_MEP[[#This Row],[Date de MEP prévisionnelle]]<TAB_MEP[[#This Row],[1ere formation / facturation]],TAB_MEP[[#This Row],[Date de MEP prévisionnelle]]<>\"pas de date\")),1,0)","v":1},{"$f":"IF(AND(TAB_MEP[[#This Row],[1ere formation / facturation]]=\"-\",TAB_MEP[[#This Row],[Date de MEP prévisionnelle]]<TODAY()),1,0)","v":0},{"$f":"IF(TAB_MEP[[#This Row],[1ere formation / facturation]]<>\"-\",TAB_MEP[[#This Row],[1ere formation / facturation]],\"\")","v":"2023-06-29"}]
[170,"2023-07-11","2023-07-25",12,116,"2023-10-23",{"$f":"IF(OR(TAB_MEP[[#This Row],[Nb jour avt mep]]=\"-\",TAB_MEP[[#This Row],[Date lancement]]=\"-\"),\"pas de date\",TAB_MEP[[#This Row],[Date lancement]]+TAB_MEP[[#This Row],[Nb jour avt mep]])","v":"2023-11-18"},{"$f":"IF(OR(TAB_MEP[[#This Row],[1ere formation / facturation]]=\"-\",TAB_MEP[[#This Row],[1ere formation / facturation]]>=TODAY()),1,0)","v":0},"Octobre",null,"FR","SC","CF",1,{"$f":"IF(AND(AND(TAB_MEP[[#This Row],[1ere formation / facturation]]<>\"-\",TAB_MEP[[#This Row],[Date de MEP prévisionnelle]]<TAB_MEP[[#This Row],[1ere formation / facturation]],TAB_MEP[[#This Row],[Date de MEP prévisionnelle]]<>\"pas de date\")),1,0)","v":0},{"$f":"IF(AND(TAB_MEP[[#This Row],[1ere formation / facturation]]=\"-\",TAB_MEP[[#This Row],[Date de MEP prévisionnelle]]<TODAY()),1,0)","v":0},{"$f":"IF(TAB_MEP[[#This Row],[1ere formation / facturation]]<>\"-\",TAB_MEP[[#This Row],[1ere formation / facturation]],\"\")","v":"2023-10-23"}]
[171,"2022-06-21","2022-06-21",3,"-","2022-07-15",{"$f":"IF(OR(TAB_MEP[[#This Row],[Nb jour avt mep]]=\"-\",TAB_MEP[[#This Row],[Date lancement]]=\"-\"),\"pas de date\",TAB_MEP[[#This Row],[Date lancement]]+TAB_MEP[[#This Row],[Nb jour avt mep]])","v":"pas de date"},{"$f":"IF(OR(TAB_MEP[[#This Row],[1ere formation / facturation]]=\"-\",TAB_MEP[[#This Row],[1ere formation / facturation]]>=TODAY()),1,0)","v":0},{"$nulls":3},"Part","CF",0,{"$f":"IF(AND(AND(TAB_MEP[[#This Row],[1ere formation / facturation]]<>\"-\",TAB_MEP[[#This Row],[Date de MEP prévisionnelle]]<TAB_MEP[[#This Row],[1ere formation / facturation]],TAB_MEP[[#This Row],[Date de MEP prévisionnelle]]<>\"pas de date\")),1,0)","v":0},{"$f":"IF(AND(TAB_MEP[[#This Row],[1ere formation / facturation]]=\"-\",TAB_MEP[[#This Row],[Date de MEP prévisionnelle]]<TODAY()),1,0)","v":0},{"$f":"IF(TAB_MEP[[#This Row],[1ere formation / facturation]]<>\"-\",TAB_MEP[[#This Row],[1ere formation / facturation]],\"\")","v":"2022-07-15"}]
[172,"2021-01-20","2021-02-01",9,"-","2021-04-07",{"$f":"IF(OR(TAB_MEP[[#This Row],[Nb jour avt mep]]=\"-\",TAB_MEP[[#This Row],[Date lancement]]=\"-\"),\"pas de date\",TAB_MEP[[#This Row],[Date lancement]]+TAB_MEP[[#This Row],[Nb jour avt mep]])","v":"pas de date"},{"$f":"IF(OR(TAB_MEP[[#This Row],[1ere formation / facturation]]=\"-\",TAB_MEP[[#This Row],[1ere formation / facturation]]>=TODAY()),1,0)","v":0},{"$nulls":3},"SC","CF",0,{"$f":"IF(AND(AND(TAB_MEP[[#This Row],[1ere formation / facturation]]<>\"-\",TAB_MEP[[#This Row],[Date de MEP prévisionnelle]]<TAB_MEP[[#This Row],[1ere formation / facturation]],TAB_MEP[[#This Row],[Date de MEP prévisionnelle]]<>\"pas de date\")),1,0)","v":0},{"$f":"IF(AND(TAB_MEP[[#This Row],[1ere formation / facturation]]=\"-\",TAB_MEP[[#This Row],[Date de MEP prévisionnelle]]<TODAY()),1,0)","v":0},{"$f":"IF(TAB_MEP[[#This Row],[1ere formation / facturation]]<>\"-\",TAB_MEP[[#This Row],[1ere formation / facturation]],\"\")","v":"2021-04-07"}]
[173,"2021-07-28","2021-09-16",15,"-","2022-01-04",{"$f":"IF(OR(TAB_MEP[[#This Row],[Nb jour avt mep]]=\"-\",TAB_MEP[[#This Row],[Date lancement]]=\"-\"),\"pas de date\",TAB_MEP[[#This Row],[Date lancement]]+TAB_MEP[[#This Row],[Nb jour avt mep]])","v":"pas de date"},{"$f":"IF(OR(TAB_MEP[[#This Row],[1ere formation / facturation]]=\"-\",TAB_MEP[[#This Row],[1ere formation / facturation]]>=TODAY()),1,0)","v":0},{"$nulls":3},"SC","CF",0,{"$f":"IF(AND(AND(TAB_MEP[[#This Row],[1ere formation / facturation]]<>\"-\",TAB_MEP[[#This Row],[Date de MEP prévisionnelle]]<TAB_MEP[[#This Row],[1ere formation / facturation]],TAB_MEP[[#This Row],[Date de MEP prévisionnelle]]<>\"pas de date\")),1,0)","v":0},{"$f":"IF(AND(TAB_MEP[[#This Row],[1ere formation / facturation]]=\"-\",TAB_MEP[[#This Row],[Date de MEP prévisionnelle]]<TODAY()),1,0)","v":0},{"$f":"IF(TAB_MEP[[#This Row],[1ere formation / facturation]]<>\"-\",TAB_MEP[[#This Row],[1ere formation / facturation]],\"\")","v":"2022-01-04"}]
[174,"2021-12-16","2022-01-06",8,"-","2022-03-03",{"$f":"IF(OR(TAB_MEP[[#This Row],[Nb jour avt mep]]=\"-\",TAB_MEP[[#This Row],[Date lancement]]=\"-\"),\"pas de date\",TAB_MEP[[#This Row],[Date lancement]]+TAB_MEP[[#This Row],[Nb jour avt mep]])","v":"pas de date"},{"$f":"IF(OR(TAB_MEP[[#This Row],[1ere formation / facturation]]=\"-\",TAB_MEP[[#This Row],[1ere formation / facturation]]>=TODAY()),1,0)","v":0},{"$nulls":3},"SC","CF",0,{"$f":"IF(AND(AND(TAB_MEP[[#This Row],[1ere formation / facturation]]<>\"-\",TAB_MEP[[#This Row],[Date de MEP prévisionnelle]]<TAB_MEP[[#This Row],[1ere formation / facturation]],TAB_MEP[[#This Row],[Date de MEP prévisionnelle]]<>\"pas de date\")),1,0)","v":0},{"$f":"IF(AND(TAB_MEP[[#This Row],[1ere formation / facturation]]=\"-\",TAB_MEP[[#This Row],[Date de MEP prévisionnelle]]<TODAY()),1,0)","v":0},{"$f":"IF(TAB_MEP[[#This Row],[1ere formation / facturation]]<>\"-\",TAB_MEP[[#This Row],[1ere formation / facturation]],\"\")","v":"2022-03-03"}]
[175,"2020-03-24","2020-05-15",64,"-","2021-08-06",{"$f":"IF(OR(TAB_MEP[[#This Row],[Nb jour avt mep]]=\"-\",TAB_MEP[[#This Row],[Date lancement]]=\"-\"),\"pas de date\",TAB_MEP[[#This Row],[Date lancement]]+TAB_MEP[[#This Row],[Nb jour avt mep]])","v":"pas de date"},{"$f":"IF(OR(TAB_MEP[[#This Row],[1ere formation / facturation]]=\"-\",TAB_MEP[[#This Row],[1ere formation / facturation]]>=TODAY()),1,0)","v":0},{"$nulls":3},"SC","CF",0,{"$f":"IF(AND(AND(TAB_MEP[[#This Row],[1ere formation / facturation]]<>\"-\",TAB_MEP[[#This Row],[Date de MEP prévisionnelle]]<TAB_MEP[[#This Row],[1ere formation / facturation]],TAB_MEP[[#This Row],[Date de MEP prévisionnelle]]<>\"pas de date\")),1,0)","v":0},{"$f":"IF(AND(TAB_MEP[[#This Row],[1ere formation / facturation]]=\"-\",TAB_MEP[[#This Row],[Date de MEP prévisionnelle]]<TODAY()),1,0)","v":0},{"$f":"IF(TAB_MEP[[#This Row],[1ere formation / facturation]]<>\"-\",TAB_MEP[[#This Row],[1ere formation / facturation]],\"\")","v":"2021-08-06"}]
[176,"2023-07-12","2023-07-27",12,116,"-",{"$f":"IF(OR(TAB_MEP[[#This Row],[Nb jour avt mep]]=\"-\",TAB_MEP[[#This Row],[Date lancement]]=\"-\"),\"pas de date\",TAB_MEP[[#This Row],[Date lancement]]+TAB_MEP[[#This Row],[Nb jour avt mep]])","v":"2023-11-20"},{"$f":"IF(OR(TAB_MEP[[#This Row],[1ere formation / facturation]]=\"-\",TAB_MEP[[#This Row],[1ere formation / facturation]]>=TODAY()),1,0)","v":1},null,null,"FR","SC","CF",1,{"$f":"IF(AND(AND(TAB_MEP[[#This Row],[1ere formation / facturation]]<>\"-\",TAB_MEP[[#This Row],[Date de MEP prévisionnelle]]<TAB_MEP[[#This Row],[1ere formation / facturation]],TAB_MEP[[#This Row],[Date de MEP prévisionnelle]]<>\"pas de date\")),1,0)","v":0},{"$f":"IF(AND(TAB_MEP[[#This Row],[1ere formation / facturation]]=\"-\",TAB_MEP[[#This Row],[Date de MEP prévisionnelle]]<TODAY()),1,0)","v":0},{"$f":"IF(TAB_MEP[[#This Row],[1ere formation / facturation]]<>\"-\",TAB_MEP[[#This Row],[1ere formation / facturation]],\"\")","v":""}]
[177,"2022-10-13","2022-11-16",9,"-","2023-01-24",{"$f":"IF(OR(TAB_MEP[[#This Row],[Nb jour avt mep]]=\"-\",TAB_MEP[[#This Row],[Date lancement]]=\"-\"),\"pas de date\",TAB_MEP[[#This Row],[Date lancement]]+TAB_MEP[[#This Row],[Nb jour avt mep]])","v":"pas de date"},{"$f":"IF(OR(TAB_MEP[[#This Row],[1ere formation / facturation]]=\"-\",TAB_MEP[[#This Row],[1ere formation / facturation]]>=TODAY()),1,0)","v":0},null,null,"FR","SC","CF",0,{"$f":"IF(AND(AND(TAB_MEP[[#This Row],[1ere formation / facturation]]<>\"-\",TAB_MEP[[#This Row],[Date de MEP prévisionnelle]]<TAB_MEP[[#This Row],[1ere formation / facturation]],TAB_MEP[[#This Row],[Date de MEP prévisionnelle]]<>\"pas de date\")),1,0)","v":0},{"$f":"IF(AND(TAB_MEP[[#This Row],[1ere formation / facturation]]=\"-\",TAB_MEP[[#This Row],[Date de MEP prévisionnelle]]<TODAY()),1,0)","v":0},{"$f":"IF(TAB_MEP[[#This Row],[1ere formation / facturation]]<>\"-\",TAB_MEP[[#This Row],[1ere formation / facturation]],\"\")","v":"2023-01-24"}]
[178,"2022-06-29","2022-07-12",14,"-","2022-10-18",{"$f":"IF(OR(TAB_MEP[[#This Row],[Nb jour avt mep]]=\"-\",TAB_MEP[[#This Row],[Date lancement]]=\"-\"),\"pas de date\",TAB_MEP[[#This Row],[Date lancement]]+TAB_MEP[[#This Row],[Nb jour avt mep]])","v":"pas de date"},{"$f":"IF(OR(TAB_MEP[[#This Row],[1ere formation / facturation]]=\"-\",TAB_MEP[[#This Row],[1ere formation / facturation]]>=TODAY()),1,0)","v":0},null,null,"FR","SC","CF",0,{"$f":"IF(AND(AND(TAB_MEP[[#This Row],[1ere formation / facturation]]<>\"-\",TAB_MEP[[#This Row],[Date de MEP prévisionnelle]]<TAB_MEP[[#This Row],[1ere formation / facturation]],TAB_MEP[[#This Row],[Date de MEP prévisionnelle]]<>\"pas de date\")),1,0)","v":0},{"$f":"IF(AND(TAB_MEP[[#This Row],[1ere formation / facturation]]=\"-\",TAB_MEP[[#This Row],[Date de MEP prévisionnelle]]<TODAY()),1,0)","v":0},{"$f":"IF(TAB_MEP[[#This Row],[1ere formation / facturation]]<>\"-\",TAB_MEP[[#This Row],[1ere formation / facturation]],\"\")","v":"2022-10-18"}]
[179,"2022-12-13","2022-12-23",17,"-","2023-04-27",{"$f":"IF(OR(TAB_MEP[[#This Row],[Nb jour avt mep]]=\"-\",TAB_MEP[[#This Row],[Date lancement]]=\"-\"),\"pas de date\",TAB_MEP[[#This Row],[Date lancement]]+TAB_MEP[[#This Row],[Nb jour avt mep]])","v":"pas de date"},{"$f":"IF(OR(TAB_MEP[[#This Row],[1ere formation / facturation]]=\"-\",TAB_MEP[[#This Row],[1ere formation / facturation]]>=TODAY()),1,0)","v":0},null,null,"FR","SC","CF",0,{"$f":"IF(AND(AND(TAB_MEP[[#This Row],[1ere formation / facturation]]<>\"-\",TAB_MEP[[#This Row],[Date de MEP prévisionnelle]]<TAB_MEP[[#This Row],[1ere formation / facturation]],TAB_MEP[[#This Row],[Date de MEP prévisionnelle]]<>\"pas de date\")),1,0)","v":0},{"$f":"IF(AND(TAB_MEP[[#This Row],[1ere formation / facturation]]=\"-\",TAB_MEP[[#This Row],[Date de MEP prévisionnelle]]<TODAY()),1,0)","v":0},{"$f":"IF(TAB_MEP[[#This Row],[1ere formation / facturation]]<>\"-\",TAB_MEP[[#This Row],[1ere formation / facturation]],\"\")","v":"2023-04-27"}]
[180,"2021-11-18","2022-01-06",8,"-","2022-03-09",{"$f":"IF(OR(TAB_MEP[[#This Row],[Nb jour avt mep]]=\"-\",TAB_MEP[[#This Row],[Date lancement]]=\"-\"),\"pas de date\",TAB_MEP[[#This Row],[Date lancement]]+TAB_MEP[[#This Row],[Nb jour avt mep]])","v":"pas de date"},{"$f":"IF(OR(TAB_MEP[[#This Row],[1ere formation / facturation]]=\"-\",TAB_MEP[[#This Row],[1ere formation / facturation]]>=TODAY()),1,0)","v":0},{"$nulls":3},"SC","CF",0,{"$f":"IF(AND(AND(TAB_MEP[[#This Row],[1ere formation / facturation]]<>\"-\",TAB_MEP[[#This Row],[Date de MEP prévisionnelle]]<TAB_MEP[[#This Row],[1ere formation / facturation]],TAB_MEP[[#This Row],[Date de MEP prévisionnelle]]<>\"pas de date\")),1,0)","v":0},{"$f":"IF(AND(TAB_MEP[[#This Row],[1ere formation / facturation]]=\"-\",TAB_MEP[[#This Row],[Date de MEP prévisionnelle]]<TODAY()),1,0)","v":0},{"$f":"IF(TAB_MEP[[#This Row],[1ere formation / facturation]]<>\"-\",TAB_MEP[[#This Row],[1ere formation / facturation]],\"\")","v":"2022-03-09"}]
[181,"2022-01-13","2022-01-13",6,"-","2022-03-02",{"$f":"IF(OR(TAB_MEP[[#This Row],[Nb jour avt mep]]=\"-\",TAB_MEP[[#This Row],[Date lancement]]=\"-\"),\"pas de date\",TAB_MEP[[#This Row],[Date lancement]]+TAB_MEP[[#This Row],[Nb jour avt mep]])","v":"pas de date"},{"$f":"IF(OR(TAB_MEP[[#This Row],[1ere formation / facturation]]=\"-\",TAB_MEP[[#This Row],[1ere formation / facturation]]>=TODAY()),1,0)","v":0},{"$nulls":3},"Part","CF",0,{"$f":"IF(AND(AND(TAB_MEP[[#This Row],[1ere formation / facturation]]<>\"-\",TAB_MEP[[#This Row],[Date de MEP prévisionnelle]]<TAB_MEP[[#This Row],[1ere formation / facturation]],TAB_MEP[[#This Row],[Date de MEP prévisionnelle]]<>\"pas de date\")),1,0)","v":0},{"$f":"IF(AND(TAB_MEP[[#This Row],[1ere formation / facturation]]=\"-\",TAB_MEP[[#This Row],[Date de MEP prévisionnelle]]<TODAY()),1,0)","v":0},{"$f":"IF(TAB_MEP[[#This Row],[1ere formation / facturation]]<>\"-\",TAB_MEP[[#This Row],[1ere formation / facturation]],\"\")","v":"2022-03-02"}]
[182,"2020-03-26","2020-03-30",5,"-","2020-05-05",{"$f":"IF(OR(TAB_MEP[[#This Row],[Nb jour avt mep]]=\"-\",TAB_MEP[[#This Row],[Date lancement]]=\"-\"),\"pas de date\",TAB_MEP[[#This Row],[Date lancement]]+TAB_MEP[[#This Row],[Nb jour avt mep]])","v":"pas de date"},{"$f":"IF(OR(TAB_MEP[[#This Row],[1ere formation / facturation]]=\"-\",TAB_MEP[[#This Row],[1ere formation / facturation]]>=TODAY()),1,0)","v":0},{"$nulls":3},"Part","CF",0,{"$f":"IF(AND(AND(TAB_MEP[[#This Row],[1ere formation / facturation]]<>\"-\",TAB_MEP[[#This Row],[Date de MEP prévisionnelle]]<TAB_MEP[[#This Row],[1ere formation / facturation]],TAB_MEP[[#This Row],[Date de MEP prévisionnelle]]<>\"pas de date\")),1,0)","v":0},{"$f":"IF(AND(TAB_MEP[[#This Row],[1ere formation / facturation]]=\"-\",TAB_MEP[[#This Row],[Date de MEP prévisionnelle]]<TODAY()),1,0)","v":0},{"$f":"IF(TAB_MEP[[#This Row],[1ere formation / facturation]]<>\"-\",TAB_MEP[[#This Row],[1ere formation / facturation]],\"\")","v":"2020-05-05"}]
[183,"2021-04-30","2021-04-30",8,"-","2021-06-30",{"$f":"IF(OR(TAB_MEP[[#This Row],[Nb jour avt mep]]=\"-\",TAB_MEP[[#This Row],[Date lancement]]=\"-\"),\"pas de date\",TAB_MEP[[#This Row],[Date lancement]]+TAB_MEP[[#This Row],[Nb jour avt mep]])","v":"pas de date"},{"$f":"IF(OR(TAB_MEP[[#This Row],[1ere formation / facturation]]=\"-\",TAB_MEP[[#This Row],[1ere formation / facturation]]>=TODAY()),1,0)","v":0},null,null,"FR","SC","CF",0,{"$f":"IF(AND(AND(TAB_MEP[[#This Row],[1ere formation / facturation]]<>\"-\",TAB_MEP[[#This Row],[Date de MEP prévisionnelle]]<TAB_MEP[[#This Row],[1ere formation / facturation]],TAB_MEP[[#This Row],[Date de MEP prévisionnelle]]<>\"pas de date\")),1,0)","v":0},{"$f":"IF(AND(TAB_MEP[[#This Row],[1ere formation / facturation]]=\"-\",TAB_MEP[[#This Row],[Date de MEP prévisionnelle]]<TODAY()),1,0)","v":0},{"$f":"IF(TAB_MEP[[#This Row],[1ere formation / facturation]]<>\"-\",TAB_MEP[[#This Row],[1ere formation / facturation]],\"\")","v":"2021-06-30"}]
[184,"2023-07-28","2023-07-28",12,60,"-",{"$f":"IF(OR(TAB_MEP[[#This Row],[Nb jour avt mep]]=\"-\",TAB_MEP[[#This Row],[Date lancement]]=\"-\"),\"pas de date\",TAB_MEP[[#This Row],[Date lancement]]+TAB_MEP[[#This Row],[Nb jour avt mep]])","v":"2023-09-26"},{"$f":"IF(OR(TAB_MEP[[#This Row],[1ere formation / facturation]]=\"-\",TAB_MEP[[#This Row],[1ere formation / facturation]]>=TODAY()),1,0)","v":1},"Novembre",null,"FR","Part","CF",1,{"$f":"IF(AND(AND(TAB_MEP[[#This Row],[1ere formation / facturation]]<>\"-\",TAB_MEP[[#This Row],[Date de MEP prévisionnelle]]<TAB_MEP[[#This Row],[1ere formation / facturation]],TAB_MEP[[#This Row],[Date de MEP prévisionnelle]]<>\"pas de date\")),1,0)","v":0},{"$f":"IF(AND(TAB_MEP[[#This Row],[1ere formation / facturation]]=\"-\",TAB_MEP[[#This Row],[Date de MEP prévisionnelle]]<TODAY()),1,0)","v":1},{"$f":"IF(TAB_MEP[[#This Row],[1ere formation / facturation]]<>\"-\",TAB_MEP[[#This Row],[1ere formation / facturation]],\"\")","v":""}]
[185,"2021-07-27","2021-09-09",6,"-","2021-10-27",{"$f":"IF(OR(TAB_MEP[[#This Row],[Nb jour avt mep]]=\"-\",TAB_MEP[[#This Row],[Date lancement]]=\"-\"),\"pas de date\",TAB_MEP[[#This Row],[Date lancement]]+TAB_MEP[[#This Row],[Nb jour avt mep]])","v":"pas de date"},{"$f":"IF(OR(TAB_MEP[[#This Row],[1ere formation / facturation]]=\"-\",TAB_MEP[[#This Row],[1ere formation / facturation]]>=TODAY()),1,0)","v":0},{"$nulls":3},"SC","CF",0,{"$f":"IF(AND(AND(TAB_MEP[[#This Row],[1ere formation / facturation]]<>\"-\",TAB_MEP[[#This Row],[Date de MEP prévisionnelle]]<TAB_MEP[[#This Row],[1ere formation / facturation]],TAB_MEP[[#This Row],[Date de MEP prévisionnelle]]<>\"pas de date\")),1,0)","v":0},{"$f":"IF(AND(TAB_MEP[[#This Row],[1ere formation / facturation]]=\"-\",TAB_MEP[[#This Row],[Date de MEP prévisionnelle]]<TODAY()),1,0)","v":0},{"$f":"IF(TAB_MEP[[#This Row],[1ere formation / facturation]]<>\"-\",TAB_MEP[[#This Row],[1ere formation / facturation]],\"\")","v":"2021-10-27"}]
[186,"2022-05-12","2022-06-02",13,"-","2022-09-01",{"$f":"IF(OR(TAB_MEP[[#This Row],[Nb jour avt mep]]=\"-\",TAB_MEP[[#This Row],[Date lancement]]=\"-\"),\"pas de date\",TAB_MEP[[#This Row],[Date lancement]]+TAB_MEP[[#This Row],[Nb jour avt mep]])","v":"pas de date"},{"$f":"IF(OR(TAB_MEP[[#This Row],[1ere formation / facturation]]=\"-\",TAB_MEP[[#This Row],[1ere formation / facturation]]>=TODAY()),1,0)","v":0},null,null,"FR","SC","CF",0,{"$f":"IF(AND(AND(TAB_MEP[[#This Row],[1ere formation / facturation]]<>\"-\",TAB_MEP[[#This Row],[Date de MEP prévisionnelle]]<TAB_MEP[[#This Row],[1ere formation / facturation]],TAB_MEP[[#This Row],[Date de MEP prévisionnelle]]<>\"pas de date\")),1,0)","v":0},{"$f":"IF(AND(TAB_MEP[[#This Row],[1ere formation / facturation]]=\"-\",TAB_MEP[[#This Row],[Date de MEP prévisionnelle]]<TODAY()),1,0)","v":0},{"$f":"IF(TAB_MEP[[#This Row],[1ere formation / facturation]]<>\"-\",TAB_MEP[[#This Row],[1ere formation / facturation]],\"\")","v":"2022-09-01"}]
[187,"2022-06-21","2022-06-28",17,"-","2022-10-25",{"$f":"IF(OR(TAB_MEP[[#This Row],[Nb jour avt mep]]=\"-\",TAB_MEP[[#This Row],[Date lancement]]=\"-\"),\"pas de date\",TAB_MEP[[#This Row],[Date lancement]]+TAB_MEP[[#This Row],[Nb jour avt mep]])","v":"pas de date"},{"$f":"IF(OR(TAB_MEP[[#This Row],[1ere formation / facturation]]=\"-\",TAB_MEP[[#This Row],[1ere formation / facturation]]>=TODAY()),1,0)","v":0},null,null,"FR","SC","CF",0,{"$f":"IF(AND(AND(TAB_MEP[[#This Row],[1ere formation / facturation]]<>\"-\",TAB_MEP[[#This Row],[Date de MEP prévisionnelle]]<TAB_MEP[[#This Row],[1ere formation / facturation]],TAB_MEP[[#This Row],[Date de MEP prévisionnelle]]<>\"pas de date\")),1,0)","v":0},{"$f":"IF(AND(TAB_MEP[[#This Row],[1ere formation / facturation]]=\"-\",TAB_MEP[[#This Row],[Date de MEP prévisionnelle]]<TODAY()),1,0)","v":0},{"$f":"IF(TAB_MEP[[#This Row],[1ere formation / facturation]]<>\"-\",TAB_MEP[[#This Row],[1ere formation / facturation]],\"\")","v":"2022-10-25"}]
[188,"2023-07-28","2023-08-24",8,"-","-",{"$f":"IF(OR(TAB_MEP[[#This Row],[Nb jour avt mep]]=\"-\",TAB_MEP[[#This Row],[Date lancement]]=\"-\"),\"pas de date\",TAB_MEP[[#This Row],[Date lancement]]+TAB_MEP[[#This Row],[Nb jour avt mep]])","v":"pas de date"},{"$f":"IF(OR(TAB_MEP[[#This Row],[1ere formation / facturation]]=\"-\",TAB_MEP[[#This Row],[1ere formation / facturation]]>=TODAY()),1,0)","v":1},"Novembre",null,"FR","SC","CF",1,{"$f":"IF(AND(AND(TAB_MEP[[#This Row],[1ere formation / facturation]]<>\"-\",TAB_MEP[[#This Row],[Date de MEP prévisionnelle]]<TAB_MEP[[#This Row],[1ere formation / facturation]],TAB_MEP[[#This Row],[Date de MEP prévisionnelle]]<>\"pas de date\")),1,0)","v":0},{"$f":"IF(AND(TAB_MEP[[#This Row],[1ere formation / facturation]]=\"-\",TAB_MEP[[#This Row],[Date de MEP prévisionnelle]]<TODAY()),1,0)","v":0},{"$f":"IF(TAB_MEP[[#This Row],[1ere formation / facturation]]<>\"-\",TAB_MEP[[#This Row],[1ere formation / facturation]],\"\")","v":""}]
[189,"2023-04-13","2023-04-28",26,70,"2023-10-27",{"$f":"IF(OR(TAB_MEP[[#This Row],[Nb jour avt mep]]=\"-\",TAB_MEP[[#This Row],[Date lancement]]=\"-\"),\"pas de date\",TAB_MEP[[#This Row],[Date lancement]]+TAB_MEP[[#This Row],[Nb jour avt mep]])","v":"2023-07-07"},{"$f":"IF(OR(TAB_MEP[[#This Row],[1ere formation / facturation]]=\"-\",TAB_MEP[[#This Row],[1ere formation / facturation]]>=TODAY()),1,0)","v":1},"Octobre",null,"FR","SC","CF",1,{"$f":"IF(AND(AND(TAB_MEP[[#This Row],[1ere formation / facturation]]<>\"-\",TAB_MEP[[#This Row],[Date de MEP prévisionnelle]]<TAB_MEP[[#This Row],[1ere formation / facturation]],TAB_MEP[[#This Row],[Date de MEP prévisionnelle]]<>\"pas de date\")),1,0)","v":1},{"$f":"IF(AND(TAB_MEP[[#This Row],[1ere formation / facturation]]=\"-\",TAB_MEP[[#This Row],[Date de MEP prévisionnelle]]<TODAY()),1,0)","v":0},{"$f":"IF(TAB_MEP[[#This Row],[1ere formation / facturation]]<>\"-\",TAB_MEP[[#This Row],[1ere formation / facturation]],\"\")","v":"2023-10-27"}]
[190,"2022-06-30","2022-07-19",18,"-","2022-11-25",{"$f":"IF(OR(TAB_MEP[[#This Row],[Nb jour avt mep]]=\"-\",TAB_MEP[[#This Row],[Date lancement]]=\"-\"),\"pas de date\",TAB_MEP[[#This Row],[Date lancement]]+TAB_MEP[[#This Row],[Nb jour avt mep]])","v":"pas de date"},{"$f":"IF(OR(TAB_MEP[[#This Row],[1ere formation / facturation]]=\"-\",TAB_MEP[[#This Row],[1ere formation / facturation]]>=TODAY()),1,0)","v":0},null,null,"MG","Inter","CF",0,{"$f":"IF(AND(AND(TAB_MEP[[#This Row],[1ere formation / facturation]]<>\"-\",TAB_MEP[[#This Row],[Date de MEP prévisionnelle]]<TAB_MEP[[#This Row],[1ere formation / facturation]],TAB_MEP[[#This Row],[Date de MEP prévisionnelle]]<>\"pas de date\")),1,0)","v":0},{"$f":"IF(AND(TAB_MEP[[#This Row],[1ere formation / facturation]]=\"-\",TAB_MEP[[#This Row],[Date de MEP prévisionnelle]]<TODAY()),1,0)","v":0},{"$f":"IF(TAB_MEP[[#This Row],[1ere formation / facturation]]<>\"-\",TAB_MEP[[#This Row],[1ere formation / facturation]],\"\")","v":"2022-11-25"}]
[191,"2020-08-04","2020-08-28",11,"-","2020-11-17",{"$f":"IF(OR(TAB_MEP[[#This Row],[Nb jour avt mep]]=\"-\",TAB_MEP[[#This Row],[Date lancement]]=\"-\"),\"pas de date\",TAB_MEP[[#This Row],[Date lancement]]+TAB_MEP[[#This Row],[Nb jour avt mep]])","v":"pas de date"},{"$f":"IF(OR(TAB_MEP[[#This Row],[1ere formation / facturation]]=\"-\",TAB_MEP[[#This Row],[1ere formation / facturation]]>=TODAY()),1,0)","v":0},{"$nulls":3},"SC","CF",0,{"$f":"IF(AND(AND(TAB_MEP[[#This Row],[1ere formation / facturation]]<>\"-\",TAB_MEP[[#This Row],[Date de MEP prévisionnelle]]<TAB_MEP[[#This Row],[1ere formation / facturation]],TAB_MEP[[#This Row],[Date de MEP prévisionnelle]]<>\"pas de date\")),1,0)","v":0},{"$f":"IF(AND(TAB_MEP[[#This Row],[1ere formation / facturation]]=\"-\",TAB_MEP[[#This Row],[Date de MEP prévisionnelle]]<TODAY()),1,0)","v":0},{"$f":"IF(TAB_MEP[[#This Row],[1ere formation / facturation]]<>\"-\",TAB_MEP[[#This Row],[1ere formation / facturation]],\"\")","v":"2020-11-17"}]
[192,"2023-02-08","2023-03-01",25,80,"2023-08-24",{"$f":"IF(OR(TAB_MEP[[#This Row],[Nb jour avt mep]]=\"-\",TAB_MEP[[#This Row],[Date lancement]]=\"-\"),\"pas de date\",TAB_MEP[[#This Row],[Date lancement]]+TAB_MEP[[#This Row],[Nb jour avt mep]])","v":"2023-05-20"},{"$f":"IF(OR(TAB_MEP[[#This Row],[1ere formation / facturation]]=\"-\",TAB_MEP[[#This Row],[1ere formation / facturation]]>=TODAY()),1,0)","v":0},null,null,"IT","Inter","CF",1,{"$f":"IF(AND(AND(TAB_MEP[[#This Row],[1ere formation / facturation]]<>\"-\",TAB_MEP[[#This Row],[Date de MEP prévisionnelle]]<TAB_MEP[[#This Row],[1ere formation / facturation]],TAB_MEP[[#This Row],[Date de MEP prévisionnelle]]<>\"pas de date\")),1,0)","v":1},{"$f":"IF(AND(TAB_MEP[[#This Row],[1ere formation / facturation]]=\"-\",TAB_MEP[[#This Row],[Date de MEP prévisionnelle]]<TODAY()),1,0)","v":0},{"$f":"IF(TAB_MEP[[#This Row],[1ere formation / facturation]]<>\"-\",TAB_MEP[[#This Row],[1ere formation / facturation]],\"\")","v":"2023-08-24"}]
[193,"2021-12-02","2021-12-02",2,"-","2021-12-16",{"$f":"IF(OR(TAB_MEP[[#This Row],[Nb jour avt mep]]=\"-\",TAB_MEP[[#This Row],[Date lancement]]=\"-\"),\"pas de date\",TAB_MEP[[#This Row],[Date lancement]]+TAB_MEP[[#This Row],[Nb jour avt mep]])","v":"pas de date"},{"$f":"IF(OR(TAB_MEP[[#This Row],[1ere formation / facturation]]=\"-\",TAB_MEP[[#This Row],[1ere formation / facturation]]>=TODAY()),1,0)","v":0},{"$nulls":3},"GC","CF",0,{"$f":"IF(AND(AND(TAB_MEP[[#This Row],[1ere formation / facturation]]<>\"-\",TAB_MEP[[#This Row],[Date de MEP prévisionnelle]]<TAB_MEP[[#This Row],[1ere formation / facturation]],TAB_MEP[[#This Row],[Date de MEP prévisionnelle]]<>\"pas de date\")),1,0)","v":0},{"$f":"IF(AND(TAB_MEP[[#This Row],[1ere formation / facturation]]=\"-\",TAB_MEP[[#This Row],[Date de MEP prévisionnelle]]<TODAY()),1,0)","v":0},{"$f":"IF(TAB_MEP[[#This Row],[1ere formation / facturation]]<>\"-\",TAB_MEP[[#This Row],[1ere formation / facturation]],\"\")","v":"2021-12-16"}]
[194,"2022-11-22","2022-11-28",10,"-","2023-02-10",{"$f":"IF(OR(TAB_MEP[[#This Row],[Nb jour avt mep]]=\"-\",TAB_MEP[[#This Row],[Date lancement]]=\"-\"),\"pas de date\",TAB_MEP[[#This Row],[Date lancement]]+TAB_MEP[[#This Row],[Nb jour avt mep]])","v":"pas de date"},{"$f":"IF(OR(TAB_MEP[[#This Row],[1ere formation / facturation]]=\"-\",TAB_MEP[[#This Row],[1ere formation / facturation]]>=TODAY()),1,0)","v":0},null,null,"FR","SC","CF",1,{"$f":"IF(AND(AND(TAB_MEP[[#This Row],[1ere formation / facturation]]<>\"-\",TAB_MEP[[#This Row],[Date de MEP prévisionnelle]]<TAB_MEP[[#This Row],[1ere formation / facturation]],TAB_MEP[[#This Row],[Date de MEP prévisionnelle]]<>\"pas de date\")),1,0)","v":0},{"$f":"IF(AND(TAB_MEP[[#This Row],[1ere formation / facturation]]=\"-\",TAB_MEP[[#This Row],[Date de MEP prévisionnelle]]<TODAY()),1,0)","v":0},{"$f":"IF(TAB_MEP[[#This Row],[1ere formation / facturation]]<>\"-\",TAB_MEP[[#This Row],[1ere formation / facturation]],\"\")","v":"2023-02-10"}]
[195,"2020-10-23","2020-11-05",9,"-","2021-01-07",{"$f":"IF(OR(TAB_MEP[[#This Row],[Nb jour avt mep]]=\"-\",TAB_MEP[[#This Row],[Date lancement]]=\"-\"),\"pas de date\",TAB_MEP[[#This Row],[Date lancement]]+TAB_MEP[[#This Row],[Nb jour avt mep]])","v":"pas de date"},{"$f":"IF(OR(TAB_MEP[[#This Row],[1ere formation / facturation]]=\"-\",TAB_MEP[[#This Row],[1ere formation / facturation]]>=TODAY()),1,0)","v":0},{"$nulls":3},"SC","CF",0,{"$f":"IF(AND(AND(TAB_MEP[[#This Row],[1ere formation / facturation]]<>\"-\",TAB_MEP[[#This Row],[Date de MEP prévisionnelle]]<TAB_MEP[[#This Row],[1ere formation / facturation]],TAB_MEP[[#This Row],[Date de MEP prévisionnelle]]<>\"pas de date\")),1,0)","v":0},{"$f":"IF(AND(TAB_MEP[[#This Row],[1ere formation / facturation]]=\"-\",TAB_MEP[[#This Row],[Date de MEP prévisionnelle]]<TODAY()),1,0)","v":0},{"$f":"IF(TAB_MEP[[#This Row],[1ere formation / facturation]]<>\"-\",TAB_MEP[[#This Row],[1ere formation / facturation]],\"\")","v":"2021-01-07"}]
[196,"2023-07-26","2023-09-05",7,"-","-",{"$f":"IF(OR(TAB_MEP[[#This Row],[Nb jour avt mep]]=\"-\",TAB_MEP[[#This Row],[Date lancement]]=\"-\"),\"pas de date\",TAB_MEP[[#This Row],[Date lancement]]+TAB_MEP[[#This Row],[Nb jour avt mep]])","v":"pas de date"},{"$f":"IF(OR(TAB_MEP[[#This Row],[1ere formation / facturation]]=\"-\",TAB_MEP[[#This Row],[1ere formation / facturation]]>=TODAY()),1,0)","v":1},null,null,"FR","SC","CF",1,{"$f":"IF(AND(AND(TAB_MEP[[#This Row],[1ere formation / facturation]]<>\"-\",TAB_MEP[[#This Row],[Date de MEP prévisionnelle]]<TAB_MEP[[#This Row],[1ere formation / facturation]],TAB_MEP[[#This Row],[Date de MEP prévisionnelle]]<>\"pas de date\")),1,0)","v":0},{"$f":"IF(AND(TAB_MEP[[#This Row],[1ere formation / facturation]]=\"-\",TAB_MEP[[#This Row],[Date de MEP prévisionnelle]]<TODAY()),1,0)","v":0},{"$f":"IF(TAB_MEP[[#This Row],[1ere formation / facturation]]<>\"-\",TAB_MEP[[#This Row],[1ere formation / facturation]],\"\")","v":""}]
[197,"2021-07-06","2021-07-06",2,"-","2021-07-23",{"$f":"IF(OR(TAB_MEP[[#This Row],[Nb jour avt mep]]=\"-\",TAB_MEP[[#This Row],[Date lancement]]=\"-\"),\"pas de date\",TAB_MEP[[#This Row],[Date lancement]]+TAB_MEP[[#This Row],[Nb jour avt mep]])","v":"pas de date"},{"$f":"IF(OR(TAB_MEP[[#This Row],[1ere formation / facturation]]=\"-\",TAB_MEP[[#This Row],[1ere formation / facturation]]>=TODAY()),1,0)","v":0},{"$nulls":3},"Part","CF",0,{"$f":"IF(AND(AND(TAB_MEP[[#This Row],[1ere formation / facturation]]<>\"-\",TAB_MEP[[#This Row],[Date de MEP prévisionnelle]]<TAB_MEP[[#This Row],[1ere formation / facturation]],TAB_MEP[[#This Row],[Date de MEP prévisionnelle]]<>\"pas de date\")),1,0)","v":0},{"$f":"IF(AND(TAB_MEP[[#This Row],[1ere formation / facturation]]=\"-\",TAB_MEP[[#This Row],[Date de MEP prévisionnelle]]<TODAY()),1,0)","v":0},{"$f":"IF(TAB_MEP[[#This Row],[1ere formation / facturation]]<>\"-\",TAB_MEP[[#This Row],[1ere formation / facturation]],\"\")","v":"2021-07-23"}]
[198,"2023-07-21","2023-09-06",7,42,"-",{"$f":"IF(OR(TAB_MEP[[#This Row],[Nb jour avt mep]]=\"-\",TAB_MEP[[#This Row],[Date lancement]]=\"-\"),\"pas de date\",TAB_MEP[[#This Row],[Date lancement]]+TAB_MEP[[#This Row],[Nb jour avt mep]])","v":"2023-10-18"},{"$f":"IF(OR(TAB_MEP[[#This Row],[1ere formation / facturation]]=\"-\",TAB_MEP[[#This Row],[1ere formation / facturation]]>=TODAY()),1,0)","v":1},null,null,"FR","SC","CF",1,{"$f":"IF(AND(AND(TAB_MEP[[#This Row],[1ere formation / facturation]]<>\"-\",TAB_MEP[[#This Row],[Date de MEP prévisionnelle]]<TAB_MEP[[#This Row],[1ere formation / facturation]],TAB_MEP[[#This Row],[Date de MEP prévisionnelle]]<>\"pas de date\")),1,0)","v":0},{"$f":"IF(AND(TAB_MEP[[#This Row],[1ere formation / facturation]]=\"-\",TAB_MEP[[#This Row],[Date de MEP prévisionnelle]]<TODAY()),1,0)","v":1},{"$f":"IF(TAB_MEP[[#This Row],[1ere formation / facturation]]<>\"-\",TAB_MEP[[#This Row],[1ere formation / facturation]],\"\")","v":""}]
[199,"2023-02-16","2023-04-04",16,30,"2023-07-28",{"$f":"IF(OR(TAB_MEP[[#This Row],[Nb jour avt mep]]=\"-\",TAB_MEP[[#This Row],[Date lancement]]=\"-\"),\"pas de date\",TAB_MEP[[#This Row],[Date lancement]]+TAB_MEP[[#This Row],[Nb jour avt mep]])","v":"2023-05-04"},{"$f":"IF(OR(TAB_MEP[[#This Row],[1ere formation / facturation]]=\"-\",TAB_MEP[[#This Row],[1ere formation / facturation]]>=TODAY()),1,0)","v":0},null,null,"BE","Inter","CF",1,{"$f":"IF(AND(AND(TAB_MEP[[#This Row],[1ere formation / facturation]]<>\"-\",TAB_MEP[[#This Row],[Date de MEP prévisionnelle]]<TAB_MEP[[#This Row],[1ere formation / facturation]],TAB_MEP[[#This Row],[Date de MEP prévisionnelle]]<>\"pas de date\")),1,0)","v":1},{"$f":"IF(AND(TAB_MEP[[#This Row],[1ere formation / facturation]]=\"-\",TAB_MEP[[#This Row],[Date de MEP prévisionnelle]]<TODAY()),1,0)","v":0},{"$f":"IF(TAB_MEP[[#This Row],[1ere formation / facturation]]<>\"-\",TAB_MEP[[#This Row],[1ere formation / facturation]],\"\")","v":"2023-07-28"}]
[200,"2022-03-21","2022-04-27",{"$f":"IF(C201>TODAY(),\"0\",IF(F201=\"-\",INT(DATEDIF(C201,TODAY(),\"d\")/7),INT(DATEDIF(C201,F201,\"d\")/7)))","v":31},"-","2022-11-30",{"$f":"IF(OR(TAB_MEP[[#This Row],[Nb jour avt mep]]=\"-\",TAB_MEP[[#This Row],[Date lancement]]=\"-\"),\"pas de date\",TAB_MEP[[#This Row],[Date lancement]]+TAB_MEP[[#This Row],[Nb jour avt mep]])","v":"pas de date"},{"$f":"IF(OR(TAB_MEP[[#This Row],[1ere formation / facturation]]=\"-\",TAB_MEP[[#This Row],[1ere formation / facturation]]>=TODAY()),1,0)","v":0},null,null,"BE","Inter","CF",0,{"$f":"IF(AND(AND(TAB_MEP[[#This Row],[1ere formation / facturation]]<>\"-\",TAB_MEP[[#This Row],[Date de MEP prévisionnelle]]<TAB_MEP[[#This Row],[1ere formation / facturation]],TAB_MEP[[#This Row],[Date de MEP prévisionnelle]]<>\"pas de date\")),1,0)","v":0},{"$f":"IF(AND(TAB_MEP[[#This Row],[1ere formation / facturation]]=\"-\",TAB_MEP[[#This Row],[Date de MEP prévisionnelle]]<TODAY()),1,0)","v":0},{"$f":"IF(TAB_MEP[[#This Row],[1ere formation / facturation]]<>\"-\",TAB_MEP[[#This Row],[1ere formation / facturation]],\"\")","v":"2022-11-30"}]
[201,"2022-08-01","2022-07-06",12,"-","2022-09-29",{"$f":"IF(OR(TAB_MEP[[#This Row],[Nb jour avt mep]]=\"-\",TAB_MEP[[#This Row],[Date lancement]]=\"-\"),\"pas de date\",TAB_MEP[[#This Row],[Date lancement]]+TAB_MEP[[#This Row],[Nb jour avt mep]])","v":"pas de date"},{"$f":"IF(OR(TAB_MEP[[#This Row],[1ere formation / facturation]]=\"-\",TAB_MEP[[#This Row],[1ere formation / facturation]]>=TODAY()),1,0)","v":0},null,null,"FR","SC","CF",0,{"$f":"IF(AND(AND(TAB_MEP[[#This Row],[1ere formation / facturation]]<>\"-\",TAB_MEP[[#This Row],[Date de MEP prévisionnelle]]<TAB_MEP[[#This Row],[1ere formation / facturation]],TAB_MEP[[#This Row],[Date de MEP prévisionnelle]]<>\"pas de date\")),1,0)","v":0},{"$f":"IF(AND(TAB_MEP[[#This Row],[1ere formation / facturation]]=\"-\",TAB_MEP[[#This Row],[Date de MEP prévisionnelle]]<TODAY()),1,0)","v":0},{"$f":"IF(TAB_MEP[[#This Row],[1ere formation / facturation]]<>\"-\",TAB_MEP[[#This Row],[1ere formation / facturation]],\"\")","v":"2022-09-29"}]
[202,"2021-11-05","2021-11-05",6,"-","2021-12-22",{"$f":"IF(OR(TAB_MEP[[#This Row],[Nb jour avt mep]]=\"-\",TAB_MEP[[#This Row],[Date lancement]]=\"-\"),\"pas de date\",TAB_MEP[[#This Row],[Date lancement]]+TAB_MEP[[#This Row],[Nb jour avt mep]])","v":"pas de date"},{"$f":"IF(OR(TAB_MEP[[#This Row],[1ere formation / facturation]]=\"-\",TAB_MEP[[#This Row],[1ere formation / facturation]]>=TODAY()),1,0)","v":0},{"$nulls":3},"Part","CF",0,{"$f":"IF(AND(AND(TAB_MEP[[#This Row],[1ere formation / facturation]]<>\"-\",TAB_MEP[[#This Row],[Date de MEP prévisionnelle]]<TAB_MEP[[#This Row],[1ere formation / facturation]],TAB_MEP[[#This Row],[Date de MEP prévisionnelle]]<>\"pas de date\")),1,0)","v":0},{"$f":"IF(AND(TAB_MEP[[#This Row],[1ere formation / facturation]]=\"-\",TAB_MEP[[#This Row],[Date de MEP prévisionnelle]]<TODAY()),1,0)","v":0},{"$f":"IF(TAB_MEP[[#This Row],[1ere formation / facturation]]<>\"-\",TAB_MEP[[#This Row],[1ere formation / facturation]],\"\")","v":"2021-12-22"}]
[203,"2021-03-10","2021-03-23",4,"-","2021-04-26",{"$f":"IF(OR(TAB_MEP[[#This Row],[Nb jour avt mep]]=\"-\",TAB_MEP[[#This Row],[Date lancement]]=\"-\"),\"pas de date\",TAB_MEP[[#This Row],[Date lancement]]+TAB_MEP[[#This Row],[Nb jour avt mep]])","v":"pas de date"},{"$f":"IF(OR(TAB_MEP[[#This Row],[1ere formation / facturation]]=\"-\",TAB_MEP[[#This Row],[1ere formation / facturation]]>=TODAY()),1,0)","v":0},{"$nulls":3},"SC","CF",0,{"$f":"IF(AND(AND(TAB_MEP[[#This Row],[1ere formation / facturation]]<>\"-\",TAB_MEP[[#This Row],[Date de MEP prévisionnelle]]<TAB_MEP[[#This Row],[1ere formation / facturation]],TAB_MEP[[#This Row],[Date de MEP prévisionnelle]]<>\"pas de date\")),1,0)","v":0},{"$f":"IF(AND(TAB_MEP[[#This Row],[1ere formation / facturation]]=\"-\",TAB_MEP[[#This Row],[Date de MEP prévisionnelle]]<TODAY()),1,0)","v":0},{"$f":"IF(TAB_MEP[[#This Row],[1ere formation / facturation]]<>\"-\",TAB_MEP[[#This Row],[1ere formation / facturation]],\"\")","v":"2021-04-26"}]
[204,"2023-10-20","2023-10-20",1,null,"2023-10-31",{"$f":"IF(OR(TAB_MEP[[#This Row],[Nb jour avt mep]]=\"-\",TAB_MEP[[#This Row],[Date lancement]]=\"-\"),\"pas de date\",TAB_MEP[[#This Row],[Date lancement]]+TAB_MEP[[#This Row],[Nb jour avt mep]])","v":"2023-10-20"},{"$f":"IF(OR(TAB_MEP[[#This Row],[1ere formation / facturation]]=\"-\",TAB_MEP[[#This Row],[1ere formation / facturation]]>=TODAY()),1,0)","v":1},"Octobre",null,"Multi","SC","CF",1,{"$f":"IF(AND(AND(TAB_MEP[[#This Row],[1ere formation / facturation]]<>\"-\",TAB_MEP[[#This Row],[Date de MEP prévisionnelle]]<TAB_MEP[[#This Row],[1ere formation / facturation]],TAB_MEP[[#This Row],[Date de MEP prévisionnelle]]<>\"pas de date\")),1,0)","v":1},{"$f":"IF(AND(TAB_MEP[[#This Row],[1ere formation / facturation]]=\"-\",TAB_MEP[[#This Row],[Date de MEP prévisionnelle]]<TODAY()),1,0)","v":0},{"$f":"IF(TAB_MEP[[#This Row],[1ere formation / facturation]]<>\"-\",TAB_MEP[[#This Row],[1ere formation / facturation]],\"\")","v":"2023-10-31"}]
[205,"2023-07-19","2023-09-07",6,"-","-",{"$f":"IF(OR(TAB_MEP[[#This Row],[Nb jour avt mep]]=\"-\",TAB_MEP[[#This Row],[Date lancement]]=\"-\"),\"pas de date\",TAB_MEP[[#This Row],[Date lancement]]+TAB_MEP[[#This Row],[Nb jour avt mep]])","v":"pas de date"},{"$f":"IF(OR(TAB_MEP[[#This Row],[1ere formation / facturation]]=\"-\",TAB_MEP[[#This Row],[1ere formation / facturation]]>=TODAY()),1,0)","v":1},"Octobre",null,"FR","SC","CF",1,{"$f":"IF(AND(AND(TAB_MEP[[#This Row],[1ere formation / facturation]]<>\"-\",TAB_MEP[[#This Row],[Date de MEP prévisionnelle]]<TAB_MEP[[#This Row],[1ere formation / facturation]],TAB_MEP[[#This Row],[Date de MEP prévisionnelle]]<>\"pas de date\")),1,0)","v":0},{"$f":"IF(AND(TAB_MEP[[#This Row],[1ere formation / facturation]]=\"-\",TAB_MEP[[#This Row],[Date de MEP prévisionnelle]]<TODAY()),1,0)","v":0},{"$f":"IF(TAB_MEP[[#This Row],[1ere formation / facturation]]<>\"-\",TAB_MEP[[#This Row],[1ere formation / facturation]],\"\")","v":""}]
[206,"2023-07-21","2023-09-11",6,100,"-",{"$f":"IF(OR(TAB_MEP[[#This Row],[Nb jour avt mep]]=\"-\",TAB_MEP[[#This Row],[Date lancement]]=\"-\"),\"pas de date\",TAB_MEP[[#This Row],[Date lancement]]+TAB_MEP[[#This Row],[Nb jour avt mep]])","v":"2023-12-20"},{"$f":"IF(OR(TAB_MEP[[#This Row],[1ere formation / facturation]]=\"-\",TAB_MEP[[#This Row],[1ere formation / facturation]]>=TODAY()),1,0)","v":1},null,null,"FR","SC","CF",1,{"$f":"IF(AND(AND(TAB_MEP[[#This Row],[1ere formation / facturation]]<>\"-\",TAB_MEP[[#This Row],[Date de MEP prévisionnelle]]<TAB_MEP[[#This Row],[1ere formation / facturation]],TAB_MEP[[#This Row],[Date de MEP prévisionnelle]]<>\"pas de date\")),1,0)","v":0},{"$f":"IF(AND(TAB_MEP[[#This Row],[1ere formation / facturation]]=\"-\",TAB_MEP[[#This Row],[Date de MEP prévisionnelle]]<TODAY()),1,0)","v":0},{"$f":"IF(TAB_MEP[[#This Row],[1ere formation / facturation]]<>\"-\",TAB_MEP[[#This Row],[1ere formation / facturation]],\"\")","v":""}]
[207,"2020-05-15","2020-06-08",16,"-","2020-09-29",{"$f":"IF(OR(TAB_MEP[[#This Row],[Nb jour avt mep]]=\"-\",TAB_MEP[[#This Row],[Date lancement]]=\"-\"),\"pas de date\",TAB_MEP[[#This Row],[Date lancement]]+TAB_MEP[[#This Row],[Nb jour avt mep]])","v":"pas de date"},{"$f":"IF(OR(TAB_MEP[[#This Row],[1ere formation / facturation]]=\"-\",TAB_MEP[[#This Row],[1ere formation / facturation]]>=TODAY()),1,0)","v":0},{"$nulls":3},"SC","CF",0,{"$f":"IF(AND(AND(TAB_MEP[[#This Row],[1ere formation / facturation]]<>\"-\",TAB_MEP[[#This Row],[Date de MEP prévisionnelle]]<TAB_MEP[[#This Row],[1ere formation / facturation]],TAB_MEP[[#This Row],[Date de MEP prévisionnelle]]<>\"pas de date\")),1,0)","v":0},{"$f":"IF(AND(TAB_MEP[[#This Row],[1ere formation / facturation]]=\"-\",TAB_MEP[[#This Row],[Date de MEP prévisionnelle]]<TODAY()),1,0)","v":0},{"$f":"IF(TAB_MEP[[#This Row],[1ere formation / facturation]]<>\"-\",TAB_MEP[[#This Row],[1ere formation / facturation]],\"\")","v":"2020-09-29"}]
[208,"2019-09-27","2019-10-10",50,"-","2020-09-24",{"$f":"IF(OR(TAB_MEP[[#This Row],[Nb jour avt mep]]=\"-\",TAB_MEP[[#This Row],[Date lancement]]=\"-\"),\"pas de date\",TAB_MEP[[#This Row],[Date lancement]]+TAB_MEP[[#This Row],[Nb jour avt mep]])","v":"pas de date"},{"$f":"IF(OR(TAB_MEP[[#This Row],[1ere formation / facturation]]=\"-\",TAB_MEP[[#This Row],[1ere formation / facturation]]>=TODAY()),1,0)","v":0},{"$nulls":3},"SC","CF",0,{"$f":"IF(AND(AND(TAB_MEP[[#This Row],[1ere formation / facturation]]<>\"-\",TAB_MEP[[#This Row],[Date de MEP prévisionnelle]]<TAB_MEP[[#This Row],[1ere formation / facturation]],TAB_MEP[[#This Row],[Date de MEP prévisionnelle]]<>\"pas de date\")),1,0)","v":0},{"$f":"IF(AND(TAB_MEP[[#This Row],[1ere formation / facturation]]=\"-\",TAB_MEP[[#This Row],[Date de MEP prévisionnelle]]<TODAY()),1,0)","v":0},{"$f":"IF(TAB_MEP[[#This Row],[1ere formation / facturation]]<>\"-\",TAB_MEP[[#This Row],[1ere formation / facturation]],\"\")","v":"2020-09-24"}]
[209,"2023-02-17","2023-02-17",2,"-","2023-03-07",{"$f":"IF(OR(TAB_MEP[[#This Row],[Nb jour avt mep]]=\"-\",TAB_MEP[[#This Row],[Date lancement]]=\"-\"),\"pas de date\",TAB_MEP[[#This Row],[Date lancement]]+TAB_MEP[[#This Row],[Nb jour avt mep]])","v":"pas de date"},{"$f":"IF(OR(TAB_MEP[[#This Row],[1ere formation / facturation]]=\"-\",TAB_MEP[[#This Row],[1ere formation / facturation]]>=TODAY()),1,0)","v":0},null,null,"FR","Part","CF",0,{"$f":"IF(AND(AND(TAB_MEP[[#This Row],[1ere formation / facturation]]<>\"-\",TAB_MEP[[#This Row],[Date de MEP prévisionnelle]]<TAB_MEP[[#This Row],[1ere formation / facturation]],TAB_MEP[[#This Row],[Date de MEP prévisionnelle]]<>\"pas de date\")),1,0)","v":0},{"$f":"IF(AND(TAB_MEP[[#This Row],[1ere formation / facturation]]=\"-\",TAB_MEP[[#This Row],[Date de MEP prévisionnelle]]<TODAY()),1,0)","v":0},{"$f":"IF(TAB_MEP[[#This Row],[1ere formation / facturation]]<>\"-\",TAB_MEP[[#This Row],[1ere formation / facturation]],\"\")","v":"2023-03-07"}]
[210,"2019-12-04","2019-12-12",11,"-","2020-03-01",{"$f":"IF(OR(TAB_MEP[[#This Row],[Nb jour avt mep]]=\"-\",TAB_MEP[[#This Row],[Date lancement]]=\"-\"),\"pas de date\",TAB_MEP[[#This Row],[Date lancement]]+TAB_MEP[[#This Row],[Nb jour avt mep]])","v":"pas de date"},{"$f":"IF(OR(TAB_MEP[[#This Row],[1ere formation / facturation]]=\"-\",TAB_MEP[[#This Row],[1ere formation / facturation]]>=TODAY()),1,0)","v":0},{"$nulls":3},"SC","CF",0,{"$f":"IF(AND(AND(TAB_MEP[[#This Row],[1ere formation / facturation]]<>\"-\",TAB_MEP[[#This Row],[Date de MEP prévisionnelle]]<TAB_MEP[[#This Row],[1ere formation / facturation]],TAB_MEP[[#This Row],[Date de MEP prévisionnelle]]<>\"pas de date\")),1,0)","v":0},{"$f":"IF(AND(TAB_MEP[[#This Row],[1ere formation / facturation]]=\"-\",TAB_MEP[[#This Row],[Date de MEP prévisionnelle]]<TODAY()),1,0)","v":0},{"$f":"IF(TAB_MEP[[#This Row],[1ere formation / facturation]]<>\"-\",TAB_MEP[[#This Row],[1ere formation / facturation]],\"\")","v":"2020-03-01"}]
[211,"2023-05-12","2023-07-10",11,83,"2023-09-26",{"$f":"IF(OR(TAB_MEP[[#This Row],[Nb jour avt mep]]=\"-\",TAB_MEP[[#This Row],[Date lancement]]=\"-\"),\"pas de date\",TAB_MEP[[#This Row],[Date lancement]]+TAB_MEP[[#This Row],[Nb jour avt mep]])","v":"2023-10-01"},{"$f":"IF(OR(TAB_MEP[[#This Row],[1ere formation / facturation]]=\"-\",TAB_MEP[[#This Row],[1ere formation / facturation]]>=TODAY()),1,0)","v":0},"Septembre",null,"FR","SC","CF",1,{"$f":"IF(AND(AND(TAB_MEP[[#This Row],[1ere formation / facturation]]<>\"-\",TAB_MEP[[#This Row],[Date de MEP prévisionnelle]]<TAB_MEP[[#This Row],[1ere formation / facturation]],TAB_MEP[[#This Row],[Date de MEP prévisionnelle]]<>\"pas de date\")),1,0)","v":0},{"$f":"IF(AND(TAB_MEP[[#This Row],[1ere formation / facturation]]=\"-\",TAB_MEP[[#This Row],[Date de MEP prévisionnelle]]<TODAY()),1,0)","v":0},{"$f":"IF(TAB_MEP[[#This Row],[1ere formation / facturation]]<>\"-\",TAB_MEP[[#This Row],[1ere formation / facturation]],\"\")","v":"2023-09-26"}]
[212,"2019-12-09","2020-01-20",13,"-","2020-04-22",{"$f":"IF(OR(TAB_MEP[[#This Row],[Nb jour avt mep]]=\"-\",TAB_MEP[[#This Row],[Date lancement]]=\"-\"),\"pas de date\",TAB_MEP[[#This Row],[Date lancement]]+TAB_MEP[[#This Row],[Nb jour avt mep]])","v":"pas de date"},{"$f":"IF(OR(TAB_MEP[[#This Row],[1ere formation / facturation]]=\"-\",TAB_MEP[[#This Row],[1ere formation / facturation]]>=TODAY()),1,0)","v":0},{"$nulls":3},"SC","CF",0,{"$f":"IF(AND(AND(TAB_MEP[[#This Row],[1ere formation / facturation]]<>\"-\",TAB_MEP[[#This Row],[Date de MEP prévisionnelle]]<TAB_MEP[[#This Row],[1ere formation / facturation]],TAB_MEP[[#This Row],[Date de MEP prévisionnelle]]<>\"pas de date\")),1,0)","v":0},{"$f":"IF(AND(TAB_MEP[[#This Row],[1ere formation / facturation]]=\"-\",TAB_MEP[[#This Row],[Date de MEP prévisionnelle]]<TODAY()),1,0)","v":0},{"$f":"IF(TAB_MEP[[#This Row],[1ere formation / facturation]]<>\"-\",TAB_MEP[[#This Row],[1ere formation / facturation]],\"\")","v":"2020-04-22"}]
[213,"2021-07-14","2021-07-16",35,"-","2022-03-22",{"$f":"IF(OR(TAB_MEP[[#This Row],[Nb jour avt mep]]=\"-\",TAB_MEP[[#This Row],[Date lancement]]=\"-\"),\"pas de date\",TAB_MEP[[#This Row],[Date lancement]]+TAB_MEP[[#This Row],[Nb jour avt mep]])","v":"pas de date"},{"$f":"IF(OR(TAB_MEP[[#This Row],[1ere formation / facturation]]=\"-\",TAB_MEP[[#This Row],[1ere formation / facturation]]>=TODAY()),1,0)","v":0},null,null,"FR","Inter","CF",0,{"$f":"IF(AND(AND(TAB_MEP[[#This Row],[1ere formation / facturation]]<>\"-\",TAB_MEP[[#This Row],[Date de MEP prévisionnelle]]<TAB_MEP[[#This Row],[1ere formation / facturation]],TAB_MEP[[#This Row],[Date de MEP prévisionnelle]]<>\"pas de date\")),1,0)","v":0},{"$f":"IF(AND(TAB_MEP[[#This Row],[1ere formation / facturation]]=\"-\",TAB_MEP[[#This Row],[Date de MEP prévisionnelle]]<TODAY()),1,0)","v":0},{"$f":"IF(TAB_MEP[[#This Row],[1ere formation / facturation]]<>\"-\",TAB_MEP[[#This Row],[1ere formation / facturation]],\"\")","v":"2022-03-22"}]
[214,"2022-03-08","2022-03-22",8,"-","2022-05-23",{"$f":"IF(OR(TAB_MEP[[#This Row],[Nb jour avt mep]]=\"-\",TAB_MEP[[#This Row],[Date lancement]]=\"-\"),\"pas de date\",TAB_MEP[[#This Row],[Date lancement]]+TAB_MEP[[#This Row],[Nb jour avt mep]])","v":"pas de date"},{"$f":"IF(OR(TAB_MEP[[#This Row],[1ere formation / facturation]]=\"-\",TAB_MEP[[#This Row],[1ere formation / facturation]]>=TODAY()),1,0)","v":0},{"$nulls":3},"SC","CF",0,{"$f":"IF(AND(AND(TAB_MEP[[#This Row],[1ere formation / facturation]]<>\"-\",TAB_MEP[[#This Row],[Date de MEP prévisionnelle]]<TAB_MEP[[#This Row],[1ere formation / facturation]],TAB_MEP[[#This Row],[Date de MEP prévisionnelle]]<>\"pas de date\")),1,0)","v":0},{"$f":"IF(AND(TAB_MEP[[#This Row],[1ere formation / facturation]]=\"-\",TAB_MEP[[#This Row],[Date de MEP prévisionnelle]]<TODAY()),1,0)","v":0},{"$f":"IF(TAB_MEP[[#This Row],[1ere formation / facturation]]<>\"-\",TAB_MEP[[#This Row],[1ere formation / facturation]],\"\")","v":"2022-05-23"}]
[215,"2022-10-25","2022-11-15",9,"-","2023-01-19",{"$f":"IF(OR(TAB_MEP[[#This Row],[Nb jour avt mep]]=\"-\",TAB_MEP[[#This Row],[Date lancement]]=\"-\"),\"pas de date\",TAB_MEP[[#This Row],[Date lancement]]+TAB_MEP[[#This Row],[Nb jour avt mep]])","v":"pas de date"},{"$f":"IF(OR(TAB_MEP[[#This Row],[1ere formation / facturation]]=\"-\",TAB_MEP[[#This Row],[1ere formation / facturation]]>=TODAY()),1,0)","v":0},null,null,"FR","SC","CF",0,{"$f":"IF(AND(AND(TAB_MEP[[#This Row],[1ere formation / facturation]]<>\"-\",TAB_MEP[[#This Row],[Date de MEP prévisionnelle]]<TAB_MEP[[#This Row],[1ere formation / facturation]],TAB_MEP[[#This Row],[Date de MEP prévisionnelle]]<>\"pas de date\")),1,0)","v":0},{"$f":"IF(AND(TAB_MEP[[#This Row],[1ere formation / facturation]]=\"-\",TAB_MEP[[#This Row],[Date de MEP prévisionnelle]]<TODAY()),1,0)","v":0},{"$f":"IF(TAB_MEP[[#This Row],[1ere formation / facturation]]<>\"-\",TAB_MEP[[#This Row],[1ere formation / facturation]],\"\")","v":"2023-01-19"}]
[216,"2023-06-06","2023-06-19",5,"-","2023-07-25",{"$f":"IF(OR(TAB_MEP[[#This Row],[Nb jour avt mep]]=\"-\",TAB_MEP[[#This Row],[Date lancement]]=\"-\"),\"pas de date\",TAB_MEP[[#This Row],[Date lancement]]+TAB_MEP[[#This Row],[Nb jour avt mep]])","v":"pas de date"},{"$f":"IF(OR(TAB_MEP[[#This Row],[1ere formation / facturation]]=\"-\",TAB_MEP[[#This Row],[1ere formation / facturation]]>=TODAY()),1,0)","v":0},null,null,"FR","SC","CF",1,{"$f":"IF(AND(AND(TAB_MEP[[#This Row],[1ere formation / facturation]]<>\"-\",TAB_MEP[[#This Row],[Date de MEP prévisionnelle]]<TAB_MEP[[#This Row],[1ere formation / facturation]],TAB_MEP[[#This Row],[Date de MEP prévisionnelle]]<>\"pas de date\")),1,0)","v":0},{"$f":"IF(AND(TAB_MEP[[#This Row],[1ere formation / facturation]]=\"-\",TAB_MEP[[#This Row],[Date de MEP prévisionnelle]]<TODAY()),1,0)","v":0},{"$f":"IF(TAB_MEP[[#This Row],[1ere formation / facturation]]<>\"-\",TAB_MEP[[#This Row],[1ere formation / facturation]],\"\")","v":"2023-07-25"}]
[217,"2022-07-25","2022-07-29",12,"-","2022-10-26",{"$f":"IF(OR(TAB_MEP[[#This Row],[Nb jour avt mep]]=\"-\",TAB_MEP[[#This Row],[Date lancement]]=\"-\"),\"pas de date\",TAB_MEP[[#This Row],[Date lancement]]+TAB_MEP[[#This Row],[Nb jour avt mep]])","v":"pas de date"},{"$f":"IF(OR(TAB_MEP[[#This Row],[1ere formation / facturation]]=\"-\",TAB_MEP[[#This Row],[1ere formation / facturation]]>=TODAY()),1,0)","v":0},null,null,"FR","SC","CF",0,{"$f":"IF(AND(AND(TAB_MEP[[#This Row],[1ere formation / facturation]]<>\"-\",TAB_MEP[[#This Row],[Date de MEP prévisionnelle]]<TAB_MEP[[#This Row],[1ere formation / facturation]],TAB_MEP[[#This Row],[Date de MEP prévisionnelle]]<>\"pas de date\")),1,0)","v":0},{"$f":"IF(AND(TAB_MEP[[#This Row],[1ere formation / facturation]]=\"-\",TAB_MEP[[#This Row],[Date de MEP prévisionnelle]]<TODAY()),1,0)","v":0},{"$f":"IF(TAB_MEP[[#This Row],[1ere formation / facturation]]<>\"-\",TAB_MEP[[#This Row],[1ere formation / facturation]],\"\")","v":"2022-10-26"}]
[218,"2023-06-14","-","0","-","2023-07-03",{"$f":"IF(OR(TAB_MEP[[#This Row],[Nb jour avt mep]]=\"-\",TAB_MEP[[#This Row],[Date lancement]]=\"-\"),\"pas de date\",TAB_MEP[[#This Row],[Date lancement]]+TAB_MEP[[#This Row],[Nb jour avt mep]])","v":"pas de date"},{"$f":"IF(OR(TAB_MEP[[#This Row],[1ere formation / facturation]]=\"-\",TAB_MEP[[#This Row],[1ere formation / facturation]]>=TODAY()),1,0)","v":0},null,null,"FR","SC","CF",1,{"$f":"IF(AND(AND(TAB_MEP[[#This Row],[1ere formation / facturation]]<>\"-\",TAB_MEP[[#This Row],[Date de MEP prévisionnelle]]<TAB_MEP[[#This Row],[1ere formation / facturation]],TAB_MEP[[#This Row],[Date de MEP prévisionnelle]]<>\"pas de date\")),1,0)","v":0},{"$f":"IF(AND(TAB_MEP[[#This Row],[1ere formation / facturation]]=\"-\",TAB_MEP[[#This Row],[Date de MEP prévisionnelle]]<TODAY()),1,0)","v":0},{"$f":"IF(TAB_MEP[[#This Row],[1ere formation / facturation]]<>\"-\",TAB_MEP[[#This Row],[1ere formation / facturation]],\"\")","v":"2023-07-03"}]
[219,"2023-07-31","2023-07-31",8,60,"2023-09-26",{"$f":"IF(OR(TAB_MEP[[#This Row],[Nb jour avt mep]]=\"-\",TAB_MEP[[#This Row],[Date lancement]]=\"-\"),\"pas de date\",TAB_MEP[[#This Row],[Date lancement]]+TAB_MEP[[#This Row],[Nb jour avt mep]])","v":"2023-09-29"},{"$f":"IF(OR(TAB_MEP[[#This Row],[1ere formation / facturation]]=\"-\",TAB_MEP[[#This Row],[1ere formation / facturation]]>=TODAY()),1,0)","v":0},"Septembre",null,"FR","Part","CF",1,{"$f":"IF(AND(AND(TAB_MEP[[#This Row],[1ere formation / facturation]]<>\"-\",TAB_MEP[[#This Row],[Date de MEP prévisionnelle]]<TAB_MEP[[#This Row],[1ere formation / facturation]],TAB_MEP[[#This Row],[Date de MEP prévisionnelle]]<>\"pas de date\")),1,0)","v":0},{"$f":"IF(AND(TAB_MEP[[#This Row],[1ere formation / facturation]]=\"-\",TAB_MEP[[#This Row],[Date de MEP prévisionnelle]]<TODAY()),1,0)","v":0},{"$f":"IF(TAB_MEP[[#This Row],[1ere formation / facturation]]<>\"-\",TAB_MEP[[#This Row],[1ere formation / facturation]],\"\")","v":"2023-09-26"}]
[220,"2021-05-12","2021-05-27",28,"-","2021-12-15",{"$f":"IF(OR(TAB_MEP[[#This Row],[Nb jour avt mep]]=\"-\",TAB_MEP[[#This Row],[Date lancement]]=\"-\"),\"pas de date\",TAB_MEP[[#This Row],[Date lancement]]+TAB_MEP[[#This Row],[Nb jour avt mep]])","v":"pas de date"},{"$f":"IF(OR(TAB_MEP[[#This Row],[1ere formation / facturation]]=\"-\",TAB_MEP[[#This Row],[1ere formation / facturation]]>=TODAY()),1,0)","v":0},null,null,"BE","SC","CF",0,{"$f":"IF(AND(AND(TAB_MEP[[#This Row],[1ere formation / facturation]]<>\"-\",TAB_MEP[[#This Row],[Date de MEP prévisionnelle]]<TAB_MEP[[#This Row],[1ere formation / facturation]],TAB_MEP[[#This Row],[Date de MEP prévisionnelle]]<>\"pas de date\")),1,0)","v":0},{"$f":"IF(AND(TAB_MEP[[#This Row],[1ere formation / facturation]]=\"-\",TAB_MEP[[#This Row],[Date de MEP prévisionnelle]]<TODAY()),1,0)","v":0},{"$f":"IF(TAB_MEP[[#This Row],[1ere formation / facturation]]<>\"-\",TAB_MEP[[#This Row],[1ere formation / facturation]],\"\")","v":"2021-12-15"}]
[221,"2020-12-09","2020-12-18",19,"-","2021-05-05",{"$f":"IF(OR(TAB_MEP[[#This Row],[Nb jour avt mep]]=\"-\",TAB_MEP[[#This Row],[Date lancement]]=\"-\"),\"pas de date\",TAB_MEP[[#This Row],[Date lancement]]+TAB_MEP[[#This Row],[Nb jour avt mep]])","v":"pas de date"},{"$f":"IF(OR(TAB_MEP[[#This Row],[1ere formation / facturation]]=\"-\",TAB_MEP[[#This Row],[1ere formation / facturation]]>=TODAY()),1,0)","v":0},{"$nulls":3},"SC","CF",0,{"$f":"IF(AND(AND(TAB_MEP[[#This Row],[1ere formation / facturation]]<>\"-\",TAB_MEP[[#This Row],[Date de MEP prévisionnelle]]<TAB_MEP[[#This Row],[1ere formation / facturation]],TAB_MEP[[#This Row],[Date de MEP prévisionnelle]]<>\"pas de date\")),1,0)","v":0},{"$f":"IF(AND(TAB_MEP[[#This Row],[1ere formation / facturation]]=\"-\",TAB_MEP[[#This Row],[Date de MEP prévisionnelle]]<TODAY()),1,0)","v":0},{"$f":"IF(TAB_MEP[[#This Row],[1ere formation / facturation]]<>\"-\",TAB_MEP[[#This Row],[1ere formation / facturation]],\"\")","v":"2021-05-05"}]
[222,"2022-11-29","2022-12-02",14,"-","2023-03-16",{"$f":"IF(OR(TAB_MEP[[#This Row],[Nb jour avt mep]]=\"-\",TAB_MEP[[#This Row],[Date lancement]]=\"-\"),\"pas de date\",TAB_MEP[[#This Row],[Date lancement]]+TAB_MEP[[#This Row],[Nb jour avt mep]])","v":"pas de date"},{"$f":"IF(OR(TAB_MEP[[#This Row],[1ere formation / facturation]]=\"-\",TAB_MEP[[#This Row],[1ere formation / facturation]]>=TODAY()),1,0)","v":0},null,null,"FR","SC","CF",0,{"$f":"IF(AND(AND(TAB_MEP[[#This Row],[1ere formation / facturation]]<>\"-\",TAB_MEP[[#This Row],[Date de MEP prévisionnelle]]<TAB_MEP[[#This Row],[1ere formation / facturation]],TAB_MEP[[#This Row],[Date de MEP prévisionnelle]]<>\"pas de date\")),1,0)","v":0},{"$f":"IF(AND(TAB_MEP[[#This Row],[1ere formation / facturation]]=\"-\",TAB_MEP[[#This Row],[Date de MEP prévisionnelle]]<TODAY()),1,0)","v":0},{"$f":"IF(TAB_MEP[[#This Row],[1ere formation / facturation]]<>\"-\",TAB_MEP[[#This Row],[1ere formation / facturation]],\"\")","v":"2023-03-16"}]
[223,"2022-06-13","2022-06-24",12,"-","2022-09-21",{"$f":"IF(OR(TAB_MEP[[#This Row],[Nb jour avt mep]]=\"-\",TAB_MEP[[#This Row],[Date lancement]]=\"-\"),\"pas de date\",TAB_MEP[[#This Row],[Date lancement]]+TAB_MEP[[#This Row],[Nb jour avt mep]])","v":"pas de date"},{"$f":"IF(OR(TAB_MEP[[#This Row],[1ere formation / facturation]]=\"-\",TAB_MEP[[#This Row],[1ere formation / facturation]]>=TODAY()),1,0)","v":0},null,null,"FR","SC","FF",0,{"$f":"IF(AND(AND(TAB_MEP[[#This Row],[1ere formation / facturation]]<>\"-\",TAB_MEP[[#This Row],[Date de MEP prévisionnelle]]<TAB_MEP[[#This Row],[1ere formation / facturation]],TAB_MEP[[#This Row],[Date de MEP prévisionnelle]]<>\"pas de date\")),1,0)","v":0},{"$f":"IF(AND(TAB_MEP[[#This Row],[1ere formation / facturation]]=\"-\",TAB_MEP[[#This Row],[Date de MEP prévisionnelle]]<TODAY()),1,0)","v":0},{"$f":"IF(TAB_MEP[[#This Row],[1ere formation / facturation]]<>\"-\",TAB_MEP[[#This Row],[1ere formation / facturation]],\"\")","v":"2022-09-21"}]
[224,"2020-08-04","2020-09-01",9,"-","2020-11-06",{"$f":"IF(OR(TAB_MEP[[#This Row],[Nb jour avt mep]]=\"-\",TAB_MEP[[#This Row],[Date lancement]]=\"-\"),\"pas de date\",TAB_MEP[[#This Row],[Date lancement]]+TAB_MEP[[#This Row],[Nb jour avt mep]])","v":"pas de date"},{"$f":"IF(OR(TAB_MEP[[#This Row],[1ere formation / facturation]]=\"-\",TAB_MEP[[#This Row],[1ere formation / facturation]]>=TODAY()),1,0)","v":0},{"$nulls":3},"SC","CF",0,{"$f":"IF(AND(AND(TAB_MEP[[#This Row],[1ere formation / facturation]]<>\"-\",TAB_MEP[[#This Row],[Date de MEP prévisionnelle]]<TAB_MEP[[#This Row],[1ere formation / facturation]],TAB_MEP[[#This Row],[Date de MEP prévisionnelle]]<>\"pas de date\")),1,0)","v":0},{"$f":"IF(AND(TAB_MEP[[#This Row],[1ere formation / facturation]]=\"-\",TAB_MEP[[#This Row],[Date de MEP prévisionnelle]]<TODAY()),1,0)","v":0},{"$f":"IF(TAB_MEP[[#This Row],[1ere formation / facturation]]<>\"-\",TAB_MEP[[#This Row],[1ere formation / facturation]],\"\")","v":"2020-11-06"}]
[225,"2021-01-20","2021-01-28",13,"-","2021-05-04",{"$f":"IF(OR(TAB_MEP[[#This Row],[Nb jour avt mep]]=\"-\",TAB_MEP[[#This Row],[Date lancement]]=\"-\"),\"pas de date\",TAB_MEP[[#This Row],[Date lancement]]+TAB_MEP[[#This Row],[Nb jour avt mep]])","v":"pas de date"},{"$f":"IF(OR(TAB_MEP[[#This Row],[1ere formation / facturation]]=\"-\",TAB_MEP[[#This Row],[1ere formation / facturation]]>=TODAY()),1,0)","v":0},{"$nulls":3},"SC","TF",0,{"$f":"IF(AND(AND(TAB_MEP[[#This Row],[1ere formation / facturation]]<>\"-\",TAB_MEP[[#This Row],[Date de MEP prévisionnelle]]<TAB_MEP[[#This Row],[1ere formation / facturation]],TAB_MEP[[#This Row],[Date de MEP prévisionnelle]]<>\"pas de date\")),1,0)","v":0},{"$f":"IF(AND(TAB_MEP[[#This Row],[1ere formation / facturation]]=\"-\",TAB_MEP[[#This Row],[Date de MEP prévisionnelle]]<TODAY()),1,0)","v":0},{"$f":"IF(TAB_MEP[[#This Row],[1ere formation / facturation]]<>\"-\",TAB_MEP[[#This Row],[1ere formation / facturation]],\"\")","v":"2021-05-04"}]
[226,"2022-03-15","2022-04-13",9,"-","2022-06-15",{"$f":"IF(OR(TAB_MEP[[#This Row],[Nb jour avt mep]]=\"-\",TAB_MEP[[#This Row],[Date lancement]]=\"-\"),\"pas de date\",TAB_MEP[[#This Row],[Date lancement]]+TAB_MEP[[#This Row],[Nb jour avt mep]])","v":"pas de date"},{"$f":"IF(OR(TAB_MEP[[#This Row],[1ere formation / facturation]]=\"-\",TAB_MEP[[#This Row],[1ere formation / facturation]]>=TODAY()),1,0)","v":0},{"$nulls":3},"SC","CF",0,{"$f":"IF(AND(AND(TAB_MEP[[#This Row],[1ere formation / facturation]]<>\"-\",TAB_MEP[[#This Row],[Date de MEP prévisionnelle]]<TAB_MEP[[#This Row],[1ere formation / facturation]],TAB_MEP[[#This Row],[Date de MEP prévisionnelle]]<>\"pas de date\")),1,0)","v":0},{"$f":"IF(AND(TAB_MEP[[#This Row],[1ere formation / facturation]]=\"-\",TAB_MEP[[#This Row],[Date de MEP prévisionnelle]]<TODAY()),1,0)","v":0},{"$f":"IF(TAB_MEP[[#This Row],[1ere formation / facturation]]<>\"-\",TAB_MEP[[#This Row],[1ere formation / facturation]],\"\")","v":"2022-06-15"}]
[227,"2023-08-23","2023-09-11",6,92,"-",{"$f":"IF(OR(TAB_MEP[[#This Row],[Nb jour avt mep]]=\"-\",TAB_MEP[[#This Row],[Date lancement]]=\"-\"),\"pas de date\",TAB_MEP[[#This Row],[Date lancement]]+TAB_MEP[[#This Row],[Nb jour avt mep]])","v":"2023-12-12"},{"$f":"IF(OR(TAB_MEP[[#This Row],[1ere formation / facturation]]=\"-\",TAB_MEP[[#This Row],[1ere formation / facturation]]>=TODAY()),1,0)","v":1},null,null,"FR","SC","CF",1,{"$f":"IF(AND(AND(TAB_MEP[[#This Row],[1ere formation / facturation]]<>\"-\",TAB_MEP[[#This Row],[Date de MEP prévisionnelle]]<TAB_MEP[[#This Row],[1ere formation / facturation]],TAB_MEP[[#This Row],[Date de MEP prévisionnelle]]<>\"pas de date\")),1,0)","v":0},{"$f":"IF(AND(TAB_MEP[[#This Row],[1ere formation / facturation]]=\"-\",TAB_MEP[[#This Row],[Date de MEP prévisionnelle]]<TODAY()),1,0)","v":0},{"$f":"IF(TAB_MEP[[#This Row],[1ere formation / facturation]]<>\"-\",TAB_MEP[[#This Row],[1ere formation / facturation]],\"\")","v":""}]
[228,"2021-12-17","2021-12-17",19,"-","2022-05-01",{"$f":"IF(OR(TAB_MEP[[#This Row],[Nb jour avt mep]]=\"-\",TAB_MEP[[#This Row],[Date lancement]]=\"-\"),\"pas de date\",TAB_MEP[[#This Row],[Date lancement]]+TAB_MEP[[#This Row],[Nb jour avt mep]])","v":"pas de date"},{"$f":"IF(OR(TAB_MEP[[#This Row],[1ere formation / facturation]]=\"-\",TAB_MEP[[#This Row],[1ere formation / facturation]]>=TODAY()),1,0)","v":0},null,null,"FR","Part","CF",1,{"$f":"IF(AND(AND(TAB_MEP[[#This Row],[1ere formation / facturation]]<>\"-\",TAB_MEP[[#This Row],[Date de MEP prévisionnelle]]<TAB_MEP[[#This Row],[1ere formation / facturation]],TAB_MEP[[#This Row],[Date de MEP prévisionnelle]]<>\"pas de date\")),1,0)","v":0},{"$f":"IF(AND(TAB_MEP[[#This Row],[1ere formation / facturation]]=\"-\",TAB_MEP[[#This Row],[Date de MEP prévisionnelle]]<TODAY()),1,0)","v":0},{"$f":"IF(TAB_MEP[[#This Row],[1ere formation / facturation]]<>\"-\",TAB_MEP[[#This Row],[1ere formation / facturation]],\"\")","v":"2022-05-01"}]
[229,"2020-12-03","2020-12-03",4,"-","2021-01-01",{"$f":"IF(OR(TAB_MEP[[#This Row],[Nb jour avt mep]]=\"-\",TAB_MEP[[#This Row],[Date lancement]]=\"-\"),\"pas de date\",TAB_MEP[[#This Row],[Date lancement]]+TAB_MEP[[#This Row],[Nb jour avt mep]])","v":"pas de date"},{"$f":"IF(OR(TAB_MEP[[#This Row],[1ere formation / facturation]]=\"-\",TAB_MEP[[#This Row],[1ere formation / facturation]]>=TODAY()),1,0)","v":0},{"$nulls":3},"Part","CF",0,{"$f":"IF(AND(AND(TAB_MEP[[#This Row],[1ere formation / facturation]]<>\"-\",TAB_MEP[[#This Row],[Date de MEP prévisionnelle]]<TAB_MEP[[#This Row],[1ere formation / facturation]],TAB_MEP[[#This Row],[Date de MEP prévisionnelle]]<>\"pas de date\")),1,0)","v":0},{"$f":"IF(AND(TAB_MEP[[#This Row],[1ere formation / facturation]]=\"-\",TAB_MEP[[#This Row],[Date de MEP prévisionnelle]]<TODAY()),1,0)","v":0},{"$f":"IF(TAB_MEP[[#This Row],[1ere formation / facturation]]<>\"-\",TAB_MEP[[#This Row],[1ere formation / facturation]],\"\")","v":"2021-01-01"}]
[230,"2022-01-25","2022-02-17",13,"-","2022-05-19",{"$f":"IF(OR(TAB_MEP[[#This Row],[Nb jour avt mep]]=\"-\",TAB_MEP[[#This Row],[Date lancement]]=\"-\"),\"pas de date\",TAB_MEP[[#This Row],[Date lancement]]+TAB_MEP[[#This Row],[Nb jour avt mep]])","v":"pas de date"},{"$f":"IF(OR(TAB_MEP[[#This Row],[1ere formation / facturation]]=\"-\",TAB_MEP[[#This Row],[1ere formation / facturation]]>=TODAY()),1,0)","v":0},{"$nulls":3},"SC","CF",0,{"$f":"IF(AND(AND(TAB_MEP[[#This Row],[1ere formation / facturation]]<>\"-\",TAB_MEP[[#This Row],[Date de MEP prévisionnelle]]<TAB_MEP[[#This Row],[1ere formation / facturation]],TAB_MEP[[#This Row],[Date de MEP prévisionnelle]]<>\"pas de date\")),1,0)","v":0},{"$f":"IF(AND(TAB_MEP[[#This Row],[1ere formation / facturation]]=\"-\",TAB_MEP[[#This Row],[Date de MEP prévisionnelle]]<TODAY()),1,0)","v":0},{"$f":"IF(TAB_MEP[[#This Row],[1ere formation / facturation]]<>\"-\",TAB_MEP[[#This Row],[1ere formation / facturation]],\"\")","v":"2022-05-19"}]
[231,"2020-12-07","2020-12-10",28,"-","2021-06-25",{"$f":"IF(OR(TAB_MEP[[#This Row],[Nb jour avt mep]]=\"-\",TAB_MEP[[#This Row],[Date lancement]]=\"-\"),\"pas de date\",TAB_MEP[[#This Row],[Date lancement]]+TAB_MEP[[#This Row],[Nb jour avt mep]])","v":"pas de date"},{"$f":"IF(OR(TAB_MEP[[#This Row],[1ere formation / facturation]]=\"-\",TAB_MEP[[#This Row],[1ere formation / facturation]]>=TODAY()),1,0)","v":0},{"$nulls":3},"SC","CF",0,{"$f":"IF(AND(AND(TAB_MEP[[#This Row],[1ere formation / facturation]]<>\"-\",TAB_MEP[[#This Row],[Date de MEP prévisionnelle]]<TAB_MEP[[#This Row],[1ere formation / facturation]],TAB_MEP[[#This Row],[Date de MEP prévisionnelle]]<>\"pas de date\")),1,0)","v":0},{"$f":"IF(AND(TAB_MEP[[#This Row],[1ere formation / facturation]]=\"-\",TAB_MEP[[#This Row],[Date de MEP prévisionnelle]]<TODAY()),1,0)","v":0},{"$f":"IF(TAB_MEP[[#This Row],[1ere formation / facturation]]<>\"-\",TAB_MEP[[#This Row],[1ere formation / facturation]],\"\")","v":"2021-06-25"}]
[232,"2023-04-07","2023-04-18",5,70,"2023-05-26",{"$f":"IF(OR(TAB_MEP[[#This Row],[Nb jour avt mep]]=\"-\",TAB_MEP[[#This Row],[Date lancement]]=\"-\"),\"pas de date\",TAB_MEP[[#This Row],[Date lancement]]+TAB_MEP[[#This Row],[Nb jour avt mep]])","v":"2023-06-27"},{"$f":"IF(OR(TAB_MEP[[#This Row],[1ere formation / facturation]]=\"-\",TAB_MEP[[#This Row],[1ere formation / facturation]]>=TODAY()),1,0)","v":0},null,null,"FR","SC","CF",0,{"$f":"IF(AND(AND(TAB_MEP[[#This Row],[1ere formation / facturation]]<>\"-\",TAB_MEP[[#This Row],[Date de MEP prévisionnelle]]<TAB_MEP[[#This Row],[1ere formation / facturation]],TAB_MEP[[#This Row],[Date de MEP prévisionnelle]]<>\"pas de date\")),1,0)","v":0},{"$f":"IF(AND(TAB_MEP[[#This Row],[1ere formation / facturation]]=\"-\",TAB_MEP[[#This Row],[Date de MEP prévisionnelle]]<TODAY()),1,0)","v":0},{"$f":"IF(TAB_MEP[[#This Row],[1ere formation / facturation]]<>\"-\",TAB_MEP[[#This Row],[1ere formation / facturation]],\"\")","v":"2023-05-26"}]
[233,"2021-01-18","2021-01-28",34,"-","2021-09-28",{"$f":"IF(OR(TAB_MEP[[#This Row],[Nb jour avt mep]]=\"-\",TAB_MEP[[#This Row],[Date lancement]]=\"-\"),\"pas de date\",TAB_MEP[[#This Row],[Date lancement]]+TAB_MEP[[#This Row],[Nb jour avt mep]])","v":"pas de date"},{"$f":"IF(OR(TAB_MEP[[#This Row],[1ere formation / facturation]]=\"-\",TAB_MEP[[#This Row],[1ere formation / facturation]]>=TODAY()),1,0)","v":0},{"$nulls":3},"SC","CF",0,{"$f":"IF(AND(AND(TAB_MEP[[#This Row],[1ere formation / facturation]]<>\"-\",TAB_MEP[[#This Row],[Date de MEP prévisionnelle]]<TAB_MEP[[#This Row],[1ere formation / facturation]],TAB_MEP[[#This Row],[Date de MEP prévisionnelle]]<>\"pas de date\")),1,0)","v":0},{"$f":"IF(AND(TAB_MEP[[#This Row],[1ere formation / facturation]]=\"-\",TAB_MEP[[#This Row],[Date de MEP prévisionnelle]]<TODAY()),1,0)","v":0},{"$f":"IF(TAB_MEP[[#This Row],[1ere formation / facturation]]<>\"-\",TAB_MEP[[#This Row],[1ere formation / facturation]],\"\")","v":"2021-09-28"}]
[234,"2021-11-02","2021-11-02",6,"-","2021-12-20",{"$f":"IF(OR(TAB_MEP[[#This Row],[Nb jour avt mep]]=\"-\",TAB_MEP[[#This Row],[Date lancement]]=\"-\"),\"pas de date\",TAB_MEP[[#This Row],[Date lancement]]+TAB_MEP[[#This Row],[Nb jour avt mep]])","v":"pas de date"},{"$f":"IF(OR(TAB_MEP[[#This Row],[1ere formation / facturation]]=\"-\",TAB_MEP[[#This Row],[1ere formation / facturation]]>=TODAY()),1,0)","v":0},{"$nulls":3},"Part","CF",0,{"$f":"IF(AND(AND(TAB_MEP[[#This Row],[1ere formation / facturation]]<>\"-\",TAB_MEP[[#This Row],[Date de MEP prévisionnelle]]<TAB_MEP[[#This Row],[1ere formation / facturation]],TAB_MEP[[#This Row],[Date de MEP prévisionnelle]]<>\"pas de date\")),1,0)","v":0},{"$f":"IF(AND(TAB_MEP[[#This Row],[1ere formation / facturation]]=\"-\",TAB_MEP[[#This Row],[Date de MEP prévisionnelle]]<TODAY()),1,0)","v":0},{"$f":"IF(TAB_MEP[[#This Row],[1ere formation / facturation]]<>\"-\",TAB_MEP[[#This Row],[1ere formation / facturation]],\"\")","v":"2021-12-20"}]
[235,"2022-10-04","2022-10-17",6,"-","2022-11-29",{"$f":"IF(OR(TAB_MEP[[#This Row],[Nb jour avt mep]]=\"-\",TAB_MEP[[#This Row],[Date lancement]]=\"-\"),\"pas de date\",TAB_MEP[[#This Row],[Date lancement]]+TAB_MEP[[#This Row],[Nb jour avt mep]])","v":"pas de date"},{"$f":"IF(OR(TAB_MEP[[#This Row],[1ere formation / facturation]]=\"-\",TAB_MEP[[#This Row],[1ere formation / facturation]]>=TODAY()),1,0)","v":0},null,null,"FR","SC","CF",0,{"$f":"IF(AND(AND(TAB_MEP[[#This Row],[1ere formation / facturation]]<>\"-\",TAB_MEP[[#This Row],[Date de MEP prévisionnelle]]<TAB_MEP[[#This Row],[1ere formation / facturation]],TAB_MEP[[#This Row],[Date de MEP prévisionnelle]]<>\"pas de date\")),1,0)","v":0},{"$f":"IF(AND(TAB_MEP[[#This Row],[1ere formation / facturation]]=\"-\",TAB_MEP[[#This Row],[Date de MEP prévisionnelle]]<TODAY()),1,0)","v":0},{"$f":"IF(TAB_MEP[[#This Row],[1ere formation / facturation]]<>\"-\",TAB_MEP[[#This Row],[1ere formation / facturation]],\"\")","v":"2022-11-29"}]
[236,"2021-07-29","2021-09-08",18,"-","2022-01-17",{"$f":"IF(OR(TAB_MEP[[#This Row],[Nb jour avt mep]]=\"-\",TAB_MEP[[#This Row],[Date lancement]]=\"-\"),\"pas de date\",TAB_MEP[[#This Row],[Date lancement]]+TAB_MEP[[#This Row],[Nb jour avt mep]])","v":"pas de date"},{"$f":"IF(OR(TAB_MEP[[#This Row],[1ere formation / facturation]]=\"-\",TAB_MEP[[#This Row],[1ere formation / facturation]]>=TODAY()),1,0)","v":0},{"$nulls":3},"SC","CF",0,{"$f":"IF(AND(AND(TAB_MEP[[#This Row],[1ere formation / facturation]]<>\"-\",TAB_MEP[[#This Row],[Date de MEP prévisionnelle]]<TAB_MEP[[#This Row],[1ere formation / facturation]],TAB_MEP[[#This Row],[Date de MEP prévisionnelle]]<>\"pas de date\")),1,0)","v":0},{"$f":"IF(AND(TAB_MEP[[#This Row],[1ere formation / facturation]]=\"-\",TAB_MEP[[#This Row],[Date de MEP prévisionnelle]]<TODAY()),1,0)","v":0},{"$f":"IF(TAB_MEP[[#This Row],[1ere formation / facturation]]<>\"-\",TAB_MEP[[#This Row],[1ere formation / facturation]],\"\")","v":"2022-01-17"}]
[237,"2022-10-05","2022-10-19",5,"-","2022-11-24",{"$f":"IF(OR(TAB_MEP[[#This Row],[Nb jour avt mep]]=\"-\",TAB_MEP[[#This Row],[Date lancement]]=\"-\"),\"pas de date\",TAB_MEP[[#This Row],[Date lancement]]+TAB_MEP[[#This Row],[Nb jour avt mep]])","v":"pas de date"},{"$f":"IF(OR(TAB_MEP[[#This Row],[1ere formation / facturation]]=\"-\",TAB_MEP[[#This Row],[1ere formation / facturation]]>=TODAY()),1,0)","v":0},null,null,"FR","SC","CF",0,{"$f":"IF(AND(AND(TAB_MEP[[#This Row],[1ere formation / facturation]]<>\"-\",TAB_MEP[[#This Row],[Date de MEP prévisionnelle]]<TAB_MEP[[#This Row],[1ere formation / facturation]],TAB_MEP[[#This Row],[Date de MEP prévisionnelle]]<>\"pas de date\")),1,0)","v":0},{"$f":"IF(AND(TAB_MEP[[#This Row],[1ere formation / facturation]]=\"-\",TAB_MEP[[#This Row],[Date de MEP prévisionnelle]]<TODAY()),1,0)","v":0},{"$f":"IF(TAB_MEP[[#This Row],[1ere formation / facturation]]<>\"-\",TAB_MEP[[#This Row],[1ere formation / facturation]],\"\")","v":"2022-11-24"}]
[238,"2019-09-04","2019-09-04",105,"-","2021-09-08",{"$f":"IF(OR(TAB_MEP[[#This Row],[Nb jour avt mep]]=\"-\",TAB_MEP[[#This Row],[Date lancement]]=\"-\"),\"pas de date\",TAB_MEP[[#This Row],[Date lancement]]+TAB_MEP[[#This Row],[Nb jour avt mep]])","v":"pas de date"},{"$f":"IF(OR(TAB_MEP[[#This Row],[1ere formation / facturation]]=\"-\",TAB_MEP[[#This Row],[1ere formation / facturation]]>=TODAY()),1,0)","v":0},{"$nulls":3},"SC","CF",0,{"$f":"IF(AND(AND(TAB_MEP[[#This Row],[1ere formation / facturation]]<>\"-\",TAB_MEP[[#This Row],[Date de MEP prévisionnelle]]<TAB_MEP[[#This Row],[1ere formation / facturation]],TAB_MEP[[#This Row],[Date de MEP prévisionnelle]]<>\"pas de date\")),1,0)","v":0},{"$f":"IF(AND(TAB_MEP[[#This Row],[1ere formation / facturation]]=\"-\",TAB_MEP[[#This Row],[Date de MEP prévisionnelle]]<TODAY()),1,0)","v":0},{"$f":"IF(TAB_MEP[[#This Row],[1ere formation / facturation]]<>\"-\",TAB_MEP[[#This Row],[1ere formation / facturation]],\"\")","v":"2021-09-08"}]
[239,"2022-10-19","2022-11-03",2,"-","2022-11-18",{"$f":"IF(OR(TAB_MEP[[#This Row],[Nb jour avt mep]]=\"-\",TAB_MEP[[#This Row],[Date lancement]]=\"-\"),\"pas de date\",TAB_MEP[[#This Row],[Date lancement]]+TAB_MEP[[#This Row],[Nb jour avt mep]])","v":"pas de date"},{"$f":"IF(OR(TAB_MEP[[#This Row],[1ere formation / facturation]]=\"-\",TAB_MEP[[#This Row],[1ere formation / facturation]]>=TODAY()),1,0)","v":0},null,null,"FR","SC","CF",0,{"$f":"IF(AND(AND(TAB_MEP[[#This Row],[1ere formation / facturation]]<>\"-\",TAB_MEP[[#This Row],[Date de MEP prévisionnelle]]<TAB_MEP[[#This Row],[1ere formation / facturation]],TAB_MEP[[#This Row],[Date de MEP prévisionnelle]]<>\"pas de date\")),1,0)","v":0},{"$f":"IF(AND(TAB_MEP[[#This Row],[1ere formation / facturation]]=\"-\",TAB_MEP[[#This Row],[Date de MEP prévisionnelle]]<TODAY()),1,0)","v":0},{"$f":"IF(TAB_MEP[[#This Row],[1ere formation / facturation]]<>\"-\",TAB_MEP[[#This Row],[1ere formation / facturation]],\"\")","v":"2022-11-18"}]
[240,"2023-06-23","2023-06-29",4,"-","2023-07-31",{"$f":"IF(OR(TAB_MEP[[#This Row],[Nb jour avt mep]]=\"-\",TAB_MEP[[#This Row],[Date lancement]]=\"-\"),\"pas de date\",TAB_MEP[[#This Row],[Date lancement]]+TAB_MEP[[#This Row],[Nb jour avt mep]])","v":"pas de date"},{"$f":"IF(OR(TAB_MEP[[#This Row],[1ere formation / facturation]]=\"-\",TAB_MEP[[#This Row],[1ere formation / facturation]]>=TODAY()),1,0)","v":0},null,null,"FR","GC","CF",1,{"$f":"IF(AND(AND(TAB_MEP[[#This Row],[1ere formation / facturation]]<>\"-\",TAB_MEP[[#This Row],[Date de MEP prévisionnelle]]<TAB_MEP[[#This Row],[1ere formation / facturation]],TAB_MEP[[#This Row],[Date de MEP prévisionnelle]]<>\"pas de date\")),1,0)","v":0},{"$f":"IF(AND(TAB_MEP[[#This Row],[1ere formation / facturation]]=\"-\",TAB_MEP[[#This Row],[Date de MEP prévisionnelle]]<TODAY()),1,0)","v":0},{"$f":"IF(TAB_MEP[[#This Row],[1ere formation / facturation]]<>\"-\",TAB_MEP[[#This Row],[1ere formation / facturation]],\"\")","v":"2023-07-31"}]
[241,"2023-06-20","2023-06-30",4,35,"2023-07-31",{"$f":"IF(OR(TAB_MEP[[#This Row],[Nb jour avt mep]]=\"-\",TAB_MEP[[#This Row],[Date lancement]]=\"-\"),\"pas de date\",TAB_MEP[[#This Row],[Date lancement]]+TAB_MEP[[#This Row],[Nb jour avt mep]])","v":"2023-08-04"},{"$f":"IF(OR(TAB_MEP[[#This Row],[1ere formation / facturation]]=\"-\",TAB_MEP[[#This Row],[1ere formation / facturation]]>=TODAY()),1,0)","v":0},null,null,"FR","GC","CF",0,{"$f":"IF(AND(AND(TAB_MEP[[#This Row],[1ere formation / facturation]]<>\"-\",TAB_MEP[[#This Row],[Date de MEP prévisionnelle]]<TAB_MEP[[#This Row],[1ere formation / facturation]],TAB_MEP[[#This Row],[Date de MEP prévisionnelle]]<>\"pas de date\")),1,0)","v":0},{"$f":"IF(AND(TAB_MEP[[#This Row],[1ere formation / facturation]]=\"-\",TAB_MEP[[#This Row],[Date de MEP prévisionnelle]]<TODAY()),1,0)","v":0},{"$f":"IF(TAB_MEP[[#This Row],[1ere formation / facturation]]<>\"-\",TAB_MEP[[#This Row],[1ere formation / facturation]],\"\")","v":"2023-07-31"}]
[242,"2021-12-17","2022-01-20",27,"-","2022-07-28",{"$f":"IF(OR(TAB_MEP[[#This Row],[Nb jour avt mep]]=\"-\",TAB_MEP[[#This Row],[Date lancement]]=\"-\"),\"pas de date\",TAB_MEP[[#This Row],[Date lancement]]+TAB_MEP[[#This Row],[Nb jour avt mep]])","v":"pas de date"},{"$f":"IF(OR(TAB_MEP[[#This Row],[1ere formation / facturation]]=\"-\",TAB_MEP[[#This Row],[1ere formation / facturation]]>=TODAY()),1,0)","v":0},null,null,"FR","SC","CF",0,{"$f":"IF(AND(AND(TAB_MEP[[#This Row],[1ere formation / facturation]]<>\"-\",TAB_MEP[[#This Row],[Date de MEP prévisionnelle]]<TAB_MEP[[#This Row],[1ere formation / facturation]],TAB_MEP[[#This Row],[Date de MEP prévisionnelle]]<>\"pas de date\")),1,0)","v":0},{"$f":"IF(AND(TAB_MEP[[#This Row],[1ere formation / facturation]]=\"-\",TAB_MEP[[#This Row],[Date de MEP prévisionnelle]]<TODAY()),1,0)","v":0},{"$f":"IF(TAB_MEP[[#This Row],[1ere formation / facturation]]<>\"-\",TAB_MEP[[#This Row],[1ere formation / facturation]],\"\")","v":"2022-07-28"}]
[243,"2021-09-29","2021-10-13",7,"-","2021-12-02",{"$f":"IF(OR(TAB_MEP[[#This Row],[Nb jour avt mep]]=\"-\",TAB_MEP[[#This Row],[Date lancement]]=\"-\"),\"pas de date\",TAB_MEP[[#This Row],[Date lancement]]+TAB_MEP[[#This Row],[Nb jour avt mep]])","v":"pas de date"},{"$f":"IF(OR(TAB_MEP[[#This Row],[1ere formation / facturation]]=\"-\",TAB_MEP[[#This Row],[1ere formation / facturation]]>=TODAY()),1,0)","v":0},{"$nulls":3},"SC","CF",0,{"$f":"IF(AND(AND(TAB_MEP[[#This Row],[1ere formation / facturation]]<>\"-\",TAB_MEP[[#This Row],[Date de MEP prévisionnelle]]<TAB_MEP[[#This Row],[1ere formation / facturation]],TAB_MEP[[#This Row],[Date de MEP prévisionnelle]]<>\"pas de date\")),1,0)","v":0},{"$f":"IF(AND(TAB_MEP[[#This Row],[1ere formation / facturation]]=\"-\",TAB_MEP[[#This Row],[Date de MEP prévisionnelle]]<TODAY()),1,0)","v":0},{"$f":"IF(TAB_MEP[[#This Row],[1ere formation / facturation]]<>\"-\",TAB_MEP[[#This Row],[1ere formation / facturation]],\"\")","v":"2021-12-02"}]
[244,"2020-11-10","2021-02-04",1,"-","2021-02-15",{"$f":"IF(OR(TAB_MEP[[#This Row],[Nb jour avt mep]]=\"-\",TAB_MEP[[#This Row],[Date lancement]]=\"-\"),\"pas de date\",TAB_MEP[[#This Row],[Date lancement]]+TAB_MEP[[#This Row],[Nb jour avt mep]])","v":"pas de date"},{"$f":"IF(OR(TAB_MEP[[#This Row],[1ere formation / facturation]]=\"-\",TAB_MEP[[#This Row],[1ere formation / facturation]]>=TODAY()),1,0)","v":0},{"$nulls":3},"Part","CF",0,{"$f":"IF(AND(AND(TAB_MEP[[#This Row],[1ere formation / facturation]]<>\"-\",TAB_MEP[[#This Row],[Date de MEP prévisionnelle]]<TAB_MEP[[#This Row],[1ere formation / facturation]],TAB_MEP[[#This Row],[Date de MEP prévisionnelle]]<>\"pas de date\")),1,0)","v":0},{"$f":"IF(AND(TAB_MEP[[#This Row],[1ere formation / facturation]]=\"-\",TAB_MEP[[#This Row],[Date de MEP prévisionnelle]]<TODAY()),1,0)","v":0},{"$f":"IF(TAB_MEP[[#This Row],[1ere formation / facturation]]<>\"-\",TAB_MEP[[#This Row],[1ere formation / facturation]],\"\")","v":"2021-02-15"}]
[245,"2022-07-13","2022-09-07",41,100,"2023-06-21",{"$f":"IF(OR(TAB_MEP[[#This Row],[Nb jour avt mep]]=\"-\",TAB_MEP[[#This Row],[Date lancement]]=\"-\"),\"pas de date\",TAB_MEP[[#This Row],[Date lancement]]+TAB_MEP[[#This Row],[Nb jour avt mep]])","v":"2022-12-16"},{"$f":"IF(OR(TAB_MEP[[#This Row],[1ere formation / facturation]]=\"-\",TAB_MEP[[#This Row],[1ere formation / facturation]]>=TODAY()),1,0)","v":0},null,null,"FR","SC","CF",1,{"$f":"IF(AND(AND(TAB_MEP[[#This Row],[1ere formation / facturation]]<>\"-\",TAB_MEP[[#This Row],[Date de MEP prévisionnelle]]<TAB_MEP[[#This Row],[1ere formation / facturation]],TAB_MEP[[#This Row],[Date de MEP prévisionnelle]]<>\"pas de date\")),1,0)","v":1},{"$f":"IF(AND(TAB_MEP[[#This Row],[1ere formation / facturation]]=\"-\",TAB_MEP[[#This Row],[Date de MEP prévisionnelle]]<TODAY()),1,0)","v":0},{"$f":"IF(TAB_MEP[[#This Row],[1ere formation / facturation]]<>\"-\",TAB_MEP[[#This Row],[1ere formation / facturation]],\"\")","v":"2023-06-21"}]
[246,"2023-08-23","2023-09-13",6,79,"-",{"$f":"IF(OR(TAB_MEP[[#This Row],[Nb jour avt mep]]=\"-\",TAB_MEP[[#This Row],[Date lancement]]=\"-\"),\"pas de date\",TAB_MEP[[#This Row],[Date lancement]]+TAB_MEP[[#This Row],[Nb jour avt mep]])","v":"2023-12-01"},{"$f":"IF(OR(TAB_MEP[[#This Row],[1ere formation / facturation]]=\"-\",TAB_MEP[[#This Row],[1ere formation / facturation]]>=TODAY()),1,0)","v":1},null,null,"FR","SC","CF",1,{"$f":"IF(AND(AND(TAB_MEP[[#This Row],[1ere formation / facturation]]<>\"-\",TAB_MEP[[#This Row],[Date de MEP prévisionnelle]]<TAB_MEP[[#This Row],[1ere formation / facturation]],TAB_MEP[[#This Row],[Date de MEP prévisionnelle]]<>\"pas de date\")),1,0)","v":0},{"$f":"IF(AND(TAB_MEP[[#This Row],[1ere formation / facturation]]=\"-\",TAB_MEP[[#This Row],[Date de MEP prévisionnelle]]<TODAY()),1,0)","v":0},{"$f":"IF(TAB_MEP[[#This Row],[1ere formation / facturation]]<>\"-\",TAB_MEP[[#This Row],[1ere formation / facturation]],\"\")","v":""}]
[247,"2022-06-13","2022-06-30",17,"-","2022-10-27",{"$f":"IF(OR(TAB_MEP[[#This Row],[Nb jour avt mep]]=\"-\",TAB_MEP[[#This Row],[Date lancement]]=\"-\"),\"pas de date\",TAB_MEP[[#This Row],[Date lancement]]+TAB_MEP[[#This Row],[Nb jour avt mep]])","v":"pas de date"},{"$f":"IF(OR(TAB_MEP[[#This Row],[1ere formation / facturation]]=\"-\",TAB_MEP[[#This Row],[1ere formation / facturation]]>=TODAY()),1,0)","v":0},null,null,"FR","SC","CF",0,{"$f":"IF(AND(AND(TAB_MEP[[#This Row],[1ere formation / facturation]]<>\"-\",TAB_MEP[[#This Row],[Date de MEP prévisionnelle]]<TAB_MEP[[#This Row],[1ere formation / facturation]],TAB_MEP[[#This Row],[Date de MEP prévisionnelle]]<>\"pas de date\")),1,0)","v":0},{"$f":"IF(AND(TAB_MEP[[#This Row],[1ere formation / facturation]]=\"-\",TAB_MEP[[#This Row],[Date de MEP prévisionnelle]]<TODAY()),1,0)","v":0},{"$f":"IF(TAB_MEP[[#This Row],[1ere formation / facturation]]<>\"-\",TAB_MEP[[#This Row],[1ere formation / facturation]],\"\")","v":"2022-10-27"}]
[248,"2023-07-19","2023-09-13",6,70,"-",{"$f":"IF(OR(TAB_MEP[[#This Row],[Nb jour avt mep]]=\"-\",TAB_MEP[[#This Row],[Date lancement]]=\"-\"),\"pas de date\",TAB_MEP[[#This Row],[Date lancement]]+TAB_MEP[[#This Row],[Nb jour avt mep]])","v":"2023-11-22"},{"$f":"IF(OR(TAB_MEP[[#This Row],[1ere formation / facturation]]=\"-\",TAB_MEP[[#This Row],[1ere formation / facturation]]>=TODAY()),1,0)","v":1},null,null,"FR","SC","CF",1,{"$f":"IF(AND(AND(TAB_MEP[[#This Row],[1ere formation / facturation]]<>\"-\",TAB_MEP[[#This Row],[Date de MEP prévisionnelle]]<TAB_MEP[[#This Row],[1ere formation / facturation]],TAB_MEP[[#This Row],[Date de MEP prévisionnelle]]<>\"pas de date\")),1,0)","v":0},{"$f":"IF(AND(TAB_MEP[[#This Row],[1ere formation / facturation]]=\"-\",TAB_MEP[[#This Row],[Date de MEP prévisionnelle]]<TODAY()),1,0)","v":0},{"$f":"IF(TAB_MEP[[#This Row],[1ere formation / facturation]]<>\"-\",TAB_MEP[[#This Row],[1ere formation / facturation]],\"\")","v":""}]
[249,"2023-01-27","2023-02-24",8,"-","2023-04-26",{"$f":"IF(OR(TAB_MEP[[#This Row],[Nb jour avt mep]]=\"-\",TAB_MEP[[#This Row],[Date lancement]]=\"-\"),\"pas de date\",TAB_MEP[[#This Row],[Date lancement]]+TAB_MEP[[#This Row],[Nb jour avt mep]])","v":"pas de date"},{"$f":"IF(OR(TAB_MEP[[#This Row],[1ere formation / facturation]]=\"-\",TAB_MEP[[#This Row],[1ere formation / facturation]]>=TODAY()),1,0)","v":0},null,null,"FR","SC","CF",0,{"$f":"IF(AND(AND(TAB_MEP[[#This Row],[1ere formation / facturation]]<>\"-\",TAB_MEP[[#This Row],[Date de MEP prévisionnelle]]<TAB_MEP[[#This Row],[1ere formation / facturation]],TAB_MEP[[#This Row],[Date de MEP prévisionnelle]]<>\"pas de date\")),1,0)","v":0},{"$f":"IF(AND(TAB_MEP[[#This Row],[1ere formation / facturation]]=\"-\",TAB_MEP[[#This Row],[Date de MEP prévisionnelle]]<TODAY()),1,0)","v":0},{"$f":"IF(TAB_MEP[[#This Row],[1ere formation / facturation]]<>\"-\",TAB_MEP[[#This Row],[1ere formation / facturation]],\"\")","v":"2023-04-26"}]
[250,"2023-09-20","2023-09-19",5,"-","-",{"$f":"IF(OR(TAB_MEP[[#This Row],[Nb jour avt mep]]=\"-\",TAB_MEP[[#This Row],[Date lancement]]=\"-\"),\"pas de date\",TAB_MEP[[#This Row],[Date lancement]]+TAB_MEP[[#This Row],[Nb jour avt mep]])","v":"pas de date"},{"$f":"IF(OR(TAB_MEP[[#This Row],[1ere formation / facturation]]=\"-\",TAB_MEP[[#This Row],[1ere formation / facturation]]>=TODAY()),1,0)","v":1},"Novembre",null,"IT","SC","CF",1,{"$f":"IF(AND(AND(TAB_MEP[[#This Row],[1ere formation / facturation]]<>\"-\",TAB_MEP[[#This Row],[Date de MEP prévisionnelle]]<TAB_MEP[[#This Row],[1ere formation / facturation]],TAB_MEP[[#This Row],[Date de MEP prévisionnelle]]<>\"pas de date\")),1,0)","v":0},{"$f":"IF(AND(TAB_MEP[[#This Row],[1ere formation / facturation]]=\"-\",TAB_MEP[[#This Row],[Date de MEP prévisionnelle]]<TODAY()),1,0)","v":0},{"$f":"IF(TAB_MEP[[#This Row],[1ere formation / facturation]]<>\"-\",TAB_MEP[[#This Row],[1ere formation / facturation]],\"\")","v":""}]
[251,"2023-08-02","2023-08-02",5,60,"2023-09-11",{"$f":"IF(OR(TAB_MEP[[#This Row],[Nb jour avt mep]]=\"-\",TAB_MEP[[#This Row],[Date lancement]]=\"-\"),\"pas de date\",TAB_MEP[[#This Row],[Date lancement]]+TAB_MEP[[#This Row],[Nb jour avt mep]])","v":"2023-10-01"},{"$f":"IF(OR(TAB_MEP[[#This Row],[1ere formation / facturation]]=\"-\",TAB_MEP[[#This Row],[1ere formation / facturation]]>=TODAY()),1,0)","v":0},"Septembre",null,"FR","Part","CF",1,{"$f":"IF(AND(AND(TAB_MEP[[#This Row],[1ere formation / facturation]]<>\"-\",TAB_MEP[[#This Row],[Date de MEP prévisionnelle]]<TAB_MEP[[#This Row],[1ere formation / facturation]],TAB_MEP[[#This Row],[Date de MEP prévisionnelle]]<>\"pas de date\")),1,0)","v":0},{"$f":"IF(AND(TAB_MEP[[#This Row],[1ere formation / facturation]]=\"-\",TAB_MEP[[#This Row],[Date de MEP prévisionnelle]]<TODAY()),1,0)","v":0},{"$f":"IF(TAB_MEP[[#This Row],[1ere formation / facturation]]<>\"-\",TAB_MEP[[#This Row],[1ere formation / facturation]],\"\")","v":"2023-09-11"}]
[252,"2020-06-18","2020-07-01",10,"-","2020-09-11",{"$f":"IF(OR(TAB_MEP[[#This Row],[Nb jour avt mep]]=\"-\",TAB_MEP[[#This Row],[Date lancement]]=\"-\"),\"pas de date\",TAB_MEP[[#This Row],[Date lancement]]+TAB_MEP[[#This Row],[Nb jour avt mep]])","v":"pas de date"},{"$f":"IF(OR(TAB_MEP[[#This Row],[1ere formation / facturation]]=\"-\",TAB_MEP[[#This Row],[1ere formation / facturation]]>=TODAY()),1,0)","v":0},{"$nulls":3},"SC","CF",0,{"$f":"IF(AND(AND(TAB_MEP[[#This Row],[1ere formation / facturation]]<>\"-\",TAB_MEP[[#This Row],[Date de MEP prévisionnelle]]<TAB_MEP[[#This Row],[1ere formation / facturation]],TAB_MEP[[#This Row],[Date de MEP prévisionnelle]]<>\"pas de date\")),1,0)","v":0},{"$f":"IF(AND(TAB_MEP[[#This Row],[1ere formation / facturation]]=\"-\",TAB_MEP[[#This Row],[Date de MEP prévisionnelle]]<TODAY()),1,0)","v":0},{"$f":"IF(TAB_MEP[[#This Row],[1ere formation / facturation]]<>\"-\",TAB_MEP[[#This Row],[1ere formation / facturation]],\"\")","v":"2020-09-11"}]
[253,"2022-04-29","2022-05-16",11,"-","2022-08-02",{"$f":"IF(OR(TAB_MEP[[#This Row],[Nb jour avt mep]]=\"-\",TAB_MEP[[#This Row],[Date lancement]]=\"-\"),\"pas de date\",TAB_MEP[[#This Row],[Date lancement]]+TAB_MEP[[#This Row],[Nb jour avt mep]])","v":"pas de date"},{"$f":"IF(OR(TAB_MEP[[#This Row],[1ere formation / facturation]]=\"-\",TAB_MEP[[#This Row],[1ere formation / facturation]]>=TODAY()),1,0)","v":0},null,null,"FR","SC","CF",0,{"$f":"IF(AND(AND(TAB_MEP[[#This Row],[1ere formation / facturation]]<>\"-\",TAB_MEP[[#This Row],[Date de MEP prévisionnelle]]<TAB_MEP[[#This Row],[1ere formation / facturation]],TAB_MEP[[#This Row],[Date de MEP prévisionnelle]]<>\"pas de date\")),1,0)","v":0},{"$f":"IF(AND(TAB_MEP[[#This Row],[1ere formation / facturation]]=\"-\",TAB_MEP[[#This Row],[Date de MEP prévisionnelle]]<TODAY()),1,0)","v":0},{"$f":"IF(TAB_MEP[[#This Row],[1ere formation / facturation]]<>\"-\",TAB_MEP[[#This Row],[1ere formation / facturation]],\"\")","v":"2022-08-02"}]
[254,"2021-11-22","2021-12-09",9,"-","2022-02-10",{"$f":"IF(OR(TAB_MEP[[#This Row],[Nb jour avt mep]]=\"-\",TAB_MEP[[#This Row],[Date lancement]]=\"-\"),\"pas de date\",TAB_MEP[[#This Row],[Date lancement]]+TAB_MEP[[#This Row],[Nb jour avt mep]])","v":"pas de date"},{"$f":"IF(OR(TAB_MEP[[#This Row],[1ere formation / facturation]]=\"-\",TAB_MEP[[#This Row],[1ere formation / facturation]]>=TODAY()),1,0)","v":0},{"$nulls":3},"SC","CF",0,{"$f":"IF(AND(AND(TAB_MEP[[#This Row],[1ere formation / facturation]]<>\"-\",TAB_MEP[[#This Row],[Date de MEP prévisionnelle]]<TAB_MEP[[#This Row],[1ere formation / facturation]],TAB_MEP[[#This Row],[Date de MEP prévisionnelle]]<>\"pas de date\")),1,0)","v":0},{"$f":"IF(AND(TAB_MEP[[#This Row],[1ere formation / facturation]]=\"-\",TAB_MEP[[#This Row],[Date de MEP prévisionnelle]]<TODAY()),1,0)","v":0},{"$f":"IF(TAB_MEP[[#This Row],[1ere formation / facturation]]<>\"-\",TAB_MEP[[#This Row],[1ere formation / facturation]],\"\")","v":"2022-02-10"}]
[255,"2021-03-24","2021-03-24",2,"-","2021-04-13",{"$f":"IF(OR(TAB_MEP[[#This Row],[Nb jour avt mep]]=\"-\",TAB_MEP[[#This Row],[Date lancement]]=\"-\"),\"pas de date\",TAB_MEP[[#This Row],[Date lancement]]+TAB_MEP[[#This Row],[Nb jour avt mep]])","v":"pas de date"},{"$f":"IF(OR(TAB_MEP[[#This Row],[1ere formation / facturation]]=\"-\",TAB_MEP[[#This Row],[1ere formation / facturation]]>=TODAY()),1,0)","v":0},{"$nulls":3},"Part","CF",0,{"$f":"IF(AND(AND(TAB_MEP[[#This Row],[1ere formation / facturation]]<>\"-\",TAB_MEP[[#This Row],[Date de MEP prévisionnelle]]<TAB_MEP[[#This Row],[1ere formation / facturation]],TAB_MEP[[#This Row],[Date de MEP prévisionnelle]]<>\"pas de date\")),1,0)","v":0},{"$f":"IF(AND(TAB_MEP[[#This Row],[1ere formation / facturation]]=\"-\",TAB_MEP[[#This Row],[Date de MEP prévisionnelle]]<TODAY()),1,0)","v":0},{"$f":"IF(TAB_MEP[[#This Row],[1ere formation / facturation]]<>\"-\",TAB_MEP[[#This Row],[1ere formation / facturation]],\"\")","v":"2021-04-13"}]
[256,"2022-05-10","2022-05-25",19,"-","2022-10-05",{"$f":"IF(OR(TAB_MEP[[#This Row],[Nb jour avt mep]]=\"-\",TAB_MEP[[#This Row],[Date lancement]]=\"-\"),\"pas de date\",TAB_MEP[[#This Row],[Date lancement]]+TAB_MEP[[#This Row],[Nb jour avt mep]])","v":"pas de date"},{"$f":"IF(OR(TAB_MEP[[#This Row],[1ere formation / facturation]]=\"-\",TAB_MEP[[#This Row],[1ere formation / facturation]]>=TODAY()),1,0)","v":0},null,null,"FR","SC","CF",0,{"$f":"IF(AND(AND(TAB_MEP[[#This Row],[1ere formation / facturation]]<>\"-\",TAB_MEP[[#This Row],[Date de MEP prévisionnelle]]<TAB_MEP[[#This Row],[1ere formation / facturation]],TAB_MEP[[#This Row],[Date de MEP prévisionnelle]]<>\"pas de date\")),1,0)","v":0},{"$f":"IF(AND(TAB_MEP[[#This Row],[1ere formation / facturation]]=\"-\",TAB_MEP[[#This Row],[Date de MEP prévisionnelle]]<TODAY()),1,0)","v":0},{"$f":"IF(TAB_MEP[[#This Row],[1ere formation / facturation]]<>\"-\",TAB_MEP[[#This Row],[1ere formation / facturation]],\"\")","v":"2022-10-05"}]
[257,"2020-04-16","2020-04-29",9,"-","2020-07-02",{"$f":"IF(OR(TAB_MEP[[#This Row],[Nb jour avt mep]]=\"-\",TAB_MEP[[#This Row],[Date lancement]]=\"-\"),\"pas de date\",TAB_MEP[[#This Row],[Date lancement]]+TAB_MEP[[#This Row],[Nb jour avt mep]])","v":"pas de date"},{"$f":"IF(OR(TAB_MEP[[#This Row],[1ere formation / facturation]]=\"-\",TAB_MEP[[#This Row],[1ere formation / facturation]]>=TODAY()),1,0)","v":0},{"$nulls":3},"SC","TF",0,{"$f":"IF(AND(AND(TAB_MEP[[#This Row],[1ere formation / facturation]]<>\"-\",TAB_MEP[[#This Row],[Date de MEP prévisionnelle]]<TAB_MEP[[#This Row],[1ere formation / facturation]],TAB_MEP[[#This Row],[Date de MEP prévisionnelle]]<>\"pas de date\")),1,0)","v":0},{"$f":"IF(AND(TAB_MEP[[#This Row],[1ere formation / facturation]]=\"-\",TAB_MEP[[#This Row],[Date de MEP prévisionnelle]]<TODAY()),1,0)","v":0},{"$f":"IF(TAB_MEP[[#This Row],[1ere formation / facturation]]<>\"-\",TAB_MEP[[#This Row],[1ere formation / facturation]],\"\")","v":"2020-07-02"}]
[258,"2020-12-22","2021-01-07",19,"-","2021-05-21",{"$f":"IF(OR(TAB_MEP[[#This Row],[Nb jour avt mep]]=\"-\",TAB_MEP[[#This Row],[Date lancement]]=\"-\"),\"pas de date\",TAB_MEP[[#This Row],[Date lancement]]+TAB_MEP[[#This Row],[Nb jour avt mep]])","v":"pas de date"},{"$f":"IF(OR(TAB_MEP[[#This Row],[1ere formation / facturation]]=\"-\",TAB_MEP[[#This Row],[1ere formation / facturation]]>=TODAY()),1,0)","v":0},{"$nulls":3},"SC","CF",0,{"$f":"IF(AND(AND(TAB_MEP[[#This Row],[1ere formation / facturation]]<>\"-\",TAB_MEP[[#This Row],[Date de MEP prévisionnelle]]<TAB_MEP[[#This Row],[1ere formation / facturation]],TAB_MEP[[#This Row],[Date de MEP prévisionnelle]]<>\"pas de date\")),1,0)","v":0},{"$f":"IF(AND(TAB_MEP[[#This Row],[1ere formation / facturation]]=\"-\",TAB_MEP[[#This Row],[Date de MEP prévisionnelle]]<TODAY()),1,0)","v":0},{"$f":"IF(TAB_MEP[[#This Row],[1ere formation / facturation]]<>\"-\",TAB_MEP[[#This Row],[1ere formation / facturation]],\"\")","v":"2021-05-21"}]
[259,"2021-02-01","2021-02-16",28,"-","2021-08-31",{"$f":"IF(OR(TAB_MEP[[#This Row],[Nb jour avt mep]]=\"-\",TAB_MEP[[#This Row],[Date lancement]]=\"-\"),\"pas de date\",TAB_MEP[[#This Row],[Date lancement]]+TAB_MEP[[#This Row],[Nb jour avt mep]])","v":"pas de date"},{"$f":"IF(OR(TAB_MEP[[#This Row],[1ere formation / facturation]]=\"-\",TAB_MEP[[#This Row],[1ere formation / facturation]]>=TODAY()),1,0)","v":0},{"$nulls":3},"SC","CF",0,{"$f":"IF(AND(AND(TAB_MEP[[#This Row],[1ere formation / facturation]]<>\"-\",TAB_MEP[[#This Row],[Date de MEP prévisionnelle]]<TAB_MEP[[#This Row],[1ere formation / facturation]],TAB_MEP[[#This Row],[Date de MEP prévisionnelle]]<>\"pas de date\")),1,0)","v":0},{"$f":"IF(AND(TAB_MEP[[#This Row],[1ere formation / facturation]]=\"-\",TAB_MEP[[#This Row],[Date de MEP prévisionnelle]]<TODAY()),1,0)","v":0},{"$f":"IF(TAB_MEP[[#This Row],[1ere formation / facturation]]<>\"-\",TAB_MEP[[#This Row],[1ere formation / facturation]],\"\")","v":"2021-08-31"}]
[260,"2020-07-28","2020-09-04",17,"-","2021-01-01",{"$f":"IF(OR(TAB_MEP[[#This Row],[Nb jour avt mep]]=\"-\",TAB_MEP[[#This Row],[Date lancement]]=\"-\"),\"pas de date\",TAB_MEP[[#This Row],[Date lancement]]+TAB_MEP[[#This Row],[Nb jour avt mep]])","v":"pas de date"},{"$f":"IF(OR(TAB_MEP[[#This Row],[1ere formation / facturation]]=\"-\",TAB_MEP[[#This Row],[1ere formation / facturation]]>=TODAY()),1,0)","v":0},{"$nulls":3},"SC","CF",0,{"$f":"IF(AND(AND(TAB_MEP[[#This Row],[1ere formation / facturation]]<>\"-\",TAB_MEP[[#This Row],[Date de MEP prévisionnelle]]<TAB_MEP[[#This Row],[1ere formation / facturation]],TAB_MEP[[#This Row],[Date de MEP prévisionnelle]]<>\"pas de date\")),1,0)","v":0},{"$f":"IF(AND(TAB_MEP[[#This Row],[1ere formation / facturation]]=\"-\",TAB_MEP[[#This Row],[Date de MEP prévisionnelle]]<TODAY()),1,0)","v":0},{"$f":"IF(TAB_MEP[[#This Row],[1ere formation / facturation]]<>\"-\",TAB_MEP[[#This Row],[1ere formation / facturation]],\"\")","v":"2021-01-01"}]
[261,"2023-04-17","2023-05-12",12,60,"2023-08-08",{"$f":"IF(OR(TAB_MEP[[#This Row],[Nb jour avt mep]]=\"-\",TAB_MEP[[#This Row],[Date lancement]]=\"-\"),\"pas de date\",TAB_MEP[[#This Row],[Date lancement]]+TAB_MEP[[#This Row],[Nb jour avt mep]])","v":"2023-07-11"},{"$f":"IF(OR(TAB_MEP[[#This Row],[1ere formation / facturation]]=\"-\",TAB_MEP[[#This Row],[1ere formation / facturation]]>=TODAY()),1,0)","v":0},null,null,"FR","SC","CF",1,{"$f":"IF(AND(AND(TAB_MEP[[#This Row],[1ere formation / facturation]]<>\"-\",TAB_MEP[[#This Row],[Date de MEP prévisionnelle]]<TAB_MEP[[#This Row],[1ere formation / facturation]],TAB_MEP[[#This Row],[Date de MEP prévisionnelle]]<>\"pas de date\")),1,0)","v":1},{"$f":"IF(AND(TAB_MEP[[#This Row],[1ere formation / facturation]]=\"-\",TAB_MEP[[#This Row],[Date de MEP prévisionnelle]]<TODAY()),1,0)","v":0},{"$f":"IF(TAB_MEP[[#This Row],[1ere formation / facturation]]<>\"-\",TAB_MEP[[#This Row],[1ere formation / facturation]],\"\")","v":"2023-08-08"}]
[262,"2020-07-30","2020-09-01",0,"-","2020-09-03",{"$f":"IF(OR(TAB_MEP[[#This Row],[Nb jour avt mep]]=\"-\",TAB_MEP[[#This Row],[Date lancement]]=\"-\"),\"pas de date\",TAB_MEP[[#This Row],[Date lancement]]+TAB_MEP[[#This Row],[Nb jour avt mep]])","v":"pas de date"},{"$f":"IF(OR(TAB_MEP[[#This Row],[1ere formation / facturation]]=\"-\",TAB_MEP[[#This Row],[1ere formation / facturation]]>=TODAY()),1,0)","v":0},{"$nulls":3},"SC","CF",0,{"$f":"IF(AND(AND(TAB_MEP[[#This Row],[1ere formation / facturation]]<>\"-\",TAB_MEP[[#This Row],[Date de MEP prévisionnelle]]<TAB_MEP[[#This Row],[1ere formation / facturation]],TAB_MEP[[#This Row],[Date de MEP prévisionnelle]]<>\"pas de date\")),1,0)","v":0},{"$f":"IF(AND(TAB_MEP[[#This Row],[1ere formation / facturation]]=\"-\",TAB_MEP[[#This Row],[Date de MEP prévisionnelle]]<TODAY()),1,0)","v":0},{"$f":"IF(TAB_MEP[[#This Row],[1ere formation / facturation]]<>\"-\",TAB_MEP[[#This Row],[1ere formation / facturation]],\"\")","v":"2020-09-03"}]
[263,"2020-11-05","2020-11-19",8,"-","2021-01-18",{"$f":"IF(OR(TAB_MEP[[#This Row],[Nb jour avt mep]]=\"-\",TAB_MEP[[#This Row],[Date lancement]]=\"-\"),\"pas de date\",TAB_MEP[[#This Row],[Date lancement]]+TAB_MEP[[#This Row],[Nb jour avt mep]])","v":"pas de date"},{"$f":"IF(OR(TAB_MEP[[#This Row],[1ere formation / facturation]]=\"-\",TAB_MEP[[#This Row],[1ere formation / facturation]]>=TODAY()),1,0)","v":0},{"$nulls":3},"SC","CF",0,{"$f":"IF(AND(AND(TAB_MEP[[#This Row],[1ere formation / facturation]]<>\"-\",TAB_MEP[[#This Row],[Date de MEP prévisionnelle]]<TAB_MEP[[#This Row],[1ere formation / facturation]],TAB_MEP[[#This Row],[Date de MEP prévisionnelle]]<>\"pas de date\")),1,0)","v":0},{"$f":"IF(AND(TAB_MEP[[#This Row],[1ere formation / facturation]]=\"-\",TAB_MEP[[#This Row],[Date de MEP prévisionnelle]]<TODAY()),1,0)","v":0},{"$f":"IF(TAB_MEP[[#This Row],[1ere formation / facturation]]<>\"-\",TAB_MEP[[#This Row],[1ere formation / facturation]],\"\")","v":"2021-01-18"}]
[264,"2022-07-04","2022-07-25",{"$f":"IF(C265>TODAY(),\"0\",IF(F265=\"-\",INT(DATEDIF(C265,TODAY(),\"d\")/7),INT(DATEDIF(C265,F265,\"d\")/7)))","v":10},"-","2022-10-06",{"$f":"IF(OR(TAB_MEP[[#This Row],[Nb jour avt mep]]=\"-\",TAB_MEP[[#This Row],[Date lancement]]=\"-\"),\"pas de date\",TAB_MEP[[#This Row],[Date lancement]]+TAB_MEP[[#This Row],[Nb jour avt mep]])","v":"pas de date"},{"$f":"IF(OR(TAB_MEP[[#This Row],[1ere formation / facturation]]=\"-\",TAB_MEP[[#This Row],[1ere formation / facturation]]>=TODAY()),1,0)","v":0},null,null,"FR","SC","CF",0,{"$f":"IF(AND(AND(TAB_MEP[[#This Row],[1ere formation / facturation]]<>\"-\",TAB_MEP[[#This Row],[Date de MEP prévisionnelle]]<TAB_MEP[[#This Row],[1ere formation / facturation]],TAB_MEP[[#This Row],[Date de MEP prévisionnelle]]<>\"pas de date\")),1,0)","v":0},{"$f":"IF(AND(TAB_MEP[[#This Row],[1ere formation / facturation]]=\"-\",TAB_MEP[[#This Row],[Date de MEP prévisionnelle]]<TODAY()),1,0)","v":0},{"$f":"IF(TAB_MEP[[#This Row],[1ere formation / facturation]]<>\"-\",TAB_MEP[[#This Row],[1ere formation / facturation]],\"\")","v":"2022-10-06"}]
[265,"2022-03-25","2022-04-19",14,"-","2022-07-30",{"$f":"IF(OR(TAB_MEP[[#This Row],[Nb jour avt mep]]=\"-\",TAB_MEP[[#This Row],[Date lancement]]=\"-\"),\"pas de date\",TAB_MEP[[#This Row],[Date lancement]]+TAB_MEP[[#This Row],[Nb jour avt mep]])","v":"pas de date"},{"$f":"IF(OR(TAB_MEP[[#This Row],[1ere formation / facturation]]=\"-\",TAB_MEP[[#This Row],[1ere formation / facturation]]>=TODAY()),1,0)","v":0},null,null,"FR","SC","CF",0,{"$f":"IF(AND(AND(TAB_MEP[[#This Row],[1ere formation / facturation]]<>\"-\",TAB_MEP[[#This Row],[Date de MEP prévisionnelle]]<TAB_MEP[[#This Row],[1ere formation / facturation]],TAB_MEP[[#This Row],[Date de MEP prévisionnelle]]<>\"pas de date\")),1,0)","v":0},{"$f":"IF(AND(TAB_MEP[[#This Row],[1ere formation / facturation]]=\"-\",TAB_MEP[[#This Row],[Date de MEP prévisionnelle]]<TODAY()),1,0)","v":0},{"$f":"IF(TAB_MEP[[#This Row],[1ere formation / facturation]]<>\"-\",TAB_MEP[[#This Row],[1ere formation / facturation]],\"\")","v":"2022-07-30"}]
[266,"2023-07-21","2023-09-20",5,79,"-",{"$f":"IF(OR(TAB_MEP[[#This Row],[Nb jour avt mep]]=\"-\",TAB_MEP[[#This Row],[Date lancement]]=\"-\"),\"pas de date\",TAB_MEP[[#This Row],[Date lancement]]+TAB_MEP[[#This Row],[Nb jour avt mep]])","v":"2023-12-08"},{"$f":"IF(OR(TAB_MEP[[#This Row],[1ere formation / facturation]]=\"-\",TAB_MEP[[#This Row],[1ere formation / facturation]]>=TODAY()),1,0)","v":1},"Octobre ?",null,"FR","SC","CF",1,{"$f":"IF(AND(AND(TAB_MEP[[#This Row],[1ere formation / facturation]]<>\"-\",TAB_MEP[[#This Row],[Date de MEP prévisionnelle]]<TAB_MEP[[#This Row],[1ere formation / facturation]],TAB_MEP[[#This Row],[Date de MEP prévisionnelle]]<>\"pas de date\")),1,0)","v":0},{"$f":"IF(AND(TAB_MEP[[#This Row],[1ere formation / facturation]]=\"-\",TAB_MEP[[#This Row],[Date de MEP prévisionnelle]]<TODAY()),1,0)","v":0},{"$f":"IF(TAB_MEP[[#This Row],[1ere formation / facturation]]<>\"-\",TAB_MEP[[#This Row],[1ere formation / facturation]],\"\")","v":""}]
[267,"2022-04-04","2022-04-22",22,"-","2022-09-29",{"$f":"IF(OR(TAB_MEP[[#This Row],[Nb jour avt mep]]=\"-\",TAB_MEP[[#This Row],[Date lancement]]=\"-\"),\"pas de date\",TAB_MEP[[#This Row],[Date lancement]]+TAB_MEP[[#This Row],[Nb jour avt mep]])","v":"pas de date"},{"$f":"IF(OR(TAB_MEP[[#This Row],[1ere formation / facturation]]=\"-\",TAB_MEP[[#This Row],[1ere formation / facturation]]>=TODAY()),1,0)","v":0},null,null,"FR","SC","CF",0,{"$f":"IF(AND(AND(TAB_MEP[[#This Row],[1ere formation / facturation]]<>\"-\",TAB_MEP[[#This Row],[Date de MEP prévisionnelle]]<TAB_MEP[[#This Row],[1ere formation / facturation]],TAB_MEP[[#This Row],[Date de MEP prévisionnelle]]<>\"pas de date\")),1,0)","v":0},{"$f":"IF(AND(TAB_MEP[[#This Row],[1ere formation / facturation]]=\"-\",TAB_MEP[[#This Row],[Date de MEP prévisionnelle]]<TODAY()),1,0)","v":0},{"$f":"IF(TAB_MEP[[#This Row],[1ere formation / facturation]]<>\"-\",TAB_MEP[[#This Row],[1ere formation / facturation]],\"\")","v":"2022-09-29"}]
[268,"2021-05-18","2021-05-28",7,"-","2021-07-21",{"$f":"IF(OR(TAB_MEP[[#This Row],[Nb jour avt mep]]=\"-\",TAB_MEP[[#This Row],[Date lancement]]=\"-\"),\"pas de date\",TAB_MEP[[#This Row],[Date lancement]]+TAB_MEP[[#This Row],[Nb jour avt mep]])","v":"pas de date"},{"$f":"IF(OR(TAB_MEP[[#This Row],[1ere formation / facturation]]=\"-\",TAB_MEP[[#This Row],[1ere formation / facturation]]>=TODAY()),1,0)","v":0},{"$nulls":3},"SC","CF",0,{"$f":"IF(AND(AND(TAB_MEP[[#This Row],[1ere formation / facturation]]<>\"-\",TAB_MEP[[#This Row],[Date de MEP prévisionnelle]]<TAB_MEP[[#This Row],[1ere formation / facturation]],TAB_MEP[[#This Row],[Date de MEP prévisionnelle]]<>\"pas de date\")),1,0)","v":0},{"$f":"IF(AND(TAB_MEP[[#This Row],[1ere formation / facturation]]=\"-\",TAB_MEP[[#This Row],[Date de MEP prévisionnelle]]<TODAY()),1,0)","v":0},{"$f":"IF(TAB_MEP[[#This Row],[1ere formation / facturation]]<>\"-\",TAB_MEP[[#This Row],[1ere formation / facturation]],\"\")","v":"2021-07-21"}]
[269,"2022-05-25","2022-06-06",27,"-","2022-12-14",{"$f":"IF(OR(TAB_MEP[[#This Row],[Nb jour avt mep]]=\"-\",TAB_MEP[[#This Row],[Date lancement]]=\"-\"),\"pas de date\",TAB_MEP[[#This Row],[Date lancement]]+TAB_MEP[[#This Row],[Nb jour avt mep]])","v":"pas de date"},{"$f":"IF(OR(TAB_MEP[[#This Row],[1ere formation / facturation]]=\"-\",TAB_MEP[[#This Row],[1ere formation / facturation]]>=TODAY()),1,0)","v":0},null,null,"FR","SC","CF",0,{"$f":"IF(AND(AND(TAB_MEP[[#This Row],[1ere formation / facturation]]<>\"-\",TAB_MEP[[#This Row],[Date de MEP prévisionnelle]]<TAB_MEP[[#This Row],[1ere formation / facturation]],TAB_MEP[[#This Row],[Date de MEP prévisionnelle]]<>\"pas de date\")),1,0)","v":0},{"$f":"IF(AND(TAB_MEP[[#This Row],[1ere formation / facturation]]=\"-\",TAB_MEP[[#This Row],[Date de MEP prévisionnelle]]<TODAY()),1,0)","v":0},{"$f":"IF(TAB_MEP[[#This Row],[1ere formation / facturation]]<>\"-\",TAB_MEP[[#This Row],[1ere formation / facturation]],\"\")","v":"2022-12-14"}]
[270,"2023-05-26","2023-06-07",7,77,"2023-07-27",{"$f":"IF(OR(TAB_MEP[[#This Row],[Nb jour avt mep]]=\"-\",TAB_MEP[[#This Row],[Date lancement]]=\"-\"),\"pas de date\",TAB_MEP[[#This Row],[Date lancement]]+TAB_MEP[[#This Row],[Nb jour avt mep]])","v":"2023-08-23"},{"$f":"IF(OR(TAB_MEP[[#This Row],[1ere formation / facturation]]=\"-\",TAB_MEP[[#This Row],[1ere formation / facturation]]>=TODAY()),1,0)","v":0},null,null,"FR","SC","CF",1,{"$f":"IF(AND(AND(TAB_MEP[[#This Row],[1ere formation / facturation]]<>\"-\",TAB_MEP[[#This Row],[Date de MEP prévisionnelle]]<TAB_MEP[[#This Row],[1ere formation / facturation]],TAB_MEP[[#This Row],[Date de MEP prévisionnelle]]<>\"pas de date\")),1,0)","v":0},{"$f":"IF(AND(TAB_MEP[[#This Row],[1ere formation / facturation]]=\"-\",TAB_MEP[[#This Row],[Date de MEP prévisionnelle]]<TODAY()),1,0)","v":0},{"$f":"IF(TAB_MEP[[#This Row],[1ere formation / facturation]]<>\"-\",TAB_MEP[[#This Row],[1ere formation / facturation]],\"\")","v":"2023-07-27"}]
[271,"2021-02-01","2021-02-01",1,"-","2021-02-09",{"$f":"IF(OR(TAB_MEP[[#This Row],[Nb jour avt mep]]=\"-\",TAB_MEP[[#This Row],[Date lancement]]=\"-\"),\"pas de date\",TAB_MEP[[#This Row],[Date lancement]]+TAB_MEP[[#This Row],[Nb jour avt mep]])","v":"pas de date"},{"$f":"IF(OR(TAB_MEP[[#This Row],[1ere formation / facturation]]=\"-\",TAB_MEP[[#This Row],[1ere formation / facturation]]>=TODAY()),1,0)","v":0},{"$nulls":3},"Part","CF",0,{"$f":"IF(AND(AND(TAB_MEP[[#This Row],[1ere formation / facturation]]<>\"-\",TAB_MEP[[#This Row],[Date de MEP prévisionnelle]]<TAB_MEP[[#This Row],[1ere formation / facturation]],TAB_MEP[[#This Row],[Date de MEP prévisionnelle]]<>\"pas de date\")),1,0)","v":0},{"$f":"IF(AND(TAB_MEP[[#This Row],[1ere formation / facturation]]=\"-\",TAB_MEP[[#This Row],[Date de MEP prévisionnelle]]<TODAY()),1,0)","v":0},{"$f":"IF(TAB_MEP[[#This Row],[1ere formation / facturation]]<>\"-\",TAB_MEP[[#This Row],[1ere formation / facturation]],\"\")","v":"2021-02-09"}]
[272,"2022-05-09","2022-05-16",10,"-","2022-07-25",{"$f":"IF(OR(TAB_MEP[[#This Row],[Nb jour avt mep]]=\"-\",TAB_MEP[[#This Row],[Date lancement]]=\"-\"),\"pas de date\",TAB_MEP[[#This Row],[Date lancement]]+TAB_MEP[[#This Row],[Nb jour avt mep]])","v":"pas de date"},{"$f":"IF(OR(TAB_MEP[[#This Row],[1ere formation / facturation]]=\"-\",TAB_MEP[[#This Row],[1ere formation / facturation]]>=TODAY()),1,0)","v":0},null,null,"FR","SC","CF",0,{"$f":"IF(AND(AND(TAB_MEP[[#This Row],[1ere formation / facturation]]<>\"-\",TAB_MEP[[#This Row],[Date de MEP prévisionnelle]]<TAB_MEP[[#This Row],[1ere formation / facturation]],TAB_MEP[[#This Row],[Date de MEP prévisionnelle]]<>\"pas de date\")),1,0)","v":0},{"$f":"IF(AND(TAB_MEP[[#This Row],[1ere formation / facturation]]=\"-\",TAB_MEP[[#This Row],[Date de MEP prévisionnelle]]<TODAY()),1,0)","v":0},{"$f":"IF(TAB_MEP[[#This Row],[1ere formation / facturation]]<>\"-\",TAB_MEP[[#This Row],[1ere formation / facturation]],\"\")","v":"2022-07-25"}]
[273,"2022-04-21","2022-05-04",18,"-","2022-09-07",{"$f":"IF(OR(TAB_MEP[[#This Row],[Nb jour avt mep]]=\"-\",TAB_MEP[[#This Row],[Date lancement]]=\"-\"),\"pas de date\",TAB_MEP[[#This Row],[Date lancement]]+TAB_MEP[[#This Row],[Nb jour avt mep]])","v":"pas de date"},{"$f":"IF(OR(TAB_MEP[[#This Row],[1ere formation / facturation]]=\"-\",TAB_MEP[[#This Row],[1ere formation / facturation]]>=TODAY()),1,0)","v":0},null,null,"FR","SC","CF",0,{"$f":"IF(AND(AND(TAB_MEP[[#This Row],[1ere formation / facturation]]<>\"-\",TAB_MEP[[#This Row],[Date de MEP prévisionnelle]]<TAB_MEP[[#This Row],[1ere formation / facturation]],TAB_MEP[[#This Row],[Date de MEP prévisionnelle]]<>\"pas de date\")),1,0)","v":0},{"$f":"IF(AND(TAB_MEP[[#This Row],[1ere formation / facturation]]=\"-\",TAB_MEP[[#This Row],[Date de MEP prévisionnelle]]<TODAY()),1,0)","v":0},{"$f":"IF(TAB_MEP[[#This Row],[1ere formation / facturation]]<>\"-\",TAB_MEP[[#This Row],[1ere formation / facturation]],\"\")","v":"2022-09-07"}]
[274,"2020-11-18","2020-11-26",7,"-","2021-01-15",{"$f":"IF(OR(TAB_MEP[[#This Row],[Nb jour avt mep]]=\"-\",TAB_MEP[[#This Row],[Date lancement]]=\"-\"),\"pas de date\",TAB_MEP[[#This Row],[Date lancement]]+TAB_MEP[[#This Row],[Nb jour avt mep]])","v":"pas de date"},{"$f":"IF(OR(TAB_MEP[[#This Row],[1ere formation / facturation]]=\"-\",TAB_MEP[[#This Row],[1ere formation / facturation]]>=TODAY()),1,0)","v":0},{"$nulls":3},"SC","CF",0,{"$f":"IF(AND(AND(TAB_MEP[[#This Row],[1ere formation / facturation]]<>\"-\",TAB_MEP[[#This Row],[Date de MEP prévisionnelle]]<TAB_MEP[[#This Row],[1ere formation / facturation]],TAB_MEP[[#This Row],[Date de MEP prévisionnelle]]<>\"pas de date\")),1,0)","v":0},{"$f":"IF(AND(TAB_MEP[[#This Row],[1ere formation / facturation]]=\"-\",TAB_MEP[[#This Row],[Date de MEP prévisionnelle]]<TODAY()),1,0)","v":0},{"$f":"IF(TAB_MEP[[#This Row],[1ere formation / facturation]]<>\"-\",TAB_MEP[[#This Row],[1ere formation / facturation]],\"\")","v":"2021-01-15"}]
[275,"2020-11-03","2020-11-03",0,"-","2020-11-06",{"$f":"IF(OR(TAB_MEP[[#This Row],[Nb jour avt mep]]=\"-\",TAB_MEP[[#This Row],[Date lancement]]=\"-\"),\"pas de date\",TAB_MEP[[#This Row],[Date lancement]]+TAB_MEP[[#This Row],[Nb jour avt mep]])","v":"pas de date"},{"$f":"IF(OR(TAB_MEP[[#This Row],[1ere formation / facturation]]=\"-\",TAB_MEP[[#This Row],[1ere formation / facturation]]>=TODAY()),1,0)","v":0},{"$nulls":3},"SC","CF",0,{"$f":"IF(AND(AND(TAB_MEP[[#This Row],[1ere formation / facturation]]<>\"-\",TAB_MEP[[#This Row],[Date de MEP prévisionnelle]]<TAB_MEP[[#This Row],[1ere formation / facturation]],TAB_MEP[[#This Row],[Date de MEP prévisionnelle]]<>\"pas de date\")),1,0)","v":0},{"$f":"IF(AND(TAB_MEP[[#This Row],[1ere formation / facturation]]=\"-\",TAB_MEP[[#This Row],[Date de MEP prévisionnelle]]<TODAY()),1,0)","v":0},{"$f":"IF(TAB_MEP[[#This Row],[1ere formation / facturation]]<>\"-\",TAB_MEP[[#This Row],[1ere formation / facturation]],\"\")","v":"2020-11-06"}]
[276,"2019-12-23","2020-01-24",9,"-","2020-03-30",{"$f":"IF(OR(TAB_MEP[[#This Row],[Nb jour avt mep]]=\"-\",TAB_MEP[[#This Row],[Date lancement]]=\"-\"),\"pas de date\",TAB_MEP[[#This Row],[Date lancement]]+TAB_MEP[[#This Row],[Nb jour avt mep]])","v":"pas de date"},{"$f":"IF(OR(TAB_MEP[[#This Row],[1ere formation / facturation]]=\"-\",TAB_MEP[[#This Row],[1ere formation / facturation]]>=TODAY()),1,0)","v":0},{"$nulls":3},"SC","CF",0,{"$f":"IF(AND(AND(TAB_MEP[[#This Row],[1ere formation / facturation]]<>\"-\",TAB_MEP[[#This Row],[Date de MEP prévisionnelle]]<TAB_MEP[[#This Row],[1ere formation / facturation]],TAB_MEP[[#This Row],[Date de MEP prévisionnelle]]<>\"pas de date\")),1,0)","v":0},{"$f":"IF(AND(TAB_MEP[[#This Row],[1ere formation / facturation]]=\"-\",TAB_MEP[[#This Row],[Date de MEP prévisionnelle]]<TODAY()),1,0)","v":0},{"$f":"IF(TAB_MEP[[#This Row],[1ere formation / facturation]]<>\"-\",TAB_MEP[[#This Row],[1ere formation / facturation]],\"\")","v":"2020-03-30"}]
[277,"2020-11-01","2020-11-09",58,"-","2021-12-22",{"$f":"IF(OR(TAB_MEP[[#This Row],[Nb jour avt mep]]=\"-\",TAB_MEP[[#This Row],[Date lancement]]=\"-\"),\"pas de date\",TAB_MEP[[#This Row],[Date lancement]]+TAB_MEP[[#This Row],[Nb jour avt mep]])","v":"pas de date"},{"$f":"IF(OR(TAB_MEP[[#This Row],[1ere formation / facturation]]=\"-\",TAB_MEP[[#This Row],[1ere formation / facturation]]>=TODAY()),1,0)","v":0},{"$nulls":3},"SC","CF",0,{"$f":"IF(AND(AND(TAB_MEP[[#This Row],[1ere formation / facturation]]<>\"-\",TAB_MEP[[#This Row],[Date de MEP prévisionnelle]]<TAB_MEP[[#This Row],[1ere formation / facturation]],TAB_MEP[[#This Row],[Date de MEP prévisionnelle]]<>\"pas de date\")),1,0)","v":0},{"$f":"IF(AND(TAB_MEP[[#This Row],[1ere formation / facturation]]=\"-\",TAB_MEP[[#This Row],[Date de MEP prévisionnelle]]<TODAY()),1,0)","v":0},{"$f":"IF(TAB_MEP[[#This Row],[1ere formation / facturation]]<>\"-\",TAB_MEP[[#This Row],[1ere formation / facturation]],\"\")","v":"2021-12-22"}]
[278,"2021-11-09","2021-11-24",21,"-","2022-04-21",{"$f":"IF(OR(TAB_MEP[[#This Row],[Nb jour avt mep]]=\"-\",TAB_MEP[[#This Row],[Date lancement]]=\"-\"),\"pas de date\",TAB_MEP[[#This Row],[Date lancement]]+TAB_MEP[[#This Row],[Nb jour avt mep]])","v":"pas de date"},{"$f":"IF(OR(TAB_MEP[[#This Row],[1ere formation / facturation]]=\"-\",TAB_MEP[[#This Row],[1ere formation / facturation]]>=TODAY()),1,0)","v":0},{"$nulls":3},"SC","CF",0,{"$f":"IF(AND(AND(TAB_MEP[[#This Row],[1ere formation / facturation]]<>\"-\",TAB_MEP[[#This Row],[Date de MEP prévisionnelle]]<TAB_MEP[[#This Row],[1ere formation / facturation]],TAB_MEP[[#This Row],[Date de MEP prévisionnelle]]<>\"pas de date\")),1,0)","v":0},{"$f":"IF(AND(TAB_MEP[[#This Row],[1ere formation / facturation]]=\"-\",TAB_MEP[[#This Row],[Date de MEP prévisionnelle]]<TODAY()),1,0)","v":0},{"$f":"IF(TAB_MEP[[#This Row],[1ere formation / facturation]]<>\"-\",TAB_MEP[[#This Row],[1ere formation / facturation]],\"\")","v":"2022-04-21"}]
[279,"2020-02-07","2020-02-19",36,"-","2020-10-30",{"$f":"IF(OR(TAB_MEP[[#This Row],[Nb jour avt mep]]=\"-\",TAB_MEP[[#This Row],[Date lancement]]=\"-\"),\"pas de date\",TAB_MEP[[#This Row],[Date lancement]]+TAB_MEP[[#This Row],[Nb jour avt mep]])","v":"pas de date"},{"$f":"IF(OR(TAB_MEP[[#This Row],[1ere formation / facturation]]=\"-\",TAB_MEP[[#This Row],[1ere formation / facturation]]>=TODAY()),1,0)","v":0},{"$nulls":3},"SC","CF",0,{"$f":"IF(AND(AND(TAB_MEP[[#This Row],[1ere formation / facturation]]<>\"-\",TAB_MEP[[#This Row],[Date de MEP prévisionnelle]]<TAB_MEP[[#This Row],[1ere formation / facturation]],TAB_MEP[[#This Row],[Date de MEP prévisionnelle]]<>\"pas de date\")),1,0)","v":0},{"$f":"IF(AND(TAB_MEP[[#This Row],[1ere formation / facturation]]=\"-\",TAB_MEP[[#This Row],[Date de MEP prévisionnelle]]<TODAY()),1,0)","v":0},{"$f":"IF(TAB_MEP[[#This Row],[1ere formation / facturation]]<>\"-\",TAB_MEP[[#This Row],[1ere formation / facturation]],\"\")","v":"2020-10-30"}]
[280,"2020-01-20","2020-01-20",2,"-","2020-02-03",{"$f":"IF(OR(TAB_MEP[[#This Row],[Nb jour avt mep]]=\"-\",TAB_MEP[[#This Row],[Date lancement]]=\"-\"),\"pas de date\",TAB_MEP[[#This Row],[Date lancement]]+TAB_MEP[[#This Row],[Nb jour avt mep]])","v":"pas de date"},{"$f":"IF(OR(TAB_MEP[[#This Row],[1ere formation / facturation]]=\"-\",TAB_MEP[[#This Row],[1ere formation / facturation]]>=TODAY()),1,0)","v":0},{"$nulls":3},"SC","CF",0,{"$f":"IF(AND(AND(TAB_MEP[[#This Row],[1ere formation / facturation]]<>\"-\",TAB_MEP[[#This Row],[Date de MEP prévisionnelle]]<TAB_MEP[[#This Row],[1ere formation / facturation]],TAB_MEP[[#This Row],[Date de MEP prévisionnelle]]<>\"pas de date\")),1,0)","v":0},{"$f":"IF(AND(TAB_MEP[[#This Row],[1ere formation / facturation]]=\"-\",TAB_MEP[[#This Row],[Date de MEP prévisionnelle]]<TODAY()),1,0)","v":0},{"$f":"IF(TAB_MEP[[#This Row],[1ere formation / facturation]]<>\"-\",TAB_MEP[[#This Row],[1ere formation / facturation]],\"\")","v":"2020-02-03"}]
[281,"2022-10-05","2022-10-26",8,"-","2022-12-23",{"$f":"IF(OR(TAB_MEP[[#This Row],[Nb jour avt mep]]=\"-\",TAB_MEP[[#This Row],[Date lancement]]=\"-\"),\"pas de date\",TAB_MEP[[#This Row],[Date lancement]]+TAB_MEP[[#This Row],[Nb jour avt mep]])","v":"pas de date"},{"$f":"IF(OR(TAB_MEP[[#This Row],[1ere formation / facturation]]=\"-\",TAB_MEP[[#This Row],[1ere formation / facturation]]>=TODAY()),1,0)","v":0},null,null,"FR","SC","CF",0,{"$f":"IF(AND(AND(TAB_MEP[[#This Row],[1ere formation / facturation]]<>\"-\",TAB_MEP[[#This Row],[Date de MEP prévisionnelle]]<TAB_MEP[[#This Row],[1ere formation / facturation]],TAB_MEP[[#This Row],[Date de MEP prévisionnelle]]<>\"pas de date\")),1,0)","v":0},{"$f":"IF(AND(TAB_MEP[[#This Row],[1ere formation / facturation]]=\"-\",TAB_MEP[[#This Row],[Date de MEP prévisionnelle]]<TODAY()),1,0)","v":0},{"$f":"IF(TAB_MEP[[#This Row],[1ere formation / facturation]]<>\"-\",TAB_MEP[[#This Row],[1ere formation / facturation]],\"\")","v":"2022-12-23"}]
[282,"2020-11-10","2020-11-10",8,"-","2021-01-06",{"$f":"IF(OR(TAB_MEP[[#This Row],[Nb jour avt mep]]=\"-\",TAB_MEP[[#This Row],[Date lancement]]=\"-\"),\"pas de date\",TAB_MEP[[#This Row],[Date lancement]]+TAB_MEP[[#This Row],[Nb jour avt mep]])","v":"pas de date"},{"$f":"IF(OR(TAB_MEP[[#This Row],[1ere formation / facturation]]=\"-\",TAB_MEP[[#This Row],[1ere formation / facturation]]>=TODAY()),1,0)","v":0},{"$nulls":3},"Part","CF",0,{"$f":"IF(AND(AND(TAB_MEP[[#This Row],[1ere formation / facturation]]<>\"-\",TAB_MEP[[#This Row],[Date de MEP prévisionnelle]]<TAB_MEP[[#This Row],[1ere formation / facturation]],TAB_MEP[[#This Row],[Date de MEP prévisionnelle]]<>\"pas de date\")),1,0)","v":0},{"$f":"IF(AND(TAB_MEP[[#This Row],[1ere formation / facturation]]=\"-\",TAB_MEP[[#This Row],[Date de MEP prévisionnelle]]<TODAY()),1,0)","v":0},{"$f":"IF(TAB_MEP[[#This Row],[1ere formation / facturation]]<>\"-\",TAB_MEP[[#This Row],[1ere formation / facturation]],\"\")","v":"2021-01-06"}]
[283,"2019-11-25","2019-12-02",23,"-","2020-05-14",{"$f":"IF(OR(TAB_MEP[[#This Row],[Nb jour avt mep]]=\"-\",TAB_MEP[[#This Row],[Date lancement]]=\"-\"),\"pas de date\",TAB_MEP[[#This Row],[Date lancement]]+TAB_MEP[[#This Row],[Nb jour avt mep]])","v":"pas de date"},{"$f":"IF(OR(TAB_MEP[[#This Row],[1ere formation / facturation]]=\"-\",TAB_MEP[[#This Row],[1ere formation / facturation]]>=TODAY()),1,0)","v":0},{"$nulls":3},"SC","CF",0,{"$f":"IF(AND(AND(TAB_MEP[[#This Row],[1ere formation / facturation]]<>\"-\",TAB_MEP[[#This Row],[Date de MEP prévisionnelle]]<TAB_MEP[[#This Row],[1ere formation / facturation]],TAB_MEP[[#This Row],[Date de MEP prévisionnelle]]<>\"pas de date\")),1,0)","v":0},{"$f":"IF(AND(TAB_MEP[[#This Row],[1ere formation / facturation]]=\"-\",TAB_MEP[[#This Row],[Date de MEP prévisionnelle]]<TODAY()),1,0)","v":0},{"$f":"IF(TAB_MEP[[#This Row],[1ere formation / facturation]]<>\"-\",TAB_MEP[[#This Row],[1ere formation / facturation]],\"\")","v":"2020-05-14"}]
[284,"2021-09-21","2021-10-06",19,"-","2022-02-17",{"$f":"IF(OR(TAB_MEP[[#This Row],[Nb jour avt mep]]=\"-\",TAB_MEP[[#This Row],[Date lancement]]=\"-\"),\"pas de date\",TAB_MEP[[#This Row],[Date lancement]]+TAB_MEP[[#This Row],[Nb jour avt mep]])","v":"pas de date"},{"$f":"IF(OR(TAB_MEP[[#This Row],[1ere formation / facturation]]=\"-\",TAB_MEP[[#This Row],[1ere formation / facturation]]>=TODAY()),1,0)","v":0},{"$nulls":3},"SC","CF",0,{"$f":"IF(AND(AND(TAB_MEP[[#This Row],[1ere formation / facturation]]<>\"-\",TAB_MEP[[#This Row],[Date de MEP prévisionnelle]]<TAB_MEP[[#This Row],[1ere formation / facturation]],TAB_MEP[[#This Row],[Date de MEP prévisionnelle]]<>\"pas de date\")),1,0)","v":0},{"$f":"IF(AND(TAB_MEP[[#This Row],[1ere formation / facturation]]=\"-\",TAB_MEP[[#This Row],[Date de MEP prévisionnelle]]<TODAY()),1,0)","v":0},{"$f":"IF(TAB_MEP[[#This Row],[1ere formation / facturation]]<>\"-\",TAB_MEP[[#This Row],[1ere formation / facturation]],\"\")","v":"2022-02-17"}]
[285,"2023-09-14","2023-09-28",3,107,"-",{"$f":"IF(OR(TAB_MEP[[#This Row],[Nb jour avt mep]]=\"-\",TAB_MEP[[#This Row],[Date lancement]]=\"-\"),\"pas de date\",TAB_MEP[[#This Row],[Date lancement]]+TAB_MEP[[#This Row],[Nb jour avt mep]])","v":"2024-01-13"},{"$f":"IF(OR(TAB_MEP[[#This Row],[1ere formation / facturation]]=\"-\",TAB_MEP[[#This Row],[1ere formation / facturation]]>=TODAY()),1,0)","v":1},null,null,"FR","SC","CF",1,{"$f":"IF(AND(AND(TAB_MEP[[#This Row],[1ere formation / facturation]]<>\"-\",TAB_MEP[[#This Row],[Date de MEP prévisionnelle]]<TAB_MEP[[#This Row],[1ere formation / facturation]],TAB_MEP[[#This Row],[Date de MEP prévisionnelle]]<>\"pas de date\")),1,0)","v":0},{"$f":"IF(AND(TAB_MEP[[#This Row],[1ere formation / facturation]]=\"-\",TAB_MEP[[#This Row],[Date de MEP prévisionnelle]]<TODAY()),1,0)","v":0},{"$f":"IF(TAB_MEP[[#This Row],[1ere formation / facturation]]<>\"-\",TAB_MEP[[#This Row],[1ere formation / facturation]],\"\")","v":""}]
[286,"2020-10-23","2020-11-10",4,"-","2020-12-09",{"$f":"IF(OR(TAB_MEP[[#This Row],[Nb jour avt mep]]=\"-\",TAB_MEP[[#This Row],[Date lancement]]=\"-\"),\"pas de date\",TAB_MEP[[#This Row],[Date lancement]]+TAB_MEP[[#This Row],[Nb jour avt mep]])","v":"pas de date"},{"$f":"IF(OR(TAB_MEP[[#This Row],[1ere formation / facturation]]=\"-\",TAB_MEP[[#This Row],[1ere formation / facturation]]>=TODAY()),1,0)","v":0},{"$nulls":3},"SC","CF",0,{"$f":"IF(AND(AND(TAB_MEP[[#This Row],[1ere formation / facturation]]<>\"-\",TAB_MEP[[#This Row],[Date de MEP prévisionnelle]]<TAB_MEP[[#This Row],[1ere formation / facturation]],TAB_MEP[[#This Row],[Date de MEP prévisionnelle]]<>\"pas de date\")),1,0)","v":0},{"$f":"IF(AND(TAB_MEP[[#This Row],[1ere formation / facturation]]=\"-\",TAB_MEP[[#This Row],[Date de MEP prévisionnelle]]<TODAY()),1,0)","v":0},{"$f":"IF(TAB_MEP[[#This Row],[1ere formation / facturation]]<>\"-\",TAB_MEP[[#This Row],[1ere formation / facturation]],\"\")","v":"2020-12-09"}]
[287,"2021-12-03","2021-12-21",4,"-","2022-01-19",{"$f":"IF(OR(TAB_MEP[[#This Row],[Nb jour avt mep]]=\"-\",TAB_MEP[[#This Row],[Date lancement]]=\"-\"),\"pas de date\",TAB_MEP[[#This Row],[Date lancement]]+TAB_MEP[[#This Row],[Nb jour avt mep]])","v":"pas de date"},{"$f":"IF(OR(TAB_MEP[[#This Row],[1ere formation / facturation]]=\"-\",TAB_MEP[[#This Row],[1ere formation / facturation]]>=TODAY()),1,0)","v":0},{"$nulls":3},"SC","FF",0,{"$f":"IF(AND(AND(TAB_MEP[[#This Row],[1ere formation / facturation]]<>\"-\",TAB_MEP[[#This Row],[Date de MEP prévisionnelle]]<TAB_MEP[[#This Row],[1ere formation / facturation]],TAB_MEP[[#This Row],[Date de MEP prévisionnelle]]<>\"pas de date\")),1,0)","v":0},{"$f":"IF(AND(TAB_MEP[[#This Row],[1ere formation / facturation]]=\"-\",TAB_MEP[[#This Row],[Date de MEP prévisionnelle]]<TODAY()),1,0)","v":0},{"$f":"IF(TAB_MEP[[#This Row],[1ere formation / facturation]]<>\"-\",TAB_MEP[[#This Row],[1ere formation / facturation]],\"\")","v":"2022-01-19"}]
[288,"2020-10-01","2020-10-09",25,"-","2021-04-08",{"$f":"IF(OR(TAB_MEP[[#This Row],[Nb jour avt mep]]=\"-\",TAB_MEP[[#This Row],[Date lancement]]=\"-\"),\"pas de date\",TAB_MEP[[#This Row],[Date lancement]]+TAB_MEP[[#This Row],[Nb jour avt mep]])","v":"pas de date"},{"$f":"IF(OR(TAB_MEP[[#This Row],[1ere formation / facturation]]=\"-\",TAB_MEP[[#This Row],[1ere formation / facturation]]>=TODAY()),1,0)","v":0},{"$nulls":3},"SC","CF",0,{"$f":"IF(AND(AND(TAB_MEP[[#This Row],[1ere formation / facturation]]<>\"-\",TAB_MEP[[#This Row],[Date de MEP prévisionnelle]]<TAB_MEP[[#This Row],[1ere formation / facturation]],TAB_MEP[[#This Row],[Date de MEP prévisionnelle]]<>\"pas de date\")),1,0)","v":0},{"$f":"IF(AND(TAB_MEP[[#This Row],[1ere formation / facturation]]=\"-\",TAB_MEP[[#This Row],[Date de MEP prévisionnelle]]<TODAY()),1,0)","v":0},{"$f":"IF(TAB_MEP[[#This Row],[1ere formation / facturation]]<>\"-\",TAB_MEP[[#This Row],[1ere formation / facturation]],\"\")","v":"2021-04-08"}]
[289,"2023-09-08","2023-09-29",3,95,"-",{"$f":"IF(OR(TAB_MEP[[#This Row],[Nb jour avt mep]]=\"-\",TAB_MEP[[#This Row],[Date lancement]]=\"-\"),\"pas de date\",TAB_MEP[[#This Row],[Date lancement]]+TAB_MEP[[#This Row],[Nb jour avt mep]])","v":"2024-01-02"},{"$f":"IF(OR(TAB_MEP[[#This Row],[1ere formation / facturation]]=\"-\",TAB_MEP[[#This Row],[1ere formation / facturation]]>=TODAY()),1,0)","v":1},null,null,"FR","SC","CF",1,{"$f":"IF(AND(AND(TAB_MEP[[#This Row],[1ere formation / facturation]]<>\"-\",TAB_MEP[[#This Row],[Date de MEP prévisionnelle]]<TAB_MEP[[#This Row],[1ere formation / facturation]],TAB_MEP[[#This Row],[Date de MEP prévisionnelle]]<>\"pas de date\")),1,0)","v":0},{"$f":"IF(AND(TAB_MEP[[#This Row],[1ere formation / facturation]]=\"-\",TAB_MEP[[#This Row],[Date de MEP prévisionnelle]]<TODAY()),1,0)","v":0},{"$f":"IF(TAB_MEP[[#This Row],[1ere formation / facturation]]<>\"-\",TAB_MEP[[#This Row],[1ere formation / facturation]],\"\")","v":""}]
[290,"2023-02-13","2023-03-09",5,18,"2023-04-13",{"$f":"IF(OR(TAB_MEP[[#This Row],[Nb jour avt mep]]=\"-\",TAB_MEP[[#This Row],[Date lancement]]=\"-\"),\"pas de date\",TAB_MEP[[#This Row],[Date lancement]]+TAB_MEP[[#This Row],[Nb jour avt mep]])","v":"2023-03-27"},{"$f":"IF(OR(TAB_MEP[[#This Row],[1ere formation / facturation]]=\"-\",TAB_MEP[[#This Row],[1ere formation / facturation]]>=TODAY()),1,0)","v":0},"Avril",null,"FR","SC","CF",0,{"$f":"IF(AND(AND(TAB_MEP[[#This Row],[1ere formation / facturation]]<>\"-\",TAB_MEP[[#This Row],[Date de MEP prévisionnelle]]<TAB_MEP[[#This Row],[1ere formation / facturation]],TAB_MEP[[#This Row],[Date de MEP prévisionnelle]]<>\"pas de date\")),1,0)","v":1},{"$f":"IF(AND(TAB_MEP[[#This Row],[1ere formation / facturation]]=\"-\",TAB_MEP[[#This Row],[Date de MEP prévisionnelle]]<TODAY()),1,0)","v":0},{"$f":"IF(TAB_MEP[[#This Row],[1ere formation / facturation]]<>\"-\",TAB_MEP[[#This Row],[1ere formation / facturation]],\"\")","v":"2023-04-13"}]
[291,"2021-11-23","2021-11-23",12,"-","2022-02-15",{"$f":"IF(OR(TAB_MEP[[#This Row],[Nb jour avt mep]]=\"-\",TAB_MEP[[#This Row],[Date lancement]]=\"-\"),\"pas de date\",TAB_MEP[[#This Row],[Date lancement]]+TAB_MEP[[#This Row],[Nb jour avt mep]])","v":"pas de date"},{"$f":"IF(OR(TAB_MEP[[#This Row],[1ere formation / facturation]]=\"-\",TAB_MEP[[#This Row],[1ere formation / facturation]]>=TODAY()),1,0)","v":0},{"$nulls":3},"Part","CF",0,{"$f":"IF(AND(AND(TAB_MEP[[#This Row],[1ere formation / facturation]]<>\"-\",TAB_MEP[[#This Row],[Date de MEP prévisionnelle]]<TAB_MEP[[#This Row],[1ere formation / facturation]],TAB_MEP[[#This Row],[Date de MEP prévisionnelle]]<>\"pas de date\")),1,0)","v":0},{"$f":"IF(AND(TAB_MEP[[#This Row],[1ere formation / facturation]]=\"-\",TAB_MEP[[#This Row],[Date de MEP prévisionnelle]]<TODAY()),1,0)","v":0},{"$f":"IF(TAB_MEP[[#This Row],[1ere formation / facturation]]<>\"-\",TAB_MEP[[#This Row],[1ere formation / facturation]],\"\")","v":"2022-02-15"}]
[292,"2021-12-01","2021-12-20",12,"-","2022-03-16",{"$f":"IF(OR(TAB_MEP[[#This Row],[Nb jour avt mep]]=\"-\",TAB_MEP[[#This Row],[Date lancement]]=\"-\"),\"pas de date\",TAB_MEP[[#This Row],[Date lancement]]+TAB_MEP[[#This Row],[Nb jour avt mep]])","v":"pas de date"},{"$f":"IF(OR(TAB_MEP[[#This Row],[1ere formation / facturation]]=\"-\",TAB_MEP[[#This Row],[1ere formation / facturation]]>=TODAY()),1,0)","v":0},{"$nulls":3},"SC","CF",0,{"$f":"IF(AND(AND(TAB_MEP[[#This Row],[1ere formation / facturation]]<>\"-\",TAB_MEP[[#This Row],[Date de MEP prévisionnelle]]<TAB_MEP[[#This Row],[1ere formation / facturation]],TAB_MEP[[#This Row],[Date de MEP prévisionnelle]]<>\"pas de date\")),1,0)","v":0},{"$f":"IF(AND(TAB_MEP[[#This Row],[1ere formation / facturation]]=\"-\",TAB_MEP[[#This Row],[Date de MEP prévisionnelle]]<TODAY()),1,0)","v":0},{"$f":"IF(TAB_MEP[[#This Row],[1ere formation / facturation]]<>\"-\",TAB_MEP[[#This Row],[1ere formation / facturation]],\"\")","v":"2022-03-16"}]
[293,"2020-03-27","2020-04-16",5,"-","2020-05-27",{"$f":"IF(OR(TAB_MEP[[#This Row],[Nb jour avt mep]]=\"-\",TAB_MEP[[#This Row],[Date lancement]]=\"-\"),\"pas de date\",TAB_MEP[[#This Row],[Date lancement]]+TAB_MEP[[#This Row],[Nb jour avt mep]])","v":"pas de date"},{"$f":"IF(OR(TAB_MEP[[#This Row],[1ere formation / facturation]]=\"-\",TAB_MEP[[#This Row],[1ere formation / facturation]]>=TODAY()),1,0)","v":0},{"$nulls":3},"SC","CF",0,{"$f":"IF(AND(AND(TAB_MEP[[#This Row],[1ere formation / facturation]]<>\"-\",TAB_MEP[[#This Row],[Date de MEP prévisionnelle]]<TAB_MEP[[#This Row],[1ere formation / facturation]],TAB_MEP[[#This Row],[Date de MEP prévisionnelle]]<>\"pas de date\")),1,0)","v":0},{"$f":"IF(AND(TAB_MEP[[#This Row],[1ere formation / facturation]]=\"-\",TAB_MEP[[#This Row],[Date de MEP prévisionnelle]]<TODAY()),1,0)","v":0},{"$f":"IF(TAB_MEP[[#This Row],[1ere formation / facturation]]<>\"-\",TAB_MEP[[#This Row],[1ere formation / facturation]],\"\")","v":"2020-05-27"}]
[294,"2023-09-07","2023-10-02",3,63,"-",{"$f":"IF(OR(TAB_MEP[[#This Row],[Nb jour avt mep]]=\"-\",TAB_MEP[[#This Row],[Date lancement]]=\"-\"),\"pas de date\",TAB_MEP[[#This Row],[Date lancement]]+TAB_MEP[[#This Row],[Nb jour avt mep]])","v":"2023-12-04"},{"$f":"IF(OR(TAB_MEP[[#This Row],[1ere formation / facturation]]=\"-\",TAB_MEP[[#This Row],[1ere formation / facturation]]>=TODAY()),1,0)","v":1},null,null,"FR","SC","CF",1,{"$f":"IF(AND(AND(TAB_MEP[[#This Row],[1ere formation / facturation]]<>\"-\",TAB_MEP[[#This Row],[Date de MEP prévisionnelle]]<TAB_MEP[[#This Row],[1ere formation / facturation]],TAB_MEP[[#This Row],[Date de MEP prévisionnelle]]<>\"pas de date\")),1,0)","v":0},{"$f":"IF(AND(TAB_MEP[[#This Row],[1ere formation / facturation]]=\"-\",TAB_MEP[[#This Row],[Date de MEP prévisionnelle]]<TODAY()),1,0)","v":0},{"$f":"IF(TAB_MEP[[#This Row],[1ere formation / facturation]]<>\"-\",TAB_MEP[[#This Row],[1ere formation / facturation]],\"\")","v":""}]
[295,"2020-11-03","2020-11-04",3,"-","2020-11-25",{"$f":"IF(OR(TAB_MEP[[#This Row],[Nb jour avt mep]]=\"-\",TAB_MEP[[#This Row],[Date lancement]]=\"-\"),\"pas de date\",TAB_MEP[[#This Row],[Date lancement]]+TAB_MEP[[#This Row],[Nb jour avt mep]])","v":"pas de date"},{"$f":"IF(OR(TAB_MEP[[#This Row],[1ere formation / facturation]]=\"-\",TAB_MEP[[#This Row],[1ere formation / facturation]]>=TODAY()),1,0)","v":0},{"$nulls":3},"SC","CF",0,{"$f":"IF(AND(AND(TAB_MEP[[#This Row],[1ere formation / facturation]]<>\"-\",TAB_MEP[[#This Row],[Date de MEP prévisionnelle]]<TAB_MEP[[#This Row],[1ere formation / facturation]],TAB_MEP[[#This Row],[Date de MEP prévisionnelle]]<>\"pas de date\")),1,0)","v":0},{"$f":"IF(AND(TAB_MEP[[#This Row],[1ere formation / facturation]]=\"-\",TAB_MEP[[#This Row],[Date de MEP prévisionnelle]]<TODAY()),1,0)","v":0},{"$f":"IF(TAB_MEP[[#This Row],[1ere formation / facturation]]<>\"-\",TAB_MEP[[#This Row],[1ere formation / facturation]],\"\")","v":"2020-11-25"}]
[296,"2023-10-10","2023-10-10",2,40,"-",{"$f":"IF(OR(TAB_MEP[[#This Row],[Nb jour avt mep]]=\"-\",TAB_MEP[[#This Row],[Date lancement]]=\"-\"),\"pas de date\",TAB_MEP[[#This Row],[Date lancement]]+TAB_MEP[[#This Row],[Nb jour avt mep]])","v":"2023-11-19"},{"$f":"IF(OR(TAB_MEP[[#This Row],[1ere formation / facturation]]=\"-\",TAB_MEP[[#This Row],[1ere formation / facturation]]>=TODAY()),1,0)","v":1},null,null,"FR","Part","CF",1,{"$f":"IF(AND(AND(TAB_MEP[[#This Row],[1ere formation / facturation]]<>\"-\",TAB_MEP[[#This Row],[Date de MEP prévisionnelle]]<TAB_MEP[[#This Row],[1ere formation / facturation]],TAB_MEP[[#This Row],[Date de MEP prévisionnelle]]<>\"pas de date\")),1,0)","v":0},{"$f":"IF(AND(TAB_MEP[[#This Row],[1ere formation / facturation]]=\"-\",TAB_MEP[[#This Row],[Date de MEP prévisionnelle]]<TODAY()),1,0)","v":0},{"$f":"IF(TAB_MEP[[#This Row],[1ere formation / facturation]]<>\"-\",TAB_MEP[[#This Row],[1ere formation / facturation]],\"\")","v":""}]
[297,"2023-10-11","2023-10-12",1,41,"-",{"$f":"IF(OR(TAB_MEP[[#This Row],[Nb jour avt mep]]=\"-\",TAB_MEP[[#This Row],[Date lancement]]=\"-\"),\"pas de date\",TAB_MEP[[#This Row],[Date lancement]]+TAB_MEP[[#This Row],[Nb jour avt mep]])","v":"2023-11-22"},{"$f":"IF(OR(TAB_MEP[[#This Row],[1ere formation / facturation]]=\"-\",TAB_MEP[[#This Row],[1ere formation / facturation]]>=TODAY()),1,0)","v":1},null,null,"FR","SC","CF",1,{"$f":"IF(AND(AND(TAB_MEP[[#This Row],[1ere formation / facturation]]<>\"-\",TAB_MEP[[#This Row],[Date de MEP prévisionnelle]]<TAB_MEP[[#This Row],[1ere formation / facturation]],TAB_MEP[[#This Row],[Date de MEP prévisionnelle]]<>\"pas de date\")),1,0)","v":0},{"$f":"IF(AND(TAB_MEP[[#This Row],[1ere formation / facturation]]=\"-\",TAB_MEP[[#This Row],[Date de MEP prévisionnelle]]<TODAY()),1,0)","v":0},{"$f":"IF(TAB_MEP[[#This Row],[1ere formation / facturation]]<>\"-\",TAB_MEP[[#This Row],[1ere formation / facturation]],\"\")","v":""}]
[298,"2019-11-29","2020-02-23",34,"-","2020-10-23",{"$f":"IF(OR(TAB_MEP[[#This Row],[Nb jour avt mep]]=\"-\",TAB_MEP[[#This Row],[Date lancement]]=\"-\"),\"pas de date\",TAB_MEP[[#This Row],[Date lancement]]+TAB_MEP[[#This Row],[Nb jour avt mep]])","v":"pas de date"},{"$f":"IF(OR(TAB_MEP[[#This Row],[1ere formation / facturation]]=\"-\",TAB_MEP[[#This Row],[1ere formation / facturation]]>=TODAY()),1,0)","v":0},{"$nulls":3},"SC","CF",0,{"$f":"IF(AND(AND(TAB_MEP[[#This Row],[1ere formation / facturation]]<>\"-\",TAB_MEP[[#This Row],[Date de MEP prévisionnelle]]<TAB_MEP[[#This Row],[1ere formation / facturation]],TAB_MEP[[#This Row],[Date de MEP prévisionnelle]]<>\"pas de date\")),1,0)","v":0},{"$f":"IF(AND(TAB_MEP[[#This Row],[1ere formation / facturation]]=\"-\",TAB_MEP[[#This Row],[Date de MEP prévisionnelle]]<TODAY()),1,0)","v":0},{"$f":"IF(TAB_MEP[[#This Row],[1ere formation / facturation]]<>\"-\",TAB_MEP[[#This Row],[1ere formation / facturation]],\"\")","v":"2020-10-23"}]
[299,"2022-01-26","2022-01-26",5,"-","2022-03-02",{"$f":"IF(OR(TAB_MEP[[#This Row],[Nb jour avt mep]]=\"-\",TAB_MEP[[#This Row],[Date lancement]]=\"-\"),\"pas de date\",TAB_MEP[[#This Row],[Date lancement]]+TAB_MEP[[#This Row],[Nb jour avt mep]])","v":"pas de date"},{"$f":"IF(OR(TAB_MEP[[#This Row],[1ere formation / facturation]]=\"-\",TAB_MEP[[#This Row],[1ere formation / facturation]]>=TODAY()),1,0)","v":0},{"$nulls":3},"Part","CF",0,{"$f":"IF(AND(AND(TAB_MEP[[#This Row],[1ere formation / facturation]]<>\"-\",TAB_MEP[[#This Row],[Date de MEP prévisionnelle]]<TAB_MEP[[#This Row],[1ere formation / facturation]],TAB_MEP[[#This Row],[Date de MEP prévisionnelle]]<>\"pas de date\")),1,0)","v":0},{"$f":"IF(AND(TAB_MEP[[#This Row],[1ere formation / facturation]]=\"-\",TAB_MEP[[#This Row],[Date de MEP prévisionnelle]]<TODAY()),1,0)","v":0},{"$f":"IF(TAB_MEP[[#This Row],[1ere formation / facturation]]<>\"-\",TAB_MEP[[#This Row],[1ere formation / facturation]],\"\")","v":"2022-03-02"}]
[300,"2020-06-30","2020-07-15",7,"-","2020-09-02",{"$f":"IF(OR(TAB_MEP[[#This Row],[Nb jour avt mep]]=\"-\",TAB_MEP[[#This Row],[Date lancement]]=\"-\"),\"pas de date\",TAB_MEP[[#This Row],[Date lancement]]+TAB_MEP[[#This Row],[Nb jour avt mep]])","v":"pas de date"},{"$f":"IF(OR(TAB_MEP[[#This Row],[1ere formation / facturation]]=\"-\",TAB_MEP[[#This Row],[1ere formation / facturation]]>=TODAY()),1,0)","v":0},{"$nulls":3},"SC","CF",0,{"$f":"IF(AND(AND(TAB_MEP[[#This Row],[1ere formation / facturation]]<>\"-\",TAB_MEP[[#This Row],[Date de MEP prévisionnelle]]<TAB_MEP[[#This Row],[1ere formation / facturation]],TAB_MEP[[#This Row],[Date de MEP prévisionnelle]]<>\"pas de date\")),1,0)","v":0},{"$f":"IF(AND(TAB_MEP[[#This Row],[1ere formation / facturation]]=\"-\",TAB_MEP[[#This Row],[Date de MEP prévisionnelle]]<TODAY()),1,0)","v":0},{"$f":"IF(TAB_MEP[[#This Row],[1ere formation / facturation]]<>\"-\",TAB_MEP[[#This Row],[1ere formation / facturation]],\"\")","v":"2020-09-02"}]
[301,"2023-10-02","2023-10-12",1,110,"-",{"$f":"IF(OR(TAB_MEP[[#This Row],[Nb jour avt mep]]=\"-\",TAB_MEP[[#This Row],[Date lancement]]=\"-\"),\"pas de date\",TAB_MEP[[#This Row],[Date lancement]]+TAB_MEP[[#This Row],[Nb jour avt mep]])","v":"2024-01-30"},{"$f":"IF(OR(TAB_MEP[[#This Row],[1ere formation / facturation]]=\"-\",TAB_MEP[[#This Row],[1ere formation / facturation]]>=TODAY()),1,0)","v":1},null,null,"FR","SC","CF",1,{"$f":"IF(AND(AND(TAB_MEP[[#This Row],[1ere formation / facturation]]<>\"-\",TAB_MEP[[#This Row],[Date de MEP prévisionnelle]]<TAB_MEP[[#This Row],[1ere formation / facturation]],TAB_MEP[[#This Row],[Date de MEP prévisionnelle]]<>\"pas de date\")),1,0)","v":0},{"$f":"IF(AND(TAB_MEP[[#This Row],[1ere formation / facturation]]=\"-\",TAB_MEP[[#This Row],[Date de MEP prévisionnelle]]<TODAY()),1,0)","v":0},{"$f":"IF(TAB_MEP[[#This Row],[1ere formation / facturation]]<>\"-\",TAB_MEP[[#This Row],[1ere formation / facturation]],\"\")","v":""}]
[302,"2021-10-12","2021-11-04",20,"-","2022-03-30",{"$f":"IF(OR(TAB_MEP[[#This Row],[Nb jour avt mep]]=\"-\",TAB_MEP[[#This Row],[Date lancement]]=\"-\"),\"pas de date\",TAB_MEP[[#This Row],[Date lancement]]+TAB_MEP[[#This Row],[Nb jour avt mep]])","v":"pas de date"},{"$f":"IF(OR(TAB_MEP[[#This Row],[1ere formation / facturation]]=\"-\",TAB_MEP[[#This Row],[1ere formation / facturation]]>=TODAY()),1,0)","v":0},{"$nulls":3},"SC","CF",0,{"$f":"IF(AND(AND(TAB_MEP[[#This Row],[1ere formation / facturation]]<>\"-\",TAB_MEP[[#This Row],[Date de MEP prévisionnelle]]<TAB_MEP[[#This Row],[1ere formation / facturation]],TAB_MEP[[#This Row],[Date de MEP prévisionnelle]]<>\"pas de date\")),1,0)","v":0},{"$f":"IF(AND(TAB_MEP[[#This Row],[1ere formation / facturation]]=\"-\",TAB_MEP[[#This Row],[Date de MEP prévisionnelle]]<TODAY()),1,0)","v":0},{"$f":"IF(TAB_MEP[[#This Row],[1ere formation / facturation]]<>\"-\",TAB_MEP[[#This Row],[1ere formation / facturation]],\"\")","v":"2022-03-30"}]
[303,"2023-07-24","2023-09-08",6,116,"-",{"$f":"IF(OR(TAB_MEP[[#This Row],[Nb jour avt mep]]=\"-\",TAB_MEP[[#This Row],[Date lancement]]=\"-\"),\"pas de date\",TAB_MEP[[#This Row],[Date lancement]]+TAB_MEP[[#This Row],[Nb jour avt mep]])","v":"2024-01-02"},{"$f":"IF(OR(TAB_MEP[[#This Row],[1ere formation / facturation]]=\"-\",TAB_MEP[[#This Row],[1ere formation / facturation]]>=TODAY()),1,0)","v":1},"Octobre",null,"FR","SC","CF",1,{"$f":"IF(AND(AND(TAB_MEP[[#This Row],[1ere formation / facturation]]<>\"-\",TAB_MEP[[#This Row],[Date de MEP prévisionnelle]]<TAB_MEP[[#This Row],[1ere formation / facturation]],TAB_MEP[[#This Row],[Date de MEP prévisionnelle]]<>\"pas de date\")),1,0)","v":0},{"$f":"IF(AND(TAB_MEP[[#This Row],[1ere formation / facturation]]=\"-\",TAB_MEP[[#This Row],[Date de MEP prévisionnelle]]<TODAY()),1,0)","v":0},{"$f":"IF(TAB_MEP[[#This Row],[1ere formation / facturation]]<>\"-\",TAB_MEP[[#This Row],[1ere formation / facturation]],\"\")","v":""}]
[304,"2022-06-29","2022-07-26",15,"-","2022-11-10",{"$f":"IF(OR(TAB_MEP[[#This Row],[Nb jour avt mep]]=\"-\",TAB_MEP[[#This Row],[Date lancement]]=\"-\"),\"pas de date\",TAB_MEP[[#This Row],[Date lancement]]+TAB_MEP[[#This Row],[Nb jour avt mep]])","v":"pas de date"},{"$f":"IF(OR(TAB_MEP[[#This Row],[1ere formation / facturation]]=\"-\",TAB_MEP[[#This Row],[1ere formation / facturation]]>=TODAY()),1,0)","v":0},null,null,"FR","SC","CF",0,{"$f":"IF(AND(AND(TAB_MEP[[#This Row],[1ere formation / facturation]]<>\"-\",TAB_MEP[[#This Row],[Date de MEP prévisionnelle]]<TAB_MEP[[#This Row],[1ere formation / facturation]],TAB_MEP[[#This Row],[Date de MEP prévisionnelle]]<>\"pas de date\")),1,0)","v":0},{"$f":"IF(AND(TAB_MEP[[#This Row],[1ere formation / facturation]]=\"-\",TAB_MEP[[#This Row],[Date de MEP prévisionnelle]]<TODAY()),1,0)","v":0},{"$f":"IF(TAB_MEP[[#This Row],[1ere formation / facturation]]<>\"-\",TAB_MEP[[#This Row],[1ere formation / facturation]],\"\")","v":"2022-11-10"}]
[305,"2023-02-17","2023-03-03",7,91,"2023-04-27",{"$f":"IF(OR(TAB_MEP[[#This Row],[Nb jour avt mep]]=\"-\",TAB_MEP[[#This Row],[Date lancement]]=\"-\"),\"pas de date\",TAB_MEP[[#This Row],[Date lancement]]+TAB_MEP[[#This Row],[Nb jour avt mep]])","v":"2023-06-02"},{"$f":"IF(OR(TAB_MEP[[#This Row],[1ere formation / facturation]]=\"-\",TAB_MEP[[#This Row],[1ere formation / facturation]]>=TODAY()),1,0)","v":0},null,null,"FR","SC","CF",0,{"$f":"IF(AND(AND(TAB_MEP[[#This Row],[1ere formation / facturation]]<>\"-\",TAB_MEP[[#This Row],[Date de MEP prévisionnelle]]<TAB_MEP[[#This Row],[1ere formation / facturation]],TAB_MEP[[#This Row],[Date de MEP prévisionnelle]]<>\"pas de date\")),1,0)","v":0},{"$f":"IF(AND(TAB_MEP[[#This Row],[1ere formation / facturation]]=\"-\",TAB_MEP[[#This Row],[Date de MEP prévisionnelle]]<TODAY()),1,0)","v":0},{"$f":"IF(TAB_MEP[[#This Row],[1ere formation / facturation]]<>\"-\",TAB_MEP[[#This Row],[1ere formation / facturation]],\"\")","v":"2023-04-27"}]
[306,"2020-01-20","2020-01-27",7,"-","2020-03-20",{"$f":"IF(OR(TAB_MEP[[#This Row],[Nb jour avt mep]]=\"-\",TAB_MEP[[#This Row],[Date lancement]]=\"-\"),\"pas de date\",TAB_MEP[[#This Row],[Date lancement]]+TAB_MEP[[#This Row],[Nb jour avt mep]])","v":"pas de date"},{"$f":"IF(OR(TAB_MEP[[#This Row],[1ere formation / facturation]]=\"-\",TAB_MEP[[#This Row],[1ere formation / facturation]]>=TODAY()),1,0)","v":0},{"$nulls":3},"Part","CF",0,{"$f":"IF(AND(AND(TAB_MEP[[#This Row],[1ere formation / facturation]]<>\"-\",TAB_MEP[[#This Row],[Date de MEP prévisionnelle]]<TAB_MEP[[#This Row],[1ere formation / facturation]],TAB_MEP[[#This Row],[Date de MEP prévisionnelle]]<>\"pas de date\")),1,0)","v":0},{"$f":"IF(AND(TAB_MEP[[#This Row],[1ere formation / facturation]]=\"-\",TAB_MEP[[#This Row],[Date de MEP prévisionnelle]]<TODAY()),1,0)","v":0},{"$f":"IF(TAB_MEP[[#This Row],[1ere formation / facturation]]<>\"-\",TAB_MEP[[#This Row],[1ere formation / facturation]],\"\")","v":"2020-03-20"}]
[307,"2022-06-30","2022-07-13",20,"-","2022-11-30",{"$f":"IF(OR(TAB_MEP[[#This Row],[Nb jour avt mep]]=\"-\",TAB_MEP[[#This Row],[Date lancement]]=\"-\"),\"pas de date\",TAB_MEP[[#This Row],[Date lancement]]+TAB_MEP[[#This Row],[Nb jour avt mep]])","v":"pas de date"},{"$f":"IF(OR(TAB_MEP[[#This Row],[1ere formation / facturation]]=\"-\",TAB_MEP[[#This Row],[1ere formation / facturation]]>=TODAY()),1,0)","v":0},null,null,"FR","SC","CF",0,{"$f":"IF(AND(AND(TAB_MEP[[#This Row],[1ere formation / facturation]]<>\"-\",TAB_MEP[[#This Row],[Date de MEP prévisionnelle]]<TAB_MEP[[#This Row],[1ere formation / facturation]],TAB_MEP[[#This Row],[Date de MEP prévisionnelle]]<>\"pas de date\")),1,0)","v":0},{"$f":"IF(AND(TAB_MEP[[#This Row],[1ere formation / facturation]]=\"-\",TAB_MEP[[#This Row],[Date de MEP prévisionnelle]]<TODAY()),1,0)","v":0},{"$f":"IF(TAB_MEP[[#This Row],[1ere formation / facturation]]<>\"-\",TAB_MEP[[#This Row],[1ere formation / facturation]],\"\")","v":"2022-11-30"}]
[308,"2022-11-25","2022-12-01",21,"-","2023-04-27",{"$f":"IF(OR(TAB_MEP[[#This Row],[Nb jour avt mep]]=\"-\",TAB_MEP[[#This Row],[Date lancement]]=\"-\"),\"pas de date\",TAB_MEP[[#This Row],[Date lancement]]+TAB_MEP[[#This Row],[Nb jour avt mep]])","v":"pas de date"},{"$f":"IF(OR(TAB_MEP[[#This Row],[1ere formation / facturation]]=\"-\",TAB_MEP[[#This Row],[1ere formation / facturation]]>=TODAY()),1,0)","v":0},null,null,"FR","SC","CF",1,{"$f":"IF(AND(AND(TAB_MEP[[#This Row],[1ere formation / facturation]]<>\"-\",TAB_MEP[[#This Row],[Date de MEP prévisionnelle]]<TAB_MEP[[#This Row],[1ere formation / facturation]],TAB_MEP[[#This Row],[Date de MEP prévisionnelle]]<>\"pas de date\")),1,0)","v":0},{"$f":"IF(AND(TAB_MEP[[#This Row],[1ere formation / facturation]]=\"-\",TAB_MEP[[#This Row],[Date de MEP prévisionnelle]]<TODAY()),1,0)","v":0},{"$f":"IF(TAB_MEP[[#This Row],[1ere formation / facturation]]<>\"-\",TAB_MEP[[#This Row],[1ere formation / facturation]],\"\")","v":"2023-04-27"}]
[309,"2023-10-11","-","0",{"v":68.25,"d":"68"},"2023-11-20",{"$f":"IF(OR(TAB_MEP[[#This Row],[Nb jour avt mep]]=\"-\",TAB_MEP[[#This Row],[Date lancement]]=\"-\"),\"pas de date\",TAB_MEP[[#This Row],[Date lancement]]+TAB_MEP[[#This Row],[Nb jour avt mep]])","v":"pas de date"},{"$f":"IF(OR(TAB_MEP[[#This Row],[1ere formation / facturation]]=\"-\",TAB_MEP[[#This Row],[1ere formation / facturation]]>=TODAY()),1,0)","v":1},"Novembre",null,"FR","SC","CF",1,{"$f":"IF(AND(AND(TAB_MEP[[#This Row],[1ere formation / facturation]]<>\"-\",TAB_MEP[[#This Row],[Date de MEP prévisionnelle]]<TAB_MEP[[#This Row],[1ere formation / facturation]],TAB_MEP[[#This Row],[Date de MEP prévisionnelle]]<>\"pas de date\")),1,0)","v":0},{"$f":"IF(AND(TAB_MEP[[#This Row],[1ere formation / facturation]]=\"-\",TAB_MEP[[#This Row],[Date de MEP prévisionnelle]]<TODAY()),1,0)","v":0},{"$f":"IF(TAB_MEP[[#This Row],[1ere formation / facturation]]<>\"-\",TAB_MEP[[#This Row],[1ere formation / facturation]],\"\")","v":"2023-11-20"}]
[310,"2023-10-19","-","0",76,"-",{"$f":"IF(OR(TAB_MEP[[#This Row],[Nb jour avt mep]]=\"-\",TAB_MEP[[#This Row],[Date lancement]]=\"-\"),\"pas de date\",TAB_MEP[[#This Row],[Date lancement]]+TAB_MEP[[#This Row],[Nb jour avt mep]])","v":"pas de date"},{"$f":"IF(OR(TAB_MEP[[#This Row],[1ere formation / facturation]]=\"-\",TAB_MEP[[#This Row],[1ere formation / facturation]]>=TODAY()),1,0)","v":1},null,null,"FR","SC","CF",1,{"$f":"IF(AND(AND(TAB_MEP[[#This Row],[1ere formation / facturation]]<>\"-\",TAB_MEP[[#This Row],[Date de MEP prévisionnelle]]<TAB_MEP[[#This Row],[1ere formation / facturation]],TAB_MEP[[#This Row],[Date de MEP prévisionnelle]]<>\"pas de date\")),1,0)","v":0},{"$f":"IF(AND(TAB_MEP[[#This Row],[1ere formation / facturation]]=\"-\",TAB_MEP[[#This Row],[Date de MEP prévisionnelle]]<TODAY()),1,0)","v":0},{"$f":"IF(TAB_MEP[[#This Row],[1ere formation / facturation]]<>\"-\",TAB_MEP[[#This Row],[1ere formation / facturation]],\"\")","v":""}]
[311,"2022-07-19","2022-10-06",16,"-","2023-01-27",{"$f":"IF(OR(TAB_MEP[[#This Row],[Nb jour avt mep]]=\"-\",TAB_MEP[[#This Row],[Date lancement]]=\"-\"),\"pas de date\",TAB_MEP[[#This Row],[Date lancement]]+TAB_MEP[[#This Row],[Nb jour avt mep]])","v":"pas de date"},{"$f":"IF(OR(TAB_MEP[[#This Row],[1ere formation / facturation]]=\"-\",TAB_MEP[[#This Row],[1ere formation / facturation]]>=TODAY()),1,0)","v":0},null,null,"FR","SC","CF",0,{"$f":"IF(AND(AND(TAB_MEP[[#This Row],[1ere formation / facturation]]<>\"-\",TAB_MEP[[#This Row],[Date de MEP prévisionnelle]]<TAB_MEP[[#This Row],[1ere formation / facturation]],TAB_MEP[[#This Row],[Date de MEP prévisionnelle]]<>\"pas de date\")),1,0)","v":0},{"$f":"IF(AND(TAB_MEP[[#This Row],[1ere formation / facturation]]=\"-\",TAB_MEP[[#This Row],[Date de MEP prévisionnelle]]<TODAY()),1,0)","v":0},{"$f":"IF(TAB_MEP[[#This Row],[1ere formation / facturation]]<>\"-\",TAB_MEP[[#This Row],[1ere formation / facturation]],\"\")","v":"2023-01-27"}]
[312,"2022-09-01","2022-09-26",6,"-","2022-11-09",{"$f":"IF(OR(TAB_MEP[[#This Row],[Nb jour avt mep]]=\"-\",TAB_MEP[[#This Row],[Date lancement]]=\"-\"),\"pas de date\",TAB_MEP[[#This Row],[Date lancement]]+TAB_MEP[[#This Row],[Nb jour avt mep]])","v":"pas de date"},{"$f":"IF(OR(TAB_MEP[[#This Row],[1ere formation / facturation]]=\"-\",TAB_MEP[[#This Row],[1ere formation / facturation]]>=TODAY()),1,0)","v":0},null,null,"FR","SC","CF",0,{"$f":"IF(AND(AND(TAB_MEP[[#This Row],[1ere formation / facturation]]<>\"-\",TAB_MEP[[#This Row],[Date de MEP prévisionnelle]]<TAB_MEP[[#This Row],[1ere formation / facturation]],TAB_MEP[[#This Row],[Date de MEP prévisionnelle]]<>\"pas de date\")),1,0)","v":0},{"$f":"IF(AND(TAB_MEP[[#This Row],[1ere formation / facturation]]=\"-\",TAB_MEP[[#This Row],[Date de MEP prévisionnelle]]<TODAY()),1,0)","v":0},{"$f":"IF(TAB_MEP[[#This Row],[1ere formation / facturation]]<>\"-\",TAB_MEP[[#This Row],[1ere formation / facturation]],\"\")","v":"2022-11-09"}]
[313,"2022-05-19","2022-06-02",25,"-","2022-11-30",{"$f":"IF(OR(TAB_MEP[[#This Row],[Nb jour avt mep]]=\"-\",TAB_MEP[[#This Row],[Date lancement]]=\"-\"),\"pas de date\",TAB_MEP[[#This Row],[Date lancement]]+TAB_MEP[[#This Row],[Nb jour avt mep]])","v":"pas de date"},{"$f":"IF(OR(TAB_MEP[[#This Row],[1ere formation / facturation]]=\"-\",TAB_MEP[[#This Row],[1ere formation / facturation]]>=TODAY()),1,0)","v":0},null,null,"FR","SC","FF",0,{"$f":"IF(AND(AND(TAB_MEP[[#This Row],[1ere formation / facturation]]<>\"-\",TAB_MEP[[#This Row],[Date de MEP prévisionnelle]]<TAB_MEP[[#This Row],[1ere formation / facturation]],TAB_MEP[[#This Row],[Date de MEP prévisionnelle]]<>\"pas de date\")),1,0)","v":0},{"$f":"IF(AND(TAB_MEP[[#This Row],[1ere formation / facturation]]=\"-\",TAB_MEP[[#This Row],[Date de MEP prévisionnelle]]<TODAY()),1,0)","v":0},{"$f":"IF(TAB_MEP[[#This Row],[1ere formation / facturation]]<>\"-\",TAB_MEP[[#This Row],[1ere formation / facturation]],\"\")","v":"2022-11-30"}]
[314,"2023-01-16","2023-02-02",12,80,"2023-05-02",{"$f":"IF(OR(TAB_MEP[[#This Row],[Nb jour avt mep]]=\"-\",TAB_MEP[[#This Row],[Date lancement]]=\"-\"),\"pas de date\",TAB_MEP[[#This Row],[Date lancement]]+TAB_MEP[[#This Row],[Nb jour avt mep]])","v":"2023-04-23"},{"$f":"IF(OR(TAB_MEP[[#This Row],[1ere formation / facturation]]=\"-\",TAB_MEP[[#This Row],[1ere formation / facturation]]>=TODAY()),1,0)","v":0},null,null,"FR","SC","CF",0,{"$f":"IF(AND(AND(TAB_MEP[[#This Row],[1ere formation / facturation]]<>\"-\",TAB_MEP[[#This Row],[Date de MEP prévisionnelle]]<TAB_MEP[[#This Row],[1ere formation / facturation]],TAB_MEP[[#This Row],[Date de MEP prévisionnelle]]<>\"pas de date\")),1,0)","v":1},{"$f":"IF(AND(TAB_MEP[[#This Row],[1ere formation / facturation]]=\"-\",TAB_MEP[[#This Row],[Date de MEP prévisionnelle]]<TODAY()),1,0)","v":0},{"$f":"IF(TAB_MEP[[#This Row],[1ere formation / facturation]]<>\"-\",TAB_MEP[[#This Row],[1ere formation / facturation]],\"\")","v":"2023-05-02"}]
[315,"2020-10-26","2020-11-12",18,"-","2021-03-24",{"$f":"IF(OR(TAB_MEP[[#This Row],[Nb jour avt mep]]=\"-\",TAB_MEP[[#This Row],[Date lancement]]=\"-\"),\"pas de date\",TAB_MEP[[#This Row],[Date lancement]]+TAB_MEP[[#This Row],[Nb jour avt mep]])","v":"pas de date"},{"$f":"IF(OR(TAB_MEP[[#This Row],[1ere formation / facturation]]=\"-\",TAB_MEP[[#This Row],[1ere formation / facturation]]>=TODAY()),1,0)","v":0},{"$nulls":3},"SC","CF",0,{"$f":"IF(AND(AND(TAB_MEP[[#This Row],[1ere formation / facturation]]<>\"-\",TAB_MEP[[#This Row],[Date de MEP prévisionnelle]]<TAB_MEP[[#This Row],[1ere formation / facturation]],TAB_MEP[[#This Row],[Date de MEP prévisionnelle]]<>\"pas de date\")),1,0)","v":0},{"$f":"IF(AND(TAB_MEP[[#This Row],[1ere formation / facturation]]=\"-\",TAB_MEP[[#This Row],[Date de MEP prévisionnelle]]<TODAY()),1,0)","v":0},{"$f":"IF(TAB_MEP[[#This Row],[1ere formation / facturation]]<>\"-\",TAB_MEP[[#This Row],[1ere formation / facturation]],\"\")","v":"2021-03-24"}]
[316,"2023-03-31","2023-04-06",6,100,"2023-05-22",{"$f":"IF(OR(TAB_MEP[[#This Row],[Nb jour avt mep]]=\"-\",TAB_MEP[[#This Row],[Date lancement]]=\"-\"),\"pas de date\",TAB_MEP[[#This Row],[Date lancement]]+TAB_MEP[[#This Row],[Nb jour avt mep]])","v":"2023-07-15"},{"$f":"IF(OR(TAB_MEP[[#This Row],[1ere formation / facturation]]=\"-\",TAB_MEP[[#This Row],[1ere formation / facturation]]>=TODAY()),1,0)","v":0},null,null,"CI","Inter","CF",1,{"$f":"IF(AND(AND(TAB_MEP[[#This Row],[1ere formation / facturation]]<>\"-\",TAB_MEP[[#This Row],[Date de MEP prévisionnelle]]<TAB_MEP[[#This Row],[1ere formation / facturation]],TAB_MEP[[#This Row],[Date de MEP prévisionnelle]]<>\"pas de date\")),1,0)","v":0},{"$f":"IF(AND(TAB_MEP[[#This Row],[1ere formation / facturation]]=\"-\",TAB_MEP[[#This Row],[Date de MEP prévisionnelle]]<TODAY()),1,0)","v":0},{"$f":"IF(TAB_MEP[[#This Row],[1ere formation / facturation]]<>\"-\",TAB_MEP[[#This Row],[1ere formation / facturation]],\"\")","v":"2023-05-22"}]
[317,"2023-10-19","-","0",83,"-",{"$f":"IF(OR(TAB_MEP[[#This Row],[Nb jour avt mep]]=\"-\",TAB_MEP[[#This Row],[Date lancement]]=\"-\"),\"pas de date\",TAB_MEP[[#This Row],[Date lancement]]+TAB_MEP[[#This Row],[Nb jour avt mep]])","v":"pas de date"},{"$f":"IF(OR(TAB_MEP[[#This Row],[1ere formation / facturation]]=\"-\",TAB_MEP[[#This Row],[1ere formation / facturation]]>=TODAY()),1,0)","v":1},null,null,"FR","SC","CF",1,{"$f":"IF(AND(AND(TAB_MEP[[#This Row],[1ere formation / facturation]]<>\"-\",TAB_MEP[[#This Row],[Date de MEP prévisionnelle]]<TAB_MEP[[#This Row],[1ere formation / facturation]],TAB_MEP[[#This Row],[Date de MEP prévisionnelle]]<>\"pas de date\")),1,0)","v":0},{"$f":"IF(AND(TAB_MEP[[#This Row],[1ere formation / facturation]]=\"-\",TAB_MEP[[#This Row],[Date de MEP prévisionnelle]]<TODAY()),1,0)","v":0},{"$f":"IF(TAB_MEP[[#This Row],[1ere formation / facturation]]<>\"-\",TAB_MEP[[#This Row],[1ere formation / facturation]],\"\")","v":""}]
[318,"2023-10-10","-","0","-","-",{"$f":"IF(OR(TAB_MEP[[#This Row],[Nb jour avt mep]]=\"-\",TAB_MEP[[#This Row],[Date lancement]]=\"-\"),\"pas de date\",TAB_MEP[[#This Row],[Date lancement]]+TAB_MEP[[#This Row],[Nb jour avt mep]])","v":"pas de date"},{"$f":"IF(OR(TAB_MEP[[#This Row],[1ere formation / facturation]]=\"-\",TAB_MEP[[#This Row],[1ere formation / facturation]]>=TODAY()),1,0)","v":1},null,null,"FR","SC","CF",1,{"$f":"IF(AND(AND(TAB_MEP[[#This Row],[1ere formation / facturation]]<>\"-\",TAB_MEP[[#This Row],[Date de MEP prévisionnelle]]<TAB_MEP[[#This Row],[1ere formation / facturation]],TAB_MEP[[#This Row],[Date de MEP prévisionnelle]]<>\"pas de date\")),1,0)","v":0},{"$f":"IF(AND(TAB_MEP[[#This Row],[1ere formation / facturation]]=\"-\",TAB_MEP[[#This Row],[Date de MEP prévisionnelle]]<TODAY()),1,0)","v":0},{"$f":"IF(TAB_MEP[[#This Row],[1ere formation / facturation]]<>\"-\",TAB_MEP[[#This Row],[1ere formation / facturation]],\"\")","v":""}]
[319,"2023-01-31","2023-02-24",22,100,"2023-07-31",{"$f":"IF(OR(TAB_MEP[[#This Row],[Nb jour avt mep]]=\"-\",TAB_MEP[[#This Row],[Date lancement]]=\"-\"),\"pas de date\",TAB_MEP[[#This Row],[Date lancement]]+TAB_MEP[[#This Row],[Nb jour avt mep]])","v":"2023-06-04"},{"$f":"IF(OR(TAB_MEP[[#This Row],[1ere formation / facturation]]=\"-\",TAB_MEP[[#This Row],[1ere formation / facturation]]>=TODAY()),1,0)","v":0},null,null,"FR","SC","CF",1,{"$f":"IF(AND(AND(TAB_MEP[[#This Row],[1ere formation / facturation]]<>\"-\",TAB_MEP[[#This Row],[Date de MEP prévisionnelle]]<TAB_MEP[[#This Row],[1ere formation / facturation]],TAB_MEP[[#This Row],[Date de MEP prévisionnelle]]<>\"pas de date\")),1,0)","v":1},{"$f":"IF(AND(TAB_MEP[[#This Row],[1ere formation / facturation]]=\"-\",TAB_MEP[[#This Row],[Date de MEP prévisionnelle]]<TODAY()),1,0)","v":0},{"$f":"IF(TAB_MEP[[#This Row],[1ere formation / facturation]]<>\"-\",TAB_MEP[[#This Row],[1ere formation / facturation]],\"\")","v":"2023-07-31"}]
[320,"2023-10-18","-","0",100,"-",{"$f":"IF(OR(TAB_MEP[[#This Row],[Nb jour avt mep]]=\"-\",TAB_MEP[[#This Row],[Date lancement]]=\"-\"),\"pas de date\",TAB_MEP[[#This Row],[Date lancement]]+TAB_MEP[[#This Row],[Nb jour avt mep]])","v":"pas de date"},{"$f":"IF(OR(TAB_MEP[[#This Row],[1ere formation / facturation]]=\"-\",TAB_MEP[[#This Row],[1ere formation / facturation]]>=TODAY()),1,0)","v":1},null,null,"FR","SC","CF",1,{"$f":"IF(AND(AND(TAB_MEP[[#This Row],[1ere formation / facturation]]<>\"-\",TAB_MEP[[#This Row],[Date de MEP prévisionnelle]]<TAB_MEP[[#This Row],[1ere formation / facturation]],TAB_MEP[[#This Row],[Date de MEP prévisionnelle]]<>\"pas de date\")),1,0)","v":0},{"$f":"IF(AND(TAB_MEP[[#This Row],[1ere formation / facturation]]=\"-\",TAB_MEP[[#This Row],[Date de MEP prévisionnelle]]<TODAY()),1,0)","v":0},{"$f":"IF(TAB_MEP[[#This Row],[1ere formation / facturation]]<>\"-\",TAB_MEP[[#This Row],[1ere formation / facturation]],\"\")","v":""}]
[321,"2023-10-11","-","0",112,"-",{"$f":"IF(OR(TAB_MEP[[#This Row],[Nb jour avt mep]]=\"-\",TAB_MEP[[#This Row],[Date lancement]]=\"-\"),\"pas de date\",TAB_MEP[[#This Row],[Date lancement]]+TAB_MEP[[#This Row],[Nb jour avt mep]])","v":"pas de date"},{"$f":"IF(OR(TAB_MEP[[#This Row],[1ere formation / facturation]]=\"-\",TAB_MEP[[#This Row],[1ere formation / facturation]]>=TODAY()),1,0)","v":1},null,null,"FR","SC","TF",1,{"$f":"IF(AND(AND(TAB_MEP[[#This Row],[1ere formation / facturation]]<>\"-\",TAB_MEP[[#This Row],[Date de MEP prévisionnelle]]<TAB_MEP[[#This Row],[1ere formation / facturation]],TAB_MEP[[#This Row],[Date de MEP prévisionnelle]]<>\"pas de date\")),1,0)","v":0},{"$f":"IF(AND(TAB_MEP[[#This Row],[1ere formation / facturation]]=\"-\",TAB_MEP[[#This Row],[Date de MEP prévisionnelle]]<TODAY()),1,0)","v":0},{"$f":"IF(TAB_MEP[[#This Row],[1ere formation / facturation]]<>\"-\",TAB_MEP[[#This Row],[1ere formation / facturation]],\"\")","v":""}]
[322,"2020-10-15","2020-10-15",17,"-","2021-02-12",{"$f":"IF(OR(TAB_MEP[[#This Row],[Nb jour avt mep]]=\"-\",TAB_MEP[[#This Row],[Date lancement]]=\"-\"),\"pas de date\",TAB_MEP[[#This Row],[Date lancement]]+TAB_MEP[[#This Row],[Nb jour avt mep]])","v":"pas de date"},{"$f":"IF(OR(TAB_MEP[[#This Row],[1ere formation / facturation]]=\"-\",TAB_MEP[[#This Row],[1ere formation / facturation]]>=TODAY()),1,0)","v":0},{"$nulls":3},"Part","CF",0,{"$f":"IF(AND(AND(TAB_MEP[[#This Row],[1ere formation / facturation]]<>\"-\",TAB_MEP[[#This Row],[Date de MEP prévisionnelle]]<TAB_MEP[[#This Row],[1ere formation / facturation]],TAB_MEP[[#This Row],[Date de MEP prévisionnelle]]<>\"pas de date\")),1,0)","v":0},{"$f":"IF(AND(TAB_MEP[[#This Row],[1ere formation / facturation]]=\"-\",TAB_MEP[[#This Row],[Date de MEP prévisionnelle]]<TODAY()),1,0)","v":0},{"$f":"IF(TAB_MEP[[#This Row],[1ere formation / facturation]]<>\"-\",TAB_MEP[[#This Row],[1ere formation / facturation]],\"\")","v":"2021-02-12"}]
[323,"2023-04-06","2023-05-25",3,30,"2023-06-20",{"$f":"IF(OR(TAB_MEP[[#This Row],[Nb jour avt mep]]=\"-\",TAB_MEP[[#This Row],[Date lancement]]=\"-\"),\"pas de date\",TAB_MEP[[#This Row],[Date lancement]]+TAB_MEP[[#This Row],[Nb jour avt mep]])","v":"2023-06-24"},{"$f":"IF(OR(TAB_MEP[[#This Row],[1ere formation / facturation]]=\"-\",TAB_MEP[[#This Row],[1ere formation / facturation]]>=TODAY()),1,0)","v":0},null,null,"FR","SC","CF",0,{"$f":"IF(AND(AND(TAB_MEP[[#This Row],[1ere formation / facturation]]<>\"-\",TAB_MEP[[#This Row],[Date de MEP prévisionnelle]]<TAB_MEP[[#This Row],[1ere formation / facturation]],TAB_MEP[[#This Row],[Date de MEP prévisionnelle]]<>\"pas de date\")),1,0)","v":0},{"$f":"IF(AND(TAB_MEP[[#This Row],[1ere formation / facturation]]=\"-\",TAB_MEP[[#This Row],[Date de MEP prévisionnelle]]<TODAY()),1,0)","v":0},{"$f":"IF(TAB_MEP[[#This Row],[1ere formation / facturation]]<>\"-\",TAB_MEP[[#This Row],[1ere formation / facturation]],\"\")","v":"2023-06-20"}]
[324,"2020-11-03","2020-11-03",0,"-","2020-11-06",{"$f":"IF(OR(TAB_MEP[[#This Row],[Nb jour avt mep]]=\"-\",TAB_MEP[[#This Row],[Date lancement]]=\"-\"),\"pas de date\",TAB_MEP[[#This Row],[Date lancement]]+TAB_MEP[[#This Row],[Nb jour avt mep]])","v":"pas de date"},{"$f":"IF(OR(TAB_MEP[[#This Row],[1ere formation / facturation]]=\"-\",TAB_MEP[[#This Row],[1ere formation / facturation]]>=TODAY()),1,0)","v":0},{"$nulls":3},"SC","CF",0,{"$f":"IF(AND(AND(TAB_MEP[[#This Row],[1ere formation / facturation]]<>\"-\",TAB_MEP[[#This Row],[Date de MEP prévisionnelle]]<TAB_MEP[[#This Row],[1ere formation / facturation]],TAB_MEP[[#This Row],[Date de MEP prévisionnelle]]<>\"pas de date\")),1,0)","v":0},{"$f":"IF(AND(TAB_MEP[[#This Row],[1ere formation / facturation]]=\"-\",TAB_MEP[[#This Row],[Date de MEP prévisionnelle]]<TODAY()),1,0)","v":0},{"$f":"IF(TAB_MEP[[#This Row],[1ere formation / facturation]]<>\"-\",TAB_MEP[[#This Row],[1ere formation / facturation]],\"\")","v":"2020-11-06"}]
[325,"2022-06-21","2022-07-07",14,"-","2022-10-19",{"$f":"IF(OR(TAB_MEP[[#This Row],[Nb jour avt mep]]=\"-\",TAB_MEP[[#This Row],[Date lancement]]=\"-\"),\"pas de date\",TAB_MEP[[#This Row],[Date lancement]]+TAB_MEP[[#This Row],[Nb jour avt mep]])","v":"pas de date"},{"$f":"IF(OR(TAB_MEP[[#This Row],[1ere formation / facturation]]=\"-\",TAB_MEP[[#This Row],[1ere formation / facturation]]>=TODAY()),1,0)","v":0},null,null,"FR","SC","CF",0,{"$f":"IF(AND(AND(TAB_MEP[[#This Row],[1ere formation / facturation]]<>\"-\",TAB_MEP[[#This Row],[Date de MEP prévisionnelle]]<TAB_MEP[[#This Row],[1ere formation / facturation]],TAB_MEP[[#This Row],[Date de MEP prévisionnelle]]<>\"pas de date\")),1,0)","v":0},{"$f":"IF(AND(TAB_MEP[[#This Row],[1ere formation / facturation]]=\"-\",TAB_MEP[[#This Row],[Date de MEP prévisionnelle]]<TODAY()),1,0)","v":0},{"$f":"IF(TAB_MEP[[#This Row],[1ere formation / facturation]]<>\"-\",TAB_MEP[[#This Row],[1ere formation / facturation]],\"\")","v":"2022-10-19"}]
[326,"2021-10-22","2021-10-22",7,"-","2021-12-10",{"$f":"IF(OR(TAB_MEP[[#This Row],[Nb jour avt mep]]=\"-\",TAB_MEP[[#This Row],[Date lancement]]=\"-\"),\"pas de date\",TAB_MEP[[#This Row],[Date lancement]]+TAB_MEP[[#This Row],[Nb jour avt mep]])","v":"pas de date"},{"$f":"IF(OR(TAB_MEP[[#This Row],[1ere formation / facturation]]=\"-\",TAB_MEP[[#This Row],[1ere formation / facturation]]>=TODAY()),1,0)","v":0},{"$nulls":3},"Part","CF",0,{"$f":"IF(AND(AND(TAB_MEP[[#This Row],[1ere formation / facturation]]<>\"-\",TAB_MEP[[#This Row],[Date de MEP prévisionnelle]]<TAB_MEP[[#This Row],[1ere formation / facturation]],TAB_MEP[[#This Row],[Date de MEP prévisionnelle]]<>\"pas de date\")),1,0)","v":0},{"$f":"IF(AND(TAB_MEP[[#This Row],[1ere formation / facturation]]=\"-\",TAB_MEP[[#This Row],[Date de MEP prévisionnelle]]<TODAY()),1,0)","v":0},{"$f":"IF(TAB_MEP[[#This Row],[1ere formation / facturation]]<>\"-\",TAB_MEP[[#This Row],[1ere formation / facturation]],\"\")","v":"2021-12-10"}]
[327,"2023-09-26","-","0",null,"-",{"$f":"IF(OR(TAB_MEP[[#This Row],[Nb jour avt mep]]=\"-\",TAB_MEP[[#This Row],[Date lancement]]=\"-\"),\"pas de date\",TAB_MEP[[#This Row],[Date lancement]]+TAB_MEP[[#This Row],[Nb jour avt mep]])","v":"pas de date"},{"$f":"IF(OR(TAB_MEP[[#This Row],[1ere formation / facturation]]=\"-\",TAB_MEP[[#This Row],[1ere formation / facturation]]>=TODAY()),1,0)","v":1},null,null,"FR","SC","CF",1,{"$f":"IF(AND(AND(TAB_MEP[[#This Row],[1ere formation / facturation]]<>\"-\",TAB_MEP[[#This Row],[Date de MEP prévisionnelle]]<TAB_MEP[[#This Row],[1ere formation / facturation]],TAB_MEP[[#This Row],[Date de MEP prévisionnelle]]<>\"pas de date\")),1,0)","v":0},{"$f":"IF(AND(TAB_MEP[[#This Row],[1ere formation / facturation]]=\"-\",TAB_MEP[[#This Row],[Date de MEP prévisionnelle]]<TODAY()),1,0)","v":0},{"$f":"IF(TAB_MEP[[#This Row],[1ere formation / facturation]]<>\"-\",TAB_MEP[[#This Row],[1ere formation / facturation]],\"\")","v":""}]
[328,"2022-10-03","2022-11-10",{"$f":"IF(C329>TODAY(),\"0\",IF(F329=\"-\",INT(DATEDIF(C329,TODAY(),\"d\")/7),INT(DATEDIF(C329,F329,\"d\")/7)))","v":3},"-","2022-12-01",{"$f":"IF(OR(TAB_MEP[[#This Row],[Nb jour avt mep]]=\"-\",TAB_MEP[[#This Row],[Date lancement]]=\"-\"),\"pas de date\",TAB_MEP[[#This Row],[Date lancement]]+TAB_MEP[[#This Row],[Nb jour avt mep]])","v":"pas de date"},{"$f":"IF(OR(TAB_MEP[[#This Row],[1ere formation / facturation]]=\"-\",TAB_MEP[[#This Row],[1ere formation / facturation]]>=TODAY()),1,0)","v":0},null,null,"CH","SC","CF",0,{"$f":"IF(AND(AND(TAB_MEP[[#This Row],[1ere formation / facturation]]<>\"-\",TAB_MEP[[#This Row],[Date de MEP prévisionnelle]]<TAB_MEP[[#This Row],[1ere formation / facturation]],TAB_MEP[[#This Row],[Date de MEP prévisionnelle]]<>\"pas de date\")),1,0)","v":0},{"$f":"IF(AND(TAB_MEP[[#This Row],[1ere formation / facturation]]=\"-\",TAB_MEP[[#This Row],[Date de MEP prévisionnelle]]<TODAY()),1,0)","v":0},{"$f":"IF(TAB_MEP[[#This Row],[1ere formation / facturation]]<>\"-\",TAB_MEP[[#This Row],[1ere formation / facturation]],\"\")","v":"2022-12-01"}]
[329,"2022-07-25","2022-08-04",29,"-","2023-02-28",{"$f":"IF(OR(TAB_MEP[[#This Row],[Nb jour avt mep]]=\"-\",TAB_MEP[[#This Row],[Date lancement]]=\"-\"),\"pas de date\",TAB_MEP[[#This Row],[Date lancement]]+TAB_MEP[[#This Row],[Nb jour avt mep]])","v":"pas de date"},{"$f":"IF(OR(TAB_MEP[[#This Row],[1ere formation / facturation]]=\"-\",TAB_MEP[[#This Row],[1ere formation / facturation]]>=TODAY()),1,0)","v":0},null,null,"FR","SC","CF",0,{"$f":"IF(AND(AND(TAB_MEP[[#This Row],[1ere formation / facturation]]<>\"-\",TAB_MEP[[#This Row],[Date de MEP prévisionnelle]]<TAB_MEP[[#This Row],[1ere formation / facturation]],TAB_MEP[[#This Row],[Date de MEP prévisionnelle]]<>\"pas de date\")),1,0)","v":0},{"$f":"IF(AND(TAB_MEP[[#This Row],[1ere formation / facturation]]=\"-\",TAB_MEP[[#This Row],[Date de MEP prévisionnelle]]<TODAY()),1,0)","v":0},{"$f":"IF(TAB_MEP[[#This Row],[1ere formation / facturation]]<>\"-\",TAB_MEP[[#This Row],[1ere formation / facturation]],\"\")","v":"2023-02-28"}]
[330,"2022-05-02","2023-04-04",13,48,"2023-07-04",{"$f":"IF(OR(TAB_MEP[[#This Row],[Nb jour avt mep]]=\"-\",TAB_MEP[[#This Row],[Date lancement]]=\"-\"),\"pas de date\",TAB_MEP[[#This Row],[Date lancement]]+TAB_MEP[[#This Row],[Nb jour avt mep]])","v":"2023-05-22"},{"$f":"IF(OR(TAB_MEP[[#This Row],[1ere formation / facturation]]=\"-\",TAB_MEP[[#This Row],[1ere formation / facturation]]>=TODAY()),1,0)","v":0},null,null,"BE","Inter","CF",1,{"$f":"IF(AND(AND(TAB_MEP[[#This Row],[1ere formation / facturation]]<>\"-\",TAB_MEP[[#This Row],[Date de MEP prévisionnelle]]<TAB_MEP[[#This Row],[1ere formation / facturation]],TAB_MEP[[#This Row],[Date de MEP prévisionnelle]]<>\"pas de date\")),1,0)","v":1},{"$f":"IF(AND(TAB_MEP[[#This Row],[1ere formation / facturation]]=\"-\",TAB_MEP[[#This Row],[Date de MEP prévisionnelle]]<TODAY()),1,0)","v":0},{"$f":"IF(TAB_MEP[[#This Row],[1ere formation / facturation]]<>\"-\",TAB_MEP[[#This Row],[1ere formation / facturation]],\"\")","v":"2023-07-04"}]
[331,"2023-02-20","2023-03-02",17,50,"2023-06-29",{"$f":"IF(OR(TAB_MEP[[#This Row],[Nb jour avt mep]]=\"-\",TAB_MEP[[#This Row],[Date lancement]]=\"-\"),\"pas de date\",TAB_MEP[[#This Row],[Date lancement]]+TAB_MEP[[#This Row],[Nb jour avt mep]])","v":"2023-04-21"},{"$f":"IF(OR(TAB_MEP[[#This Row],[1ere formation / facturation]]=\"-\",TAB_MEP[[#This Row],[1ere formation / facturation]]>=TODAY()),1,0)","v":0},null,null,"FR","SC","CF",0,{"$f":"IF(AND(AND(TAB_MEP[[#This Row],[1ere formation / facturation]]<>\"-\",TAB_MEP[[#This Row],[Date de MEP prévisionnelle]]<TAB_MEP[[#This Row],[1ere formation / facturation]],TAB_MEP[[#This Row],[Date de MEP prévisionnelle]]<>\"pas de date\")),1,0)","v":1},{"$f":"IF(AND(TAB_MEP[[#This Row],[1ere formation / facturation]]=\"-\",TAB_MEP[[#This Row],[Date de MEP prévisionnelle]]<TODAY()),1,0)","v":0},{"$f":"IF(TAB_MEP[[#This Row],[1ere formation / facturation]]<>\"-\",TAB_MEP[[#This Row],[1ere formation / facturation]],\"\")","v":"2023-06-29"}]
[332,"2023-03-08","2023-08-06",7,84,"2023-09-28",{"$f":"IF(OR(TAB_MEP[[#This Row],[Nb jour avt mep]]=\"-\",TAB_MEP[[#This Row],[Date lancement]]=\"-\"),\"pas de date\",TAB_MEP[[#This Row],[Date lancement]]+TAB_MEP[[#This Row],[Nb jour avt mep]])","v":"2023-10-29"},{"$f":"IF(OR(TAB_MEP[[#This Row],[1ere formation / facturation]]=\"-\",TAB_MEP[[#This Row],[1ere formation / facturation]]>=TODAY()),1,0)","v":0},"Septembre",null,"FR","SC","CF",1,{"$f":"IF(AND(AND(TAB_MEP[[#This Row],[1ere formation / facturation]]<>\"-\",TAB_MEP[[#This Row],[Date de MEP prévisionnelle]]<TAB_MEP[[#This Row],[1ere formation / facturation]],TAB_MEP[[#This Row],[Date de MEP prévisionnelle]]<>\"pas de date\")),1,0)","v":0},{"$f":"IF(AND(TAB_MEP[[#This Row],[1ere formation / facturation]]=\"-\",TAB_MEP[[#This Row],[Date de MEP prévisionnelle]]<TODAY()),1,0)","v":0},{"$f":"IF(TAB_MEP[[#This Row],[1ere formation / facturation]]<>\"-\",TAB_MEP[[#This Row],[1ere formation / facturation]],\"\")","v":"2023-09-28"}]
[333,"2021-11-22","2021-11-02",6,"-","2021-12-17",{"$f":"IF(OR(TAB_MEP[[#This Row],[Nb jour avt mep]]=\"-\",TAB_MEP[[#This Row],[Date lancement]]=\"-\"),\"pas de date\",TAB_MEP[[#This Row],[Date lancement]]+TAB_MEP[[#This Row],[Nb jour avt mep]])","v":"pas de date"},{"$f":"IF(OR(TAB_MEP[[#This Row],[1ere formation / facturation]]=\"-\",TAB_MEP[[#This Row],[1ere formation / facturation]]>=TODAY()),1,0)","v":0},{"$nulls":3},"Part","CF",0,{"$f":"IF(AND(AND(TAB_MEP[[#This Row],[1ere formation / facturation]]<>\"-\",TAB_MEP[[#This Row],[Date de MEP prévisionnelle]]<TAB_MEP[[#This Row],[1ere formation / facturation]],TAB_MEP[[#This Row],[Date de MEP prévisionnelle]]<>\"pas de date\")),1,0)","v":0},{"$f":"IF(AND(TAB_MEP[[#This Row],[1ere formation / facturation]]=\"-\",TAB_MEP[[#This Row],[Date de MEP prévisionnelle]]<TODAY()),1,0)","v":0},{"$f":"IF(TAB_MEP[[#This Row],[1ere formation / facturation]]<>\"-\",TAB_MEP[[#This Row],[1ere formation / facturation]],\"\")","v":"2021-12-17"}]
[334,"2023-01-24","2023-02-21",6,"-","2023-04-04",{"$f":"IF(OR(TAB_MEP[[#This Row],[Nb jour avt mep]]=\"-\",TAB_MEP[[#This Row],[Date lancement]]=\"-\"),\"pas de date\",TAB_MEP[[#This Row],[Date lancement]]+TAB_MEP[[#This Row],[Nb jour avt mep]])","v":"pas de date"},{"$f":"IF(OR(TAB_MEP[[#This Row],[1ere formation / facturation]]=\"-\",TAB_MEP[[#This Row],[1ere formation / facturation]]>=TODAY()),1,0)","v":0},null,null,"FR","SC","CF",0,{"$f":"IF(AND(AND(TAB_MEP[[#This Row],[1ere formation / facturation]]<>\"-\",TAB_MEP[[#This Row],[Date de MEP prévisionnelle]]<TAB_MEP[[#This Row],[1ere formation / facturation]],TAB_MEP[[#This Row],[Date de MEP prévisionnelle]]<>\"pas de date\")),1,0)","v":0},{"$f":"IF(AND(TAB_MEP[[#This Row],[1ere formation / facturation]]=\"-\",TAB_MEP[[#This Row],[Date de MEP prévisionnelle]]<TODAY()),1,0)","v":0},{"$f":"IF(TAB_MEP[[#This Row],[1ere formation / facturation]]<>\"-\",TAB_MEP[[#This Row],[1ere formation / facturation]],\"\")","v":"2023-04-04"}]
[335,"2019-12-09","2019-12-13",12,"-","2020-03-12",{"$f":"IF(OR(TAB_MEP[[#This Row],[Nb jour avt mep]]=\"-\",TAB_MEP[[#This Row],[Date lancement]]=\"-\"),\"pas de date\",TAB_MEP[[#This Row],[Date lancement]]+TAB_MEP[[#This Row],[Nb jour avt mep]])","v":"pas de date"},{"$f":"IF(OR(TAB_MEP[[#This Row],[1ere formation / facturation]]=\"-\",TAB_MEP[[#This Row],[1ere formation / facturation]]>=TODAY()),1,0)","v":0},{"$nulls":3},"SC","CF",0,{"$f":"IF(AND(AND(TAB_MEP[[#This Row],[1ere formation / facturation]]<>\"-\",TAB_MEP[[#This Row],[Date de MEP prévisionnelle]]<TAB_MEP[[#This Row],[1ere formation / facturation]],TAB_MEP[[#This Row],[Date de MEP prévisionnelle]]<>\"pas de date\")),1,0)","v":0},{"$f":"IF(AND(TAB_MEP[[#This Row],[1ere formation / facturation]]=\"-\",TAB_MEP[[#This Row],[Date de MEP prévisionnelle]]<TODAY()),1,0)","v":0},{"$f":"IF(TAB_MEP[[#This Row],[1ere formation / facturation]]<>\"-\",TAB_MEP[[#This Row],[1ere formation / facturation]],\"\")","v":"2020-03-12"}]
[336,"2022-03-09","2022-04-05",25,"-","2022-09-30",{"$f":"IF(OR(TAB_MEP[[#This Row],[Nb jour avt mep]]=\"-\",TAB_MEP[[#This Row],[Date lancement]]=\"-\"),\"pas de date\",TAB_MEP[[#This Row],[Date lancement]]+TAB_MEP[[#This Row],[Nb jour avt mep]])","v":"pas de date"},{"$f":"IF(OR(TAB_MEP[[#This Row],[1ere formation / facturation]]=\"-\",TAB_MEP[[#This Row],[1ere formation / facturation]]>=TODAY()),1,0)","v":0},null,null,"FR","SC","CF",0,{"$f":"IF(AND(AND(TAB_MEP[[#This Row],[1ere formation / facturation]]<>\"-\",TAB_MEP[[#This Row],[Date de MEP prévisionnelle]]<TAB_MEP[[#This Row],[1ere formation / facturation]],TAB_MEP[[#This Row],[Date de MEP prévisionnelle]]<>\"pas de date\")),1,0)","v":0},{"$f":"IF(AND(TAB_MEP[[#This Row],[1ere formation / facturation]]=\"-\",TAB_MEP[[#This Row],[Date de MEP prévisionnelle]]<TODAY()),1,0)","v":0},{"$f":"IF(TAB_MEP[[#This Row],[1ere formation / facturation]]<>\"-\",TAB_MEP[[#This Row],[1ere formation / facturation]],\"\")","v":"2022-09-30"}]
[337,"2023-08-23","2023-09-04",3,30,"2023-09-29",{"$f":"IF(OR(TAB_MEP[[#This Row],[Nb jour avt mep]]=\"-\",TAB_MEP[[#This Row],[Date lancement]]=\"-\"),\"pas de date\",TAB_MEP[[#This Row],[Date lancement]]+TAB_MEP[[#This Row],[Nb jour avt mep]])","v":"2023-10-04"},{"$f":"IF(OR(TAB_MEP[[#This Row],[1ere formation / facturation]]=\"-\",TAB_MEP[[#This Row],[1ere formation / facturation]]>=TODAY()),1,0)","v":0},"Septembre",null,"FR","SC","CF",1,{"$f":"IF(AND(AND(TAB_MEP[[#This Row],[1ere formation / facturation]]<>\"-\",TAB_MEP[[#This Row],[Date de MEP prévisionnelle]]<TAB_MEP[[#This Row],[1ere formation / facturation]],TAB_MEP[[#This Row],[Date de MEP prévisionnelle]]<>\"pas de date\")),1,0)","v":0},{"$f":"IF(AND(TAB_MEP[[#This Row],[1ere formation / facturation]]=\"-\",TAB_MEP[[#This Row],[Date de MEP prévisionnelle]]<TODAY()),1,0)","v":0},{"$f":"IF(TAB_MEP[[#This Row],[1ere formation / facturation]]<>\"-\",TAB_MEP[[#This Row],[1ere formation / facturation]],\"\")","v":"2023-09-29"}]
[338,"2023-07-04","2023-07-20",9,60,"2023-09-27",{"$f":"IF(OR(TAB_MEP[[#This Row],[Nb jour avt mep]]=\"-\",TAB_MEP[[#This Row],[Date lancement]]=\"-\"),\"pas de date\",TAB_MEP[[#This Row],[Date lancement]]+TAB_MEP[[#This Row],[Nb jour avt mep]])","v":"2023-09-18"},{"$f":"IF(OR(TAB_MEP[[#This Row],[1ere formation / facturation]]=\"-\",TAB_MEP[[#This Row],[1ere formation / facturation]]>=TODAY()),1,0)","v":0},"Septembre",null,"FR","SC","FF",1,{"$f":"IF(AND(AND(TAB_MEP[[#This Row],[1ere formation / facturation]]<>\"-\",TAB_MEP[[#This Row],[Date de MEP prévisionnelle]]<TAB_MEP[[#This Row],[1ere formation / facturation]],TAB_MEP[[#This Row],[Date de MEP prévisionnelle]]<>\"pas de date\")),1,0)","v":1},{"$f":"IF(AND(TAB_MEP[[#This Row],[1ere formation / facturation]]=\"-\",TAB_MEP[[#This Row],[Date de MEP prévisionnelle]]<TODAY()),1,0)","v":0},{"$f":"IF(TAB_MEP[[#This Row],[1ere formation / facturation]]<>\"-\",TAB_MEP[[#This Row],[1ere formation / facturation]],\"\")","v":"2023-09-27"}]
[339,"2022-07-06","2022-07-06",9,"-","2022-09-13",{"$f":"IF(OR(TAB_MEP[[#This Row],[Nb jour avt mep]]=\"-\",TAB_MEP[[#This Row],[Date lancement]]=\"-\"),\"pas de date\",TAB_MEP[[#This Row],[Date lancement]]+TAB_MEP[[#This Row],[Nb jour avt mep]])","v":"pas de date"},{"$f":"IF(OR(TAB_MEP[[#This Row],[1ere formation / facturation]]=\"-\",TAB_MEP[[#This Row],[1ere formation / facturation]]>=TODAY()),1,0)","v":0},null,null,"FR","Part","CF",0,{"$f":"IF(AND(AND(TAB_MEP[[#This Row],[1ere formation / facturation]]<>\"-\",TAB_MEP[[#This Row],[Date de MEP prévisionnelle]]<TAB_MEP[[#This Row],[1ere formation / facturation]],TAB_MEP[[#This Row],[Date de MEP prévisionnelle]]<>\"pas de date\")),1,0)","v":0},{"$f":"IF(AND(TAB_MEP[[#This Row],[1ere formation / facturation]]=\"-\",TAB_MEP[[#This Row],[Date de MEP prévisionnelle]]<TODAY()),1,0)","v":0},{"$f":"IF(TAB_MEP[[#This Row],[1ere formation / facturation]]<>\"-\",TAB_MEP[[#This Row],[1ere formation / facturation]],\"\")","v":"2022-09-13"}]
[340,"2021-06-26","2021-06-29",22,"-","2021-12-02",{"$f":"IF(OR(TAB_MEP[[#This Row],[Nb jour avt mep]]=\"-\",TAB_MEP[[#This Row],[Date lancement]]=\"-\"),\"pas de date\",TAB_MEP[[#This Row],[Date lancement]]+TAB_MEP[[#This Row],[Nb jour avt mep]])","v":"pas de date"},{"$f":"IF(OR(TAB_MEP[[#This Row],[1ere formation / facturation]]=\"-\",TAB_MEP[[#This Row],[1ere formation / facturation]]>=TODAY()),1,0)","v":0},{"$nulls":3},"GC","CF",0,{"$f":"IF(AND(AND(TAB_MEP[[#This Row],[1ere formation / facturation]]<>\"-\",TAB_MEP[[#This Row],[Date de MEP prévisionnelle]]<TAB_MEP[[#This Row],[1ere formation / facturation]],TAB_MEP[[#This Row],[Date de MEP prévisionnelle]]<>\"pas de date\")),1,0)","v":0},{"$f":"IF(AND(TAB_MEP[[#This Row],[1ere formation / facturation]]=\"-\",TAB_MEP[[#This Row],[Date de MEP prévisionnelle]]<TODAY()),1,0)","v":0},{"$f":"IF(TAB_MEP[[#This Row],[1ere formation / facturation]]<>\"-\",TAB_MEP[[#This Row],[1ere formation / facturation]],\"\")","v":"2021-12-02"}]
[341,"2020-06-04","2020-06-17",5,"-","2020-07-22",{"$f":"IF(OR(TAB_MEP[[#This Row],[Nb jour avt mep]]=\"-\",TAB_MEP[[#This Row],[Date lancement]]=\"-\"),\"pas de date\",TAB_MEP[[#This Row],[Date lancement]]+TAB_MEP[[#This Row],[Nb jour avt mep]])","v":"pas de date"},{"$f":"IF(OR(TAB_MEP[[#This Row],[1ere formation / facturation]]=\"-\",TAB_MEP[[#This Row],[1ere formation / facturation]]>=TODAY()),1,0)","v":0},{"$nulls":3},"SC","CF",0,{"$f":"IF(AND(AND(TAB_MEP[[#This Row],[1ere formation / facturation]]<>\"-\",TAB_MEP[[#This Row],[Date de MEP prévisionnelle]]<TAB_MEP[[#This Row],[1ere formation / facturation]],TAB_MEP[[#This Row],[Date de MEP prévisionnelle]]<>\"pas de date\")),1,0)","v":0},{"$f":"IF(AND(TAB_MEP[[#This Row],[1ere formation / facturation]]=\"-\",TAB_MEP[[#This Row],[Date de MEP prévisionnelle]]<TODAY()),1,0)","v":0},{"$f":"IF(TAB_MEP[[#This Row],[1ere formation / facturation]]<>\"-\",TAB_MEP[[#This Row],[1ere formation / facturation]],\"\")","v":"2020-07-22"}]
[342,"2021-06-02","2021-06-02",6,"-","2021-07-15",{"$f":"IF(OR(TAB_MEP[[#This Row],[Nb jour avt mep]]=\"-\",TAB_MEP[[#This Row],[Date lancement]]=\"-\"),\"pas de date\",TAB_MEP[[#This Row],[Date lancement]]+TAB_MEP[[#This Row],[Nb jour avt mep]])","v":"pas de date"},{"$f":"IF(OR(TAB_MEP[[#This Row],[1ere formation / facturation]]=\"-\",TAB_MEP[[#This Row],[1ere formation / facturation]]>=TODAY()),1,0)","v":0},{"$nulls":3},"Part","CF",0,{"$f":"IF(AND(AND(TAB_MEP[[#This Row],[1ere formation / facturation]]<>\"-\",TAB_MEP[[#This Row],[Date de MEP prévisionnelle]]<TAB_MEP[[#This Row],[1ere formation / facturation]],TAB_MEP[[#This Row],[Date de MEP prévisionnelle]]<>\"pas de date\")),1,0)","v":0},{"$f":"IF(AND(TAB_MEP[[#This Row],[1ere formation / facturation]]=\"-\",TAB_MEP[[#This Row],[Date de MEP prévisionnelle]]<TODAY()),1,0)","v":0},{"$f":"IF(TAB_MEP[[#This Row],[1ere formation / facturation]]<>\"-\",TAB_MEP[[#This Row],[1ere formation / facturation]],\"\")","v":"2021-07-15"}]
[343,"2022-01-25","-","0",60,"-",{"$f":"IF(OR(TAB_MEP[[#This Row],[Nb jour avt mep]]=\"-\",TAB_MEP[[#This Row],[Date lancement]]=\"-\"),\"pas de date\",TAB_MEP[[#This Row],[Date lancement]]+TAB_MEP[[#This Row],[Nb jour avt mep]])","v":"pas de date"},{"$f":"IF(OR(TAB_MEP[[#This Row],[1ere formation / facturation]]=\"-\",TAB_MEP[[#This Row],[1ere formation / facturation]]>=TODAY()),1,0)","v":1},null,null,"FR","SC","TF",1,{"$f":"IF(AND(AND(TAB_MEP[[#This Row],[1ere formation / facturation]]<>\"-\",TAB_MEP[[#This Row],[Date de MEP prévisionnelle]]<TAB_MEP[[#This Row],[1ere formation / facturation]],TAB_MEP[[#This Row],[Date de MEP prévisionnelle]]<>\"pas de date\")),1,0)","v":0},{"$f":"IF(AND(TAB_MEP[[#This Row],[1ere formation / facturation]]=\"-\",TAB_MEP[[#This Row],[Date de MEP prévisionnelle]]<TODAY()),1,0)","v":0},{"$f":"IF(TAB_MEP[[#This Row],[1ere formation / facturation]]<>\"-\",TAB_MEP[[#This Row],[1ere formation / facturation]],\"\")","v":""}]
[344,"2022-01-14","2022-01-27",9,"-","2022-04-01",{"$f":"IF(OR(TAB_MEP[[#This Row],[Nb jour avt mep]]=\"-\",TAB_MEP[[#This Row],[Date lancement]]=\"-\"),\"pas de date\",TAB_MEP[[#This Row],[Date lancement]]+TAB_MEP[[#This Row],[Nb jour avt mep]])","v":"pas de date"},{"$f":"IF(OR(TAB_MEP[[#This Row],[1ere formation / facturation]]=\"-\",TAB_MEP[[#This Row],[1ere formation / facturation]]>=TODAY()),1,0)","v":0},{"$nulls":3},"Inter","CF",0,{"$f":"IF(AND(AND(TAB_MEP[[#This Row],[1ere formation / facturation]]<>\"-\",TAB_MEP[[#This Row],[Date de MEP prévisionnelle]]<TAB_MEP[[#This Row],[1ere formation / facturation]],TAB_MEP[[#This Row],[Date de MEP prévisionnelle]]<>\"pas de date\")),1,0)","v":0},{"$f":"IF(AND(TAB_MEP[[#This Row],[1ere formation / facturation]]=\"-\",TAB_MEP[[#This Row],[Date de MEP prévisionnelle]]<TODAY()),1,0)","v":0},{"$f":"IF(TAB_MEP[[#This Row],[1ere formation / facturation]]<>\"-\",TAB_MEP[[#This Row],[1ere formation / facturation]],\"\")","v":"2022-04-01"}]
[345,"2022-02-03","2022-03-02",27,"-","2022-09-13",{"$f":"IF(OR(TAB_MEP[[#This Row],[Nb jour avt mep]]=\"-\",TAB_MEP[[#This Row],[Date lancement]]=\"-\"),\"pas de date\",TAB_MEP[[#This Row],[Date lancement]]+TAB_MEP[[#This Row],[Nb jour avt mep]])","v":"pas de date"},{"$f":"IF(OR(TAB_MEP[[#This Row],[1ere formation / facturation]]=\"-\",TAB_MEP[[#This Row],[1ere formation / facturation]]>=TODAY()),1,0)","v":0},null,null,"FR","SC","CF",0,{"$f":"IF(AND(AND(TAB_MEP[[#This Row],[1ere formation / facturation]]<>\"-\",TAB_MEP[[#This Row],[Date de MEP prévisionnelle]]<TAB_MEP[[#This Row],[1ere formation / facturation]],TAB_MEP[[#This Row],[Date de MEP prévisionnelle]]<>\"pas de date\")),1,0)","v":0},{"$f":"IF(AND(TAB_MEP[[#This Row],[1ere formation / facturation]]=\"-\",TAB_MEP[[#This Row],[Date de MEP prévisionnelle]]<TODAY()),1,0)","v":0},{"$f":"IF(TAB_MEP[[#This Row],[1ere formation / facturation]]<>\"-\",TAB_MEP[[#This Row],[1ere formation / facturation]],\"\")","v":"2022-09-13"}]
[346,"2022-06-09","2022-06-09",0,"-","2022-06-13",{"$f":"IF(OR(TAB_MEP[[#This Row],[Nb jour avt mep]]=\"-\",TAB_MEP[[#This Row],[Date lancement]]=\"-\"),\"pas de date\",TAB_MEP[[#This Row],[Date lancement]]+TAB_MEP[[#This Row],[Nb jour avt mep]])","v":"pas de date"},{"$f":"IF(OR(TAB_MEP[[#This Row],[1ere formation / facturation]]=\"-\",TAB_MEP[[#This Row],[1ere formation / facturation]]>=TODAY()),1,0)","v":0},{"$nulls":3},"Part","CF",0,{"$f":"IF(AND(AND(TAB_MEP[[#This Row],[1ere formation / facturation]]<>\"-\",TAB_MEP[[#This Row],[Date de MEP prévisionnelle]]<TAB_MEP[[#This Row],[1ere formation / facturation]],TAB_MEP[[#This Row],[Date de MEP prévisionnelle]]<>\"pas de date\")),1,0)","v":0},{"$f":"IF(AND(TAB_MEP[[#This Row],[1ere formation / facturation]]=\"-\",TAB_MEP[[#This Row],[Date de MEP prévisionnelle]]<TODAY()),1,0)","v":0},{"$f":"IF(TAB_MEP[[#This Row],[1ere formation / facturation]]<>\"-\",TAB_MEP[[#This Row],[1ere formation / facturation]],\"\")","v":"2022-06-13"}]
[347,"2023-05-25","2023-05-23",6,65,"2023-07-07",{"$f":"IF(OR(TAB_MEP[[#This Row],[Nb jour avt mep]]=\"-\",TAB_MEP[[#This Row],[Date lancement]]=\"-\"),\"pas de date\",TAB_MEP[[#This Row],[Date lancement]]+TAB_MEP[[#This Row],[Nb jour avt mep]])","v":"2023-07-27"},{"$f":"IF(OR(TAB_MEP[[#This Row],[1ere formation / facturation]]=\"-\",TAB_MEP[[#This Row],[1ere formation / facturation]]>=TODAY()),1,0)","v":0},null,null,"FR","SC","CF",1,{"$f":"IF(AND(AND(TAB_MEP[[#This Row],[1ere formation / facturation]]<>\"-\",TAB_MEP[[#This Row],[Date de MEP prévisionnelle]]<TAB_MEP[[#This Row],[1ere formation / facturation]],TAB_MEP[[#This Row],[Date de MEP prévisionnelle]]<>\"pas de date\")),1,0)","v":0},{"$f":"IF(AND(TAB_MEP[[#This Row],[1ere formation / facturation]]=\"-\",TAB_MEP[[#This Row],[Date de MEP prévisionnelle]]<TODAY()),1,0)","v":0},{"$f":"IF(TAB_MEP[[#This Row],[1ere formation / facturation]]<>\"-\",TAB_MEP[[#This Row],[1ere formation / facturation]],\"\")","v":"2023-07-07"}]
[348,"2021-06-16","2021-06-16",32,"-","2022-01-31",{"$f":"IF(OR(TAB_MEP[[#This Row],[Nb jour avt mep]]=\"-\",TAB_MEP[[#This Row],[Date lancement]]=\"-\"),\"pas de date\",TAB_MEP[[#This Row],[Date lancement]]+TAB_MEP[[#This Row],[Nb jour avt mep]])","v":"pas de date"},{"$f":"IF(OR(TAB_MEP[[#This Row],[1ere formation / facturation]]=\"-\",TAB_MEP[[#This Row],[1ere formation / facturation]]>=TODAY()),1,0)","v":0},{"$nulls":3},"SC","CF",0,{"$f":"IF(AND(AND(TAB_MEP[[#This Row],[1ere formation / facturation]]<>\"-\",TAB_MEP[[#This Row],[Date de MEP prévisionnelle]]<TAB_MEP[[#This Row],[1ere formation / facturation]],TAB_MEP[[#This Row],[Date de MEP prévisionnelle]]<>\"pas de date\")),1,0)","v":0},{"$f":"IF(AND(TAB_MEP[[#This Row],[1ere formation / facturation]]=\"-\",TAB_MEP[[#This Row],[Date de MEP prévisionnelle]]<TODAY()),1,0)","v":0},{"$f":"IF(TAB_MEP[[#This Row],[1ere formation / facturation]]<>\"-\",TAB_MEP[[#This Row],[1ere formation / facturation]],\"\")","v":"2022-01-31"}]
[349,"2023-05-17","-","0",137,"-",{"$f":"IF(OR(TAB_MEP[[#This Row],[Nb jour avt mep]]=\"-\",TAB_MEP[[#This Row],[Date lancement]]=\"-\"),\"pas de date\",TAB_MEP[[#This Row],[Date lancement]]+TAB_MEP[[#This Row],[Nb jour avt mep]])","v":"pas de date"},{"$f":"IF(OR(TAB_MEP[[#This Row],[1ere formation / facturation]]=\"-\",TAB_MEP[[#This Row],[1ere formation / facturation]]>=TODAY()),1,0)","v":1},null,null,"FR","GC","CF",1,{"$f":"IF(AND(AND(TAB_MEP[[#This Row],[1ere formation / facturation]]<>\"-\",TAB_MEP[[#This Row],[Date de MEP prévisionnelle]]<TAB_MEP[[#This Row],[1ere formation / facturation]],TAB_MEP[[#This Row],[Date de MEP prévisionnelle]]<>\"pas de date\")),1,0)","v":0},{"$f":"IF(AND(TAB_MEP[[#This Row],[1ere formation / facturation]]=\"-\",TAB_MEP[[#This Row],[Date de MEP prévisionnelle]]<TODAY()),1,0)","v":0},{"$f":"IF(TAB_MEP[[#This Row],[1ere formation / facturation]]<>\"-\",TAB_MEP[[#This Row],[1ere formation / facturation]],\"\")","v":""}]
[350,"2022-06-14","2022-06-14",{"$f":"IF(C351>TODAY(),\"0\",IF(F351=\"-\",INT(DATEDIF(C351,TODAY(),\"d\")/7),INT(DATEDIF(C351,F351,\"d\")/7)))","v":2},"-","2022-07-01",{"$f":"IF(OR(TAB_MEP[[#This Row],[Nb jour avt mep]]=\"-\",TAB_MEP[[#This Row],[Date lancement]]=\"-\"),\"pas de date\",TAB_MEP[[#This Row],[Date lancement]]+TAB_MEP[[#This Row],[Nb jour avt mep]])","v":"pas de date"},{"$f":"IF(OR(TAB_MEP[[#This Row],[1ere formation / facturation]]=\"-\",TAB_MEP[[#This Row],[1ere formation / facturation]]>=TODAY()),1,0)","v":0},{"$nulls":3},"Part","CF",0,{"$f":"IF(AND(AND(TAB_MEP[[#This Row],[1ere formation / facturation]]<>\"-\",TAB_MEP[[#This Row],[Date de MEP prévisionnelle]]<TAB_MEP[[#This Row],[1ere formation / facturation]],TAB_MEP[[#This Row],[Date de MEP prévisionnelle]]<>\"pas de date\")),1,0)","v":0},{"$f":"IF(AND(TAB_MEP[[#This Row],[1ere formation / facturation]]=\"-\",TAB_MEP[[#This Row],[Date de MEP prévisionnelle]]<TODAY()),1,0)","v":0},{"$f":"IF(TAB_MEP[[#This Row],[1ere formation / facturation]]<>\"-\",TAB_MEP[[#This Row],[1ere formation / facturation]],\"\")","v":"2022-07-01"}]
[351,"2023-04-26","2023-05-10",10,65,"2023-07-20",{"$f":"IF(OR(TAB_MEP[[#This Row],[Nb jour avt mep]]=\"-\",TAB_MEP[[#This Row],[Date lancement]]=\"-\"),\"pas de date\",TAB_MEP[[#This Row],[Date lancement]]+TAB_MEP[[#This Row],[Nb jour avt mep]])","v":"2023-07-14"},{"$f":"IF(OR(TAB_MEP[[#This Row],[1ere formation / facturation]]=\"-\",TAB_MEP[[#This Row],[1ere formation / facturation]]>=TODAY()),1,0)","v":0},null,null,"FR","SC","CF",1,{"$f":"IF(AND(AND(TAB_MEP[[#This Row],[1ere formation / facturation]]<>\"-\",TAB_MEP[[#This Row],[Date de MEP prévisionnelle]]<TAB_MEP[[#This Row],[1ere formation / facturation]],TAB_MEP[[#This Row],[Date de MEP prévisionnelle]]<>\"pas de date\")),1,0)","v":1},{"$f":"IF(AND(TAB_MEP[[#This Row],[1ere formation / facturation]]=\"-\",TAB_MEP[[#This Row],[Date de MEP prévisionnelle]]<TODAY()),1,0)","v":0},{"$f":"IF(TAB_MEP[[#This Row],[1ere formation / facturation]]<>\"-\",TAB_MEP[[#This Row],[1ere formation / facturation]],\"\")","v":"2023-07-20"}]
[352,"2020-11-10","2020-11-10",1,"-","2020-11-18",{"$f":"IF(OR(TAB_MEP[[#This Row],[Nb jour avt mep]]=\"-\",TAB_MEP[[#This Row],[Date lancement]]=\"-\"),\"pas de date\",TAB_MEP[[#This Row],[Date lancement]]+TAB_MEP[[#This Row],[Nb jour avt mep]])","v":"pas de date"},{"$f":"IF(OR(TAB_MEP[[#This Row],[1ere formation / facturation]]=\"-\",TAB_MEP[[#This Row],[1ere formation / facturation]]>=TODAY()),1,0)","v":0},{"$nulls":3},"Part","CF",0,{"$f":"IF(AND(AND(TAB_MEP[[#This Row],[1ere formation / facturation]]<>\"-\",TAB_MEP[[#This Row],[Date de MEP prévisionnelle]]<TAB_MEP[[#This Row],[1ere formation / facturation]],TAB_MEP[[#This Row],[Date de MEP prévisionnelle]]<>\"pas de date\")),1,0)","v":0},{"$f":"IF(AND(TAB_MEP[[#This Row],[1ere formation / facturation]]=\"-\",TAB_MEP[[#This Row],[Date de MEP prévisionnelle]]<TODAY()),1,0)","v":0},{"$f":"IF(TAB_MEP[[#This Row],[1ere formation / facturation]]<>\"-\",TAB_MEP[[#This Row],[1ere formation / facturation]],\"\")","v":"2020-11-18"}]
[353,"2021-03-30","2021-04-20",6,"-","2021-06-02",{"$f":"IF(OR(TAB_MEP[[#This Row],[Nb jour avt mep]]=\"-\",TAB_MEP[[#This Row],[Date lancement]]=\"-\"),\"pas de date\",TAB_MEP[[#This Row],[Date lancement]]+TAB_MEP[[#This Row],[Nb jour avt mep]])","v":"pas de date"},{"$f":"IF(OR(TAB_MEP[[#This Row],[1ere formation / facturation]]=\"-\",TAB_MEP[[#This Row],[1ere formation / facturation]]>=TODAY()),1,0)","v":0},{"$nulls":3},"SC","CF",0,{"$f":"IF(AND(AND(TAB_MEP[[#This Row],[1ere formation / facturation]]<>\"-\",TAB_MEP[[#This Row],[Date de MEP prévisionnelle]]<TAB_MEP[[#This Row],[1ere formation / facturation]],TAB_MEP[[#This Row],[Date de MEP prévisionnelle]]<>\"pas de date\")),1,0)","v":0},{"$f":"IF(AND(TAB_MEP[[#This Row],[1ere formation / facturation]]=\"-\",TAB_MEP[[#This Row],[Date de MEP prévisionnelle]]<TODAY()),1,0)","v":0},{"$f":"IF(TAB_MEP[[#This Row],[1ere formation / facturation]]<>\"-\",TAB_MEP[[#This Row],[1ere formation / facturation]],\"\")","v":"2021-06-02"}]
[354,"2020-02-25","2020-03-05",5,"-","2020-04-09",{"$f":"IF(OR(TAB_MEP[[#This Row],[Nb jour avt mep]]=\"-\",TAB_MEP[[#This Row],[Date lancement]]=\"-\"),\"pas de date\",TAB_MEP[[#This Row],[Date lancement]]+TAB_MEP[[#This Row],[Nb jour avt mep]])","v":"pas de date"},{"$f":"IF(OR(TAB_MEP[[#This Row],[1ere formation / facturation]]=\"-\",TAB_MEP[[#This Row],[1ere formation / facturation]]>=TODAY()),1,0)","v":0},{"$nulls":3},"SC","CF",0,{"$f":"IF(AND(AND(TAB_MEP[[#This Row],[1ere formation / facturation]]<>\"-\",TAB_MEP[[#This Row],[Date de MEP prévisionnelle]]<TAB_MEP[[#This Row],[1ere formation / facturation]],TAB_MEP[[#This Row],[Date de MEP prévisionnelle]]<>\"pas de date\")),1,0)","v":0},{"$f":"IF(AND(TAB_MEP[[#This Row],[1ere formation / facturation]]=\"-\",TAB_MEP[[#This Row],[Date de MEP prévisionnelle]]<TODAY()),1,0)","v":0},{"$f":"IF(TAB_MEP[[#This Row],[1ere formation / facturation]]<>\"-\",TAB_MEP[[#This Row],[1ere formation / facturation]],\"\")","v":"2020-04-09"}]
[355,"2022-12-11","2022-12-21",7,"-","2023-02-10",{"$f":"IF(OR(TAB_MEP[[#This Row],[Nb jour avt mep]]=\"-\",TAB_MEP[[#This Row],[Date lancement]]=\"-\"),\"pas de date\",TAB_MEP[[#This Row],[Date lancement]]+TAB_MEP[[#This Row],[Nb jour avt mep]])","v":"pas de date"},{"$f":"IF(OR(TAB_MEP[[#This Row],[1ere formation / facturation]]=\"-\",TAB_MEP[[#This Row],[1ere formation / facturation]]>=TODAY()),1,0)","v":0},null,null,"FR","SC","CF",0,{"$f":"IF(AND(AND(TAB_MEP[[#This Row],[1ere formation / facturation]]<>\"-\",TAB_MEP[[#This Row],[Date de MEP prévisionnelle]]<TAB_MEP[[#This Row],[1ere formation / facturation]],TAB_MEP[[#This Row],[Date de MEP prévisionnelle]]<>\"pas de date\")),1,0)","v":0},{"$f":"IF(AND(TAB_MEP[[#This Row],[1ere formation / facturation]]=\"-\",TAB_MEP[[#This Row],[Date de MEP prévisionnelle]]<TODAY()),1,0)","v":0},{"$f":"IF(TAB_MEP[[#This Row],[1ere formation / facturation]]<>\"-\",TAB_MEP[[#This Row],[1ere formation / facturation]],\"\")","v":"2023-02-10"}]
[356,"2019-12-20","2020-01-13",5,"-","2020-02-18",{"$f":"IF(OR(TAB_MEP[[#This Row],[Nb jour avt mep]]=\"-\",TAB_MEP[[#This Row],[Date lancement]]=\"-\"),\"pas de date\",TAB_MEP[[#This Row],[Date lancement]]+TAB_MEP[[#This Row],[Nb jour avt mep]])","v":"pas de date"},{"$f":"IF(OR(TAB_MEP[[#This Row],[1ere formation / facturation]]=\"-\",TAB_MEP[[#This Row],[1ere formation / facturation]]>=TODAY()),1,0)","v":0},{"$nulls":3},"SC","CF",0,{"$f":"IF(AND(AND(TAB_MEP[[#This Row],[1ere formation / facturation]]<>\"-\",TAB_MEP[[#This Row],[Date de MEP prévisionnelle]]<TAB_MEP[[#This Row],[1ere formation / facturation]],TAB_MEP[[#This Row],[Date de MEP prévisionnelle]]<>\"pas de date\")),1,0)","v":0},{"$f":"IF(AND(TAB_MEP[[#This Row],[1ere formation / facturation]]=\"-\",TAB_MEP[[#This Row],[Date de MEP prévisionnelle]]<TODAY()),1,0)","v":0},{"$f":"IF(TAB_MEP[[#This Row],[1ere formation / facturation]]<>\"-\",TAB_MEP[[#This Row],[1ere formation / facturation]],\"\")","v":"2020-02-18"}]
[357,"2023-04-26","2023-05-12",5,34,"2023-06-20",{"$f":"IF(OR(TAB_MEP[[#This Row],[Nb jour avt mep]]=\"-\",TAB_MEP[[#This Row],[Date lancement]]=\"-\"),\"pas de date\",TAB_MEP[[#This Row],[Date lancement]]+TAB_MEP[[#This Row],[Nb jour avt mep]])","v":"2023-06-15"},{"$f":"IF(OR(TAB_MEP[[#This Row],[1ere formation / facturation]]=\"-\",TAB_MEP[[#This Row],[1ere formation / facturation]]>=TODAY()),1,0)","v":0},null,null,"FR","SC","CF",0,{"$f":"IF(AND(AND(TAB_MEP[[#This Row],[1ere formation / facturation]]<>\"-\",TAB_MEP[[#This Row],[Date de MEP prévisionnelle]]<TAB_MEP[[#This Row],[1ere formation / facturation]],TAB_MEP[[#This Row],[Date de MEP prévisionnelle]]<>\"pas de date\")),1,0)","v":1},{"$f":"IF(AND(TAB_MEP[[#This Row],[1ere formation / facturation]]=\"-\",TAB_MEP[[#This Row],[Date de MEP prévisionnelle]]<TODAY()),1,0)","v":0},{"$f":"IF(TAB_MEP[[#This Row],[1ere formation / facturation]]<>\"-\",TAB_MEP[[#This Row],[1ere formation / facturation]],\"\")","v":"2023-06-20"}]
[{"$f":"SUBTOTAL(103,TAB_MEP[Clients])","v":357},{"$f":"SUBTOTAL(103,TAB_MEP[Date commande])","v":357},null,{"$f":"SUBTOTAL(101,TAB_MEP[Age (sem)])","v":{"v":14.017341040462428,"d":"14.0"}},null,{"$f":"SUBTOTAL(103,TAB_MEP[1ere formation / facturation])","v":"1900-12-22"}]